Workbook

Sheet C7_2017
A1: Schedule C-7 | T1: Docket No: 160021-EI
T2: January 2017 Rate Change
A3: Florida Power & Light Company | T3: Exhibit No. RCS-2
A4: Test Year Ended December 31, 2017
A5: Annual Depreciation Accruals - New Depreciation Rates
D6: FP&L Existing | G6: FP&L Proposed | K6: Per OPC | Z6: Linked to Detail by Plant Acct
A7: Line No. | B7: Function | C7: Original Cost (Based on 12/31/2017 Electric Plant) | D7: Annual Depr. Rate | E7: Annual Depr. Accruals | G7: Annual Depr. Rate | H7: Annual Depr. Accruals | I7: Increase/ Decrease | K7: Annual Depr. Rate | L7: Annual Depr. Accruals | M7: Difference | O7: Excess Depreciation Reserve for Amortization | P7: Excess Depreciation Reserve Annual Amortization | R7: Total OPC Adjustments | AB7: Per FPL
C8: (A) | D8: (B) | E8: (C ) | G8: (D) | H8: (E) | I8: (F) | K8: (1) | L8: =K8-1 -> -2 | M8: =L8-1 -> -3 | O8: =M8-1 -> -4 | P8: =O8-1 -> -5 | R8: =P8-1 -> -6
B9: I. Calculated Depreciation Expense on 12/31/2017 Plant
A10: 1 | B10: Steam | C10: ='Table 3'!D156 -> 3243194417 | D10: ='Table 3'!P156 -> 2.5 | E10: ='OPC Adj 2017 Summary'!E9 -> 80638814 | G10: ='Table 3'!AD156 -> 3.785439114 | H10: =$C10*(G10/100) -> 122769150 | I10: =ROUND(H10-E10,0) -> 42130336 | K10: =Z10 -> 3.776957816 | L10: =$C10*(K10/100) -> 122494085 | M10: =L10-H10 -> -275065 | P10: =O10/4 -> 0 | R10: =M10+P10 -> -275065 | X10: CALCULATED | Z10: ='Table 3'!$AH$156 -> 3.776957816 | AB10: 3.785439114
A11: =A10+1 -> 2 | B11: Nuclear | C11: ='Table 3'!D218 -> 7822373927 | D11: ='Table 3'!P218 -> 2 | E11: ='OPC Adj 2017 Summary'!E10 -> 160192998 | G11: ='Table 3'!AD218 -> 4.155662898 | H11: =C11*(G11/100) -> 325071491 | I11: =ROUND(H11-E11,0) -> 164878493 | K11: =Z11 -> 4.005370069 | L11: 313315024 | M11: =L11-H11 -> -11756467 | P11: =O11/4 -> 0 | R11: =M11+P11 -> -11756467 | Z11: ='Table 3'!AH218 -> 4.005370069 | AB11: 4.155662898
A12: =A11+1 -> 3 | B12: Combined Cycle | C12: ='Table 3'!D486 -> 1.088450601e+10 | D12: ='Table 3'!P486 -> 3.8 | E12: ='OPC Adj 2017 Summary'!E11 -> 412097322 | G12: ='Table 3'!AD486 -> 4.330640725 | H12: =C12*(G12/100) -> 471368850 | I12: 59271528 | K12: 2.499938606 | L12: 272105967.9 | M12: -199262882.1 | P12: 0 | R12: -199262882.1 | Z12: ='Table 3'!AH486 -> 2.499938606 | AB12: 4.330640725
A13: 4 | B13: Peaker Plants | C13: ='Table 3'!D520 -> 527598852.9 | D13: ='Table 3'!P520 -> 3.3 | E13: ='OPC Adj 2017 Summary'!E12 -> 17181142 | G13: ='Table 3'!AD520 -> 3.311747723 | H13: 17472743 | I13: 291601 | K13: 3.084723811 | L13: 16274967.44 | M13: -1197775.559 | P13: 0 | R13: -1197775.559 | Z13: ='Table 3'!AH520 -> 3.084723811 | AB13: 3.311747723
A14: 5 | B14: Solar | C14: ='Table 3'!D562 -> 1051134801 | D14: ='Table 3'!P562 -> 3.3 | E14: ='OPC Adj 2017 Summary'!E13 -> 34687449 | G14: ='Table 3'!AD562 -> 3.178378928 | H14: 33409047 | I14: -1278402 | K14: 3.175359925 | L14: 33377313.21 | M14: -31733.79002 | P14: 0 | R14: -31733.79002 | Z14: ='Table 3'!AH562 -> 3.175359925 | AB14: 3.178378928
A15: 6 | B15: Total Production | C15: =SUM(C10:C14) -> 2.352880801e+10 | D15: ='Table 3'!P564 -> 3 | E15: =SUM(E10:E14) -> 704797725 | G15: ='Table 3'!AD564 -> 4.122993739 | H15: =SUM(H10:H14) -> 970091281 | I15: =SUM(I10:I14) -> 265293556 | K15: =L15/C15*100 -> 3.219743887 | L15: =SUM(L10:L14) -> 757567357.5 | M15: =SUM(M10:M14) -> -212523923.5 | O15: =SUM(O10:O14) -> 0 | P15: 0 | R15: -212523923.5 | Z15: ='Table 3'!AH564 -> 3.219510995 | AB15: 4.122993739
A16: 7
A17: 8 | B17: Transmission | C17: ='Table 3'!D581 -> 5577625822 | D17: ='Table 3'!P581 -> 2.8 | E17: ='OPC Adj 2017 Summary'!E16 -> 153559713 | G17: ='Table 3'!AD581 -> 2.499582465 | H17: =C17*(G17/100) -> 139417357 | I17: =ROUND(H17-E17,0) -> -14142356 | K17: =Z17 -> 2.211705427 | L17: =$C17*(K17/100) -> 123360653 | M17: =L17-H17 -> -16056704 | O17: 375878092 | P17: =-O17/4 -> -93969523 | R17: =M17+P17 -> -110026227 | Z17: ='Table 3'!AH581 -> 2.211705427 | AB17: 2.499582465
A18: 9 | B18: Distribution | C18: ='Table 3'!D601 -> 1.601595157e+10 | D18: ='Table 3'!P601 -> 3.4 | E18: ='OPC Adj 2017 Summary'!E17 -> 537116945 | G18: ='Table 3'!AD601 -> 3.190100218 | H18: =C18*(G18/100) -> 510924906 | I18: -26192039 | K18: 2.74522391 | L18: 439673732 | M18: -71251174 | O18: 519694355 | P18: =-O18/4 -> -129923588.8 | R18: -201174762.7 | Z18: ='Table 3'!AH601 -> 2.74522391 | AB18: 3.190100218
A19: 10 | B19: General | C19: ='Table 3'!D613 -> 858008961.8 | D19: ='Table 3'!P613 -> 4.4 | E19: ='OPC Adj 2017 Summary'!E18 -> 37489110 | G19: ='Table 3'!AD613 -> 3.939478549 | H19: 33801079 | I19: -3688031 | K19: 3.595034357 | L19: 30845716.96 | M19: -2955362.038 | O19: 27554227 | P19: -6888556.75 | R19: -9843918.788 | Z19: ='Table 3'!AH613 -> 3.595034357 | AB19: 3.939478549
A20: 11 | B20: Total Trans., Dist.
A21: 12 | B21: and General Plant | C21: =SUM(C17:C19) -> 2.245158636e+10 | D21: ='Table 3'!P615 -> 3.2 | E21: =SUM(E17:E19) -> 728165768 | G21: ='Table 3'!AD615 -> 3.047193776 | H21: =SUM(H17:H19) -> 684143342 | I21: =SUM(I17:I19) -> -44022426 | K21: =L21/C21*100 -> 2.645158754 | L21: =SUM(L17:L19) -> 593880102 | M21: =SUM(M17:M19) -> -90263240.04 | O21: =SUM(O17:O19) -> 923126674 | P21: -230781668.5 | R21: -321044908.5 | Z21: ='Table 3'!AH615 -> 2.644719991 | AB21: 3.047193776
A22: 13
A23: 14 | B23: Grand Total | C23: =C15+C21 -> 4.598039436e+10 | D23: ='Table 3'!P618 -> 3.1 | E23: =E15+E21 -> 1432963493 | G23: ='Table 3'!AD618 -> 3.597695596 | H23: =H15+H21 -> 1654234623 | I23: =I15+I21 -> 221271130 | K23: =L23/C23*100 -> 2.939181967 | L23: =L15+L21 -> 1351447459 | M23: =M15+M21 -> -302787163.5 | O23: =O15+O21 -> 923126674 | P23: =P15+P21 -> -230781668.5 | R23: =R15+R21 -> -533568832 | Z23: ='Table 3'!AH618 -> 2.938848551 | AB23: 3.597695596
B25: II. Depreciation Expense Adjustment for Ratemaking
B26: Function | C26: FPL New Depreciation Rates Expense Adjustment | E26: Depreciation Expense -Clauses | G26: Depreciation Expense - Base Rates | H26: Jurisdictional Factors | I26: FPL New Depreciation Rates Juris. Expense Adjustment | K26: OPC New Depreciation Rates Expense Adjustment | L26: Ratio of FPL Base Rates Depreciation Expense Adj to Total Exp. Adj. | M26: OPC Depreciation Expense Adjustment - Base Rates | O26: Excess Depreciation Reserve Annual Amortization | P26: OPC Total Depreciation Expense Adjustment After Clauses | R26: Jurisdictional Factors | T26: OPC New Depreciation Rates Juris. Expense Adjustment
C27: (G) | E27: (H) | G27: (I) | H27: (J) | I27: (K) | K27: (7) = (3) | L27: (8)=I/G | M27: (9)=(8)x(7) | O27: (10)=(5) | P27: (11)=(9)+(10) | R27: (12)=(J) | T27: (13)=(11)x(12)
A28: =A23+1 -> 15 | B28: Steam | C28: 42675782.52 | E28: 15102236.15 | G28: =C28-E28 -> 27573546.37 | H28: 0.9505951814 | I28: =G28*H28 -> 26211280.32 | K28: =ROUND(M10,0) -> -275065 | L28: =ROUND(G28/C28,6) -> 0.646117 | M28: =ROUND(K28*L28,0) -> -177724 | P28: =M28+O28 -> -177724 | R28: =H28 -> 0.9505951814 | T28: =P28*R28 -> -168943.578
A29: =A28+1 -> 16 | B29: Nuclear | C29: 162509137.6 | E29: 3416927.982 | G29: =C29-E29 -> 159092209.6 | H29: 0.9505951814 | I29: =G29*H29 -> 151232287.9 | K29: =ROUND(M11,0) -> -11756467 | L29: =ROUND(G29/C29,6) -> 0.978974 | M29: =ROUND(K29*L29,0) -> -11509276 | P29: =M29+O29 -> -11509276 | R29: =H29 -> 0.9505951814 | T29: =P29*R29 -> -10940662.31
A30: =A29+1 -> 17 | B30: Other | C30: 51998277.3 | E30: 211996.0322 | G30: 51786281.27 | H30: 0.9505951814 | I30: 49227789.44 | K30: =ROUND(SUM(M12:M14),0) -> -200492391 | L30: 0.995923 | M30: -199674984 | P30: -199674984 | R30: 0.9505951814 | T30: -189810077.6 | X30: Other col (8)
A31: 18 | B31: Total Production | C31: =SUM(C28:C30) -> 257183197.4 | E31: =SUM(E28:E30) -> 18731160.16 | G31: =SUM(G28:G30) -> 238452037.3 | I31: =SUM(I28:I30) -> 226671357.6 | K31: =SUM(K28:K30) -> -212523923 | M31: =SUM(M28:M30) -> -211361984 | O31: =SUM(O28:O30) -> 0 | P31: =SUM(P28:P30) -> -211361984 | R31: =R30 -> 0.9505951814 | T31: =SUM(T28:T30) -> -200919683.5 | X31: (7) | Y31: =K30 -> -200492391
A32: 19 | X32: G | Y32: =$C$30 -> 51998277.3
A33: 20 | B33: Transmission | C33: -7892671.728 | E33: 3749.781623 | G33: =C33-E33 -> -7896421.51 | H33: 0.8967408632 | I33: =G33*H33 -> -7081043.841 | K33: =ROUND(M17,0) -> -16056704 | L33: =ROUND(G33/C33,6) -> 1.000475 | M33: =ROUND(K33*L33,0) -> -16064331 | O33: =P17 -> -93969523 | P33: =M33+O33 -> -110033854 | R33: =H33 -> 0.8967408632 | T33: =P33*R33 -> -98671853.22 | X33: F | Y33: =SUM(I12:I14) -> 58284727
A34: 21 | B34: Distribution | C34: -24863168.1 | E34: -2987852.887 | G34: -21875315.21 | H34: 1 | I34: -21875315.21 | K34: =ROUND(M18,0) -> -71251174 | L34: 0.879828 | M34: -62688778 | O34: =P18 -> -129923588.8 | P34: -192612366.8 | R34: 1 | T34: -192612366.8 | X34: Calculated | Y34: =Y31*Y32/Y33 -> -178867766.6
A35: 22 | B35: General | C35: -3124406.394 | E35: -467256.7721 | G35: -2657149.622 | H35: 0.9674535142 | I35: -2570668.74 | K35: -2955362 | L35: 0.850449 | M35: -2513385 | O35: -6888556.75 | P35: -9401941.75 | R35: 0.9674535142 | T35: -9095941.586
A36: 23 | B36: Total Trans., Dist.
A37: 24 | B37: and General Plant | C37: =SUM(C33:C35) -> -35880246.22 | E37: =SUM(E33:E35) -> -3451359.878 | G37: =SUM(G33:G35) -> -32428886.35 | I37: =SUM(I33:I35) -> -31527027.79 | K37: =SUM(K33:K35) -> -90263240 | M37: =SUM(M33:M35) -> -81266494 | O37: =SUM(O33:O35) -> -230781668.5 | P37: =SUM(P33:P35) -> -312048162.5 | T37: =SUM(T33:T35) -> -300380161.6
A38: 25
A39: 26 | B39: Grand Total | C39: =C37+C31 -> 221302951.2 | E39: =E37+E31 -> 15279800.29 | G39: =G37+G31 -> 206023150.9 | I39: =I37+I31 -> 195144329.8 | K39: =K37+K31 -> -302787163 | M39: =M37+M31 -> -292628478 | O39: =O37+O31 -> -230781668.5 | P39: =P37+P31 -> -523410146.5 | T39: =T37+T31 -> -501299845.1
A40: 27
A41: 28 | B41: Compare FPL Total Jurisdictional Adjustment (based on MFR Schedule C-2) | I41: 195144329.8 | J41: (a)
A43: Notes and Source
A44: Columns A-F, Line Nos. 1-16: FPL Exhibit NWA-1, Page 7 of 762
A45: Excess Depreciation Reserve is being amortized over 4 years per recommendation of OPC witness Pous.
A46: (a): MFR Schedule C-2 for Projected Test Year Ended 12/31/17, Page 3 of 3, Line 15
A47: Cols.G, H and I: FPL response to OPC Fifth Set of Interrogatories, No. 167, Attachment 2
A48: Cols. I, J, and K: FPL response to OPC's Fifth Set of Interrogatories, No. 168, Attachment 2
A49: OPC Depreciation Rate Recommendations from OPC witness Jack Pous are summarized in columns (1) through (6) above.
A51: WORKPAPER BELOW THIS POINT AND ON OTHER TABS OF THIS EXCEL
B52: =CELL("filename") -> C:\Cases\FL OPC FPL 2016 rate case\Testimony RSmith\RSmith Excel workpapers\[2016-07-12 RSmith Excel Workpapers file no 02 OPC Depreciation rates templete_FINAL for RR.xlsm]C7_2017
B53: C:\Cases\FL OPC FPL 2016 rate case\Testimony Jack Pous Depreciation rates\[2016-07-01 OPC Dep templet_please fill in yellow in OPC Adj 2017 tab and return.xlsm]OPC Adj 2017 Summary
B54: OPC Adj 2017 Summary
K55: TEST COL 8 TOTALS
K56: COL 7 | L56: =K39 -> -302787163
K57: Col G | L57: =C39 -> 221302951.2
K58: Col F | L58: =I23 -> 221271130
L59: =L56*L57/L58 -> -302830707.1

Sheet C7_2018
A1: Schedule C-7 | T1: Docket No: 160021-EI
T2: January 2018 Rate Change
A3: Florida Power & Light Company | T3: Exhibit No. RCS-3
A4: Test Year Ended December 31, 2018
A5: Annual Depreciation Accruals - New Depreciation Rates
D6: FP&L Existing | G6: FP&L Proposed | K6: Per OPC | Z6: Linked to Detail by Plant Acct
A7: Line No. | B7: Function | C7: Original Cost (Based on 12/31/2017 Electric Plant) | D7: Annual Depr. Rate | E7: Annual Depr. Accruals | G7: Annual Depr. Rate | H7: Annual Depr. Accruals | I7: Increase/ Decrease | K7: Annual Depr. Rate | L7: Annual Depr. Accruals | M7: Difference | O7: Excess Depreciation Reserve for Amortization | P7: Excess Depreciation Reserve Annual Amortization | R7: Total OPC Adjustments | AB7: Per FPL
C8: (A) | D8: (B) | E8: (C ) | G8: (D) | H8: (E) | I8: (F) | K8: (1) | L8: =K8-1 -> -2 | M8: =L8-1 -> -3 | O8: =M8-1 -> -4 | P8: =O8-1 -> -5 | R8: =P8-1 -> -6
B9: I. Calculated Depreciation Expense on 12/31/2017 Plant
A10: 1 | B10: Steam | C10: ='Table 3'!D156 -> 3243194417 | D10: ='Table 3'!P156 -> 2.5 | E10: ='OPC Adj 2017 Summary'!E9 -> 80638814 | G10: ='Table 3'!AD156 -> 3.785439114 | H10: =$C10*(G10/100) -> 122769150 | I10: =H10-E10 -> 42130336 | K10: =Z10 -> 3.776957816 | L10: =$C10*(K10/100) -> 122494085 | M10: =L10-H10 -> -275065 | P10: =O10/4 -> 0 | R10: =M10+P10 -> -275065 | X10: CALCULATED | Z10: ='Table 3'!$AH$156 -> 3.776957816 | AB10: 3.785439114
A11: =A10+1 -> 2 | B11: Nuclear | C11: ='Table 3'!D218 -> 7822373927 | D11: ='Table 3'!P218 -> 2 | E11: ='OPC Adj 2017 Summary'!E10 -> 160192998 | G11: ='Table 3'!AD218 -> 4.155662898 | H11: =C11*(G11/100) -> 325071491 | I11: =H11-E11 -> 164878493 | K11: =Z11 -> 4.005370069 | L11: 313315024 | M11: =L11-H11 -> -11756467 | P11: =O11/4 -> 0 | R11: =M11+P11 -> -11756467 | Z11: ='Table 3'!AH218 -> 4.005370069 | AB11: 4.155662898
A12: =A11+1 -> 3 | B12: Combined Cycle | C12: ='Table 3'!D486 -> 1.088450601e+10 | D12: ='Table 3'!P486 -> 3.8 | E12: ='OPC Adj 2017 Summary'!E11 -> 412097322 | G12: ='Table 3'!AD486 -> 4.330640725 | H12: =C12*(G12/100) -> 471368850 | I12: =H12-E12 -> 59271528 | K12: 2.499938606 | L12: 272105967.9 | M12: -199262882.1 | P12: 0 | R12: -199262882.1 | Z12: ='Table 3'!AH486 -> 2.499938606 | AB12: 4.330640725
A13: 4 | B13: Peaker Plants | C13: ='Table 3'!D520 -> 527598852.9 | D13: ='Table 3'!P520 -> 3.3 | E13: ='OPC Adj 2017 Summary'!E12 -> 17181142 | G13: ='Table 3'!AD520 -> 3.311747723 | H13: 17472743 | I13: 291601 | K13: 3.084723811 | L13: 16274967.44 | M13: -1197775.559 | P13: 0 | R13: -1197775.559 | Z13: ='Table 3'!AH520 -> 3.084723811 | AB13: 3.311747723
A14: 5 | B14: Solar | C14: ='Table 3'!D562 -> 1051134801 | D14: ='Table 3'!P562 -> 3.3 | E14: ='OPC Adj 2017 Summary'!E13 -> 34687449 | G14: ='Table 3'!AD562 -> 3.178378928 | H14: 33409047 | I14: -1278402 | K14: 3.175359925 | L14: 33377313.21 | M14: -31733.79002 | P14: 0 | R14: -31733.79002 | Z14: ='Table 3'!AH562 -> 3.175359925 | AB14: 3.178378928
A15: 6 | B15: Total Production | C15: =SUM(C10:C14) -> 2.352880801e+10 | D15: ='Table 3'!P564 -> 3 | E15: =SUM(E10:E14) -> 704797725 | G15: ='Table 3'!AD564 -> 4.122993739 | H15: =SUM(H10:H14) -> 970091281 | I15: =SUM(I10:I14) -> 265293556 | K15: =L15/C15*100 -> 3.219743887 | L15: =SUM(L10:L14) -> 757567357.5 | M15: =SUM(M10:M14) -> -212523923.5 | O15: =SUM(O10:O14) -> 0 | P15: 0 | R15: -212523923.5 | Z15: ='Table 3'!AH564 -> 3.219510995 | AB15: 4.122993739
A16: 7
A17: 8 | B17: Transmission | C17: ='Table 3'!D581 -> 5577625822 | D17: ='Table 3'!P581 -> 2.8 | E17: ='OPC Adj 2017 Summary'!E16 -> 153559713 | G17: ='Table 3'!AD581 -> 2.499582465 | H17: =C17*(G17/100) -> 139417357 | I17: =H17-E17 -> -14142356 | K17: =Z17 -> 2.211705427 | L17: =$C17*(K17/100) -> 123360653 | M17: =L17-H17 -> -16056704 | O17: 375878092 | P17: =-O17/4 -> -93969523 | R17: =M17+P17 -> -110026227 | Z17: ='Table 3'!AH581 -> 2.211705427 | AB17: 2.499582465
A18: 9 | B18: Distribution | C18: ='Table 3'!D601 -> 1.601595157e+10 | D18: ='Table 3'!P601 -> 3.4 | E18: ='OPC Adj 2017 Summary'!E17 -> 537116945 | G18: ='Table 3'!AD601 -> 3.190100218 | H18: =C18*(G18/100) -> 510924906 | I18: -26192039 | K18: 2.74522391 | L18: 439673732 | M18: -71251174 | O18: 519694355 | P18: =-O18/4 -> -129923588.8 | R18: -201174762.7 | Z18: ='Table 3'!AH601 -> 2.74522391 | AB18: 3.190100218
A19: 10 | B19: General | C19: ='Table 3'!D613 -> 858008961.8 | D19: ='Table 3'!P613 -> 4.4 | E19: ='OPC Adj 2017 Summary'!E18 -> 37489110 | G19: ='Table 3'!AD613 -> 3.939478549 | H19: 33801079 | I19: -3688031 | K19: 3.595034357 | L19: 30845716.96 | M19: -2955362.038 | O19: 27554227 | P19: -6888556.75 | R19: -9843918.788 | Z19: ='Table 3'!AH613 -> 3.595034357 | AB19: 3.939478549
A20: 11 | B20: Total Trans., Dist.
A21: 12 | B21: and General Plant | C21: =SUM(C17:C19) -> 2.245158636e+10 | D21: ='Table 3'!P615 -> 3.2 | E21: =SUM(E17:E19) -> 728165768 | G21: ='Table 3'!AD615 -> 3.047193776 | H21: =SUM(H17:H19) -> 684143342 | I21: =SUM(I17:I19) -> -44022426 | K21: =L21/C21*100 -> 2.645158754 | L21: =SUM(L17:L19) -> 593880102 | M21: =SUM(M17:M19) -> -90263240.04 | O21: =SUM(O17:O19) -> 923126674 | P21: -230781668.5 | R21: -321044908.5 | Z21: ='Table 3'!AH615 -> 2.644719991 | AB21: 3.047193776
A22: 13
A23: 14 | B23: Grand Total | C23: =C15+C21 -> 4.598039436e+10 | D23: ='Table 3'!P618 -> 3.1 | E23: =E15+E21 -> 1432963493 | G23: ='Table 3'!AD618 -> 3.597695596 | H23: =H15+H21 -> 1654234623 | I23: =I15+I21 -> 221271130 | K23: =L23/C23*100 -> 2.939181967 | L23: =L15+L21 -> 1351447459 | M23: =M15+M21 -> -302787163.5 | O23: =O15+O21 -> 923126674 | P23: =P15+P21 -> -230781668.5 | R23: =R15+R21 -> -533568832 | Z23: ='Table 3'!AH618 -> 2.938848551 | AB23: 3.597695596
B25: II. Depreciation Expense Adjustment for Ratemaking - 2018 Projected Test Year
B26: Function | C26: FPL New Depreciation Rates Expense Adjustment | E26: Depreciation Expense -Clauses | G26: Depreciation Expense - Base Rates | H26: Jurisdictional Factors | I26: FPL New Depreciation Rates Juris. Expense Adjustment | K26: OPC New Depreciation Rates Expense Adjustment | L26: Ratio of FPL Base Rates Depreciation Expense Adj to Total Exp. Adj. | M26: OPC Depreciation Expense Adjustment - Base Rates | O26: Excess Depreciation Reserve Annual Amortization | P26: OPC Total Depreciation Expense Adjustment After Clauses | R26: Jurisdictional Factors | T26: OPC New Depreciation Rates Juris. Expense Adjustment
C27: (G) | E27: (H) | G27: (I) | H27: (J) | I27: (K) | K27: (7) = (3) | L27: (8)=I/G | M27: (9)=(8)x(7) | O27: (10)=(5) | P27: (11)=(9)+(10) | R27: (12)=(J) | T27: (13)=(11)x(12)
A28: =A23+1 -> 15 | B28: Steam | C28: 43253021.74 | E28: =C28-G28 -> 15193385.17 | G28: 28059636.57 | H28: 0.9512837372 | I28: =G28*H28 -> 26692675.94 | K28: =M10 -> -275065 | L28: =ROUND(G28/C28,6) -> 0.648732 | M28: =ROUND(K28*L28,0) -> -178443 | P28: =M28+O28 -> -178443 | R28: =H28 -> 0.9512837372 | T28: =P28*R28 -> -169749.9239
A29: =A28+1 -> 16 | B29: Nuclear | C29: 163550927.3 | E29: =C29-G29 -> 3957611.752 | G29: 159593315.5 | H29: 0.9512837372 | I29: =G29*H29 -> 151818525.6 | K29: =M11 -> -11756467 | L29: =ROUND(G29/C29,6) -> 0.975802 | M29: =ROUND(K29*L29,0) -> -11471984 | P29: =M29+O29 -> -11471984 | R29: =H29 -> 0.9512837372 | T29: =P29*R29 -> -10913111.81
A30: =A29+1 -> 17 | B30: Other | C30: 52132143.05 | E30: 208202.1544 | G30: 51923940.9 | H30: 0.9512837372 | I30: 49394400.55 | K30: =SUM(M12:M14) -> -200492391.5 | L30: 0.996006 | M30: -199691625 | P30: -199691625 | R30: 0.9512837372 | T30: -189963395.3
A31: 18 | B31: Total Production | C31: =SUM(C28:C30) -> 258936092 | E31: =SUM(E28:E30) -> 19359199.08 | G31: =SUM(G28:G30) -> 239576893 | I31: =SUM(I28:I30) -> 227905602.1 | K31: =SUM(K28:K30) -> -212523923.5 | M31: =SUM(M28:M30) -> -211342052 | O31: =SUM(O28:O30) -> 0 | P31: =SUM(P28:P30) -> -211342052 | R31: =R30 -> 0.9512837372 | T31: =SUM(T28:T30) -> -201046257.1
A32: 19
A33: 20 | B33: Transmission | C33: -9870107.58 | E33: =C33-G33 -> 3599.037482 | G33: -9873706.618 | H33: 0.8987352178 | I33: =G33*H33 -> -8873847.868 | K33: =M17 -> -16056704 | L33: =ROUND(G33/C33,6) -> 1.000365 | M33: =ROUND(K33*L33,0) -> -16062565 | O33: =P17 -> -93969523 | P33: =M33+O33 -> -110032088 | R33: =H33 -> 0.8987352178 | T33: =P33*R33 -> -98889712.57
A34: 21 | B34: Distribution | C34: -23123520.08 | E34: -4858090.244 | G34: -18265429.84 | H34: 1 | I34: -18265429.84 | K34: =M18 -> -71251174 | L34: 0.789907 | M34: -56281801 | O34: =P18 -> -129923588.8 | P34: -186205389.8 | R34: 1 | T34: -186205389.8
A35: 22 | B35: General | C35: -3041360.528 | E35: -468930.8827 | G35: -2572429.646 | H35: 0.9682042331 | I35: -2490637.272 | K35: -2955362.038 | L35: 0.845815 | M35: -2499690 | O35: -6888556.75 | P35: -9388246.75 | R35: 0.9682042331 | T35: -9089740.245
A36: 23 | B36: Total Trans., Dist.
A37: 24 | B37: and General Plant | C37: =SUM(C33:C35) -> -36034988.19 | E37: =SUM(E33:E35) -> -5323422.089 | G37: =SUM(G33:G35) -> -30711566.1 | I37: =SUM(I33:I35) -> -29629914.98 | K37: =SUM(K33:K35) -> -90263240.04 | M37: =SUM(M33:M35) -> -74844056 | O37: =SUM(O33:O35) -> -230781668.5 | P37: =SUM(P33:P35) -> -305625724.5 | T37: =SUM(T33:T35) -> -294184842.6
A38: 25
A39: 26 | B39: Grand Total | C39: =C37+C31 -> 222901103.9 | E39: =E37+E31 -> 14035776.99 | G39: =G37+G31 -> 208865326.9 | I39: =I37+I31 -> 198275687.1 | K39: =K37+K31 -> -302787163.5 | M39: =M37+M31 -> -286186108 | O39: =O37+O31 -> -230781668.5 | P39: =P37+P31 -> -516967776.5 | T39: =T37+T31 -> -495231099.6
A40: 27
A41: 28 | B41: Compare FPL Total Jurisdictional Adjustment (based on MFR Schedule C-2) | I41: 198275687 | J41: (a)
A43: Notes and Source
A44: Columns A-F, Line Nos. 1-16: FPL Exhibit NWA-1, Page 7 of 762
A45: Excess Depreciation Reserve is being amortized over 4 years per recommendation of OPC witness Pous.
A46: (a): MFR Schedule C-2 for Projected Test Year Ended 12/31/18, Page 3 of 3, Line 15
A47: Col.G: FPL response to OPC Fifth Set of Interrogatories, No. 172, Attachment 1
A48: Col.H, lines 15-26: Col. G - Col. I.
A49: Col. H, line 26: FPL response to OPC Fifth Set of Interrogatories, No. 172, Attachment 1. Clauses amounts for 2018 spread in same proportion to FPL Clause adjustments for 2017.
A50: Cols. I, J, and K: FPL response to OPC's Fifth Set of Interrogatories, No. 169, Attachment 2
A51: OPC Depreciation Rate Recommendations from OPC witness Jack Pous are summarized in columns (1) through (6) above.
A53: WORKPAPER BELOW THIS POINT AND ON OTHER TABS OF THIS EXCEL
B54: =CELL("filename") -> C:\Cases\FL OPC FPL 2016 rate case\Testimony RSmith\RSmith Excel workpapers\[2016-07-12 RSmith Excel Workpapers file no 02 OPC Depreciation rates templete_FINAL for RR.xlsm]C7_2017
B55: C:\Cases\FL OPC FPL 2016 rate case\Testimony Jack Pous Depreciation rates\[2016-07-01 OPC Dep templet_please fill in yellow in OPC Adj 2017 tab and return.xlsm]OPC Adj 2017 Summary
B56: OPC Adj 2017 Summary

Sheet <==To RR Model

Sheet OPC Adj 2017 Summary
A1: Florida Power & Light Company | K1: NEED review from JACK POUS and possible revised input if not accurately capturing the adjustment
A2: Test Year Ended December 31, 2017 | K2: YELLOW IN EXCEL COL K (labeled column G) is coming from "Table 3" tab detail
A3: Annual Depreciation Accruals | E3: Linked col C to Table 3 dollars rather than recalculating | K3: UPDATED OPC Adj for Combined Cycle depreciation - reduced composite rate to 2.50% froom 2.93%
E4: 2016-07-06 | Z4: This is currently reproducing FPL's proposed rates
D5: FP&L Existing | G5: FP&L Proposed | K5: Per OPC | Z5: Linked to Detail by Plant Acct
A6: Line No. | B6: Function | C6: Original Cost (Based on 12/31/2017 Electric Plant) | D6: Annual Depr. Rate | E6: Annual Depr. Accruals | G6: Annual Depr. Rate | H6: Annual Depr. Accruals | I6: Increase/ Decrease | K6: Annual Depr. Rate | L6: Annual Depr. Accruals | M6: Difference | O6: Excess Depreciation Reserve for Amortization | P6: Excess Depreciation Reserve Annual Amortization | R6: Total OPC Adjustments | AB6: Per FPL
C7: (A) | D7: (B) | E7: (C ) | G7: (D) | H7: (E) | I7: (F) | K7: (1) | L7: =K7-1 -> -2 | M7: =L7-1 -> -3 | O7: =M7-1 -> -4 | P7: =O7-1 -> -5 | R7: =P7-1 -> -6
B8: I. Calculated Depreciation Expense on 12/31/2017 Plant
A9: 1 | B9: Steam | C9: ='Table 3'!D156 -> 3243194417 | D9: ='Table 3'!P156 -> 2.5 | E9: ='Table 3'!$R$156 -> 80638814 | G9: ='Table 3'!AD156 -> 3.785439114 | H9: =$C9*(G9/100) -> 122769150 | I9: =H9-E9 -> 42130336 | K9: =Z9 -> 3.776957816 | L9: =$C9*(K9/100) -> 122494085 | M9: =L9-H9 -> -275065 | P9: =O9/4 -> 0 | R9: =M9+P9 -> -275065 | X9: CALCULATED | Z9: ='Table 3'!$AH$156 -> 3.776957816 | AB9: 3.785439114
A10: =A9+1 -> 2 | B10: Nuclear | C10: ='Table 3'!D218 -> 7822373927 | D10: ='Table 3'!P218 -> 2 | E10: ='Table 3'!$R$218 -> 160192998 | G10: ='Table 3'!AD218 -> 4.155662898 | H10: =C10*(G10/100) -> 325071491 | I10: =H10-E10 -> 164878493 | K10: =Z10 -> 4.005370069 | L10: 313315024 | M10: =L10-H10 -> -11756467 | P10: =O10/4 -> 0 | R10: =M10+P10 -> -11756467 | Z10: ='Table 3'!AH218 -> 4.005370069 | AB10: 4.155662898
A11: =A10+1 -> 3 | B11: Combined Cycle | C11: ='Table 3'!D486 -> 1.088450601e+10 | D11: ='Table 3'!P486 -> 3.8 | E11: ='Table 3'!$R$486 -> 412097322 | G11: ='Table 3'!AD486 -> 4.330640725 | H11: =C11*(G11/100) -> 471368850 | I11: =H11-E11 -> 59271528 | K11: 2.499938606 | L11: 272105967.9 | M11: -199262882.1 | P11: 0 | R11: -199262882.1 | Z11: ='Table 3'!AH486 -> 2.499938606 | AB11: 4.330640725
A12: 4 | B12: Peaker Plants | C12: ='Table 3'!D520 -> 527598852.9 | D12: ='Table 3'!P520 -> 3.3 | E12: ='Table 3'!$R$520 -> 17181142 | G12: ='Table 3'!AD520 -> 3.311747723 | H12: 17472743 | I12: 291601 | K12: 3.084723811 | L12: 16274967.44 | M12: -1197775.559 | P12: 0 | R12: -1197775.559 | Z12: ='Table 3'!AH520 -> 3.084723811 | AB12: 3.311747723
A13: 5 | B13: Solar | C13: ='Table 3'!D562 -> 1051134801 | D13: ='Table 3'!P562 -> 3.3 | E13: ='Table 3'!$R$562 -> 34687449 | G13: ='Table 3'!AD562 -> 3.178378928 | H13: 33409047 | I13: -1278402 | K13: 3.175359925 | L13: 33377313.21 | M13: -31733.79002 | P13: 0 | R13: -31733.79002 | Z13: ='Table 3'!AH562 -> 3.175359925 | AB13: 3.178378928
A14: 6 | B14: Total Production | C14: =SUM(C9:C13) -> 2.352880801e+10 | D14: ='Table 3'!P564 -> 3 | E14: =SUM(E9:E13) -> 704797725 | G14: ='Table 3'!AD564 -> 4.122993739 | H14: =SUM(H9:H13) -> 970091281 | I14: =SUM(I9:I13) -> 265293556 | K14: =L14/C14*100 -> 3.219743887 | L14: =SUM(L9:L13) -> 757567357.5 | M14: =SUM(M9:M13) -> -212523923.5 | O14: =SUM(O9:O13) -> 0 | P14: 0 | R14: -212523923.5 | Z14: ='Table 3'!AH564 -> 3.219510995 | AB14: 4.122993739
A15: 7
A16: 8 | B16: Transmission | C16: ='Table 3'!D581 -> 5577625822 | D16: ='Table 3'!P581 -> 2.8 | E16: ='Table 3'!$R$581 -> 153559713 | G16: ='Table 3'!AD581 -> 2.499582465 | H16: =C16*(G16/100) -> 139417357 | I16: =H16-E16 -> -14142356 | K16: =Z16 -> 2.211705427 | L16: =$C16*(K16/100) -> 123360653 | M16: =L16-H16 -> -16056704 | O16: 375878092 | P16: =-O16/4 -> -93969523 | R16: =M16+P16 -> -110026227 | Z16: ='Table 3'!AH581 -> 2.211705427 | AB16: 2.499582465
A17: 9 | B17: Distribution | C17: ='Table 3'!D601 -> 1.601595157e+10 | D17: ='Table 3'!P601 -> 3.4 | E17: ='Table 3'!$R$601 -> 537116945 | G17: ='Table 3'!AD601 -> 3.190100218 | H17: =C17*(G17/100) -> 510924906 | I17: -26192039 | K17: 2.74522391 | L17: 439673732 | M17: -71251174 | O17: 519694355 | P17: =-O17/4 -> -129923588.8 | R17: -201174762.7 | Z17: ='Table 3'!AH601 -> 2.74522391 | AB17: 3.190100218
A18: 10 | B18: General | C18: ='Table 3'!D613 -> 858008961.8 | D18: ='Table 3'!P613 -> 4.4 | E18: ='Table 3'!$R$613 -> 37489110 | G18: ='Table 3'!AD613 -> 3.939478549 | H18: 33801079 | I18: -3688031 | K18: 3.595034357 | L18: 30845716.96 | M18: -2955362.038 | O18: 27554227 | P18: -6888556.75 | R18: -9843918.788 | Z18: ='Table 3'!AH613 -> 3.595034357 | AB18: 3.939478549
A19: 11 | B19: Total Trans., Dist.
A20: 12 | B20: and General Plant | C20: =SUM(C16:C18) -> 2.245158636e+10 | D20: ='Table 3'!P615 -> 3.2 | E20: =SUM(E16:E18) -> 728165768 | G20: ='Table 3'!AD615 -> 3.047193776 | H20: =SUM(H16:H18) -> 684143342 | I20: =SUM(I16:I18) -> -44022426 | K20: =L20/C20*100 -> 2.645158754 | L20: =SUM(L16:L18) -> 593880102 | M20: =SUM(M16:M18) -> -90263240.04 | O20: =SUM(O16:O18) -> 923126674 | P20: =SUM(P16:P18) -> -230781668.5 | R20: -321044908.5 | Z20: ='Table 3'!AH615 -> 2.644719991 | AB20: 3.047193776
A21: 13
A22: 14 | B22: Grand Total | C22: =C14+C20 -> 4.598039436e+10 | D22: ='Table 3'!P618 -> 3.1 | E22: =E14+E20 -> 1432963493 | G22: ='Table 3'!AD618 -> 3.597695596 | H22: =H14+H20 -> 1654234623 | I22: =I14+I20 -> 221271130 | K22: =L22/C22*100 -> 2.939181967 | L22: =L14+L20 -> 1351447459 | M22: =M14+M20 -> -302787163.5 | O22: =O14+O20 -> 923126674 | P22: =P14+P20 -> -230781668.5 | R22: =R14+R20 -> -533568832 | Z22: ='Table 3'!AH618 -> 2.938848551 | AB22: 3.597695596
B24: II. Depreciation Expense Adjustment for Ratemaking
B25: Function | C25: FPL New Depreciation Rates Expense Adjustment | E25: Depreciation Expense -Clauses | G25: Depreciation Expense - Base Rates | H25: Jurisdictional Factors | I25: FPL New Depreciation Rates Juris. Expense Adjustment | K25: OPC New Depreciation Rates Expense Adjustment | L25: Ratio of FPL Base Rates Depreciation Expense Adj to Total | M25: Depreciation Expense - Base Rates | O25: Excess Depreciation Reserve Annual Amortization | P25: OPC Total Depreciation Expense Adjustment After Clauses | R25: Jurisdictional Factors | T25: OPC New Depreciation Rates Juris. Expense Adjustment
C26: (G) | E26: (H) | G26: (I) | H26: (J) | I26: (K) | K26: (7) = (3) | L26: (8)=I/G | M26: (9)=(8)x(7) | O26: (10)=(5) | P26: (11)=(9)+(10) | R26: (12)=(J) | T26: (13)=(11)x(12)
A27: =A22+1 -> 15 | B27: Steam | C27: 42675782.52 | E27: 15102236.15 | G27: =C27-E27 -> 27573546.37 | H27: 0.9505951814 | I27: =G27*H27 -> 26211280.32 | K27: =M9 -> -275065 | L27: =ROUND(G27/C27,6) -> 0.646117 | M27: =ROUND(K27*L27,0) -> -177724 | P27: =M27+O27 -> -177724 | R27: =H27 -> 0.9505951814 | T27: =P27*R27 -> -168943.578
A28: =A27+1 -> 16 | B28: Nuclear | C28: 162509137.6 | E28: 3416927.982 | G28: =C28-E28 -> 159092209.6 | H28: 0.9505951814 | I28: =G28*H28 -> 151232287.9 | K28: =M10 -> -11756467 | L28: =ROUND(G28/C28,6) -> 0.978974 | M28: =ROUND(K28*L28,0) -> -11509276 | P28: =M28+O28 -> -11509276 | R28: =H28 -> 0.9505951814 | T28: =P28*R28 -> -10940662.31
A29: =A28+1 -> 17 | B29: Other | C29: 51998277.3 | E29: 211996.0322 | G29: 51786281.27 | H29: 0.9505951814 | I29: 49227789.44 | K29: =SUM(M11:M13) -> -200492391.5 | L29: 0.995923 | M29: -199674984 | P29: -199674984 | R29: 0.9505951814 | T29: -189810077.6 | W29: Col 8 other
A30: 18 | B30: Total Production | C30: =SUM(C27:C29) -> 257183197.4 | E30: =SUM(E27:E29) -> 18731160.16 | G30: =SUM(G27:G29) -> 238452037.3 | I30: =SUM(I27:I29) -> 226671357.6 | K30: =SUM(K27:K29) -> -212523923.5 | M30: =SUM(M27:M29) -> -211361984 | O30: =SUM(O27:O29) -> 0 | P30: =SUM(P27:P29) -> -211361984 | R30: =R29 -> 0.9505951814 | T30: =SUM(T27:T29) -> -200919683.5 | W30: Col 7 | X30: =K29 -> -200492391.5
A31: 19 | W31: Col G | X31: =C29 -> 51998277.3
A32: 20 | B32: Transmission | C32: -7892671.728 | E32: 3749.781623 | G32: =C32-E32 -> -7896421.51 | H32: 0.8967408632 | I32: =G32*H32 -> -7081043.841 | K32: =M16 -> -16056704 | L32: =ROUND(G32/C32,6) -> 1.000475 | M32: =ROUND(K32*L32,0) -> -16064331 | O32: =P16 -> -93969523 | P32: =M32+O32 -> -110033854 | R32: =H32 -> 0.8967408632 | T32: =P32*R32 -> -98671853.22 | W32: Col F sum | X32: =SUM(I11:I13) -> 58284727
A33: 21 | B33: Distribution | C33: -24863168.1 | E33: -2987852.887 | G33: -21875315.21 | H33: 1 | I33: -21875315.21 | K33: =M17 -> -71251174 | L33: 0.879828 | M33: -62688778 | O33: =P17 -> -129923588.8 | P33: -192612366.8 | R33: 1 | T33: -192612366.8 | W33: Col 8 other | X33: =X30*X31/X32 -> -178867767
A34: 22 | B34: General | C34: -3124406.394 | E34: -467256.7721 | G34: -2657149.622 | H34: 0.9674535142 | I34: -2570668.74 | K34: -2955362.038 | L34: 0.850449 | M34: -2513385 | O34: -6888556.75 | P34: -9401941.75 | R34: 0.9674535142 | T34: -9095941.586 | X34: -228536232.6 | Y34: Was not calulating with sum of column F
A35: 23 | B35: Total Trans., Dist.
A36: 24 | B36: and General Plant | C36: =SUM(C32:C34) -> -35880246.22 | E36: =SUM(E32:E34) -> -3451359.878 | G36: =SUM(G32:G34) -> -32428886.35 | I36: =SUM(I32:I34) -> -31527027.79 | K36: =SUM(K32:K34) -> -90263240.04 | M36: =SUM(M32:M34) -> -81266494 | O36: =SUM(O32:O34) -> -230781668.5 | P36: =SUM(P32:P34) -> -312048162.5 | T36: =SUM(T32:T34) -> -300380161.6
A37: 25
A38: 26 | B38: Grand Total | C38: =C36+C30 -> 221302951.2 | E38: =E36+E30 -> 15279800.29 | G38: =G36+G30 -> 206023150.9 | I38: =I36+I30 -> 195144329.8 | K38: =K36+K30 -> -302787163.5 | M38: =M36+M30 -> -292628478 | O38: =O36+O30 -> -230781668.5 | P38: =P36+P30 -> -523410146.5 | T38: =T36+T30 -> -501299845.1
A39: 27
A40: 28 | B40: Compare FPL Total Jurisdictional Adjustment (based on MFR Schedule C-2) | I40: 195144329.8 | J40: (a) | L40: Adjusted calculation format
A42: Notes and Source
A43: Columns A-F, Line Nos. 1-16: Exhibit NWA-1, Page 7 of 762
A44: Excess Depreciation Reserve is being amortized over 4 years
A45: (a): MFR Schedule C-2 for Projected Test Year Ended 12/31/17, Page 3 of 3, Line 15
A46: Cols.G, H and I: FPL response to OPC First Set of Interrogatories, No. 167, Attachment 2
A47: Cols. I, J, and K: FPL response to OPC's Firfth Set of Interrogatories, No. 168, Attachment 2
A48: OPC Depreciation Rate Recommendations are from OPC witness Jack Pous
B51: =CELL("filename") -> C:\Cases\FL OPC FPL 2016 rate case\Testimony RSmith\RSmith Excel workpapers\[2016-07-12 RSmith Excel Workpapers file no 02 OPC Depreciation rates templete_FINAL for RR.xlsm]C7_2017
B52: C:\Cases\FL OPC FPL 2016 rate case\Testimony Jack Pous Depreciation rates\[2016-07-01 OPC Dep templet_please fill in yellow in OPC Adj 2017 tab and return.xlsm]OPC Adj 2017 Summary
B53: OPC Adj 2017 Summary

Sheet Table 3
A1: FLORIDA POWER AND LIGHT COMPANY
A2: OPC 002090 FPL RC-16
A3: TABLE 3. COMPARISON OF REMAINING LIFE ANNUAL DEPRECIATION RATES AND ACCRUALS FOR ELECTRIC PLANT AS OF DECEMBER 31, 2017
A4: BASED ON DEPRECIATION RATES ORDERED IN DOCKET NO. 090130-EI AND PROPOSED DEPRECIATION RATES
H7: ORDERED IN DOCKET NO. 090130-EI | T7: PROPOSED ESTIMATES | AH7: PER OPC
H8: PROBABLE | J8: SURVIVOR CURVE/ | P8: ANNUAL | R8: ANNUAL | T8: PROBABLE | AB8: ANNUAL | AD8: ANNUAL | AH8: ANNUAL | AJ8: ANNUAL
D9: ORIGINAL | F9: BOOK | H9: RETIREMENT | J9: INTERIM | N9: NET | P9: DEPRECIATION | R9: DEPRECIATION | T9: RETIREMENT | Z9: NET | AB9: DEPRECIATION | AD9: DEPRECIATION | AF9: INCREASE/ | AH9: DEPRECIATION | AJ9: DEPRECIATION
D10: COST | F10: RESERVE | H10: DATE | J10: RETIREMENT RATE | N10: SALVAGE | P10: RATE | R10: ACCRUALS | T10: DATE | V10: SURVIVOR CURVE | Z10: SALVAGE | AB10: ACCRUALS | AD10: RATE | AF10: DECREASE | AH10: RATE | AJ10: ACCRUALS | AL10: DIFFERENCE
D11: -1 | F11: -2 | H11: -3 | J11: -4 | N11: -5 | P11: -6 | R11: (7)=(6)x(1) | T11: -8 | V11: -9 | Z11: -10 | AB11: -11 | AD11: -12 | AF11: (13)=(12)-(7) | AH11: -14 | AJ11: -15 | AL11: (16)=(15)-(11)
A13: STEAM PRODUCTION PLANT
A16: MANATEE STEAM PLANT
B18: MANATEE COMMON
A19: 311 | B19: STRUCTURES AND IMPROVEMENTS | D19: 114283077.9 | F19: 73863099.7 | H19: 2027-06-30 | J19: 0.0032 | N19: -2 | P19: 2.1 | R19: =+ROUND(D19*P19/100,0) -> 2399945 | T19: 2028-06-30 | V19: 80 | W19: - | X19: R2 * | Z19: -1 | AB19: 4027404 | AD19: 3.52 | AF19: =+AB19-R19 -> 1627459 | AH19: 3.52 | AJ19: =$D19*AH19/100 -> 4022764.341 | AL19: =AJ19-AB19 -> -4639.658624 | AN19: 3.52
A20: 312 | B20: BOILER PLANT EQUIPMENT | D20: 7864883.47 | F20: 1419252.067 | H20: 2027-06-30 | J20: 0.0094 | N20: -7 | P20: 2.6 | R20: =+ROUND(D20*P20/100,0) -> 204487 | T20: 2028-06-30 | V20: 50 | W20: - | X20: S0 * | Z20: -2 | AB20: 648618 | AD20: 8.25 | AF20: =+AB20-R20 -> 444131 | AH20: 8.41 | AJ20: =$D20*AH20/100 -> 661436.6998 | AL20: =AJ20-AB20 -> 12818.69983 | AN20: 8.41
A21: 314 | B21: TURBOGENERATOR UNITS | D21: 9839030.51 | F21: 7821767.522 | H21: 2027-06-30 | J21: 0.012 | N21: 0 | P21: 2.6 | R21: 255815 | T21: 2028-06-30 | V21: 55 | W21: - | X21: R0.5 * | Z21: -1 | AB21: 214352 | AD21: 2.18 | AF21: =+AB21-R21 -> -41463 | AH21: 2.19 | AJ21: 215474.7682 | AL21: 1122.768169 | AN21: 2.19
A22: 315 | B22: ACCESSORY ELECTRIC EQUIPMENT | D22: 9833462.49 | F22: 7455584.67 | H22: 2027-06-30 | J22: 0.0052 | N22: -6 | P22: 2.4 | R22: 236003 | T22: 2028-06-30 | V22: 65 | W22: - | X22: S0 * | Z22: -2 | AB22: 257712 | AD22: 2.62 | AF22: =+AB22-R22 -> 21709 | AH22: 2.56 | AJ22: 251736.6397 | AL22: -5975.360256 | AN22: 2.56
A23: 316 | B23: MISCELLANEOUS POWER PLANT EQUIPMENT | D23: 2498111.02 | F23: 1956325.337 | H23: 2027-06-30 | J23: 0.0071 | N23: 0 | P23: 2.4 | R23: 59955 | T23: 2028-06-30 | V23: 65 | W23: - | X23: R0.5 * | Z23: 0 | AB23: 54070 | AD23: 2.16 | AF23: =+AB23-R23 -> -5885 | AH23: 2.15 | AJ23: 53709.38693 | AL23: -360.61307 | AN23: 2.15
B24: TOTAL MANATEE COMMON | D24: =+SUBTOTAL(9,D19:D23) -> 144318565.4 | F24: =+SUBTOTAL(9,F19:F23) -> 92516029.3 | P24: =+ROUND(R24/D24*100,1) -> 2.2 | R24: =+SUBTOTAL(9,R19:R23) -> 3156205 | AB24: =+SUBTOTAL(9,AB19:AB23) -> 5202156 | AD24: =+AB24/D24*100 -> 3.604633948 | AF24: =+SUBTOTAL(9,AF19:AF23) -> 2045951 | AH24: 3.608826062 | AJ24: =+SUBTOTAL(9,AJ19:AJ23) -> 5205121.836 | AL24: =+SUBTOTAL(9,AL19:AL23) -> 2965.836046 | AN24: 3.608826062
B26: MANATEE UNIT 1
A27: 311 | B27: STRUCTURES AND IMPROVEMENTS | D27: 6968574.08 | F27: 5629218.797 | H27: 2027-06-30 | J27: 0.0032 | N27: -2 | P27: 2.1 | R27: =+ROUND(D27*P27/100,0) -> 146340 | T27: 2028-06-30 | V27: 80 | W27: - | X27: R2 * | Z27: -1 | AB27: 138277 | AD27: 1.98 | AF27: =+AB27-R27 -> -8063 | AH27: 1.96 | AJ27: 136584.052 | AL27: -1692.948032 | AN27: 1.96
A28: 312 | B28: BOILER PLANT EQUIPMENT | D28: 184992667.8 | F28: 95599217.64 | H28: 2027-06-30 | J28: 0.0094 | N28: -7 | P28: 2.6 | R28: 4809809 | T28: 2028-06-30 | V28: 50 | W28: - | X28: S0 * | Z28: -2 | AB28: 9318649 | AD28: 5.04 | AF28: =+AB28-R28 -> 4508840 | AH28: 5.04 | AJ28: 9323630.457 | AL28: 4981.45712 | AN28: 5.04
A29: 314 | B29: TURBOGENERATOR UNITS | D29: 74066120.92 | F29: 43199871.11 | H29: 2027-06-30 | J29: 0.012 | N29: 0 | P29: 2.6 | R29: 1925719 | T29: 2028-06-30 | V29: 55 | W29: - | X29: R0.5 * | Z29: -1 | AB29: 3170202 | AD29: 4.28 | AF29: =+AB29-R29 -> 1244483 | AH29: 4.34 | AJ29: 3214469.648 | AL29: 44267.64793 | AN29: 4.34
A30: 315 | B30: ACCESSORY ELECTRIC EQUIPMENT | D30: 14537672.54 | F30: 8121393.657 | H30: 2027-06-30 | J30: 0.0052 | N30: -6 | P30: 2.4 | R30: 348904 | T30: 2028-06-30 | V30: 65 | W30: - | X30: S0 * | Z30: -2 | AB30: 658844 | AD30: 4.53 | AF30: =+AB30-R30 -> 309940 | AH30: 4.52 | AJ30: 657102.7988 | AL30: -1741.201192 | AN30: 4.52
A31: 316 | B31: MISCELLANEOUS POWER PLANT EQUIPMENT | D31: 4000322.68 | F31: 2337843.906 | H31: 2027-06-30 | J31: 0.0071 | N31: 0 | P31: 2.4 | R31: 96008 | T31: 2028-06-30 | V31: 65 | W31: - | X31: R0.5 * | Z31: 0 | AB31: 165256 | AD31: 4.13 | AF31: =+AB31-R31 -> 69248 | AH31: 4.11 | AJ31: 164413.2621 | AL31: -842.737852 | AN31: 4.11
B32: TOTAL MANATEE UNIT 1 | D32: =+SUBTOTAL(9,D27:D31) -> 284565358 | F32: =+SUBTOTAL(9,F27:F31) -> 154887545.1 | P32: =+ROUND(R32/D32*100,1) -> 2.6 | R32: =+SUBTOTAL(9,R27:R31) -> 7326780 | AB32: =+SUBTOTAL(9,AB27:AB31) -> 13451228 | AD32: =+AB32/D32*100 -> 4.726937985 | AF32: =+SUBTOTAL(9,AF27:AF31) -> 6124448 | AH32: 4.742846105 | AJ32: =+SUBTOTAL(9,AJ27:AJ31) -> 13496200.22 | AL32: =+SUBTOTAL(9,AL27:AL31) -> 44972.21797 | AN32: 4.742846105
B34: MANATEE UNIT 2
A35: 311 | B35: STRUCTURES AND IMPROVEMENTS | D35: 5083211.03 | F35: 4050365.75 | H35: 2027-06-30 | J35: 0.0032 | N35: -2 | P35: 2.1 | R35: =+ROUND(D35*P35/100,0) -> 106747 | T35: 2028-06-30 | V35: 80 | W35: - | X35: R2 * | Z35: -1 | AB35: 106035 | AD35: 2.09 | AF35: =+AB35-R35 -> -712 | AH35: 2.07 | AJ35: 105222.4683 | AL35: -812.531679 | AN35: 2.07
A36: 312 | B36: BOILER PLANT EQUIPMENT | D36: 187516002.4 | F36: 89627110.3 | H36: 2027-06-30 | J36: 0.0094 | N36: -7 | P36: 2.6 | R36: 4875416 | T36: 2028-06-30 | V36: 50 | W36: - | X36: S0 * | Z36: -2 | AB36: 10143634 | AD36: 5.41 | AF36: =+AB36-R36 -> 5268218 | AH36: 5.43 | AJ36: 10182118.93 | AL36: 38484.93195 | AN36: 5.43
A37: 314 | B37: TURBOGENERATOR UNITS | D37: 72134310.35 | F37: 44200582.63 | H37: 2027-06-30 | J37: 0.012 | N37: 0 | P37: 2.6 | R37: 1875492 | T37: 2028-06-30 | V37: 55 | W37: - | X37: R0.5 * | Z37: -1 | AB37: 2879907 | AD37: 3.99 | AF37: =+AB37-R37 -> 1004415 | AH37: 4.04 | AJ37: 2914226.138 | AL37: 34319.13814 | AN37: 4.04
A38: 315 | B38: ACCESSORY ELECTRIC EQUIPMENT | D38: 12511248.53 | F38: 6482958.588 | H38: 2027-06-30 | J38: 0.0052 | N38: -6 | P38: 2.4 | R38: 300270 | T38: 2028-06-30 | V38: 65 | W38: - | X38: S0 * | Z38: -2 | AB38: 615541 | AD38: 4.92 | AF38: =+AB38-R38 -> 315271 | AH38: 4.91 | AJ38: =$D38*AH38/100 -> 614302.3028 | AL38: -1238.697177 | AN38: 4.91
A39: 316 | B39: MISCELLANEOUS POWER PLANT EQUIPMENT | D39: 3520593.83 | F39: 1720389.48 | H39: 2027-06-30 | J39: 0.0071 | N39: 0 | P39: 2.4 | R39: 84494 | T39: 2028-06-30 | V39: 65 | W39: - | X39: R0.5 * | Z39: 0 | AB39: 178769 | AD39: 5.08 | AF39: =+AB39-R39 -> 94275 | AH39: 5.06 | AJ39: 178142.0478 | AL39: -626.952202 | AN39: 5.06
B40: TOTAL MANATEE UNIT 2 | D40: =+SUBTOTAL(9,D35:D39) -> 280765366.2 | F40: =+SUBTOTAL(9,F35:F39) -> 146081406.7 | P40: =+ROUND(R40/D40*100,1) -> 2.6 | R40: =+SUBTOTAL(9,R35:R39) -> 7242419 | AB40: =+SUBTOTAL(9,AB35:AB39) -> 13923886 | AD40: =+AB40/D40*100 -> 4.959260535 | AF40: =+SUBTOTAL(9,AF35:AF39) -> 6681467 | AH40: 4.983793475 | AJ40: =+SUBTOTAL(9,AJ35:AJ39) -> 13994011.89 | AL40: =+SUBTOTAL(9,AL35:AL39) -> 70125.88903 | AN40: 4.983793475
A42: TOTAL MANATEE STEAM PLANT | D42: =+SUBTOTAL(9,D18:D41) -> 709649289.6 | F42: =+SUBTOTAL(9,F18:F41) -> 393484981.2 | P42: =+ROUND(R42/D42*100,1) -> 2.5 | R42: =+SUBTOTAL(9,R18:R41) -> 17725404 | AB42: =+SUBTOTAL(9,AB18:AB41) -> 32577270 | AD42: =+AB42/D42*100 -> 4.59061546 | AF42: =+SUBTOTAL(9,AF18:AF41) -> 14851866 | AH42: 4.607553263 | AJ42: =+SUBTOTAL(9,AJ18:AJ41) -> 32695333.94 | AL42: =+SUBTOTAL(9,AL18:AL41) -> 118063.943 | AN42: 4.607553263
A45: MARTIN STEAM PLANT
B47: MARTIN COMMON
A48: 311 | B48: STRUCTURES AND IMPROVEMENTS | D48: 241400701.3 | F48: 161452115.2 | H48: 2031-06-30 | J48: 0.0032 | N48: -2 | P48: 2.1 | R48: =+ROUND(D48*P48/100,0) -> 5069415 | T48: 2031-06-30 | V48: 80 | W48: - | X48: R2 * | Z48: -1 | AB48: 6287221 | AD48: 2.6 | AF48: =+AB48-R48 -> 1217806 | AH48: 2.58 | AJ48: 6228138.095 | AL48: -59082.90517 | AN48: 2.58
A49: 312 | B49: BOILER PLANT EQUIPMENT | D49: 7052454.52 | F49: 3063360.013 | H49: 2031-06-30 | J49: 0.0094 | N49: -7 | P49: 2.6 | R49: =+ROUND(D49*P49/100,0) -> 183364 | T49: 2031-06-30 | V49: 50 | W49: - | X49: S0 * | Z49: -2 | AB49: 325978 | AD49: 4.62 | AF49: =+AB49-R49 -> 142614 | AH49: 4.63 | AJ49: 326528.6443 | AL49: 550.644276 | AN49: 4.63
A50: 314 | B50: TURBOGENERATOR UNITS | D50: 27411865.75 | F50: 15382397.12 | H50: 2031-06-30 | J50: 0.012 | N50: 0 | P50: 2.6 | R50: 712709 | T50: 2031-06-30 | V50: 55 | W50: - | X50: R0.5 * | Z50: -1 | AB50: 979585 | AD50: 3.57 | AF50: =+AB50-R50 -> 266876 | AH50: 3.62 | AJ50: 992309.5402 | AL50: 12724.54015 | AN50: 3.62
A51: 315 | B51: ACCESSORY ELECTRIC EQUIPMENT | D51: 10271933.77 | F51: 5585791.271 | H51: 2031-06-30 | J51: 0.0052 | N51: -6 | P51: 2.4 | R51: 246526 | T51: 2031-06-30 | V51: 65 | W51: - | X51: S0 * | Z51: -2 | AB51: 380372 | AD51: 3.7 | AF51: =+AB51-R51 -> 133846 | AH51: 3.66 | AJ51: 375952.776 | AL51: -4419.224018 | AN51: 3.66
A52: 316 | B52: MISCELLANEOUS POWER PLANT EQUIPMENT | D52: 3879628.68 | F52: 1972391.771 | H52: 2031-06-30 | J52: 0.0071 | N52: 0 | P52: 2.4 | R52: 93111 | T52: 2031-06-30 | V52: 65 | W52: - | X52: R0.5 * | Z52: 0 | AB52: 149353 | AD52: 3.85 | AF52: =+AB52-R52 -> 56242 | AH52: 3.82 | AJ52: 148201.8156 | AL52: -1151.184424 | AN52: 3.82
B53: TOTAL MARTIN COMMON | D53: =+SUBTOTAL(9,D48:D52) -> 290016584.1 | F53: =+SUBTOTAL(9,F48:F52) -> 187456055.3 | P53: =+ROUND(R53/D53*100,1) -> 2.2 | R53: =+SUBTOTAL(9,R48:R52) -> 6305125 | AB53: =+SUBTOTAL(9,AB48:AB52) -> 8122509 | AD53: =+AB53/D53*100 -> 2.80070501 | AF53: =+SUBTOTAL(9,AF48:AF52) -> 1817384 | AH53: 2.785322786 | AJ53: =+SUBTOTAL(9,AJ48:AJ52) -> 8071130.871 | AL53: =+SUBTOTAL(9,AL48:AL52) -> -51378.12919 | AN53: 2.785322786
B55: MARTIN PIPELINE
A56: 312 | B56: BOILER PLANT EQUIPMENT | D56: 370941.56 | F56: 370941.56 | H56: 2031-06-30 | J56: 0.0094 | N56: -7 | P56: 2.6 | R56: =+ROUND(D56*P56/100,0) -> 9644 | T56: 2031-06-30 | V56: 50 | W56: - | X56: S0 * | Z56: 0 | AB56: 0 | AD56: 0 | AF56: =+AB56-R56 -> -9644 | AH56: 0 | AJ56: 0 | AL56: 0 | AN56: 0
B57: TOTAL MARTIN PIPELINE | D57: =+SUBTOTAL(9,D56:D56) -> 370941.56 | F57: =+SUBTOTAL(9,F56:F56) -> 370941.56 | P57: =+ROUND(R57/D57*100,1) -> 2.6 | R57: =+SUBTOTAL(9,R56:R56) -> 9644 | AB57: =+SUBTOTAL(9,AB56:AB56) -> 0 | AF57: =+SUBTOTAL(9,AF56:AF56) -> -9644 | AJ57: =+SUBTOTAL(9,AJ56) -> 0 | AL57: =+SUBTOTAL(9,AL56) -> 0
B59: MARTIN UNIT 1
A60: 311 | B60: STRUCTURES AND IMPROVEMENTS | D60: 16367428.14 | F60: 10593608.28 | H60: 2031-06-30 | J60: 0.0032 | N60: -2 | P60: 2.1 | R60: =+ROUND(D60*P60/100,0) -> 343716 | T60: 2031-06-30 | V60: 80 | W60: - | X60: R2 * | Z60: -1 | AB60: 453590 | AD60: 2.77 | AF60: =+AB60-R60 -> 109874 | AH60: 2.75 | AJ60: 450104.2739 | AL60: -3485.72615 | AN60: 2.75
A61: 312 | B61: BOILER PLANT EQUIPMENT | D61: 212347650.8 | F61: 91195079.78 | H61: 2031-06-30 | J61: 0.0094 | N61: -7 | P61: 2.6 | R61: 5521039 | T61: 2031-06-30 | V61: 50 | W61: - | X61: S0 * | Z61: -2 | AB61: 9984039 | AD61: 4.7 | AF61: =+AB61-R61 -> 4463000 | AH61: 4.67 | AJ61: 9916635.291 | AL61: -67403.70857 | AN61: 4.67
A62: 314 | B62: TURBOGENERATOR UNITS | D62: 89915729.92 | F62: 52042195.83 | H62: 2031-06-30 | J62: 0.012 | N62: 0 | P62: 2.6 | R62: 2337809 | T62: 2031-06-30 | V62: 55 | W62: - | X62: R0.5 * | Z62: -1 | AB62: 3084542 | AD62: 3.43 | AF62: =+AB62-R62 -> 746733 | AH62: 3.48 | AJ62: 3129067.401 | AL62: 44525.40122 | AN62: 3.48
A63: 315 | B63: ACCESSORY ELECTRIC EQUIPMENT | D63: 24335747.45 | F63: 14796848.53 | H63: 2031-06-30 | J63: 0.0052 | N63: -6 | P63: 2.4 | R63: 584058 | T63: 2031-06-30 | V63: 65 | W63: - | X63: S0 * | Z63: -2 | AB63: 782640 | AD63: 3.22 | AF63: =+AB63-R63 -> 198582 | AH63: 3.16 | AJ63: 769009.6194 | AL63: -13630.38058 | AN63: 3.16
A64: 316 | B64: MISCELLANEOUS POWER PLANT EQUIPMENT | D64: 3586002.99 | F64: 1812805.457 | H64: 2031-06-30 | J64: 0.0071 | N64: 0 | P64: 2.4 | R64: 86064 | T64: 2031-06-30 | V64: 65 | W64: - | X64: R0.5 * | Z64: 0 | AB64: 138748 | AD64: 3.87 | AF64: =+AB64-R64 -> 52684 | AH64: 3.85 | AJ64: 138061.1151 | AL64: -686.884885 | AN64: 3.85
B65: TOTAL MARTIN UNIT 1 | D65: =+SUBTOTAL(9,D60:D64) -> 346552559.3 | F65: =+SUBTOTAL(9,F60:F64) -> 170440537.9 | P65: =+ROUND(R65/D65*100,1) -> 2.6 | R65: =+SUBTOTAL(9,R60:R64) -> 8872686 | AB65: =+SUBTOTAL(9,AB60:AB64) -> 14443559 | AD65: =+AB65/D65*100 -> 4.1677831 | AF65: =+SUBTOTAL(9,AF60:AF64) -> 5570873 | AH65: 4.15535526 | AJ65: =+SUBTOTAL(9,AJ60:AJ64) -> 14402877.7 | AL65: =+SUBTOTAL(9,AL60:AL64) -> -40681.29897 | AN65: 4.15535526
B67: MARTIN UNIT 2
A68: 311 | B68: STRUCTURES AND IMPROVEMENTS | D68: 11241256.67 | F68: 7751660.291 | H68: 2031-06-30 | J68: 0.0032 | N68: -2 | P68: 2.1 | R68: =+ROUND(D68*P68/100,0) -> 236066 | T68: 2031-06-30 | V68: 80 | W68: - | X68: R2 * | Z68: -1 | AB68: 276016 | AD68: 2.46 | AF68: =+AB68-R68 -> 39950 | AH68: 2.43 | AJ68: 273162.5371 | AL68: -2853.462919 | AN68: 2.43
A69: 312 | B69: BOILER PLANT EQUIPMENT | D69: 214665917.3 | F69: 88354501.53 | H69: 2031-06-30 | J69: 0.0094 | N69: -7 | P69: 2.6 | R69: 5581314 | T69: 2031-06-30 | V69: 50 | W69: - | X69: S0 * | Z69: -2 | AB69: 10373688 | AD69: 4.83 | AF69: =+AB69-R69 -> 4792374 | AH69: 4.81 | AJ69: 10325430.62 | AL69: -48257.37691 | AN69: 4.81
A70: 314 | B70: TURBOGENERATOR UNITS | D70: 82668790.6 | F70: 31513006.1 | H70: 2031-06-30 | J70: 0.012 | N70: 0 | P70: 2.6 | R70: 2149389 | T70: 2031-06-30 | V70: 55 | W70: - | X70: R0.5 * | Z70: -1 | AB70: 4112537 | AD70: 4.97 | AF70: =+AB70-R70 -> 1963148 | AH70: 5.07 | AJ70: 4191307.683 | AL70: 78770.68342 | AN70: 5.07
A71: 315 | B71: ACCESSORY ELECTRIC EQUIPMENT | D71: 22992822.89 | F71: 12504334.39 | H71: 2031-06-30 | J71: 0.0052 | N71: -6 | P71: 2.4 | R71: 551828 | T71: 2031-06-30 | V71: 65 | W71: - | X71: S0 * | Z71: -2 | AB71: 848709 | AD71: 3.69 | AF71: =+AB71-R71 -> 296881 | AH71: 3.66 | AJ71: 841537.3178 | AL71: -7171.682226 | AN71: 3.66
A72: 316 | B72: MISCELLANEOUS POWER PLANT EQUIPMENT | D72: 3273365.34 | F72: 1424240.871 | H72: 2031-06-30 | J72: 0.0071 | N72: 0 | P72: 2.4 | R72: 78561 | T72: 2031-06-30 | V72: 65 | W72: - | X72: R0.5 * | Z72: 0 | AB72: 144350 | AD72: 4.41 | AF72: =+AB72-R72 -> 65789 | AH72: 4.4 | AJ72: 144028.075 | AL72: -321.92504 | AN72: 4.4
B73: TOTAL MARTIN UNIT 2 | D73: =+SUBTOTAL(9,D68:D72) -> 334842152.8 | F73: =+SUBTOTAL(9,F68:F72) -> 141547743.2 | P73: =+ROUND(R73/D73*100,1) -> 2.6 | R73: =+SUBTOTAL(9,R68:R72) -> 8597158 | AB73: =+SUBTOTAL(9,AB68:AB72) -> 15755300 | AD73: =+AB73/D73*100 -> 4.705291693 | AF73: =+SUBTOTAL(9,AF68:AF72) -> 7158142 | AH73: 4.711729054 | AJ73: =+SUBTOTAL(9,AJ68:AJ72) -> 15775466.24 | AL73: =+SUBTOTAL(9,AL68:AL72) -> 20166.23633 | AN73: 4.711729054
A75: TOTAL MARTIN STEAM PLANT | D75: =+SUBTOTAL(9,D47:D74) -> 971782237.7 | F75: =+SUBTOTAL(9,F47:F74) -> 499815278 | P75: =+ROUND(R75/D75*100,1) -> 2.4 | R75: =+SUBTOTAL(9,R47:R74) -> 23784613 | AB75: =+SUBTOTAL(9,AB47:AB74) -> 38321368 | AD75: =+AB75/D75*100 -> 3.943411035 | AF75: =+SUBTOTAL(9,AF47:AF74) -> 14536755 | AG75: =+SUBTOTAL(9,AG47:AG74) -> 0 | AH75: 3.936606527 | AJ75: 38249474.81 | AL75: -71893.19183 | AN75: 3.936606527
A78: SCHERER STEAM PLANT
B80: SCHERER COAL CARS
A81: 312 | B81: BOILER PLANT EQUIPMENT | D81: 33149442.2 | F81: 33149442.2 | H81: 2039-06-30 | J81: 0.0094 | N81: -7 | P81: 2.6 | R81: =+ROUND(D81*P81/100,0) -> 861885 | T81: 2039-06-30 | V81: 50 | W81: - | X81: S0 * | Z81: 0 | AB81: 0 | AD81: 0 | AF81: =+AB81-R81 -> -861885 | AH81: 0 | AJ81: 0 | AL81: 0 | AN81: 0
B82: TOTAL SCHERER COAL CARS | D82: =+SUBTOTAL(9,D81:D81) -> 33149442.2 | F82: =+SUBTOTAL(9,F81:F81) -> 33149442.2 | P82: =+ROUND(R82/D82*100,1) -> 2.6 | R82: =+SUBTOTAL(9,R81:R81) -> 861885 | AB82: =+SUBTOTAL(9,AB81:AB81) -> 0 | AD82: =+AB82/D82*100 -> 0 | AF82: =+SUBTOTAL(9,AF81:AF81) -> -861885 | AH82: 0 | AJ82: =+SUBTOTAL(9,AJ81) -> 0 | AL82: =+SUBTOTAL(9,AL77:AL81) -> 0 | AN82: 0
B84: SCHERER COMMON
A85: 311 | B85: STRUCTURES AND IMPROVEMENTS | D85: 40048942.61 | F85: 21435438.49 | H85: 2039-06-30 | J85: 0.0032 | N85: -2 | P85: 2.1 | R85: =+ROUND(D85*P85/100,0) -> 841028 | T85: 2039-06-30 | V85: 80 | W85: - | X85: R2 * | Z85: -1 | AB85: 919439 | AD85: 2.3 | AF85: =+AB85-R85 -> 78411 | AH85: 2.29 | AJ85: =$D85*AH85/100 -> 917120.7858 | AL85: =AJ85-AB85 -> -2318.214231 | AN85: 2.29
A86: 312 | B86: BOILER PLANT EQUIPMENT | D86: 26275279.31 | F86: 12672089.54 | H86: 2039-06-30 | J86: 0.0094 | N86: -7 | P86: 2.6 | R86: 683157 | T86: 2039-06-30 | V86: 50 | W86: - | X86: S0 * | Z86: -4 | AB86: 788284 | AD86: 3 | AF86: =+AB86-R86 -> 105127 | AH86: 2.89 | AJ86: 759355.5721 | AL86: -28928.42794 | AN86: 2.89
A87: 314 | B87: TURBOGENERATOR UNITS | D87: 4409078.75 | F87: 1937291.35 | H87: 2039-06-30 | J87: 0.012 | N87: 0 | P87: 2.6 | R87: 114636 | T87: 2039-06-30 | V87: 55 | W87: - | X87: R0.5 * | Z87: -1 | AB87: 131584 | AD87: 2.98 | AF87: =+AB87-R87 -> 16948 | AH87: 3.05 | AJ87: 134476.9019 | AL87: 2892.901875 | AN87: 3.05
A88: 315 | B88: ACCESSORY ELECTRIC EQUIPMENT | D88: 1246717.64 | F88: 704489.4484 | H88: 2039-06-30 | J88: 0.0052 | N88: -6 | P88: 2.4 | R88: 29921 | T88: 2039-06-30 | V88: 65 | W88: - | X88: S0 * | Z88: -3 | AB88: 29847 | AD88: 2.39 | AF88: =+AB88-R88 -> -74 | AH88: 2.29 | AJ88: 28549.83396 | AL88: -1297.166044 | AN88: 2.29
A89: 316 | B89: MISCELLANEOUS POWER PLANT EQUIPMENT | D89: 3720891.68 | F89: 1817682.14 | H89: 2039-06-30 | J89: 0.0071 | N89: 0 | P89: 2.4 | R89: 89301 | T89: 2039-06-30 | V89: 65 | W89: - | X89: R0.5 * | Z89: -1 | AB89: 98699 | AD89: 2.65 | AF89: =+AB89-R89 -> 9398 | AH89: 2.63 | AJ89: 97859.45118 | AL89: -839.548816 | AN89: 2.63
B90: TOTAL SCHERER COMMON | D90: =+SUBTOTAL(9,D85:D89) -> 75700909.99 | F90: =+SUBTOTAL(9,F85:F89) -> 38566990.96 | P90: =+ROUND(R90/D90*100,1) -> 2.3 | R90: =+SUBTOTAL(9,R85:R89) -> 1758043 | AB90: =+SUBTOTAL(9,AB85:AB89) -> 1967853 | AD90: =+AB90/D90*100 -> 2.599510363 | AF90: =+SUBTOTAL(9,AF85:AF89) -> 209810 | AH90: 2.555716966 | AJ90: =+SUBTOTAL(9,AJ85:AJ89) -> 1937362.545 | AL90: =+SUBTOTAL(9,AL85:AL89) -> -30490.45516 | AN90: 2.555716966
B92: SCHERER COMMON UNIT 3 AND 4
A93: 311 | B93: STRUCTURES AND IMPROVEMENTS | D93: 3049496.26 | F93: 1704572.549 | H93: 2039-06-30 | J93: 0.0032 | N93: -2 | P93: 2.2 | R93: =+ROUND(D93*P93/100,0) -> 67089 | T93: 2039-06-30 | V93: 80 | W93: - | X93: R2 * | Z93: -1 | AB93: 66639 | AD93: 2.19 | AF93: =+AB93-R93 -> -450 | AH93: 2.17 | AJ93: 66174.06884 | AL93: -464.931158 | AN93: 2.17
A94: 312 | B94: BOILER PLANT EQUIPMENT | D94: 22708657.52 | F94: 10156497.58 | H94: 2039-06-30 | J94: 0.0094 | N94: -7 | P94: 2.7 | R94: 613134 | T94: 2039-06-30 | V94: 50 | W94: - | X94: S0 * | Z94: -4 | AB94: 715604 | AD94: 3.15 | AF94: =+AB94-R94 -> 102470 | AH94: 3.07 | AJ94: 697155.7859 | AL94: -18448.21414 | AN94: 3.07
A95: 314 | B95: TURBOGENERATOR UNITS | D95: 2878397.99 | F95: 294184.2446 | H95: 2039-06-30 | J95: 0.012 | N95: 0 | P95: 2.6 | R95: 74838 | T95: 2039-06-30 | V95: 55 | W95: - | X95: R0.5 * | Z95: -1 | AB95: 132639 | AD95: 4.61 | AF95: =+AB95-R95 -> 57801 | AH95: 4.85 | AJ95: 139602.3025 | AL95: 6963.302515 | AN95: 4.85
A96: 315 | B96: ACCESSORY ELECTRIC EQUIPMENT | D96: 2865604.55 | F96: 303886.8386 | H96: 2039-06-30 | J96: 0.0052 | N96: -6 | P96: 2.4 | R96: 68775 | T96: 2039-06-30 | V96: 65 | W96: - | X96: S0 * | Z96: -3 | AB96: 129030 | AD96: 4.5 | AF96: =+AB96-R96 -> 60255 | AH96: 4.55 | AJ96: 130385.007 | AL96: 1355.007025 | AN96: 4.55
B97: TOTAL SCHERER COMMON UNIT 3 AND 4 | D97: =+SUBTOTAL(9,D93:D96) -> 31502156.32 | F97: =+SUBTOTAL(9,F93:F96) -> 12459141.21 | P97: =+ROUND(R97/D97*100,1) -> 2.6 | R97: =+SUBTOTAL(9,R93:R96) -> 823836 | AB97: =+SUBTOTAL(9,AB93:AB96) -> 1043912 | AD97: =+AB97/D97*100 -> 3.313779506 | AF97: =+SUBTOTAL(9,AF93:AF96) -> 220076 | AH97: 3.278102583 | AJ97: =+SUBTOTAL(9,AJ93:AJ96) -> 1033317.164 | AL97: =+SUBTOTAL(9,AL92:AL96) -> -10594.83575 | AN97: 3.278102583
B99: SCHERER UNIT 4
A100: 311 | B100: STRUCTURES AND IMPROVEMENTS | D100: 161759187.5 | F100: 42338154.11 | H100: 2039-06-30 | J100: 0.0032 | N100: -2 | P100: 2.1 | R100: =+ROUND(D100*P100/100,0) -> 3396943 | T100: 2039-06-30 | V100: 80 | W100: - | X100: R2 * | Z100: -1 | AB100: 5783021 | AD100: 3.58 | AF100: =+AB100-R100 -> 2386078 | AH100: 3.6 | AJ100: 5823330.751 | AL100: 40309.75108 | AN100: 3.6
A101: 312 | B101: BOILER PLANT EQUIPMENT | D101: 682720321.1 | F101: 193672542.1 | H101: 2039-06-30 | J101: 0.0094 | N101: -7 | P101: 2.6 | R101: 17750728 | T101: 2039-06-30 | V101: 50 | W101: - | X101: S0 * | Z101: -4 | AB101: 26740372 | AD101: 3.92 | AF101: =+AB101-R101 -> 8989644 | AH101: 3.91 | AJ101: 26694364.55 | AL101: -46007.44616 | AN101: 3.91
A102: 314 | B102: TURBOGENERATOR UNITS | D102: 124903380.6 | F102: 61685842.93 | H102: 2039-06-30 | J102: 0.012 | N102: 0 | P102: 2.6 | R102: 3247488 | T102: 2039-06-30 | V102: 55 | W102: - | X102: R0.5 * | Z102: -1 | AB102: 3376981 | AD102: 2.7 | AF102: =+AB102-R102 -> 129493 | AH102: 2.76 | AJ102: 3447333.306 | AL102: 70352.30566 | AN102: 2.76
A103: 315 | B103: ACCESSORY ELECTRIC EQUIPMENT | D103: 50198263.53 | F103: 15152820.55 | H103: 2039-06-30 | J103: 0.0052 | N103: -6 | P103: 2.4 | R103: 1204758 | T103: 2039-06-30 | V103: 65 | W103: - | X103: S0 * | Z103: -3 | AB103: 1821195 | AD103: 3.63 | AF103: =+AB103-R103 -> 616437 | AH103: 3.59 | AJ103: 1802117.661 | AL103: -19077.33927 | AN103: 3.59
A104: 316 | B104: MISCELLANEOUS POWER PLANT EQUIPMENT | D104: 5202651.35 | F104: 2391381.315 | H104: 2039-06-30 | J104: 0.0071 | N104: 0 | P104: 2.4 | R104: 124864 | T104: 2039-06-30 | V104: 65 | W104: - | X104: R0.5 * | Z104: -1 | AB104: 144757 | AD104: 2.78 | AF104: =+AB104-R104 -> 19893 | AH104: 2.77 | AJ104: 144113.4424 | AL104: -643.557605 | AN104: 2.77
B105: TOTAL SCHERER UNIT 4 | D105: =+SUBTOTAL(9,D100:D104) -> 1024783804 | F105: =+SUBTOTAL(9,F100:F104) -> 315240741 | P105: =+ROUND(R105/D105*100,1) -> 2.5 | R105: =+SUBTOTAL(9,R100:R104) -> 25724781 | AB105: =+SUBTOTAL(9,AB100:AB104) -> 37866326 | AD105: =+AB105/D105*100 -> 3.695055079 | AF105: =+SUBTOTAL(9,AF100:AF104) -> 12141545 | AH105: 3.701655593 | AJ105: =+SUBTOTAL(9,AJ100:AJ104) -> 37911259.71 | AL105: =+SUBTOTAL(9,AL100:AL104) -> 44933.7137 | AN105: 3.701655593
A107: TOTAL SCHERER STEAM PLANT | D107: =+SUBTOTAL(9,D79:D106) -> 1165136313 | F107: =+SUBTOTAL(9,F79:F106) -> 399416315.4 | P107: =+ROUND(R107/D107*100,1) -> 2.5 | R107: =+SUBTOTAL(9,R79:R106) -> 29168545 | AB107: =+SUBTOTAL(9,AB79:AB106) -> 40878091 | AD107: =+AB107/D107*100 -> 3.508438503 | AF107: =+SUBTOTAL(9,AF79:AF106) -> 11709546 | AG107: =+SUBTOTAL(9,AG79:AG106) -> 0 | AH107: 3.510433977 | AJ107: 40881939.42 | AL107: 3848.422792 | AN107: 3.510433977
A110: SJRPP STEAM PLANT
B112: SJRPP COAL AND LIMESTONE
A113: 311 | B113: STRUCTURES AND IMPROVEMENTS | D113: 3538785.86 | F113: 1868163.03 | H113: 2038-06-30 | J113: 0.0032 | N113: -2 | P113: 2.1 | R113: =+ROUND(D113*P113/100,0) -> 74315 | T113: 2038-06-30 | V113: 80 | W113: - | X113: R2 * | Z113: -1 | AB113: 87264 | AD113: 2.47 | AF113: =+AB113-R113 -> 12949 | AH113: 2.43 | AJ113: 85992.4964 | AL113: -1271.503602 | AN113: 2.43
A114: 312 | B114: BOILER PLANT EQUIPMENT | D114: 30678751.75 | F114: 15854784.62 | H114: 2038-06-30 | J114: 0.0094 | N114: -7 | P114: 2.6 | R114: 797648 | T114: 2038-06-30 | V114: 50 | W114: - | X114: S0 * | Z114: -4 | AB114: 931580 | AD114: 3.04 | AF114: =+AB114-R114 -> 133932 | AH114: 2.82 | AJ114: 865140.7993 | AL114: -66439.20065 | AN114: 2.82
A115: 315 | B115: ACCESSORY ELECTRIC EQUIPMENT | D115: 3748249.87 | F115: 2207826.06 | H115: 2038-06-30 | J115: 0.0052 | N115: -6 | P115: 2.4 | R115: 89958 | T115: 2038-06-30 | V115: 65 | W115: - | X115: S0 * | Z115: -3 | AB115: 90075 | AD115: 2.4 | AF115: =+AB115-R115 -> 117 | AH115: 2.27 | AJ115: 85085.27205 | AL115: -4989.727951 | AN115: 2.27
A116: 316 | B116: MISCELLANEOUS POWER PLANT EQUIPMENT | D116: 298312.17 | F116: 167024.57 | H116: 2038-06-30 | J116: 0.0071 | N116: 0 | P116: 2.4 | R116: 7159 | T116: 2038-06-30 | V116: 65 | W116: - | X116: R0.5 * | Z116: -1 | AB116: 7258 | AD116: 2.43 | AF116: =+AB116-R116 -> 99 | AH116: 2.37 | AJ116: 7069.998429 | AL116: -188.001571 | AN116: 2.37
B117: TOTAL SJRPP COAL AND LIMESTONE | D117: =+SUBTOTAL(9,D113:D116) -> 38264099.65 | F117: =+SUBTOTAL(9,F113:F116) -> 20097798.28 | P117: =+ROUND(R117/D117*100,1) -> 2.5 | R117: =+SUBTOTAL(9,R113:R116) -> 969080 | AB117: =+SUBTOTAL(9,AB113:AB116) -> 1116177 | AD117: =+AB117/D117*100 -> 2.917034532 | AF117: =+SUBTOTAL(9,AF113:AF116) -> 147097 | AH117: 2.730334725 | AJ117: =+SUBTOTAL(9,AJ113:AJ116) -> 1043288.566 | AL117: =+SUBTOTAL(9,AL112:AL116) -> -72888.43377 | AN117: 2.730334725
B119: SJRPP COAL CARS
A120: 312 | B120: BOILER PLANT EQUIPMENT | D120: 52104.91 | F120: 52104.93 | H120: 2038-06-30 | J120: 0.0094 | N120: -7 | P120: 2.6 | R120: =+ROUND(D120*P120/100,0) -> 1355 | T120: 2038-06-30 | V120: 50 | W120: - | X120: S0 * | Z120: 0 | AB120: 0 | AD120: 0 | AF120: =+AB120-R120 -> -1355 | AH120: 0 | AJ120: 0 | AL120: 0 | AN120: 0
B121: TOTAL SJRPP COAL CARS | D121: =+SUBTOTAL(9,D120:D120) -> 52104.91 | F121: =+SUBTOTAL(9,F120:F120) -> 52104.93 | P121: =+ROUND(R121/D121*100,1) -> 2.6 | R121: =+SUBTOTAL(9,R120:R120) -> 1355 | AB121: =+SUBTOTAL(9,AB120:AB120) -> 0 | AD121: =+AB121/D121*100 -> 0 | AF121: =+SUBTOTAL(9,AF120:AF120) -> -1355 | AH121: 0 | AJ121: =+SUBTOTAL(9,AJ120) -> 0 | AL121: =+SUBTOTAL(9,AL116:AL120) -> -188.001571 | AN121: 0
B123: SJRPP COMMON
A124: 311 | B124: STRUCTURES AND IMPROVEMENTS | D124: 33324990.64 | F124: 22656891.85 | H124: 2038-06-30 | J124: 0.0032 | N124: -2 | P124: 2.1 | R124: =+ROUND(D124*P124/100,0) -> 699825 | T124: 2038-06-30 | V124: 80 | W124: - | X124: R2 * | Z124: -1 | AB124: 560721 | AD124: 1.68 | AF124: =+AB124-R124 -> -139104 | AH124: 1.66 | AJ124: 553194.8446 | AL124: -7526.155376 | AN124: 1.66
A125: 312 | B125: BOILER PLANT EQUIPMENT | D125: 3714735.93 | F125: 2636058.376 | H125: 2038-06-30 | J125: 0.0094 | N125: -7 | P125: 2.6 | R125: 96583 | T125: 2038-06-30 | V125: 50 | W125: - | X125: S0 * | Z125: -4 | AB125: 70210 | AD125: 1.89 | AF125: =+AB125-R125 -> -26373 | AH125: 1.78 | AJ125: 66122.29955 | AL125: -4087.700446 | AN125: 1.78
A126: 314 | B126: TURBOGENERATOR UNITS | D126: 2511326.32 | F126: 1735625.518 | H126: 2038-06-30 | J126: 0.012 | N126: 0 | P126: 2.6 | R126: 65294 | T126: 2038-06-30 | V126: 55 | W126: - | X126: R0.5 * | Z126: -1 | AB126: 44564 | AD126: 1.77 | AF126: =+AB126-R126 -> -20730 | AH126: 1.77 | AJ126: 44450.47586 | AL126: -113.524136 | AN126: 1.77
A127: 315 | B127: ACCESSORY ELECTRIC EQUIPMENT | D127: 5865106.8 | F127: 4091638.225 | H127: 2038-06-30 | J127: 0.0052 | N127: -6 | P127: 2.4 | R127: 140763 | T127: 2038-06-30 | V127: 65 | W127: - | X127: S0 * | Z127: -3 | AB127: 105602 | AD127: 1.8 | AF127: =+AB127-R127 -> -35161 | AH127: 1.71 | AJ127: 100293.3263 | AL127: -5308.67372 | AN127: 1.71
A128: 316 | B128: MISCELLANEOUS POWER PLANT EQUIPMENT | D128: 1607470.4 | F128: 1035942.652 | H128: 2038-06-30 | J128: 0.0071 | N128: 0 | P128: 2.4 | R128: 38579 | T128: 2038-06-30 | V128: 65 | W128: - | X128: R0.5 * | Z128: -1 | AB128: 31456 | AD128: 1.96 | AF128: =+AB128-R128 -> -7123 | AH128: 1.92 | AJ128: 30863.43168 | AL128: -592.56832 | AN128: 1.92
B129: TOTAL SJRPP COMMON | D129: =+SUBTOTAL(9,D124:D128) -> 47023630.09 | F129: =+SUBTOTAL(9,F124:F128) -> 32156156.62 | P129: =+ROUND(R129/D129*100,1) -> 2.2 | R129: =+SUBTOTAL(9,R124:R128) -> 1041044 | AB129: =+SUBTOTAL(9,AB124:AB128) -> 812553 | AD129: =+AB129/D129*100 -> 1.727967404 | AF129: =+SUBTOTAL(9,AF124:AF128) -> -228491 | AH129: 1.69490105 | AJ129: =+SUBTOTAL(9,AJ124:AJ128) -> 794924.378 | AL129: =+SUBTOTAL(9,AL124:AL128) -> -17628.622 | AN129: 1.69490105
B131: SJRPP GYPSUM AND ASH
A132: 311 | B132: STRUCTURES AND IMPROVEMENTS | D132: 2158590.42 | F132: 1153359.85 | H132: 2038-06-30 | J132: 0.0032 | N132: -2 | P132: 2.1 | R132: =+ROUND(D132*P132/100,0) -> 45330 | T132: 2038-06-30 | V132: 80 | W132: - | X132: R2 * | Z132: -1 | AB132: 52362 | AD132: 2.43 | AF132: =+AB132-R132 -> 7032 | AH132: 2.4 | AJ132: 51806.17008 | AL132: -555.82992 | AN132: 2.4
A133: 312 | B133: BOILER PLANT EQUIPMENT | D133: 16972047.61 | F133: 9823710.95 | H133: 2038-06-30 | J133: 0.0094 | N133: -7 | P133: 2.6 | R133: 441273 | T133: 2038-06-30 | V133: 50 | W133: - | X133: S0 * | Z133: -4 | AB133: 457197 | AD133: 2.69 | AF133: =+AB133-R133 -> 15924 | AH133: 2.49 | AJ133: 422603.9855 | AL133: -34593.01451 | AN133: 2.49
A134: 315 | B134: ACCESSORY ELECTRIC EQUIPMENT | D134: 52222.78 | F134: 32590.69 | H134: 2038-06-30 | J134: 0.0052 | N134: -6 | P134: 2.4 | R134: 1253 | T134: 2038-06-30 | V134: 65 | W134: - | X134: S0 * | Z134: -3 | AB134: 1146 | AD134: 2.19 | AF134: =+AB134-R134 -> -107 | AH134: 2.09 | AJ134: 1091.456102 | AL134: -54.543898 | AN134: 2.09
A135: 316 | B135: MISCELLANEOUS POWER PLANT EQUIPMENT | D135: 153865.69 | F135: 67155.16 | H135: 2038-06-30 | J135: 0.0071 | N135: 0 | P135: 2.4 | R135: 3693 | T135: 2038-06-30 | V135: 65 | W135: - | X135: R0.5 * | Z135: -1 | AB135: 4697 | AD135: 3.05 | AF135: =+AB135-R135 -> 1004 | AH135: 3.02 | AJ135: 4646.743838 | AL135: -50.256162 | AN135: 3.02
B136: TOTAL SJRPP GYPSUM AND ASH | D136: =+SUBTOTAL(9,D132:D135) -> 19336726.5 | F136: =+SUBTOTAL(9,F132:F135) -> 11076816.65 | P136: =+ROUND(R136/D136*100,1) -> 2.5 | R136: =+SUBTOTAL(9,R132:R135) -> 491549 | AB136: =+SUBTOTAL(9,AB132:AB135) -> 515402 | AD136: =+AB136/D136*100 -> 2.665404612 | AF136: =+SUBTOTAL(9,AF132:AF135) -> 23853 | AH136: 2.482571184 | AJ136: =+SUBTOTAL(9,AJ132:AJ135) -> 480148.3555 | AL136: =+SUBTOTAL(9,AL131:AL135) -> -35253.64449 | AN136: 2.482571184
B138: SJRPP UNIT 1
A139: 311 | B139: STRUCTURES AND IMPROVEMENTS | D139: 9098352.49 | F139: 6630362.909 | H139: 2038-06-30 | J139: 0.0032 | N139: -2 | P139: 2.1 | R139: =+ROUND(D139*P139/100,0) -> 191065 | T139: 2038-06-30 | V139: 80 | W139: - | X139: R2 * | Z139: -1 | AB139: 130961 | AD139: 1.44 | AF139: =+AB139-R139 -> -60104 | AH139: 1.42 | AJ139: =$D139*AH139/100 -> 129196.6054 | AL139: =AJ139-AB139 -> -1764.394642 | AN139: 1.42
A140: 312 | B140: BOILER PLANT EQUIPMENT | D140: 100163071.9 | F140: 52036604.99 | H140: 2038-06-30 | J140: 0.0094 | N140: -7 | P140: 2.6 | R140: 2604240 | T140: 2038-06-30 | V140: 50 | W140: - | X140: S0 * | Z140: -4 | AB140: 2933764 | AD140: 2.93 | AF140: =+AB140-R140 -> 329524 | AH140: 2.81 | AJ140: =$D140*AH140/100 -> 2814582.321 | AL140: =AJ140-AB140 -> -119181.6788 | AN140: 2.81
A141: 314 | B141: TURBOGENERATOR UNITS | D141: 31632809.4 | F141: 15898435.54 | H141: 2038-06-30 | J141: 0.012 | N141: 0 | P141: 2.6 | R141: 822453 | T141: 2038-06-30 | V141: 55 | W141: - | X141: R0.5 * | Z141: -1 | AB141: 873270 | AD141: 2.76 | AF141: =+AB141-R141 -> 50817 | AH141: 2.82 | AJ141: 892045.2251 | AL141: 18775.22508 | AN141: 2.82
A142: 315 | B142: ACCESSORY ELECTRIC EQUIPMENT | D142: 12543007.01 | F142: 8124525.988 | H142: 2038-06-30 | J142: 0.0052 | N142: -6 | P142: 2.4 | R142: 301032 | T142: 2038-06-30 | V142: 65 | W142: - | X142: S0 * | Z142: -3 | AB142: 258478 | AD142: 2.06 | AF142: =+AB142-R142 -> -42554 | AH142: 1.97 | AJ142: 247097.2381 | AL142: -11380.7619 | AN142: 1.97
A143: 316 | B143: MISCELLANEOUS POWER PLANT EQUIPMENT | D143: 2049400.34 | F143: 1428937.052 | H143: 2038-06-30 | J143: 0.0071 | N143: 0 | P143: 2.4 | R143: 49186 | T143: 2038-06-30 | V143: 65 | W143: - | X143: R0.5 * | Z143: -1 | AB143: 34497 | AD143: 1.68 | AF143: =+AB143-R143 -> -14689 | AH143: 1.65 | AJ143: 33815.10561 | AL143: -681.89439 | AN143: 1.65
B144: TOTAL SJRPP UNIT 1 | D144: =+SUBTOTAL(9,D139:D143) -> 155486641.2 | F144: =+SUBTOTAL(9,F139:F143) -> 84118866.48 | P144: =+ROUND(R144/D144*100,1) -> 2.6 | R144: =+SUBTOTAL(9,R139:R143) -> 3967976 | AB144: =+SUBTOTAL(9,AB139:AB143) -> 4230970 | AD144: =+AB144/D144*100 -> 2.721114797 | AF144: =+SUBTOTAL(9,AF139:AF143) -> 262994 | AH144: 2.64771042 | AJ144: =+SUBTOTAL(9,AJ139:AJ143) -> 4116736.495 | AL144: =+SUBTOTAL(9,AL139:AL143) -> -114233.5046 | AN144: 2.64771042
B146: SJRPP UNIT 2
A147: 311 | B147: STRUCTURES AND IMPROVEMENTS | D147: 7123662.16 | F147: 4212841.51 | H147: 2038-06-30 | J147: 0.0032 | N147: -2 | P147: 2.1 | R147: =+ROUND(D147*P147/100,0) -> 149597 | T147: 2038-06-30 | V147: 80 | W147: - | X147: R2 * | Z147: -1 | AB147: 152848 | AD147: 2.15 | AF147: =+AB147-R147 -> 3251 | AH147: 2.11 | AJ147: =$D147*AH147/100 -> 150309.2716 | AL147: =AJ147-AB147 -> -2538.728424 | AN147: 2.11
A148: 312 | B148: BOILER PLANT EQUIPMENT | D148: 89481418.8 | F148: 41170858.05 | H148: 2038-06-30 | J148: 0.0094 | N148: -7 | P148: 2.6 | R148: 2326517 | T148: 2038-06-30 | V148: 50 | W148: - | X148: S0 * | Z148: -4 | AB148: 2921724 | AD148: 3.27 | AF148: =+AB148-R148 -> 595207 | AH148: 3.13 | AJ148: =$D148*AH148/100 -> 2800768.408 | AL148: =AJ148-AB148 -> -120955.5916 | AN148: 3.13
A149: 314 | B149: TURBOGENERATOR UNITS | D149: 28267581.84 | F149: 11215912.66 | H149: 2038-06-30 | J149: 0.012 | N149: 0 | P149: 2.6 | R149: 734957 | T149: 2038-06-30 | V149: 55 | W149: - | X149: R0.5 * | Z149: -1 | AB149: 943109 | AD149: 3.34 | AF149: =+AB149-R149 -> 208152 | AH149: 3.41 | AJ149: 963924.5407 | AL149: 20815.54074 | AN149: 3.41
A150: 315 | B150: ACCESSORY ELECTRIC EQUIPMENT | D150: 10030603.41 | F150: 5480957.91 | H150: 2038-06-30 | J150: 0.0052 | N150: -6 | P150: 2.4 | R150: =+ROUND(D150*P150/100,0) -> 240734 | T150: 2038-06-30 | V150: 65 | W150: - | X150: S0 * | Z150: -3 | AB150: 263046 | AD150: 2.62 | AF150: =+AB150-R150 -> 22312 | AH150: 2.49 | AJ150: 249762.0249 | AL150: -13283.97509 | AN150: 2.49
A151: 316 | B151: MISCELLANEOUS POWER PLANT EQUIPMENT | D151: 1560108.42 | F151: 895106.18 | H151: 2038-06-30 | J151: 0.0071 | N151: 0 | P151: 2.4 | R151: 37443 | T151: 2038-06-30 | V151: 65 | W151: - | X151: R0.5 * | Z151: -1 | AB151: 36592 | AD151: 2.35 | AF151: =+AB151-R151 -> -851 | AH151: 2.3 | AJ151: 35882.49366 | AL151: -709.50634 | AN151: 2.3
B152: TOTAL SJRPP UNIT 2 | D152: =+SUBTOTAL(9,D147:D151) -> 136463374.6 | F152: =+SUBTOTAL(9,F147:F151) -> 62975676.31 | P152: =+ROUND(R152/D152*100,1) -> 2.6 | R152: =+SUBTOTAL(9,R147:R151) -> 3489248 | AB152: =+SUBTOTAL(9,AB147:AB151) -> 4317319 | AD152: =+AB152/$D152*100 -> 3.163719944 | AF152: =+SUBTOTAL(9,AF147:AF151) -> 828071 | AH152: 3.078779205 | AJ152: =+SUBTOTAL(9,AJ147:AJ151) -> 4200646.739 | AK152: =+SUBTOTAL(9,AK147:AK151) -> 0 | AL152: -116672.2607 | AN152: 3.078779205
A154: TOTAL SJRPP STEAM PLANT | D154: =+SUBTOTAL(9,D112:D153) -> 396626576.9 | F154: =+SUBTOTAL(9,F112:F153) -> 210477419.3 | P154: =+ROUND(R154/D154*100,1) -> 2.5 | R154: =+SUBTOTAL(9,R112:R153) -> 9960252 | AB154: =+SUBTOTAL(9,AB112:AB153) -> 10992421 | AD154: =+AB154/D154*100 -> 2.771478675 | AF154: =+SUBTOTAL(9,AF112:AF153) -> 1032169 | AH154: 2.682632133 | AJ154: =+SUBTOTAL(9,AJ112:AJ153) -> 10635744.53 | AL154: =+SUBTOTAL(9,AL112:AL153) -> -356676.4656 | AN154: 2.682632133
A156: TOTAL STEAM PRODUCTION | D156: =+SUBTOTAL(9,D16:D155) -> 3243194417 | F156: =+SUBTOTAL(9,F16:F155) -> 1503193994 | P156: =+ROUND(R156/D156*100,1) -> 2.5 | R156: =+SUBTOTAL(9,R16:R155) -> 80638814 | AB156: =+SUBTOTAL(9,AB16:AB155) -> 122769150 | AD156: =+AB156/$D156*100 -> 3.785439114 | AF156: =+SUBTOTAL(9,AF16:AF155) -> 42130336 | AH156: 3.776957816 | AJ156: =+SUBTOTAL(9,AJ16:AJ155) -> 122462492.7 | AL156: =+SUBTOTAL(9,AL16:AL155) -> -306657.2915 | AN156: 3.776957816
AD157: Carried forward to summary
A159: NUCLEAR PRODUCTION PLANT
A161: ST. LUCIE NUCLEAR PLANT
B163: ST. LUCIE COMMON
A164: 321 | B164: STRUCTURES AND IMPROVEMENTS | D164: 397119195.7 | F164: 177004049.9 | H164: 2043-06-30 | J164: 0.0028 | N164: 0 | P164: 1.8 | R164: =+ROUND(D164*P164/100,0) -> 7148146 | T164: 2043-04-30 | V164: 100 | W164: - | X164: R1.5 * | Z164: -1 | AB164: 9236865 | AD164: 2.33 | AF164: =+AB164-R164 -> 2088719 | AH164: 2.31 | AJ164: =$D164*AH164/100 -> 9173453.42 | AL164: =AJ164-AB164 -> -63411.58025 | AN164: 2.31
A165: 322 | B165: REACTOR PLANT EQUIPMENT | D165: 55584106.71 | F165: 31607489.04 | H165: 2043-06-30 | J165: 0.0056 | N165: -2 | P165: 2 | R165: 1111682 | T165: 2043-04-30 | V165: 60 | W165: - | X165: R1 * | Z165: -2 | AB165: 1096996 | AD165: 1.97 | AF165: =+AB165-R165 -> -14686 | AH165: 1.92 | AJ165: =$D165*AH165/100 -> 1067214.849 | AL165: =AJ165-AB165 -> -29781.15117 | AN165: 1.92
A166: 323 | B166: TURBOGENERATOR UNITS | D166: 12406915.97 | F166: -7437953.893 | H166: 2043-06-30 | J166: 0.0138 | N166: 0 | P166: 2.4 | R166: 297766 | T166: 2043-04-30 | V166: 45 | W166: - | X166: R0.5 * | Z166: 0 | AB166: 922159 | AD166: 7.43 | AF166: =+AB166-R166 -> 624393 | AH166: 6.43 | AJ166: 797764.6969 | AL166: -124394.3031 | AN166: 6.43
A167: 324 | B167: ACCESSORY ELECTRIC EQUIPMENT | D167: 34379625.87 | F167: 16953508.44 | H167: 2043-06-30 | J167: 0.0012 | N167: -2 | P167: 1.8 | R167: 618833 | T167: 2043-04-30 | V167: 75 | W167: - | X167: R2.5 * | Z167: -1 | AB167: 743822 | AD167: 2.16 | AF167: =+AB167-R167 -> 124989 | AH167: 2.07 | AJ167: 711658.2555 | AL167: -32163.74449 | AN167: 2.07
A168: 325 | B168: MISCELLANEOUS POWER PLANT EQUIPMENT | D168: 20728940.61 | F168: 2303180.018 | H168: 2043-06-30 | J168: 0.0032 | N168: 0 | P168: 1.8 | R168: 373121 | T168: 2043-04-30 | V168: 50 | W168: - | X168: R1.5 * | Z168: -3 | AB168: 868565 | AD168: 4.19 | AF168: =+AB168-R168 -> 495444 | AH168: 3.78 | AJ168: 783553.9551 | AL168: -85011.04494 | AN168: 3.78
B169: TOTAL ST. LUCIE COMMON | D169: =+SUBTOTAL(9,D164:D168) -> 520218784.8 | F169: =+SUBTOTAL(9,F164:F168) -> 220430273.5 | P169: =+ROUND(R169/D169*100,1) -> 1.8 | R169: =+SUBTOTAL(9,R164:R168) -> 9549548 | AB169: =+SUBTOTAL(9,AB164:AB168) -> 12868407 | AD169: =+AB169/D169*100 -> 2.473652889 | AF169: =+SUBTOTAL(9,AF164:AF168) -> 3318859 | AH169: 2.408615061 | AJ169: =+SUBTOTAL(9,AJ164:AJ168) -> 12533645.18 | AK169: =+SUBTOTAL(9,AK164:AK168) -> 0 | AL169: -334761.824 | AN169: 2.408615061
B171: ST. LUCIE UNIT 1
A172: 321 | B172: STRUCTURES AND IMPROVEMENTS | D172: 196854866.3 | F172: 101666895.5 | H172: 2036-06-30 | J172: 0.0028 | N172: 0 | P172: 1.8 | R172: =+ROUND(D172*P172/100,0) -> 3543388 | T172: 2036-03-31 | V172: 100 | W172: - | X172: R1.5 * | Z172: -1 | AB172: 5479781 | AD172: 2.78 | AF172: =+AB172-R172 -> 1936393 | AH172: 2.78 | AJ172: 5472565.283 | AL172: -7215.717138 | AN172: 2.78
A173: 322 | B173: REACTOR PLANT EQUIPMENT | D173: 845363775 | F173: 303976050.3 | H173: 2036-06-30 | J173: 0.0056 | N173: -2 | P173: 2 | R173: 16907276 | T173: 2036-03-31 | V173: 60 | W173: - | X173: R1 * | Z173: -2 | AB173: 32629749 | AD173: 3.86 | AF173: =+AB173-R173 -> 15722473 | AH173: 3.81 | AJ173: 32208359.83 | AL173: -421389.1721 | AN173: 3.81
A174: 323 | B174: TURBOGENERATOR UNITS | D174: 413333703.6 | F174: 56813276.81 | H174: 2036-06-30 | J174: 0.0138 | N174: 0 | P174: 2.4 | R174: 9920009 | T174: 2036-03-31 | V174: 45 | W174: - | X174: R0.5 * | Z174: 0 | AB174: 21633521 | AD174: 5.23 | AF174: =+AB174-R174 -> 11713512 | AH174: 4.79 | AJ174: 19798684.4 | AL174: -1834836.598 | AN174: 4.79
A175: 324 | B175: ACCESSORY ELECTRIC EQUIPMENT | D175: 120786348.1 | F175: 50666362.97 | H175: 2036-06-30 | J175: 0.0012 | N175: -2 | P175: 1.8 | R175: 2174154 | T175: 2036-03-31 | V175: 75 | W175: - | X175: R2.5 * | Z175: -1 | AB175: 4020736 | AD175: 3.33 | AF175: =+AB175-R175 -> 1846582 | AH175: 3.27 | AJ175: 3949713.582 | AL175: -71022.41778 | AN175: 3.27
A176: 325 | B176: MISCELLANEOUS POWER PLANT EQUIPMENT | D176: 11438745.22 | F176: 7097019.395 | H176: 2036-06-30 | J176: 0.0032 | N176: 0 | P176: 1.8 | R176: 205897 | T176: 2036-03-31 | V176: 50 | W176: - | X176: R1.5 * | Z176: -3 | AB176: 307811 | AD176: 2.69 | AF176: =+AB176-R176 -> 101914 | AH176: 2.31 | AJ176: 264235.0146 | AL176: -43575.98542 | AN176: 2.31
B177: TOTAL ST. LUCIE UNIT 1 | D177: =+SUBTOTAL(9,D172:D176) -> 1587777438 | F177: =+SUBTOTAL(9,F172:F176) -> 520219605 | P177: =+ROUND(R177/D177*100,1) -> 2.1 | R177: =+SUBTOTAL(9,R172:R176) -> 32750724 | AB177: =+SUBTOTAL(9,AB172:AB176) -> 64071598 | AD177: =+AB177/D177*100 -> 4.035300947 | AF177: =+SUBTOTAL(9,AF172:AF176) -> 31320874 | AH177: 3.886106359 | AJ177: =+SUBTOTAL(9,AJ172:AJ176) -> 61693558.11 | AK177: =+SUBTOTAL(9,AK172:AK176) -> 0 | AL177: -2378039.89 | AN177: 3.886106359
B179: ST. LUCIE UNIT 2
A180: 321 | B180: STRUCTURES AND IMPROVEMENTS | D180: 298911837.3 | F180: 133449792.7 | H180: 2043-06-30 | J180: 0.0028 | N180: 0 | P180: 1.8 | R180: =+ROUND(D180*P180/100,0) -> 5380413 | T180: 2043-04-30 | V180: 100 | W180: - | X180: R1.5 * | Z180: -1 | AB180: 6949305 | AD180: 2.32 | AF180: =+AB180-R180 -> 1568892 | AH180: 2.31 | AJ180: 6904863.441 | AL180: -44441.55929 | AN180: 2.31
A181: 322 | B181: REACTOR PLANT EQUIPMENT | D181: 1057336501 | F181: 401479217 | H181: 2043-06-30 | J181: 0.0056 | N181: -2 | P181: 2 | R181: 21146730 | T181: 2043-04-30 | V181: 60 | W181: - | X181: R1 * | Z181: -2 | AB181: 29615224 | AD181: 2.8 | AF181: =+AB181-R181 -> 8468494 | AH181: 2.72 | AJ181: 28759552.83 | AL181: -855671.1717 | AN181: 2.72
A182: 323 | B182: TURBOGENERATOR UNITS | D182: 350466490.1 | F182: 54374394.01 | H182: 2043-06-30 | J182: 0.0138 | N182: 0 | P182: 2.4 | R182: 8411196 | T182: 2043-04-30 | V182: 45 | W182: - | X182: R0.5 * | Z182: 0 | AB182: 13676309 | AD182: 3.9 | AF182: =+AB182-R182 -> 5265113 | AH182: 3.39 | AJ182: 11880814.01 | AL182: -1795494.986 | AN182: 3.39
A183: 324 | B183: ACCESSORY ELECTRIC EQUIPMENT | D183: 189637024.6 | F183: 86957686.15 | H183: 2043-06-30 | J183: 0.0012 | N183: -2 | P183: 1.8 | R183: 3413466 | T183: 2043-04-30 | V183: 75 | W183: - | X183: R2.5 * | Z183: -1 | AB183: 4397633 | AD183: 2.32 | AF183: =+AB183-R183 -> 984167 | AH183: 2.21 | AJ183: 4190978.243 | AL183: -206654.7574 | AN183: 2.21
A184: 325 | B184: MISCELLANEOUS POWER PLANT EQUIPMENT | D184: 24225433.39 | F184: 11438959.96 | H184: 2043-06-30 | J184: 0.0032 | N184: 0 | P184: 1.8 | R184: 436058 | T184: 2043-04-30 | V184: 50 | W184: - | X184: R1.5 * | Z184: -3 | AB184: 671966 | AD184: 2.77 | AF184: =+AB184-R184 -> 235908 | AH184: 2.29 | AJ184: 554762.4246 | AL184: -117203.5754 | AN184: 2.29
B185: TOTAL ST. LUCIE UNIT 2 | D185: =+SUBTOTAL(9,D180:D184) -> 1920577286 | F185: =+SUBTOTAL(9,F180:F184) -> 687700049.8 | P185: =+ROUND(R185/D185*100,1) -> 2 | R185: =+SUBTOTAL(9,R180:R184) -> 38787863 | AB185: =+SUBTOTAL(9,AB180:AB184) -> 55310437 | AD185: =+AB185/D185*100 -> 2.879886032 | AF185: =+SUBTOTAL(9,AF180:AF184) -> 16522574 | AH185: 2.723252294 | AJ185: =+SUBTOTAL(9,AJ180:AJ184) -> 52290970.95 | AK185: =+SUBTOTAL(9,AK180:AK184) -> 0 | AL185: -3019466.05 | AN185: 2.723252294
A187: TOTAL ST. LUCIE NUCLEAR PLANT | D187: =+SUBTOTAL(9,D164:D186) -> 4028573509 | F187: =+SUBTOTAL(9,F164:F186) -> 1428349928 | P187: =+ROUND(R187/D187*100,1) -> 2 | R187: =+SUBTOTAL(9,R164:R186) -> 81088135 | AB187: =+SUBTOTAL(9,AB164:AB186) -> 132250442 | AD187: =+AB187/D187*100 -> 3.282810694 | AF187: =+SUBTOTAL(9,AF164:AF186) -> 51162307 | AG187: =+SUBTOTAL(9,AG164:AG186) -> 0 | AH187: 3.140936927 | AJ187: 126518174.2 | AL187: -5732267.765 | AN187: 3.140936927
A190: TURKEY POINT NUCLEAR PLANT
B192: TURKEY POINT COMMON
A193: 321 | B193: STRUCTURES AND IMPROVEMENTS | D193: 380704673.4 | F193: 186854084 | H193: 2033-06-30 | J193: 0.0028 | N193: 0 | P193: 1.8 | R193: =+ROUND(D193*P193/100,0) -> 6852684 | T193: 2033-04-30 | V193: 100 | W193: - | X193: R1.5 * | Z193: -1 | AB193: 13150874 | AD193: 3.45 | AF193: =+AB193-R193 -> 6298190 | AH193: 3.46 | AJ193: 13172381.7 | AL193: 21507.69999 | AN193: 3.46
A194: 322 | B194: REACTOR PLANT EQUIPMENT | D194: 144884580.2 | F194: 25644014.41 | H194: 2033-06-30 | J194: 0.0056 | N194: -2 | P194: 2 | R194: =+ROUND(D194*P194/100,0) -> 2897692 | T194: 2033-04-30 | V194: 60 | W194: - | X194: R1 * | Z194: -2 | AB194: 8331395 | AD194: 5.75 | AF194: =+AB194-R194 -> 5433703 | AH194: 5.74 | AJ194: 8316374.904 | AL194: -15020.09595 | AN194: 5.74
A195: 323 | B195: TURBOGENERATOR UNITS | D195: 22821885.52 | F195: 5761406.509 | H195: 2033-06-30 | J195: 0.0138 | N195: 0 | P195: 2.4 | R195: =+ROUND(D195*P195/100,0) -> 547725 | T195: 2033-04-30 | V195: 45 | W195: - | X195: R0.5 * | Z195: 0 | AB195: 1212543 | AD195: 5.31 | AF195: =+AB195-R195 -> 664818 | AH195: 4.93 | AJ195: 1125118.956 | AL195: -87424.04386 | AN195: 4.93
A196: 324 | B196: ACCESSORY ELECTRIC EQUIPMENT | D196: 56769857.59 | F196: 34483979.7 | H196: 2033-06-30 | J196: 0.0012 | N196: -2 | P196: 1.8 | R196: 1021857 | T196: 2033-04-30 | V196: 75 | W196: - | X196: R2.5 * | Z196: -1 | AB196: 1520531 | AD196: 2.68 | AF196: =+AB196-R196 -> 498674 | AH196: 2.65 | AJ196: 1504401.226 | AL196: -16129.77387 | AN196: 2.65
A197: 325 | B197: MISCELLANEOUS POWER PLANT EQUIPMENT | D197: 39215641.06 | F197: 17765783.16 | H197: 2033-06-30 | J197: 0.0032 | N197: 0 | P197: 1.8 | R197: 705882 | T197: 2033-04-30 | V197: 50 | W197: - | X197: R1.5 * | Z197: -3 | AB197: 1566920 | AD197: 4 | AF197: =+AB197-R197 -> 861038 | AH197: 3.86 | AJ197: 1513723.745 | AL197: -53196.25508 | AN197: 3.86
B198: TOTAL TURKEY POINT COMMON | D198: =+SUBTOTAL(9,D193:D197) -> 644396637.8 | F198: =+SUBTOTAL(9,F193:F197) -> 270509267.8 | P198: =+ROUND(R198/D198*100,1) -> 1.9 | R198: =+SUBTOTAL(9,R193:R197) -> 12025840 | AB198: =+SUBTOTAL(9,AB193:AB197) -> 25782263 | AD198: =+AB198/D198*100 -> 4.000992787 | AF198: =+SUBTOTAL(9,AF193:AF197) -> 13756423 | AH198: 3.978680908 | AJ198: =+SUBTOTAL(9,AJ193:AJ197) -> 25632000.53 | AK198: =+SUBTOTAL(9,AK193:AK197) -> 0 | AL198: -150262.4688 | AN198: 3.978680908
B200: TURKEY POINT UNIT 3
A201: 321 | B201: STRUCTURES AND IMPROVEMENTS | D201: 185601316.1 | F201: 40968914.85 | H201: 2032-06-30 | J201: 0.0028 | N201: 0 | P201: 1.8 | R201: =+ROUND(D201*P201/100,0) -> 3340824 | T201: 2032-07-31 | V201: 100 | W201: - | X201: R1.5 * | Z201: -1 | AB201: 10215371 | AD201: 5.5 | AF201: =+AB201-R201 -> 6874547 | AH201: 5.52 | AJ201: 10245192.65 | AL201: 29821.64872 | AN201: 5.52
A202: 322 | B202: REACTOR PLANT EQUIPMENT | D202: 595235354.2 | F202: 176726668.3 | H202: 2032-06-30 | J202: 0.0056 | N202: -2 | P202: 2 | R202: 11904707 | T202: 2032-07-31 | V202: 60 | W202: - | X202: R1 * | Z202: -2 | AB202: 30942731 | AD202: 5.2 | AF202: =+AB202-R202 -> 19038024 | AH202: 5.17 | AJ202: 30773667.81 | AL202: -169063.1884 | AN202: 5.17
A203: 323 | B203: TURBOGENERATOR UNITS | D203: 758820503.5 | F203: 99120406.05 | H203: 2032-06-30 | J203: 0.0138 | N203: 0 | P203: 2.4 | R203: 18211692 | T203: 2032-07-31 | V203: 45 | W203: - | X203: R0.5 * | Z203: 0 | AB203: 48758322 | AD203: 6.43 | AF203: =+AB203-R203 -> 30546630 | AH203: 6.02 | AJ203: 45680994.31 | AL203: -3077327.691 | AN203: 6.02
A204: 324 | B204: ACCESSORY ELECTRIC EQUIPMENT | D204: 153810947.6 | F204: 73799056.88 | H204: 2032-06-30 | J204: 0.0012 | N204: -2 | P204: 1.8 | R204: 2768597 | T204: 2032-07-31 | V204: 75 | W204: - | X204: R2.5 * | Z204: -1 | AB204: 5694832 | AD204: 3.7 | AF204: =+AB204-R204 -> 2926235 | AH204: 3.67 | AJ204: 5644861.778 | AL204: -49970.22198 | AN204: 3.67
A205: 325 | B205: MISCELLANEOUS POWER PLANT EQUIPMENT | D205: 16088187.86 | F205: 890396.5208 | H205: 2032-06-30 | J205: 0.0032 | N205: 0 | P205: 1.8 | R205: 289587 | T205: 2032-07-31 | V205: 50 | W205: - | X205: R1.5 * | Z205: -3 | AB205: 1125660 | AD205: 7 | AF205: =+AB205-R205 -> 836073 | AH205: 6.84 | AJ205: 1100432.05 | AL205: -25227.95038 | AN205: 6.84
B206: TOTAL TURKEY POINT UNIT 3 | D206: =+SUBTOTAL(9,D201:D205) -> 1709556309 | F206: =+SUBTOTAL(9,F201:F205) -> 391505442.6 | P206: =+ROUND(R206/D206*100,1) -> 2.1 | R206: =+SUBTOTAL(9,R201:R205) -> 36515407 | AB206: =+SUBTOTAL(9,AB201:AB205) -> 96736916 | AD206: =+AB206/D206*100 -> 5.658597817 | AF206: =+SUBTOTAL(9,AF201:AF205) -> 60221509 | AH206: 5.467131413 | AJ206: =+SUBTOTAL(9,AJ201:AJ205) -> 93445148.6 | AK206: =+SUBTOTAL(9,AK201:AK205) -> 0 | AL206: -3291767.403 | AN206: 5.467131413
B208: TURKEY POINT UNIT 4
A209: 321 | B209: STRUCTURES AND IMPROVEMENTS | D209: 129681129.7 | F209: 50771974.78 | H209: 2033-06-30 | J209: 0.0028 | N209: 0 | P209: 1.8 | R209: =+ROUND(D209*P209/100,0) -> 2334260 | T209: 2033-04-30 | V209: 100 | W209: - | X209: R1.5 * | Z209: -1 | AB209: 5332843 | AD209: 4.11 | AF209: =+AB209-R209 -> 2998583 | AH209: 4.12 | AJ209: 5342862.544 | AL209: 10019.54405 | AN209: 4.12
A210: 322 | B210: REACTOR PLANT EQUIPMENT | D210: 518893110.5 | F210: 190785223.5 | H210: 2033-06-30 | J210: 0.0056 | N210: -2 | P210: 2 | R210: 10377862 | T210: 2033-04-30 | V210: 60 | W210: - | X210: R1 * | Z210: -2 | AB210: 23215758 | AD210: 4.47 | AF210: =+AB210-R210 -> 12837896 | AH210: 4.45 | AJ210: 23090743.42 | AL210: -125014.5828 | AN210: 4.45
A211: 323 | B211: TURBOGENERATOR UNITS | D211: 601429270.4 | F211: 92161742.46 | H211: 2033-06-30 | J211: 0.0138 | N211: 0 | P211: 2.4 | R211: 14434302 | T211: 2033-04-30 | V211: 45 | W211: - | X211: R0.5 * | Z211: 0 | AB211: 35965221 | AD211: 5.98 | AF211: =+AB211-R211 -> 21530919 | AH211: 5.58 | AJ211: 33559753.29 | AL211: -2405467.712 | AN211: 5.58
A212: 324 | B212: ACCESSORY ELECTRIC EQUIPMENT | D212: 177722654 | F212: 105343398.3 | H212: 2033-06-30 | J212: 0.0012 | N212: -2 | P212: 1.8 | R212: 3199008 | T212: 2033-04-30 | V212: 75 | W212: - | X212: R2.5 * | Z212: -1 | AB212: 4950366 | AD212: 2.79 | AF212: =+AB212-R212 -> 1751358 | AH212: 2.75 | AJ212: 4887372.986 | AL212: -62993.01445 | AN212: 2.75
A213: 325 | B213: MISCELLANEOUS POWER PLANT EQUIPMENT | D213: 12121306.1 | F213: 279921.0715 | H213: 2033-06-30 | J213: 0.0032 | N213: 0 | P213: 1.8 | R213: 218184 | T213: 2033-04-30 | V213: 50 | W213: - | X213: R1.5 * | Z213: -3 | AB213: 837682 | AD213: 6.91 | AF213: =+AB213-R213 -> 619498 | AH213: 6.73 | AJ213: 815763.9005 | AL213: -21918.09947 | AN213: 6.73
B214: TOTAL TURKEY POINT UNIT 4 | D214: =+SUBTOTAL(9,D209:D213) -> 1439847471 | F214: =+SUBTOTAL(9,F209:F213) -> 439342260.2 | P214: =+ROUND(R214/D214*100,1) -> 2.1 | R214: =+SUBTOTAL(9,R209:R213) -> 30563616 | AB214: =+SUBTOTAL(9,AB209:AB213) -> 70301870 | AD214: =+AB214/D214*100 -> 4.882591485 | AF214: =+SUBTOTAL(9,AF209:AF213) -> 39738254 | AH214: 4.700351695 | AJ214: =+SUBTOTAL(9,AJ209:AJ213) -> 67696496.14 | AK214: =+SUBTOTAL(9,AK209:AK213) -> 0 | AL214: -2605373.864 | AN214: 4.700351695
A216: TOTAL TURKEY POINT NUCLEAR PLANT | D216: =+SUBTOTAL(9,D192:D215) -> 3793800418 | F216: =+SUBTOTAL(9,F192:F215) -> 1101356971 | P216: =+ROUND(R216/D216*100,1) -> 2.1 | R216: =+SUBTOTAL(9,R192:R215) -> 79104863 | AB216: =+SUBTOTAL(9,AB192:AB215) -> 192821049 | AD216: =+AB216/D216*100 -> 5.082530122 | AF216: =+SUBTOTAL(9,AF192:AF215) -> 113716186 | AG216: =+SUBTOTAL(9,AG192:AG215) -> 0 | AH216: 4.923297233 | AJ216: 186773645.3 | AL216: -6047403.736 | AN216: 4.923297233
A218: TOTAL NUCLEAR PRODUCTION PLANT | D218: =+SUBTOTAL(9,D164:D217) -> 7822373927 | F218: =+SUBTOTAL(9,F164:F217) -> 2529706899 | P218: =+ROUND(R218/D218*100,1) -> 2 | R218: =+SUBTOTAL(9,R164:R217) -> 160192998 | AB218: =+SUBTOTAL(9,AB164:AB217) -> 325071491 | AD218: =+AB218/D218*100 -> 4.155662898 | AF218: =+SUBTOTAL(9,AF164:AF217) -> 164878493 | AG218: =+SUBTOTAL(9,AG164:AG217) -> 0 | AH218: 4.005370069 | AJ218: 313291819.5 | AL218: -11779671.5 | AN218: 4.005370069
A221: COMBINED CYCLE PRODUCTION PLANT
A223: LAUDERDALE COMBINED CYCLE PLANT
B225: LAUDERDALE COMMON
A226: 341 | B226: STRUCTURES AND IMPROVEMENTS | D226: 87455288.39 | F226: 58653734.34 | H226: 2023-06-30 | J226: 0.0023 | N226: -2 | P226: 3.5 | R226: =+ROUND(D226*P226/100,0) -> 3060935 | T226: 2033-06-30 | V226: 80 | W226: - | X226: R2 * | Z226: -2 | AB226: 2017877 | AD226: 2.31 | AF226: =+AB226-R226 -> -1043058 | AH226: 1.75 | AJ226: 1530467.547 | AL226: -487409.4532 | AN226: 2.29
A227: 342 | B227: FUEL HOLDERS, PRODUCERS AND ACCESSORIES | D227: 11879794.88 | F227: 6764061.084 | H227: 2023-06-30 | J227: 0.0095 | N227: 0 | P227: 3.8 | R227: 451432 | T227: 2033-06-30 | V227: 50 | W227: - | X227: R1.5 * | Z227: -3 | AB227: 378694 | AD227: 3.19 | AF227: -72738 | AH227: 2.49 | AJ227: 295806.8925 | AL227: -82887.10749 | AN227: 3.21
A228: 343 | B228: PRIME MOVERS - GENERAL | D228: 29161925.58 | F228: 7732617.9 | H228: 2023-06-30 | J228: 0.0057 | N228: 0 | P228: 6 | R228: 1749716 | T228: 2033-06-30 | V228: 50 | W228: - | X228: R1 * | Z228: -3 | AB228: 1515229 | AD228: 5.2 | AF228: -234487 | AH228: 3.96 | AJ228: 1154812.253 | AL228: -360416.747 | AN228: 5.16
A229: 343.2 | B229: PRIME MOVERS - CAPITAL SPARE PARTS | D229: 37564239.13 | F229: 8857045.435 | H229: 2023-06-30 | J229: 0.1565 | N229: 0 | P229: 6 | R229: 2253854 | T229: 2033-06-30 | V229: 9 | W229: - | X229: L0 * | Z229: 35 | AB229: 2332790 | AD229: 6.21 | AF229: 78936 | AH229: 2.15 | AJ229: =$D229*AH229/100 -> 807631.1413 | AL229: =AJ229-AB229 -> -1525158.859 | AN229: 2.8
A230: 344 | B230: GENERATORS | D230: 702077.8 | F230: 422319.0893 | H230: 2023-06-30 | J230: 0.0016 | N230: -1 | P230: 3.4 | R230: =+ROUND(D230*P230/100,0) -> 23871 | T230: 2033-06-30 | V230: 60 | W230: - | X230: R2 * | Z230: -3 | AB230: 20095 | AD230: 2.86 | AF230: -3776 | AH230: 2.12 | AJ230: 14884.04936 | AL230: -5210.95064 | AN230: 2.8
A231: 345 | B231: ACCESSORY ELECTRIC EQUIPMENT | D231: 12506640.1 | F231: 9717935.833 | H231: 2023-06-30 | J231: 0.0013 | N231: -1 | P231: 3.4 | R231: 425226 | T231: 2033-06-30 | V231: 50 | W231: - | X231: R2.5 * | Z231: -2 | AB231: 210738 | AD231: 1.69 | AF231: -214488 | AH231: 1.2 | AJ231: 150079.6812 | AL231: -60658.3188 | AN231: 1.58
A232: 346 | B232: MISCELLANEOUS POWER PLANT EQUIPMENT | D232: 1273680.52 | F232: 642012.1297 | H232: 2023-06-30 | J232: 0.0026 | N232: 0 | P232: 3.4 | R232: 43305 | T232: 2033-06-30 | V232: 50 | W232: - | X232: S0.5 * | Z232: -2 | AB232: 45258 | AD232: 3.55 | AF232: 1953 | AH232: 2.59 | AJ232: =$D232*AH232/100 -> 32988.32547 | AL232: -12269.67453 | AN232: 3.4
B233: TOTAL LAUDERDALE COMMON | D233: =+SUBTOTAL(9,D226:D232) -> 180543646.4 | F233: =+SUBTOTAL(9,F226:F232) -> 92789725.81 | P233: =+ROUND(R233/D233*100,1) -> 4.4 | R233: =+SUBTOTAL(9,R226:R232) -> 8008339 | AB233: =+SUBTOTAL(9,AB226:AB232) -> 6520681 | AD233: =+AB233/D233*100 -> 3.611692314 | AF233: =+SUBTOTAL(9,AF226:AF232) -> -1487658 | AH233: 2.205396911 | AJ233: =+SUBTOTAL(9,AJ226:AJ232) -> 3986669.89 | AK233: =+SUBTOTAL(9,AK226:AK232) -> 0 | AL233: =+SUBTOTAL(9,AL226:AL232) -> -2534011.11 | AN233: 2.882725648
B235: LAUDERDALE UNIT 4
A236: 341 | B236: STRUCTURES AND IMPROVEMENTS | D236: 5252476.74 | F236: 3609976.58 | H236: 2023-06-30 | J236: 0.0023 | N236: -2 | P236: 3.5 | R236: =+ROUND(D236*P236/100,0) -> 183837 | T236: 2033-06-30 | V236: 80 | W236: - | X236: R2 * | Z236: -2 | AB236: 115502 | AD236: 2.2 | AF236: =+AB236-R236 -> -68335 | AH236: 1.66 | AJ236: 87191.11388 | AL236: -28310.88612 | AN236: 2.19
A237: 342 | B237: FUEL HOLDERS, PRODUCERS AND ACCESSORIES | D237: 695047.38 | F237: 531831.3339 | H237: 2023-06-30 | J237: 0.0095 | N237: 0 | P237: 3.8 | R237: 26412 | T237: 2033-06-30 | V237: 50 | W237: - | X237: R1.5 * | Z237: -3 | AB237: 12809 | AD237: 1.84 | AF237: -13603 | AH237: 1.43 | AJ237: 9939.177534 | AL237: -2869.822466 | AN237: 1.84
A238: 343 | B238: PRIME MOVERS - GENERAL | D238: 130963584.1 | F238: 56698997.68 | H238: 2023-06-30 | J238: 0.0057 | N238: 0 | P238: 4.3 | R238: 5631434 | T238: 2033-06-30 | V238: 50 | W238: - | X238: R1 * | Z238: -3 | AB238: 5445229 | AD238: 4.16 | AF238: -186205 | AH238: 3.09 | AJ238: 4046774.747 | AL238: -1398454.253 | AN238: 4.03
A239: 343.2 | B239: PRIME MOVERS - CAPITAL SPARE PARTS | D239: 64498883.46 | F239: 10698974.94 | H239: 2023-06-30 | J239: 0.1565 | N239: 0 | P239: 4.3 | R239: 2773452 | T239: 2033-06-30 | V239: 9 | W239: - | X239: L0 * | Z239: 35 | AB239: 4871341 | AD239: 7.55 | AF239: 2097889 | AH239: 2.51 | AJ239: 1618921.975 | AL239: -3252419.025 | AN239: 3.27
A240: 344 | B240: GENERATORS | D240: 29715224.53 | F240: 21249929.87 | H240: 2023-06-30 | J240: 0.0016 | N240: -1 | P240: 3.4 | R240: =+ROUND(D240*P240/100,0) -> 1010318 | T240: 2033-06-30 | V240: 60 | W240: - | X240: R2 * | Z240: -3 | AB240: 632213 | AD240: 2.13 | AF240: -378105 | AH240: 1.56 | AJ240: =$D240*AH240/100 -> 463557.5027 | AL240: -168655.4973 | AN240: 2.06
A241: 345 | B241: ACCESSORY ELECTRIC EQUIPMENT | D241: 30758543.48 | F241: 20012938.55 | H241: 2023-06-30 | J241: 0.0013 | N241: -1 | P241: 3.4 | R241: 1045790 | T241: 2033-06-30 | V241: 50 | W241: - | X241: R2.5 * | Z241: -2 | AB241: 779738 | AD241: 2.54 | AF241: -266052 | AH241: 1.83 | AJ241: 562881.3457 | AL241: -216856.6543 | AN241: 2.41
A242: 346 | B242: MISCELLANEOUS POWER PLANT EQUIPMENT | D242: 2681785.28 | F242: 1971609.478 | H242: 2023-06-30 | J242: 0.0026 | N242: 0 | P242: 3.4 | R242: 91181 | T242: 2033-06-30 | V242: 50 | W242: - | X242: S0.5 * | Z242: -2 | AB242: 54133 | AD242: 2.02 | AF242: -37048 | AH242: 1.43 | AJ242: 38349.5295 | AL242: -15783.4705 | AN242: 1.88
B243: TOTAL LAUDERDALE UNIT 4 | D243: =+SUBTOTAL(9,D236:D242) -> 264565544.9 | F243: =+SUBTOTAL(9,F236:F242) -> 114774258.4 | P243: =+ROUND(R243/D243*100,1) -> 4.1 | R243: =+SUBTOTAL(9,R236:R242) -> 10762424 | AB243: =+SUBTOTAL(9,AB236:AB242) -> 11910965 | AD243: =+AB243/D243*100 -> 4.50208473 | AF243: =+SUBTOTAL(9,AF236:AF242) -> 1148541 | AH243: 2.581565185 | AJ243: =+SUBTOTAL(9,AJ236:AJ242) -> 6827615.392 | AK243: =+SUBTOTAL(9,AK236:AK242) -> 0 | AL243: -5083349.608 | AN243: 3.36970863
B245: LAUDERDALE UNIT 5
A246: 341 | B246: STRUCTURES AND IMPROVEMENTS | D246: 3304987.8 | F246: 2032622.15 | H246: 2023-06-30 | J246: 0.0023 | N246: -2 | P246: 3.5 | R246: =+ROUND(D246*P246/100,0) -> 115675 | T246: 2033-06-30 | V246: 80 | W246: - | X246: R2 * | Z246: -2 | AB246: 88289 | AD246: 2.67 | AF246: =+AB246-R246 -> -27386 | AH246: 2.02 | AJ246: 66760.75356 | AL246: -21528.24644 | AN246: 2.66
A247: 342 | B247: FUEL HOLDERS, PRODUCERS AND ACCESSORIES | D247: 766036.02 | F247: 526297.6635 | H247: 2023-06-30 | J247: 0.0095 | N247: 0 | P247: 3.8 | R247: 29109 | T247: 2033-06-30 | V247: 50 | W247: - | X247: R1.5 * | Z247: -3 | AB247: 18094 | AD247: 2.36 | AF247: -11015 | AH247: 1.85 | AJ247: 14171.66637 | AL247: -3922.33363 | AN247: 2.39
A248: 343 | B248: PRIME MOVERS - GENERAL | D248: 130296358.8 | F248: 36892591.6 | H248: 2023-06-30 | J248: 0.0057 | N248: 0 | P248: 4.2 | R248: 5472447 | T248: 2033-06-30 | V248: 50 | W248: - | X248: R1 * | Z248: -3 | AB248: 6771932 | AD248: 5.2 | AF248: 1299485 | AH248: 3.87 | AJ248: 5042469.086 | AL248: -1729462.914 | AN248: 5.04
A249: 343.2 | B249: PRIME MOVERS - CAPITAL SPARE PARTS | D249: 24422477.67 | F249: 2046911.872 | H249: 2023-06-30 | J249: 0.1565 | N249: 0 | P249: 4.2 | R249: 1025744 | T249: 2033-06-30 | V249: 9 | W249: - | X249: L0 * | Z249: 35 | AB249: 1998222 | AD249: 8.18 | AF249: 972478 | AH249: 2.93 | AJ249: 715578.5957 | AL249: -1282643.404 | AN249: 3.82
A250: 344 | B250: GENERATORS | D250: 32777730.66 | F250: 23372189.7 | H250: 2023-06-30 | J250: 0.0016 | N250: -1 | P250: 3.4 | R250: =+ROUND(D250*P250/100,0) -> 1114443 | T250: 2033-06-30 | V250: 60 | W250: - | X250: R2 * | Z250: -3 | AB250: 699117 | AD250: 2.13 | AF250: -415326 | AH250: 1.57 | AJ250: 514610.3714 | AL250: -184506.6286 | AN250: 2.07
A251: 345 | B251: ACCESSORY ELECTRIC EQUIPMENT | D251: 25710169.04 | F251: 16111822.17 | H251: 2023-06-30 | J251: 0.0013 | N251: -1 | P251: 3.4 | R251: 874146 | T251: 2033-06-30 | V251: 50 | W251: - | X251: R2.5 * | Z251: -2 | AB251: 690748 | AD251: 2.69 | AF251: -183398 | AH251: 1.94 | AJ251: 498777.2794 | AL251: -191970.7206 | AN251: 2.56
A252: 346 | B252: MISCELLANEOUS POWER PLANT EQUIPMENT | D252: 1868249.99 | F252: 1335398.919 | H252: 2023-06-30 | J252: 0.0026 | N252: 0 | P252: 3.4 | R252: 63520 | T252: 2033-06-30 | V252: 50 | W252: - | X252: S0.5 * | Z252: -2 | AB252: 40384 | AD252: 2.16 | AF252: -23136 | AH252: 1.53 | AJ252: 28584.22485 | AL252: -11799.77515 | AN252: 2.01
... 302 more rows

Sheet <==INPUT OPC DeprnRatesJackPous

Sheet WP 2017&18 Clauses by function
C1: 2017 | K1: 2018
B2: Function | C2: FPL New Depreciation Rates Expense Adjustment | E2: Depreciation Expense -Clauses | G2: Clauses / Expense Adjustment | I2: Clauses by Function as Percent of Total | K2: FPL New Depreciation Rates Expense Adjustment | M2: Depreciation Expense -Clauses | O2: Depreciation Expense - Base Rates | Q2: Difference: Depreciation Expense - Clauses
C3: (G) | E3: (H)
A4: 15 | B4: Steam | C4: 42675782.52 | E4: 15102236.15 | G4: =E4/C4 -> 0.3538830516 | I4: =E4/$E$15 -> 0.9883791586 | K4: 43253021.74 | O4: 28059636.57 | Q4: =K4-O4 -> 15193385.17
A5: 16 | B5: Nuclear | C5: 162509137.6 | E5: 3416927.982 | G5: =E5/C5 -> 0.02102606679 | I5: =E5/$E$15 -> 0.223623864 | K5: 163550927.3 | O5: 159593315.5 | Q5: =K5-O5 -> 3957611.752
A6: 17 | B6: Other | C6: 51998277.3 | E6: 211996.0322 | G6: 0.004076981839 | I6: 0.01387426722 | K6: 52132143.05 | O6: 51923940.9 | Q6: 208202.1544
A7: 18 | B7: Total Production | C7: 257183197.4 | E7: 18731160.16 | K7: =SUM(K4:K6) -> 258936092 | O7: =SUM(O4:O6) -> 239576893 | Q7: =SUM(Q4:Q6) -> 19359199.08
A8: 19
A9: 20 | B9: Transmission | C9: -7892671.728 | E9: 3749.781623 | G9: =E9/C9 -> -0.0004750966152 | I9: =E9/$E$15 -> 0.000245407764 | K9: -9870107.58 | O9: -9873706.618 | Q9: =K9-O9 -> 3599.037482
A10: 21 | B10: Distribution | C10: -24863168.1 | E10: -2987852.887 | G10: 0.1201718492 | I10: -0.1955426662 | K10: -23123520.08 | O10: -18265429.84 | Q10: -4858090.244
A11: 22 | B11: General | C11: -3124406.394 | E11: -467256.7721 | G11: 0.1495505748 | I11: -0.03058003137 | K11: -3041360.528 | O11: -2572429.646 | Q11: -468930.8827
A12: 23 | B12: Total Trans., Dist.
A13: 24 | B13: and General Plant | C13: -35880246.22 | E13: -3451359.878 | K13: =SUM(K9:K11) -> -36034988.19 | O13: =SUM(O9:O11) -> -30711566.1 | Q13: =SUM(Q9:Q11) -> -5323422.089
A14: 25
A15: 26 | B15: Grand Total | C15: 221302951.2 | E15: 15279800.29 | I15: =SUM(I4:I11) -> 1 | K15: =K13+K7 -> 222901103.9 | O15: =O13+O7 -> 208865326.9 | Q15: =Q13+Q7 -> 14035776.99
B17: Clause Related Depreciation Expense 2018, per FPL response to OPC 5-172, Attachment 1 | M17: 14035777
B19: Grand Total before Clauses from OPC 5-172, Attachment 1 | K19: 222901104
B22: 2018 is from FPL's response to OPC Fifth Set of Interrogatories, Interrogatory No. 172 Attachment No. 1
B24: Depreciation Expense - Base Rates is from OPC 5-169, Attachment 2

Sheet Table 1
A1: FLORIDA POWER AND LIGHT COMPANY
A2: OPC 002088 FPL RC-16
A3: TABLE 1. ESTIMATED SURVIVOR CURVE, NET SALVAGE, ORIGINAL COST, BOOK RESERVE AND CALCULATED REMAINING LIFE
A4: ANNUAL DEPRECIATION ACCRUALS AND RATES RELATED TO ELECTRIC PLANT IN SERVICE AS OF DECEMBER 31, 2017
D7: PROBABLE | R7: COMPOSITE | T7: ANNUAL | V7: ANNUAL
D8: RETIREMENT | J8: NET | L8: ORIGINAL | N8: BOOK | P8: FUTURE | R8: REMAINING | T8: DEPRECIATION | V8: DEPRECIATION
D9: DATE | F9: SURVIVOR CURVE | J9: SALVAGE | L9: COST | N9: RESERVE | P9: ACCRUALS | R9: LIFE | T9: ACCRUALS | V9: RATE
D10: -1 | F10: -2 | J10: -3 | L10: -4 | N10: -5 | P10: (6)=(100%-(3))x(4)-(5) | R10: -7 | T10: (8)=(6)/(7) | V10: (9)=(8)/(4)
A12: STEAM PRODUCTION PLANT
A15: MANATEE STEAM PLANT
C16: =+UPPER(B16) -> 
B17: MANATEE COMMON
A18: 311 | B18: STRUCTURES AND IMPROVEMENTS | D18: 2028-06-30 | F18: 80 | G18: - | H18: R2 * | J18: -1 | L18: 114283077.9 | N18: 73863099.7 | P18: =+ROUND((100-J18)/100*L18-N18,0) -> 41562809 | R18: 10.32 | T18: =+ROUND(P18/R18,0) -> 4027404 | V18: =+ROUND(T18/L18*100,2) -> 3.52
A19: 312 | B19: BOILER PLANT EQUIPMENT | D19: 2028-06-30 | F19: 50 | G19: - | H19: S0 * | J19: -2 | L19: 7864883.47 | N19: 1419252.067 | P19: =+ROUND((100-J19)/100*L19-N19,0) -> 6602929 | R19: 10.18 | T19: =+ROUND(P19/R19,0) -> 648618 | V19: =+ROUND(T19/L19*100,2) -> 8.25
A20: 314 | B20: TURBOGENERATOR UNITS | D20: 2028-06-30 | F20: 55 | G20: - | H20: R0.5 * | J20: -1 | L20: 9839030.51 | N20: 7821767.522 | P20: 2115653 | R20: 9.87 | T20: 214352 | V20: 2.18
A21: 315 | B21: ACCESSORY ELECTRIC EQUIPMENT | D21: 2028-06-30 | F21: 65 | G21: - | H21: S0 * | J21: -2 | L21: 9833462.49 | N21: 7455584.67 | P21: 2574547 | R21: 9.99 | T21: 257712 | V21: 2.62
A22: 316 | B22: MISCELLANEOUS POWER PLANT EQUIPMENT | D22: 2028-06-30 | F22: 65 | G22: - | H22: R0.5 * | J22: 0 | L22: 2498111.02 | N22: 1956325.337 | P22: 541786 | R22: 10.02 | T22: 54070 | V22: 2.16
B23: TOTAL MANATEE COMMON | L23: =+SUBTOTAL(9,L18:L22) -> 144318565.4 | N23: =+SUBTOTAL(9,N18:N22) -> 92516029.3 | P23: =+SUBTOTAL(9,P18:P22) -> 53397724 | R23: =+P23/T23 -> 10.26453724 | T23: =+SUBTOTAL(9,T18:T22) -> 5202156 | V23: =+T23/L23*100 -> 3.604633948
B25: MANATEE UNIT 1
A26: 311 | B26: STRUCTURES AND IMPROVEMENTS | D26: 2028-06-30 | F26: 80 | G26: - | H26: R2 * | J26: -1 | L26: 6968574.08 | N26: 5629218.797 | P26: =+ROUND((100-J26)/100*L26-N26,0) -> 1409041 | R26: 10.19 | T26: =+ROUND(P26/R26,0) -> 138277 | V26: =+ROUND(T26/L26*100,2) -> 1.98
A27: 312 | B27: BOILER PLANT EQUIPMENT | D27: 2028-06-30 | F27: 50 | G27: - | H27: S0 * | J27: -2 | L27: 184992667.8 | N27: 95599217.64 | P27: 93093304 | R27: 9.99 | T27: 9318649 | V27: =+ROUND(T27/L27*100,2) -> 5.04
A28: 314 | B28: TURBOGENERATOR UNITS | D28: 2028-06-30 | F28: 55 | G28: - | H28: R0.5 * | J28: -1 | L28: 74066120.92 | N28: 43199871.11 | P28: 31606911 | R28: 9.97 | T28: 3170202 | V28: 4.28
A29: 315 | B29: ACCESSORY ELECTRIC EQUIPMENT | D29: 2028-06-30 | F29: 65 | G29: - | H29: S0 * | J29: -2 | L29: 14537672.54 | N29: 8121393.657 | P29: 6707032 | R29: 10.18 | T29: 658844 | V29: 4.53
A30: 316 | B30: MISCELLANEOUS POWER PLANT EQUIPMENT | D30: 2028-06-30 | F30: 65 | G30: - | H30: R0.5 * | J30: 0 | L30: 4000322.68 | N30: 2337843.906 | P30: 1662479 | R30: 10.06 | T30: 165256 | V30: 4.13
B31: TOTAL MANATEE UNIT 1 | L31: =+SUBTOTAL(9,L26:L30) -> 284565358 | N31: =+SUBTOTAL(9,N26:N30) -> 154887545.1 | P31: =+SUBTOTAL(9,P26:P30) -> 134478767 | R31: =+P31/T31 -> 9.997508555 | T31: =+SUBTOTAL(9,T26:T30) -> 13451228 | V31: =+T31/L31*100 -> 4.726937985
B33: MANATEE UNIT 2
A34: 311 | B34: STRUCTURES AND IMPROVEMENTS | D34: 2028-06-30 | F34: 80 | G34: - | H34: R2 * | J34: -1 | L34: 5083211.03 | N34: 4050365.75 | P34: =+ROUND((100-J34)/100*L34-N34,0) -> 1083677 | R34: 10.22 | T34: =+ROUND(P34/R34,0) -> 106035 | V34: =+ROUND(T34/L34*100,2) -> 2.09
A35: 312 | B35: BOILER PLANT EQUIPMENT | D35: 2028-06-30 | F35: 50 | G35: - | H35: S0 * | J35: -2 | L35: 187516002.4 | N35: 89627110.3 | P35: 101639212 | R35: 10.02 | T35: 10143634 | V35: =+ROUND(T35/L35*100,2) -> 5.41
A36: 314 | B36: TURBOGENERATOR UNITS | D36: 2028-06-30 | F36: 55 | G36: - | H36: R0.5 * | J36: -1 | L36: 72134310.35 | N36: 44200582.63 | P36: 28655071 | R36: 9.95 | T36: 2879907 | V36: 3.99
A37: 315 | B37: ACCESSORY ELECTRIC EQUIPMENT | D37: 2028-06-30 | F37: 65 | G37: - | H37: S0 * | J37: -2 | L37: 12511248.53 | N37: 6482958.588 | P37: 6278515 | R37: 10.2 | T37: 615541 | V37: 4.92
A38: 316 | B38: MISCELLANEOUS POWER PLANT EQUIPMENT | D38: 2028-06-30 | F38: 65 | G38: - | H38: R0.5 * | J38: 0 | L38: 3520593.83 | N38: 1720389.48 | P38: 1800204 | R38: 10.07 | T38: 178769 | V38: 5.08
B39: TOTAL MANATEE UNIT 2 | L39: =+SUBTOTAL(9,L34:L38) -> 280765366.2 | N39: =+SUBTOTAL(9,N34:N38) -> 146081406.7 | P39: =+SUBTOTAL(9,P34:P38) -> 139456679 | R39: =+P39/T39 -> 10.01564355 | T39: =+SUBTOTAL(9,T34:T38) -> 13923886 | V39: =+T39/L39*100 -> 4.959260535
A41: TOTAL MANATEE STEAM PLANT | L41: =+SUBTOTAL(9,L17:L40) -> 709649289.6 | N41: =+SUBTOTAL(9,N17:N40) -> 393484981.2 | P41: =+SUBTOTAL(9,P17:P40) -> 327333170 | R41: =+P41/T41 -> 10.04790058 | T41: =+SUBTOTAL(9,T17:T40) -> 32577270 | V41: =+T41/L41*100 -> 4.59061546
A44: MARTIN STEAM PLANT
B46: MARTIN COMMON
A47: 311 | B47: STRUCTURES AND IMPROVEMENTS | D47: 2031-06-30 | F47: 80 | G47: - | H47: R2 * | J47: -1 | L47: 241400701.3 | N47: 161452115.2 | P47: =+ROUND((100-J47)/100*L47-N47,0) -> 82362593 | R47: 13.1 | T47: =+ROUND(P47/R47,0) -> 6287221 | V47: =+ROUND(T47/L47*100,2) -> 2.6
A48: 312 | B48: BOILER PLANT EQUIPMENT | D48: 2031-06-30 | F48: 50 | G48: - | H48: S0 * | J48: -2 | L48: 7052454.52 | N48: 3063360.013 | P48: 4130144 | R48: 12.67 | T48: 325978 | V48: =+ROUND(T48/L48*100,2) -> 4.62
A49: 314 | B49: TURBOGENERATOR UNITS | D49: 2031-06-30 | F49: 55 | G49: - | H49: R0.5 * | J49: -1 | L49: 27411865.75 | N49: 15382397.12 | P49: 12303587 | R49: 12.56 | T49: 979585 | V49: 3.57
A50: 315 | B50: ACCESSORY ELECTRIC EQUIPMENT | D50: 2031-06-30 | F50: 65 | G50: - | H50: S0 * | J50: -2 | L50: 10271933.77 | N50: 5585791.271 | P50: 4891581 | R50: 12.86 | T50: 380372 | V50: 3.7
A51: 316 | B51: MISCELLANEOUS POWER PLANT EQUIPMENT | D51: 2031-06-30 | F51: 65 | G51: - | H51: R0.5 * | J51: 0 | L51: 3879628.68 | N51: 1972391.771 | P51: 1907237 | R51: 12.77 | T51: 149353 | V51: 3.85
B52: TOTAL MARTIN COMMON | L52: =+SUBTOTAL(9,L47:L51) -> 290016584.1 | N52: =+SUBTOTAL(9,N47:N51) -> 187456055.3 | P52: =+SUBTOTAL(9,P47:P51) -> 105595142 | R52: =+P52/T52 -> 13.00031086 | T52: =+SUBTOTAL(9,T47:T51) -> 8122509 | V52: =+T52/L52*100 -> 2.80070501
B54: MARTIN PIPELINE
A55: 312 | B55: BOILER PLANT EQUIPMENT | D55: 2031-06-30 | F55: 50 | G55: - | H55: S0 * | J55: 0 | L55: 370941.56 | N55: 370941.56 | P55: =+ROUND((100-J55)/100*L55-N55,0) -> 0 | R55: 12.21 | T55: =+ROUND(P55/R55,0) -> 0 | V55: =+ROUND(T55/L55*100,2) -> 0
B56: TOTAL MARTIN PIPELINE | L56: =+SUBTOTAL(9,L55:L55) -> 370941.56 | N56: =+SUBTOTAL(9,N55:N55) -> 370941.56 | P56: =+SUBTOTAL(9,P55:P55) -> 0 | T56: =+SUBTOTAL(9,T55:T55) -> 0
B58: MARTIN UNIT 1
A59: 311 | B59: STRUCTURES AND IMPROVEMENTS | D59: 2031-06-30 | F59: 80 | G59: - | H59: R2 * | J59: -1 | L59: 16367428.14 | N59: 10593608.28 | P59: =+ROUND((100-J59)/100*L59-N59,0) -> 5937494 | R59: 13.09 | T59: =+ROUND(P59/R59,0) -> 453590 | V59: =+ROUND(T59/L59*100,2) -> 2.77
A60: 312 | B60: BOILER PLANT EQUIPMENT | D60: 2031-06-30 | F60: 50 | G60: - | H60: S0 * | J60: -2 | L60: 212347650.8 | N60: 91195079.78 | P60: 125399524 | R60: 12.56 | T60: 9984039 | V60: =+ROUND(T60/L60*100,2) -> 4.7
A61: 314 | B61: TURBOGENERATOR UNITS | D61: 2031-06-30 | F61: 55 | G61: - | H61: R0.5 * | J61: -1 | L61: 89915729.92 | N61: 52042195.83 | P61: 38772691 | R61: 12.57 | T61: 3084542 | V61: 3.43
A62: 315 | B62: ACCESSORY ELECTRIC EQUIPMENT | D62: 2031-06-30 | F62: 65 | G62: - | H62: S0 * | J62: -2 | L62: 24335747.45 | N62: 14796848.53 | P62: 10025614 | R62: 12.81 | T62: 782640 | V62: 3.22
A63: 316 | B63: MISCELLANEOUS POWER PLANT EQUIPMENT | D63: 2031-06-30 | F63: 65 | G63: - | H63: R0.5 * | J63: 0 | L63: 3586002.99 | N63: 1812805.457 | P63: 1773198 | R63: 12.78 | T63: 138748 | V63: 3.87
B64: TOTAL MARTIN UNIT 1 | L64: =+SUBTOTAL(9,L59:L63) -> 346552559.3 | N64: =+SUBTOTAL(9,N59:N63) -> 170440537.9 | P64: =+SUBTOTAL(9,P59:P63) -> 181908521 | R64: =+P64/T64 -> 12.59443888 | T64: =+SUBTOTAL(9,T59:T63) -> 14443559 | V64: =+T64/L64*100 -> 4.1677831
B66: MARTIN UNIT 2
A67: 311 | B67: STRUCTURES AND IMPROVEMENTS | D67: 2031-06-30 | F67: 80 | G67: - | H67: R2 * | J67: -1 | L67: 11241256.67 | N67: 7751660.291 | P67: =+ROUND((100-J67)/100*L67-N67,0) -> 3602009 | R67: 13.05 | T67: =+ROUND(P67/R67,0) -> 276016 | V67: =+ROUND(T67/L67*100,2) -> 2.46
A68: 312 | B68: BOILER PLANT EQUIPMENT | D68: 2031-06-30 | F68: 50 | G68: - | H68: S0 * | J68: -2 | L68: 214665917.3 | N68: 88354501.53 | P68: 130604734 | R68: 12.59 | T68: 10373688 | V68: =+ROUND(T68/L68*100,2) -> 4.83
A69: 314 | B69: TURBOGENERATOR UNITS | D69: 2031-06-30 | F69: 55 | G69: - | H69: R0.5 * | J69: -1 | L69: 82668790.6 | N69: 31513006.1 | P69: 51982472 | R69: 12.64 | T69: 4112537 | V69: 4.97
A70: 315 | B70: ACCESSORY ELECTRIC EQUIPMENT | D70: 2031-06-30 | F70: 65 | G70: - | H70: S0 * | J70: -2 | L70: 22992822.89 | N70: 12504334.39 | P70: 10948345 | R70: 12.9 | T70: 848709 | V70: 3.69
A71: 316 | B71: MISCELLANEOUS POWER PLANT EQUIPMENT | D71: 2031-06-30 | F71: 65 | G71: - | H71: R0.5 * | J71: 0 | L71: 3273365.34 | N71: 1424240.871 | P71: 1849124 | R71: 12.81 | T71: 144350 | V71: 4.41
B72: TOTAL MARTIN UNIT 2 | L72: =+SUBTOTAL(9,L67:L71) -> 334842152.8 | N72: =+SUBTOTAL(9,N67:N71) -> 141547743.2 | P72: =+SUBTOTAL(9,P67:P71) -> 198986684 | R72: =+P72/T72 -> 12.62982514 | T72: =+SUBTOTAL(9,T67:T71) -> 15755300 | V72: =+T72/L72*100 -> 4.705291693
A74: TOTAL MARTIN STEAM PLANT | L74: =+SUBTOTAL(9,L46:L73) -> 971782237.7 | N74: =+SUBTOTAL(9,N46:N73) -> 499815278 | P74: =+SUBTOTAL(9,P46:P73) -> 486490347 | R74: =+P74/T74 -> 12.69501514 | T74: =+SUBTOTAL(9,T46:T73) -> 38321368 | V74: =+T74/L74*100 -> 3.943411035
A77: SCHERER STEAM PLANT
B79: SCHERER COAL CARS
A80: 312 | B80: BOILER PLANT EQUIPMENT | D80: 2039-06-30 | F80: 50 | G80: - | H80: S0 * | J80: 0 | L80: 33149442.2 | N80: 33149442.2 | P80: =+ROUND((100-J80)/100*L80-N80,0) -> 0 | R80: 18.45 | T80: =+ROUND(P80/R80,0) -> 0 | V80: =+ROUND(T80/L80*100,2) -> 0
B81: TOTAL SCHERER COAL CARS | L81: =+SUBTOTAL(9,L80:L80) -> 33149442.2 | N81: =+SUBTOTAL(9,N80:N80) -> 33149442.2 | P81: =+SUBTOTAL(9,P80:P80) -> 0 | R81: =+R80 -> 18.45 | T81: =+SUBTOTAL(9,T80:T80) -> 0 | V81: =+T81/L81*100 -> 0
B83: SCHERER COMMON
A84: 311 | B84: STRUCTURES AND IMPROVEMENTS | D84: 2039-06-30 | F84: 80 | G84: - | H84: R2 * | J84: -1 | L84: 40048942.61 | N84: 21435438.49 | P84: =+ROUND((100-J84)/100*L84-N84,0) -> 19013994 | R84: 20.68 | T84: =+ROUND(P84/R84,0) -> 919439 | V84: =+ROUND(T84/L84*100,2) -> 2.3
A85: 312 | B85: BOILER PLANT EQUIPMENT | D85: 2039-06-30 | F85: 50 | G85: - | H85: S0 * | J85: -4 | L85: 26275279.31 | N85: 12672089.54 | P85: 14654201 | R85: 18.59 | T85: 788284 | V85: =+ROUND(T85/L85*100,2) -> 3
A86: 314 | B86: TURBOGENERATOR UNITS | D86: 2039-06-30 | F86: 55 | G86: - | H86: R0.5 * | J86: -1 | L86: 4409078.75 | N86: 1937291.35 | P86: 2515878 | R86: 19.12 | T86: 131584 | V86: 2.98
A87: 315 | B87: ACCESSORY ELECTRIC EQUIPMENT | D87: 2039-06-30 | F87: 65 | G87: - | H87: S0 * | J87: -3 | L87: 1246717.64 | N87: 704489.4484 | P87: 579630 | R87: 19.42 | T87: 29847 | V87: 2.39
A88: 316 | B88: MISCELLANEOUS POWER PLANT EQUIPMENT | D88: 2039-06-30 | F88: 65 | G88: - | H88: R0.5 * | J88: -1 | L88: 3720891.68 | N88: 1817682.14 | P88: 1940418 | R88: 19.66 | T88: 98699 | V88: 2.65
B89: TOTAL SCHERER COMMON | L89: =+SUBTOTAL(9,L84:L88) -> 75700909.99 | N89: =+SUBTOTAL(9,N84:N88) -> 38566990.96 | P89: =+SUBTOTAL(9,P84:P88) -> 38704121 | R89: =+P89/T89 -> 19.66819727 | T89: =+SUBTOTAL(9,T84:T88) -> 1967853 | V89: =+T89/L89*100 -> 2.599510363
B91: SCHERER COMMON UNIT 3 AND 4
A92: 311 | B92: STRUCTURES AND IMPROVEMENTS | D92: 2039-06-30 | F92: 80 | G92: - | H92: R2 * | J92: -1 | L92: 3049496.26 | N92: 1704572.549 | P92: =+ROUND((100-J92)/100*L92-N92,0) -> 1375419 | R92: 20.64 | T92: =+ROUND(P92/R92,0) -> 66639 | V92: =+ROUND(T92/L92*100,2) -> 2.19
A93: 312 | B93: BOILER PLANT EQUIPMENT | D93: 2039-06-30 | F93: 50 | G93: - | H93: S0 * | J93: -4 | L93: 22708657.52 | N93: 10156497.58 | P93: 13460506 | R93: 18.81 | T93: 715604 | V93: 3.15
A94: 314 | B94: TURBOGENERATOR UNITS | D94: 2039-06-30 | F94: 55 | G94: - | H94: R0.5 * | J94: -1 | L94: 2878397.99 | N94: 294184.2446 | P94: 2612998 | R94: 19.7 | T94: 132639 | V94: 4.61
A95: 315 | B95: ACCESSORY ELECTRIC EQUIPMENT | D95: 2039-06-30 | F95: 65 | G95: - | H95: S0 * | J95: -3 | L95: 2865604.55 | N95: 303886.8386 | P95: 2647686 | R95: 20.52 | T95: 129030 | V95: 4.5
B96: TOTAL SCHERER COMMON UNIT 3 AND 4 | L96: =+SUBTOTAL(9,L92:L95) -> 31502156.32 | N96: =+SUBTOTAL(9,N92:N95) -> 12459141.21 | P96: =+SUBTOTAL(9,P92:P95) -> 20096609 | R96: =+P96/T96 -> 19.25124819 | T96: =+SUBTOTAL(9,T92:T95) -> 1043912 | V96: =+T96/L96*100 -> 3.313779506
B98: SCHERER UNIT 4
A99: 311 | B99: STRUCTURES AND IMPROVEMENTS | D99: 2039-06-30 | F99: 80 | G99: - | H99: R2 * | J99: -1 | L99: 161759187.5 | N99: 42338154.11 | P99: =+ROUND((100-J99)/100*L99-N99,0) -> 121038625 | R99: 20.93 | T99: =+ROUND(P99/R99,0) -> 5783021 | V99: =+ROUND(T99/L99*100,2) -> 3.58
A100: 312 | B100: BOILER PLANT EQUIPMENT | D100: 2039-06-30 | F100: 50 | G100: - | H100: S0 * | J100: -4 | L100: 682720321.1 | N100: 193672542.1 | P100: 516356592 | R100: 19.31 | T100: 26740372 | V100: 3.92
A101: 314 | B101: TURBOGENERATOR UNITS | D101: 2039-06-30 | F101: 55 | G101: - | H101: R0.5 * | J101: -1 | L101: 124903380.6 | N101: 61685842.93 | P101: 64466572 | R101: 19.09 | T101: 3376981 | V101: 2.7
A102: 315 | B102: ACCESSORY ELECTRIC EQUIPMENT | D102: 2039-06-30 | F102: 65 | G102: - | H102: S0 * | J102: -3 | L102: 50198263.53 | N102: 15152820.55 | P102: 36551391 | R102: 20.07 | T102: 1821195 | V102: 3.63
A103: 316 | B103: MISCELLANEOUS POWER PLANT EQUIPMENT | D103: 2039-06-30 | F103: 65 | G103: - | H103: R0.5 * | J103: -1 | L103: 5202651.35 | N103: 2391381.315 | P103: 2863297 | R103: 19.78 | T103: 144757 | V103: 2.78
B104: TOTAL SCHERER UNIT 4 | L104: =+SUBTOTAL(9,L99:L103) -> 1024783804 | N104: =+SUBTOTAL(9,N99:N103) -> 315240741 | P104: =+SUBTOTAL(9,P99:P103) -> 741276477 | R104: =+P104/T104 -> 19.57613942 | T104: =+SUBTOTAL(9,T99:T103) -> 37866326 | V104: =+T104/L104*100 -> 3.695055079
A106: TOTAL SCHERER STEAM PLANT | L106: =+SUBTOTAL(9,L78:L105) -> 1165136313 | N106: =+SUBTOTAL(9,N78:N105) -> 399416315.4 | P106: =+SUBTOTAL(9,P78:P105) -> 800077207 | R106: =+P106/T106 -> 19.57227423 | T106: =+SUBTOTAL(9,T78:T105) -> 40878091 | V106: =+T106/L106*100 -> 3.508438503
A109: SJRPP STEAM PLANT
B111: SJRPP COAL AND LIMESTONE
A112: 311 | B112: STRUCTURES AND IMPROVEMENTS | D112: 2038-06-30 | F112: 80 | G112: - | H112: R2 * | J112: -1 | L112: 3538785.86 | N112: 1868163.03 | P112: =+ROUND((100-J112)/100*L112-N112,0) -> 1706011 | R112: 19.55 | T112: =+ROUND(P112/R112,0) -> 87264 | V112: =+ROUND(T112/L112*100,2) -> 2.47
A113: 312 | B113: BOILER PLANT EQUIPMENT | D113: 2038-06-30 | F113: 50 | G113: - | H113: S0 * | J113: -4 | L113: 30678751.75 | N113: 15854784.62 | P113: 16051117 | R113: 17.23 | T113: 931580 | V113: 3.04
A114: 315 | B114: ACCESSORY ELECTRIC EQUIPMENT | D114: 2038-06-30 | F114: 65 | G114: - | H114: S0 * | J114: -3 | L114: 3748249.87 | N114: 2207826.06 | P114: =+ROUND((100-J114)/100*L114-N114,0) -> 1652871 | R114: 18.35 | T114: =+ROUND(P114/R114,0) -> 90075 | V114: =+ROUND(T114/L114*100,2) -> 2.4
A115: 316 | B115: MISCELLANEOUS POWER PLANT EQUIPMENT | D115: 2038-06-30 | F115: 65 | G115: - | H115: R0.5 * | J115: -1 | L115: 298312.17 | N115: 167024.57 | P115: 134271 | R115: 18.5 | T115: 7258 | V115: 2.43
B116: TOTAL SJRPP COAL AND LIMESTONE | L116: =+SUBTOTAL(9,L112:L115) -> 38264099.65 | N116: =+SUBTOTAL(9,N112:N115) -> 20097798.28 | P116: =+SUBTOTAL(9,P112:P115) -> 19544270 | R116: =+P116/T116 -> 17.51000961 | T116: =+SUBTOTAL(9,T112:T115) -> 1116177 | V116: =+T116/L116*100 -> 2.917034532
B118: SJRPP COAL CARS
A119: 312 | B119: BOILER PLANT EQUIPMENT | D119: 2038-06-30 | F119: 50 | G119: - | H119: S0 * | J119: 0 | L119: 52104.91 | N119: 52104.93 | P119: =+ROUND((100-J119)/100*L119-N119,0) -> 0 | R119: 17.1 | T119: =+ROUND(P119/R119,0) -> 0 | V119: =+ROUND(T119/L119*100,2) -> 0
B120: TOTAL SJRPP COAL CARS | L120: =+SUBTOTAL(9,L119:L119) -> 52104.91 | N120: =+SUBTOTAL(9,N119:N119) -> 52104.93 | P120: =+SUBTOTAL(9,P119:P119) -> 0 | R120: =+R119 -> 17.1 | T120: =+SUBTOTAL(9,T119:T119) -> 0 | V120: =+T120/L120*100 -> 0
B122: SJRPP COMMON
A123: 311 | B123: STRUCTURES AND IMPROVEMENTS | D123: 2038-06-30 | F123: 80 | G123: - | H123: R2 * | J123: -1 | L123: 33324990.64 | N123: 22656891.85 | P123: =+ROUND((100-J123)/100*L123-N123,0) -> 11001349 | R123: 19.62 | T123: =+ROUND(P123/R123,0) -> 560721 | V123: =+ROUND(T123/L123*100,2) -> 1.68
A124: 312 | B124: BOILER PLANT EQUIPMENT | D124: 2038-06-30 | F124: 50 | G124: - | H124: S0 * | J124: -4 | L124: 3714735.93 | N124: 2636058.376 | P124: 1227267 | R124: 17.48 | T124: 70210 | V124: 1.89
A125: 314 | B125: TURBOGENERATOR UNITS | D125: 2038-06-30 | F125: 55 | G125: - | H125: R0.5 * | J125: -1 | L125: 2511326.32 | N125: 1735625.518 | P125: 800814 | R125: 17.97 | T125: 44564 | V125: 1.77
A126: 315 | B126: ACCESSORY ELECTRIC EQUIPMENT | D126: 2038-06-30 | F126: 65 | G126: - | H126: S0 * | J126: -3 | L126: 5865106.8 | N126: 4091638.225 | P126: 1949422 | R126: 18.46 | T126: 105602 | V126: 1.8
A127: 316 | B127: MISCELLANEOUS POWER PLANT EQUIPMENT | D127: 2038-06-30 | F127: 65 | G127: - | H127: R0.5 * | J127: -1 | L127: 1607470.4 | N127: 1035942.652 | P127: 587602 | R127: 18.68 | T127: 31456 | V127: 1.96
B128: TOTAL SJRPP COMMON | L128: =+SUBTOTAL(9,L123:L127) -> 47023630.09 | N128: =+SUBTOTAL(9,N123:N127) -> 32156156.62 | P128: =+SUBTOTAL(9,P123:P127) -> 15566454 | R128: =+P128/T128 -> 19.15746296 | T128: =+SUBTOTAL(9,T123:T127) -> 812553 | V128: =+T128/L128*100 -> 1.727967404
B130: SJRPP GYPSUM AND ASH
A131: 311 | B131: STRUCTURES AND IMPROVEMENTS | D131: 2038-06-30 | F131: 80 | G131: - | H131: R2 * | J131: -1 | L131: 2158590.42 | N131: 1153359.85 | P131: =+ROUND((100-J131)/100*L131-N131,0) -> 1026816 | R131: 19.61 | T131: =+ROUND(P131/R131,0) -> 52362 | V131: =+ROUND(T131/L131*100,2) -> 2.43
A132: 312 | B132: BOILER PLANT EQUIPMENT | D132: 2038-06-30 | F132: 50 | G132: - | H132: S0 * | J132: -4 | L132: 16972047.61 | N132: 9823710.95 | P132: 7827219 | R132: 17.12 | T132: 457197 | V132: 2.69
A133: 315 | B133: ACCESSORY ELECTRIC EQUIPMENT | D133: 2038-06-30 | F133: 65 | G133: - | H133: S0 * | J133: -3 | L133: 52222.78 | N133: 32590.69 | P133: =+ROUND((100-J133)/100*L133-N133,0) -> 21199 | R133: 18.5 | T133: =+ROUND(P133/R133,0) -> 1146 | V133: =+ROUND(T133/L133*100,2) -> 2.19
A134: 316 | B134: MISCELLANEOUS POWER PLANT EQUIPMENT | D134: 2038-06-30 | F134: 65 | G134: - | H134: R0.5 * | J134: -1 | L134: 153865.69 | N134: 67155.16 | P134: 88249 | R134: 18.79 | T134: 4697 | V134: 3.05
B135: TOTAL SJRPP GYPSUM AND ASH | L135: =+SUBTOTAL(9,L131:L134) -> 19336726.5 | N135: =+SUBTOTAL(9,N131:N134) -> 11076816.65 | P135: =+SUBTOTAL(9,P131:P134) -> 8963483 | R135: =+P135/T135 -> 17.39124606 | T135: =+SUBTOTAL(9,T131:T134) -> 515402 | V135: =+T135/L135*100 -> 2.665404612
B137: SJRPP UNIT 1
A138: 311 | B138: STRUCTURES AND IMPROVEMENTS | D138: 2038-06-30 | F138: 80 | G138: - | H138: R2 * | J138: -1 | L138: 9098352.49 | N138: 6630362.909 | P138: =+ROUND((100-J138)/100*L138-N138,0) -> 2558973 | R138: 19.54 | T138: =+ROUND(P138/R138,0) -> 130961 | V138: =+ROUND(T138/L138*100,2) -> 1.44
A139: 312 | B139: BOILER PLANT EQUIPMENT | D139: 2038-06-30 | F139: 50 | G139: - | H139: S0 * | J139: -4 | L139: 100163071.9 | N139: 52036604.99 | P139: 52132990 | R139: 17.77 | T139: 2933764 | V139: 2.93
A140: 314 | B140: TURBOGENERATOR UNITS | D140: 2038-06-30 | F140: 55 | G140: - | H140: R0.5 * | J140: -1 | L140: 31632809.4 | N140: 15898435.54 | P140: 16050702 | R140: 18.38 | T140: 873270 | V140: 2.76
A141: 315 | B141: ACCESSORY ELECTRIC EQUIPMENT | D141: 2038-06-30 | F141: 65 | G141: - | H141: S0 * | J141: -3 | L141: 12543007.01 | N141: 8124525.988 | P141: 4794771 | R141: 18.55 | T141: 258478 | V141: 2.06
A142: 316 | B142: MISCELLANEOUS POWER PLANT EQUIPMENT | D142: 2038-06-30 | F142: 65 | G142: - | H142: R0.5 * | J142: -1 | L142: 2049400.34 | N142: 1428937.052 | P142: 640957 | R142: 18.58 | T142: 34497 | V142: 1.68
B143: TOTAL SJRPP UNIT 1 | L143: =+SUBTOTAL(9,L138:L142) -> 155486641.2 | N143: =+SUBTOTAL(9,N138:N142) -> 84118866.48 | P143: =+SUBTOTAL(9,P138:P142) -> 76178393 | R143: =+P143/T143 -> 18.00494757 | T143: =+SUBTOTAL(9,T138:T142) -> 4230970 | V143: =+T143/L143*100 -> 2.721114797
B145: SJRPP UNIT 2
A146: 311 | B146: STRUCTURES AND IMPROVEMENTS | D146: 2038-06-30 | F146: 80 | G146: - | H146: R2 * | J146: -1 | L146: 7123662.16 | N146: 4212841.51 | P146: =+ROUND((100-J146)/100*L146-N146,0) -> 2982057 | R146: 19.51 | T146: =+ROUND(P146/R146,0) -> 152848 | V146: =+ROUND(T146/L146*100,2) -> 2.15
A147: 312 | B147: BOILER PLANT EQUIPMENT | D147: 2038-06-30 | F147: 50 | G147: - | H147: S0 * | J147: -4 | L147: 89481418.8 | N147: 41170858.05 | P147: 51889818 | R147: 17.76 | T147: 2921724 | V147: 3.27
A148: 314 | B148: TURBOGENERATOR UNITS | D148: 2038-06-30 | F148: 55 | G148: - | H148: R0.5 * | J148: -1 | L148: 28267581.84 | N148: 11215912.66 | P148: 17334345 | R148: 18.38 | T148: 943109 | V148: 3.34
A149: 315 | B149: ACCESSORY ELECTRIC EQUIPMENT | D149: 2038-06-30 | F149: 65 | G149: - | H149: S0 * | J149: -3 | L149: 10030603.41 | N149: 5480957.91 | P149: 4850564 | R149: 18.44 | T149: 263046 | V149: 2.62
A150: 316 | B150: MISCELLANEOUS POWER PLANT EQUIPMENT | D150: 2038-06-30 | F150: 65 | G150: - | H150: R0.5 * | J150: -1 | L150: 1560108.42 | N150: 895106.18 | P150: 680603 | R150: 18.6 | T150: 36592 | V150: 2.35
B151: TOTAL SJRPP UNIT 2 | L151: =+SUBTOTAL(9,L146:L150) -> 136463374.6 | N151: =+SUBTOTAL(9,N146:N150) -> 62975676.31 | P151: =+SUBTOTAL(9,P146:P150) -> 77737387 | R151: =+P151/T151 -> 18.00594003 | T151: =+SUBTOTAL(9,T146:T150) -> 4317319 | V151: =+T151/L151*100 -> 3.163719944
A153: TOTAL SJRPP STEAM PLANT | L153: =+SUBTOTAL(9,L111:L152) -> 396626576.9 | N153: =+SUBTOTAL(9,N111:N152) -> 210477419.3 | P153: =+SUBTOTAL(9,P111:P152) -> 197989987 | R153: =+P153/T153 -> 18.01149965 | T153: =+SUBTOTAL(9,T111:T152) -> 10992421 | V153: =+T153/L153*100 -> 2.771478675
A155: TOTAL STEAM PRODUCTION | L155: =+SUBTOTAL(9,L15:L154) -> 3243194417 | N155: =+SUBTOTAL(9,N15:N154) -> 1503193994 | P155: =+SUBTOTAL(9,P15:P154) -> 1811890711 | R155: =+P155/T155 -> 14.75851801 | T155: =+SUBTOTAL(9,T15:T154) -> 122769150 | V155: =+T155/L155*100 -> 3.785439114
A158: NUCLEAR PRODUCTION PLANT
A160: ST. LUCIE NUCLEAR PLANT
B162: ST. LUCIE COMMON
A163: 321 | B163: STRUCTURES AND IMPROVEMENTS | D163: 2043-04-30 | F163: 100 | G163: - | H163: R1.5 * | J163: -1 | L163: 397119195.7 | N163: 177004049.9 | P163: =+ROUND((100-J163)/100*L163-N163,0) -> 224086338 | R163: 24.26 | T163: =+ROUND(P163/R163,0) -> 9236865 | V163: =+ROUND(T163/L163*100,2) -> 2.33
A164: 322 | B164: REACTOR PLANT EQUIPMENT | D164: 2043-04-30 | F164: 60 | G164: - | H164: R1 * | J164: -2 | L164: 55584106.71 | N164: 31607489.04 | P164: 25088300 | R164: 22.87 | T164: 1096996 | V164: 1.97
A165: 323 | B165: TURBOGENERATOR UNITS | D165: 2043-04-30 | F165: 45 | G165: - | H165: R0.5 * | J165: 0 | L165: 12406915.97 | N165: -7437953.893 | P165: 19844870 | R165: 21.52 | T165: 922159 | V165: 7.43
A166: 324 | B166: ACCESSORY ELECTRIC EQUIPMENT | D166: 2043-04-30 | F166: 75 | G166: - | H166: R2.5 * | J166: -1 | L166: 34379625.87 | N166: 16953508.44 | P166: 17769914 | R166: 23.89 | T166: 743822 | V166: 2.16
A167: 325 | B167: MISCELLANEOUS POWER PLANT EQUIPMENT | D167: 2043-04-30 | F167: 50 | G167: - | H167: R1.5 * | J167: -3 | L167: 20728940.61 | N167: 2303180.018 | P167: 19047629 | R167: 21.93 | T167: 868565 | V167: 4.19
B168: TOTAL ST. LUCIE COMMON | L168: =+SUBTOTAL(9,L163:L167) -> 520218784.8 | N168: =+SUBTOTAL(9,N163:N167) -> 220430273.5 | P168: =+SUBTOTAL(9,P163:P167) -> 305837051 | R168: =+P168/T168 -> 23.76650435 | T168: =+SUBTOTAL(9,T163:T167) -> 12868407 | V168: =+T168/L168*100 -> 2.473652889
B170: ST. LUCIE UNIT 1
A171: 321 | B171: STRUCTURES AND IMPROVEMENTS | D171: 2036-03-31 | F171: 100 | G171: - | H171: R1.5 * | J171: -1 | L171: 196854866.3 | N171: 101666895.5 | P171: =+ROUND((100-J171)/100*L171-N171,0) -> 97156519 | R171: 17.73 | T171: =+ROUND(P171/R171,0) -> 5479781 | V171: =+ROUND(T171/L171*100,2) -> 2.78
A172: 322 | B172: REACTOR PLANT EQUIPMENT | D172: 2036-03-31 | F172: 60 | G172: - | H172: R1 * | J172: -2 | L172: 845363775 | N172: 303976050.3 | P172: 558295000 | R172: 17.11 | T172: 32629749 | V172: 3.86
A173: 323 | B173: TURBOGENERATOR UNITS | D173: 2036-03-31 | F173: 45 | G173: - | H173: R0.5 * | J173: 0 | L173: 413333703.6 | N173: 56813276.81 | P173: 356520427 | R173: 16.48 | T173: 21633521 | V173: 5.23
A174: 324 | B174: ACCESSORY ELECTRIC EQUIPMENT | D174: 2036-03-31 | F174: 75 | G174: - | H174: R2.5 * | J174: -1 | L174: 120786348.1 | N174: 50666362.97 | P174: 71327849 | R174: 17.74 | T174: 4020736 | V174: 3.33
A175: 325 | B175: MISCELLANEOUS POWER PLANT EQUIPMENT | D175: 2036-03-31 | F175: 50 | G175: - | H175: R1.5 * | J175: -3 | L175: 11438745.22 | N175: 7097019.395 | P175: 4684888 | R175: 15.22 | T175: 307811 | V175: 2.69
B176: TOTAL ST. LUCIE UNIT 1 | L176: =+SUBTOTAL(9,L171:L175) -> 1587777438 | N176: =+SUBTOTAL(9,N171:N175) -> 520219605 | P176: =+SUBTOTAL(9,P171:P175) -> 1087984683 | R176: =+P176/T176 -> 16.98076397 | T176: =+SUBTOTAL(9,T171:T175) -> 64071598 | V176: =+T176/L176*100 -> 4.035300947
B178: ST. LUCIE UNIT 2
A179: 321 | B179: STRUCTURES AND IMPROVEMENTS | D179: 2043-04-30 | F179: 100 | G179: - | H179: R1.5 * | J179: -1 | L179: 298911837.3 | N179: 133449792.7 | P179: =+ROUND((100-J179)/100*L179-N179,0) -> 168451163 | R179: 24.24 | T179: =+ROUND(P179/R179,0) -> 6949305 | V179: =+ROUND(T179/L179*100,2) -> 2.32
A180: 322 | B180: REACTOR PLANT EQUIPMENT | D180: 2043-04-30 | F180: 60 | G180: - | H180: R1 * | J180: -2 | L180: 1057336501 | N180: 401479217 | P180: 677004014 | R180: 22.86 | T180: 29615224 | V180: 2.8
A181: 323 | B181: TURBOGENERATOR UNITS | D181: 2043-04-30 | F181: 45 | G181: - | H181: R0.5 * | J181: 0 | L181: 350466490.1 | N181: 54374394.01 | P181: 296092096 | R181: 21.65 | T181: 13676309 | V181: 3.9
A182: 324 | B182: ACCESSORY ELECTRIC EQUIPMENT | D182: 2043-04-30 | F182: 75 | G182: - | H182: R2.5 * | J182: -1 | L182: 189637024.6 | N182: 86957686.15 | P182: 104575709 | R182: 23.78 | T182: 4397633 | V182: 2.32
A183: 325 | B183: MISCELLANEOUS POWER PLANT EQUIPMENT | D183: 2043-04-30 | F183: 50 | G183: - | H183: R1.5 * | J183: -3 | L183: 24225433.39 | N183: 11438959.96 | P183: 13513236 | R183: 20.11 | T183: 671966 | V183: 2.77
B184: TOTAL ST. LUCIE UNIT 2 | L184: =+SUBTOTAL(9,L179:L183) -> 1920577286 | N184: =+SUBTOTAL(9,N179:N183) -> 687700049.8 | P184: =+SUBTOTAL(9,P179:P183) -> 1259636218 | R184: =+P184/T184 -> 22.77393357 | T184: =+SUBTOTAL(9,T179:T183) -> 55310437 | V184: =+T184/L184*100 -> 2.879886032
A186: TOTAL ST. LUCIE NUCLEAR PLANT | L186: =+SUBTOTAL(9,L163:L185) -> 4028573509 | N186: =+SUBTOTAL(9,N163:N185) -> 1428349928 | P186: =+SUBTOTAL(9,P163:P185) -> 2653457952 | R186: =+P186/T186 -> 20.06388721 | T186: =+SUBTOTAL(9,T163:T185) -> 132250442 | V186: =+T186/L186*100 -> 3.282810694
A189: TURKEY POINT NUCLEAR PLANT
B191: TURKEY POINT COMMON
A192: 321 | B192: STRUCTURES AND IMPROVEMENTS | D192: 2033-04-30 | F192: 100 | G192: - | H192: R1.5 * | J192: -1 | L192: 380704673.4 | N192: 186854084 | P192: =+ROUND((100-J192)/100*L192-N192,0) -> 197657636 | R192: 15.03 | T192: =+ROUND(P192/R192,0) -> 13150874 | V192: =+ROUND(T192/L192*100,2) -> 3.45
A193: 322 | B193: REACTOR PLANT EQUIPMENT | D193: 2033-04-30 | F193: 60 | G193: - | H193: R1 * | J193: -2 | L193: 144884580.2 | N193: 25644014.41 | P193: 122138257 | R193: 14.66 | T193: 8331395 | V193: 5.75
A194: 323 | B194: TURBOGENERATOR UNITS | D194: 2033-04-30 | F194: 45 | G194: - | H194: R0.5 * | J194: 0 | L194: 22821885.52 | N194: 5761406.509 | P194: 17060479 | R194: 14.07 | T194: 1212543 | V194: 5.31
A195: 324 | B195: ACCESSORY ELECTRIC EQUIPMENT | D195: 2033-04-30 | F195: 75 | G195: - | H195: R2.5 * | J195: -1 | L195: 56769857.59 | N195: 34483979.7 | P195: 22853576 | R195: 15.03 | T195: 1520531 | V195: 2.68
A196: 325 | B196: MISCELLANEOUS POWER PLANT EQUIPMENT | D196: 2033-04-30 | F196: 50 | G196: - | H196: R1.5 * | J196: -3 | L196: 39215641.06 | N196: 17765783.16 | P196: 22626327 | R196: 14.44 | T196: 1566920 | V196: 4
B197: TOTAL TURKEY POINT COMMON | L197: =+SUBTOTAL(9,L192:L196) -> 644396637.8 | N197: =+SUBTOTAL(9,N192:N196) -> 270509267.8 | P197: =+SUBTOTAL(9,P192:P196) -> 382336275 | R197: =+P197/T197 -> 14.82943041 | T197: =+SUBTOTAL(9,T192:T196) -> 25782263 | V197: =+T197/L197*100 -> 4.000992787
B199: TURKEY POINT UNIT 3
A200: 321 | B200: STRUCTURES AND IMPROVEMENTS | D200: 2032-07-31 | F200: 100 | G200: - | H200: R1.5 * | J200: -1 | L200: 185601316.1 | N200: 40968914.85 | P200: =+ROUND((100-J200)/100*L200-N200,0) -> 146488414 | R200: 14.34 | T200: =+ROUND(P200/R200,0) -> 10215371 | V200: =+ROUND(T200/L200*100,2) -> 5.5
A201: 322 | B201: REACTOR PLANT EQUIPMENT | D201: 2032-07-31 | F201: 60 | G201: - | H201: R1 * | J201: -2 | L201: 595235354.2 | N201: 176726668.3 | P201: 430413393 | R201: 13.91 | T201: 30942731 | V201: 5.2
A202: 323 | B202: TURBOGENERATOR UNITS | D202: 2032-07-31 | F202: 45 | G202: - | H202: R0.5 * | J202: 0 | L202: 758820503.5 | N202: 99120406.05 | P202: 659700097 | R202: 13.53 | T202: 48758322 | V202: 6.43
A203: 324 | B203: ACCESSORY ELECTRIC EQUIPMENT | D203: 2032-07-31 | F203: 75 | G203: - | H203: R2.5 * | J203: -1 | L203: 153810947.6 | N203: 73799056.88 | P203: 81550000 | R203: 14.32 | T203: 5694832 | V203: 3.7
A204: 325 | B204: MISCELLANEOUS POWER PLANT EQUIPMENT | D204: 2032-07-31 | F204: 50 | G204: - | H204: R1.5 * | J204: -3 | L204: 16088187.86 | N204: 890396.5208 | P204: 15680437 | R204: 13.93 | T204: 1125660 | V204: 7
B205: TOTAL TURKEY POINT UNIT 3 | L205: =+SUBTOTAL(9,L200:L204) -> 1709556309 | N205: =+SUBTOTAL(9,N200:N204) -> 391505442.6 | P205: =+SUBTOTAL(9,P200:P204) -> 1333832341 | R205: =+P205/T205 -> 13.78824544 | T205: =+SUBTOTAL(9,T200:T204) -> 96736916 | V205: =+T205/L205*100 -> 5.658597817
B207: TURKEY POINT UNIT 4
A208: 321 | B208: STRUCTURES AND IMPROVEMENTS | D208: 2033-04-30 | F208: 100 | G208: - | H208: R1.5 * | J208: -1 | L208: 129681129.7 | N208: 50771974.78 | P208: =+ROUND((100-J208)/100*L208-N208,0) -> 80205966 | R208: 15.04 | T208: =+ROUND(P208/R208,0) -> 5332843 | V208: =+ROUND(T208/L208*100,2) -> 4.11
A209: 322 | B209: REACTOR PLANT EQUIPMENT | D209: 2033-04-30 | F209: 60 | G209: - | H209: R1 * | J209: -2 | L209: 518893110.5 | N209: 190785223.5 | P209: 338485749 | R209: 14.58 | T209: 23215758 | V209: 4.47
A210: 323 | B210: TURBOGENERATOR UNITS | D210: 2033-04-30 | F210: 45 | G210: - | H210: R0.5 * | J210: 0 | L210: 601429270.4 | N210: 92161742.46 | P210: 509267528 | R210: 14.16 | T210: 35965221 | V210: 5.98
A211: 324 | B211: ACCESSORY ELECTRIC EQUIPMENT | D211: 2033-04-30 | F211: 75 | G211: - | H211: R2.5 * | J211: -1 | L211: 177722654 | N211: 105343398.3 | P211: 74156482 | R211: 14.98 | T211: 4950366 | V211: 2.79
A212: 325 | B212: MISCELLANEOUS POWER PLANT EQUIPMENT | D212: 2033-04-30 | F212: 50 | G212: - | H212: R1.5 * | J212: -3 | L212: 12121306.1 | N212: 279921.0715 | P212: 12205024 | R212: 14.57 | T212: 837682 | V212: 6.91
B213: TOTAL TURKEY POINT UNIT 4 | L213: =+SUBTOTAL(9,L208:L212) -> 1439847471 | N213: =+SUBTOTAL(9,N208:N212) -> 439342260.2 | P213: =+SUBTOTAL(9,P208:P212) -> 1014320749 | R213: =+P213/T213 -> 14.42807637 | T213: =+SUBTOTAL(9,T208:T212) -> 70301870 | V213: =+T213/L213*100 -> 4.882591485
A215: TOTAL TURKEY POINT NUCLEAR PLANT | L215: =+SUBTOTAL(9,L191:L214) -> 3793800418 | N215: =+SUBTOTAL(9,N191:N214) -> 1101356971 | P215: =+SUBTOTAL(9,P191:P214) -> 2730489365 | R215: =+P215/T215 -> 14.16074323 | T215: =+SUBTOTAL(9,T191:T214) -> 192821049 | V215: =+T215/L215*100 -> 5.082530122
A217: TOTAL NUCLEAR PRODUCTION PLANT | L217: =+SUBTOTAL(9,L163:L216) -> 7822373927 | N217: =+SUBTOTAL(9,N163:N216) -> 2529706899 | P217: =+SUBTOTAL(9,P163:P216) -> 5383947317 | R217: =+P217/T217 -> 16.56234849 | T217: =+SUBTOTAL(9,T163:T216) -> 325071491 | V217: =+T217/L217*100 -> 4.155662898
A220: COMBINED CYCLE PRODUCTION PLANT
A222: LAUDERDALE COMBINED CYCLE PLANT
B224: LAUDERDALE COMMON
A225: 341 | B225: STRUCTURES AND IMPROVEMENTS | D225: 2033-06-30 | F225: 80 | G225: - | H225: R2 * | J225: -2 | L225: 87455288.39 | N225: 58653734.34 | P225: =+ROUND((100-J225)/100*L225-N225,0) -> 30550660 | R225: 15.14 | T225: =+ROUND(P225/R225,0) -> 2017877 | V225: =+ROUND(T225/L225*100,2) -> 2.31
A226: 342 | B226: FUEL HOLDERS, PRODUCERS AND ACCESSORIES | D226: 2033-06-30 | F226: 50 | G226: - | H226: R1.5 * | J226: -3 | L226: 11879794.88 | N226: 6764061.084 | P226: 5472128 | R226: 14.45 | T226: 378694 | V226: 3.19
A227: 343 | B227: PRIME MOVERS - GENERAL | D227: 2033-06-30 | F227: 50 | G227: - | H227: R1 * | J227: -3 | L227: 29161925.58 | N227: 7732617.9 | P227: 22304165 | R227: 14.72 | T227: 1515229 | V227: 5.2
A228: 343.2 | B228: PRIME MOVERS - CAPITAL SPARE PARTS | D228: 2033-06-30 | F228: 9 | G228: - | H228: L0 * | J228: 35 | L228: 37564239.13 | N228: 8857045.435 | P228: 15559710 | R228: 6.67 | T228: 2332790 | V228: 6.21
A229: 344 | B229: GENERATORS | D229: 2033-06-30 | F229: 60 | G229: - | H229: R2 * | J229: -3 | L229: 702077.8 | N229: 422319.0893 | P229: =+ROUND((100-J229)/100*L229-N229,0) -> 300821 | R229: 14.97 | T229: =+ROUND(P229/R229,0) -> 20095 | V229: =+ROUND(T229/L229*100,2) -> 2.86
A230: 345 | B230: ACCESSORY ELECTRIC EQUIPMENT | D230: 2033-06-30 | F230: 50 | G230: - | H230: R2.5 * | J230: -2 | L230: 12506640.1 | N230: 9717935.833 | P230: 3038837 | R230: 14.42 | T230: 210738 | V230: 1.69
A231: 346 | B231: MISCELLANEOUS POWER PLANT EQUIPMENT | D231: 2033-06-30 | F231: 50 | G231: - | H231: S0.5 * | J231: -2 | L231: 1273680.52 | N231: 642012.1297 | P231: 657142 | R231: 14.52 | T231: 45258 | V231: 3.55
B232: TOTAL LAUDERDALE COMMON | L232: =+SUBTOTAL(9,L225:L231) -> 180543646.4 | N232: =+SUBTOTAL(9,N225:N231) -> 92789725.81 | P232: =+SUBTOTAL(9,P225:P231) -> 77883463 | R232: =+P232/T232 -> 11.94406888 | T232: =+SUBTOTAL(9,T225:T231) -> 6520681 | V232: =+T232/L232*100 -> 3.611692314
B234: LAUDERDALE UNIT 4
A235: 341 | B235: STRUCTURES AND IMPROVEMENTS | D235: 2033-06-30 | F235: 80 | G235: - | H235: R2 * | J235: -2 | L235: 5252476.74 | N235: 3609976.58 | P235: =+ROUND((100-J235)/100*L235-N235,0) -> 1747550 | R235: 15.13 | T235: =+ROUND(P235/R235,0) -> 115502 | V235: =+ROUND(T235/L235*100,2) -> 2.2
A236: 342 | B236: FUEL HOLDERS, PRODUCERS AND ACCESSORIES | D236: 2033-06-30 | F236: 50 | G236: - | H236: R1.5 * | J236: -3 | L236: 695047.38 | N236: 531831.3339 | P236: 184067 | R236: 14.37 | T236: 12809 | V236: 1.84
A237: 343 | B237: PRIME MOVERS - GENERAL | D237: 2033-06-30 | F237: 50 | G237: - | H237: R1 * | J237: -3 | L237: 130963584.1 | N237: 56698997.68 | P237: 78193494 | R237: 14.36 | T237: 5445229 | V237: 4.16
A238: 343.2 | B238: PRIME MOVERS - CAPITAL SPARE PARTS | D238: 2033-06-30 | F238: 9 | G238: - | H238: L0 * | J238: 35 | L238: 64498883.46 | N238: 10698974.94 | P238: 31225299 | R238: 6.41 | T238: 4871341 | V238: 7.55
A239: 344 | B239: GENERATORS | D239: 2033-06-30 | F239: 60 | G239: - | H239: R2 * | J239: -3 | L239: 29715224.53 | N239: 21249929.87 | P239: =+ROUND((100-J239)/100*L239-N239,0) -> 9356751 | R239: 14.8 | T239: =+ROUND(P239/R239,0) -> 632213 | V239: =+ROUND(T239/L239*100,2) -> 2.13
A240: 345 | B240: ACCESSORY ELECTRIC EQUIPMENT | D240: 2033-06-30 | F240: 50 | G240: - | H240: R2.5 * | J240: -2 | L240: 30758543.48 | N240: 20012938.55 | P240: 11360776 | R240: 14.57 | T240: 779738 | V240: 2.54
A241: 346 | B241: MISCELLANEOUS POWER PLANT EQUIPMENT | D241: 2033-06-30 | F241: 50 | G241: - | H241: S0.5 * | J241: -2 | L241: 2681785.28 | N241: 1971609.478 | P241: 763812 | R241: 14.11 | T241: 54133 | V241: 2.02
B242: TOTAL LAUDERDALE UNIT 4 | L242: =+SUBTOTAL(9,L235:L241) -> 264565544.9 | N242: =+SUBTOTAL(9,N235:N241) -> 114774258.4 | P242: =+SUBTOTAL(9,P235:P241) -> 132831749 | R242: =+P242/T242 -> 11.15205603 | T242: =+SUBTOTAL(9,T235:T241) -> 11910965 | V242: =+T242/L242*100 -> 4.50208473
B244: LAUDERDALE UNIT 5
A245: 341 | B245: STRUCTURES AND IMPROVEMENTS | D245: 2033-06-30 | F245: 80 | G245: - | H245: R2 * | J245: -2 | L245: 3304987.8 | N245: 2032622.15 | P245: =+ROUND((100-J245)/100*L245-N245,0) -> 1338465 | R245: 15.16 | T245: =+ROUND(P245/R245,0) -> 88289 | V245: =+ROUND(T245/L245*100,2) -> 2.67
A246: 342 | B246: FUEL HOLDERS, PRODUCERS AND ACCESSORIES | D246: 2033-06-30 | F246: 50 | G246: - | H246: R1.5 * | J246: -3 | L246: 766036.02 | N246: 526297.6635 | P246: 262719 | R246: 14.52 | T246: 18094 | V246: 2.36
A247: 343 | B247: PRIME MOVERS - GENERAL | D247: 2033-06-30 | F247: 50 | G247: - | H247: R1 * | J247: -3 | L247: 130296358.8 | N247: 36892591.6 | P247: 97312658 | R247: 14.37 | T247: 6771932 | V247: 5.2
A248: 343.2 | B248: PRIME MOVERS - CAPITAL SPARE PARTS | D248: 2033-06-30 | F248: 9 | G248: - | H248: L0 * | J248: 35 | L248: 24422477.67 | N248: 2046911.872 | P248: 13827699 | R248: 6.92 | T248: 1998222 | V248: 8.18
A249: 344 | B249: GENERATORS | D249: 2033-06-30 | F249: 60 | G249: - | H249: R2 * | J249: -3 | L249: 32777730.66 | N249: 23372189.7 | P249: =+ROUND((100-J249)/100*L249-N249,0) -> 10388873 | R249: 14.86 | T249: =+ROUND(P249/R249,0) -> 699117 | V249: =+ROUND(T249/L249*100,2) -> 2.13
A250: 345 | B250: ACCESSORY ELECTRIC EQUIPMENT | D250: 2033-06-30 | F250: 50 | G250: - | H250: R2.5 * | J250: -2 | L250: 25710169.04 | N250: 16111822.17 | P250: 10112550 | R250: 14.64 | T250: 690748 | V250: 2.69
A251: 346 | B251: MISCELLANEOUS POWER PLANT EQUIPMENT | D251: 2033-06-30 | F251: 50 | G251: - | H251: S0.5 * | J251: -2 | L251: 1868249.99 | N251: 1335398.919 | P251: 570216 | R251: 14.12 | T251: 40384 | V251: 2.16
B252: TOTAL LAUDERDALE UNIT 5 | L252: =+SUBTOTAL(9,L245:L251) -> 219146010 | N252: =+SUBTOTAL(9,N245:N251) -> 82317834.08 | P252: =+SUBTOTAL(9,P245:P251) -> 133813180 | R252: =+P252/T252 -> 12.98301721 | T252: =+SUBTOTAL(9,T245:T251) -> 10306786 | V252: =+T252/L252*100 -> 4.703159323
... 295 more rows

Sheet Table 2
A1: FLORIDA POWER AND LIGHT COMPANY
A2: OPC 002089 FPL RC-16
A3: TABLE 2. ESTIMATED SURVIVOR CURVE, NET SALVAGE, ORIGINAL COST AND CALCULATED WHOLE LIFE
A4: ANNUAL DEPRECIATION ACCRUALS AND RATES RELATED TO ELECTRIC PLANT IN SERVICE AS OF DECEMBER 31, 2017
D7: PROBABLE | N7: ANNUAL | P7: ANNUAL
D8: RETIREMENT | J8: NET | L8: ORIGINAL | N8: DEPRECIATION | P8: DEPRECIATION
D9: DATE | F9: SURVIVOR CURVE | J9: SALVAGE | L9: COST | N9: ACCRUALS | P9: RATE
D10: -1 | F10: -2 | J10: -3 | L10: -4 | N10: -5 | P10: -6
A12: STEAM PRODUCTION PLANT
A15: MANATEE STEAM PLANT
C16: =+UPPER(B16) -> 
B17: MANATEE COMMON
A18: 311 | B18: STRUCTURES AND IMPROVEMENTS | D18: 2028-06-30 | F18: 80 | G18: - | H18: R2 * | J18: -1 | L18: 114283077.9 | N18: 4415875 | P18: 3.86
A19: 312 | B19: BOILER PLANT EQUIPMENT | D19: 2028-06-30 | F19: 50 | G19: - | H19: S0 * | J19: -2 | L19: 7864883.47 | N19: 539591 | P19: 6.86
A20: 314 | B20: TURBOGENERATOR UNITS | D20: 2028-06-30 | F20: 55 | G20: - | H20: R0.5 * | J20: -1 | L20: 9839030.51 | N20: 363376 | P20: 3.69
A21: 315 | B21: ACCESSORY ELECTRIC EQUIPMENT | D21: 2028-06-30 | F21: 65 | G21: - | H21: S0 * | J21: -2 | L21: 9833462.49 | N21: 312835 | P21: 3.18
A22: 316 | B22: MISCELLANEOUS POWER PLANT EQUIPMENT | D22: 2028-06-30 | F22: 65 | G22: - | H22: R0.5 * | J22: 0 | L22: 2498111.02 | N22: 84712 | P22: 3.39
B23: TOTAL MANATEE COMMON | L23: =+SUBTOTAL(9,L18:L22) -> 144318565.4 | N23: =+SUBTOTAL(9,N18:N22) -> 5716389 | P23: =+N23/L23*100 -> 3.96095193
B25: MANATEE UNIT 1
A26: 311 | B26: STRUCTURES AND IMPROVEMENTS | D26: 2028-06-30 | F26: 80 | G26: - | H26: R2 * | J26: -1 | L26: 6968574.08 | N26: 174753 | P26: 2.51
A27: 312 | B27: BOILER PLANT EQUIPMENT | D27: 2028-06-30 | F27: 50 | G27: - | H27: S0 * | J27: -2 | L27: 184992667.8 | N27: 9066830 | P27: 4.9
A28: 314 | B28: TURBOGENERATOR UNITS | D28: 2028-06-30 | F28: 55 | G28: - | H28: R0.5 * | J28: -1 | L28: 74066120.92 | N28: 3299614 | P28: 4.45
A29: 315 | B29: ACCESSORY ELECTRIC EQUIPMENT | D29: 2028-06-30 | F29: 65 | G29: - | H29: S0 * | J29: -2 | L29: 14537672.54 | N29: 686766 | P29: 4.72
A30: 316 | B30: MISCELLANEOUS POWER PLANT EQUIPMENT | D30: 2028-06-30 | F30: 65 | G30: - | H30: R0.5 * | J30: 0 | L30: 4000322.68 | N30: 161896 | P30: 4.05
B31: TOTAL MANATEE UNIT 1 | L31: =+SUBTOTAL(9,L26:L30) -> 284565358 | N31: =+SUBTOTAL(9,N26:N30) -> 13389859 | P31: =+N31/L31*100 -> 4.705372113
B33: MANATEE UNIT 2
A34: 311 | B34: STRUCTURES AND IMPROVEMENTS | D34: 2028-06-30 | F34: 80 | G34: - | H34: R2 * | J34: -1 | L34: 5083211.03 | N34: 129842 | P34: 2.55
A35: 312 | B35: BOILER PLANT EQUIPMENT | D35: 2028-06-30 | F35: 50 | G35: - | H35: S0 * | J35: -2 | L35: 187516002.4 | N35: 9492585 | P35: 5.06
A36: 314 | B36: TURBOGENERATOR UNITS | D36: 2028-06-30 | F36: 55 | G36: - | H36: R0.5 * | J36: -1 | L36: 72134310.35 | N36: 3031453 | P36: 4.2
A37: 315 | B37: ACCESSORY ELECTRIC EQUIPMENT | D37: 2028-06-30 | F37: 65 | G37: - | H37: S0 * | J37: -2 | L37: 12511248.53 | N37: 623025 | P37: 4.98
A38: 316 | B38: MISCELLANEOUS POWER PLANT EQUIPMENT | D38: 2028-06-30 | F38: 65 | G38: - | H38: R0.5 * | J38: 0 | L38: 3520593.83 | N38: 158749 | P38: 4.51
B39: TOTAL MANATEE UNIT 2 | L39: =+SUBTOTAL(9,L34:L38) -> 280765366.2 | N39: =+SUBTOTAL(9,N34:N38) -> 13435654 | P39: =+N39/L39*100 -> 4.785367292
A41: TOTAL MANATEE STEAM PLANT | L41: =+SUBTOTAL(9,L17:L40) -> 709649289.6 | N41: =+SUBTOTAL(9,N17:N40) -> 32541902 | P41: =+N41/L41*100 -> 4.58563159
A44: MARTIN STEAM PLANT
B46: MARTIN COMMON
A47: 311 | B47: STRUCTURES AND IMPROVEMENTS | D47: 2031-06-30 | F47: 80 | G47: - | H47: R2 * | J47: -1 | L47: 241400701.3 | N47: 6289289 | P47: 2.61
A48: 312 | B48: BOILER PLANT EQUIPMENT | D48: 2031-06-30 | F48: 50 | G48: - | H48: S0 * | J48: -2 | L48: 7052454.52 | N48: 314418 | P48: 4.46
A49: 314 | B49: TURBOGENERATOR UNITS | D49: 2031-06-30 | F49: 55 | G49: - | H49: R0.5 * | J49: -1 | L49: 27411865.75 | N49: 970549 | P49: 3.54
A50: 315 | B50: ACCESSORY ELECTRIC EQUIPMENT | D50: 2031-06-30 | F50: 65 | G50: - | H50: S0 * | J50: -2 | L50: 10271933.77 | N50: 383303 | P50: 3.73
A51: 316 | B51: MISCELLANEOUS POWER PLANT EQUIPMENT | D51: 2031-06-30 | F51: 65 | G51: - | H51: R0.5 * | J51: 0 | L51: 3879628.68 | N51: 142541 | P51: 3.67
B52: TOTAL MARTIN COMMON | L52: =+SUBTOTAL(9,L47:L51) -> 290016584.1 | N52: =+SUBTOTAL(9,N47:N51) -> 8100100 | P52: =+N52/L52*100 -> 2.792978211
B54: MARTIN PIPELINE
A55: 312 | B55: BOILER PLANT EQUIPMENT | D55: 2031-06-30 | F55: 50 | G55: - | H55: S0 * | J55: 0 | L55: 370941.56 | N55: 11202 | P55: 3.02
B56: TOTAL MARTIN PIPELINE | L56: =+SUBTOTAL(9,L55:L55) -> 370941.56 | N56: =+SUBTOTAL(9,N55:N55) -> 11202
B58: MARTIN UNIT 1
A59: 311 | B59: STRUCTURES AND IMPROVEMENTS | D59: 2031-06-30 | F59: 80 | G59: - | H59: R2 * | J59: -1 | L59: 16367428.14 | N59: 420126 | P59: 2.57
A60: 312 | B60: BOILER PLANT EQUIPMENT | D60: 2031-06-30 | F60: 50 | G60: - | H60: S0 * | J60: -2 | L60: 212347650.8 | N60: 8848949 | P60: 4.17
A61: 314 | B61: TURBOGENERATOR UNITS | D61: 2031-06-30 | F61: 55 | G61: - | H61: R0.5 * | J61: -1 | L61: 89915729.92 | N61: 3297804 | P61: 3.67
A62: 315 | B62: ACCESSORY ELECTRIC EQUIPMENT | D62: 2031-06-30 | F62: 65 | G62: - | H62: S0 * | J62: -2 | L62: 24335747.45 | N62: 848600 | P62: 3.49
A63: 316 | B63: MISCELLANEOUS POWER PLANT EQUIPMENT | D63: 2031-06-30 | F63: 65 | G63: - | H63: R0.5 * | J63: 0 | L63: 3586002.99 | N63: 136103 | P63: 3.8
B64: TOTAL MARTIN UNIT 1 | L64: =+SUBTOTAL(9,L59:L63) -> 346552559.3 | N64: =+SUBTOTAL(9,N59:N63) -> 13551582 | P64: =+N64/L64*100 -> 3.910397323
B66: MARTIN UNIT 2
A67: 311 | B67: STRUCTURES AND IMPROVEMENTS | D67: 2031-06-30 | F67: 80 | G67: - | H67: R2 * | J67: -1 | L67: 11241256.67 | N67: 273240 | P67: 2.43
A68: 312 | B68: BOILER PLANT EQUIPMENT | D68: 2031-06-30 | F68: 50 | G68: - | H68: S0 * | J68: -2 | L68: 214665917.3 | N68: 9139233 | P68: 4.26
A69: 314 | B69: TURBOGENERATOR UNITS | D69: 2031-06-30 | F69: 55 | G69: - | H69: R0.5 * | J69: -1 | L69: 82668790.6 | N69: 3506431 | P69: 4.24
A70: 315 | B70: ACCESSORY ELECTRIC EQUIPMENT | D70: 2031-06-30 | F70: 65 | G70: - | H70: S0 * | J70: -2 | L70: 22992822.89 | N70: 908581 | P70: 3.95
A71: 316 | B71: MISCELLANEOUS POWER PLANT EQUIPMENT | D71: 2031-06-30 | F71: 65 | G71: - | H71: R0.5 * | J71: 0 | L71: 3273365.34 | N71: 130052 | P71: 3.97
B72: TOTAL MARTIN UNIT 2 | L72: =+SUBTOTAL(9,L67:L71) -> 334842152.8 | N72: =+SUBTOTAL(9,N67:N71) -> 13957537 | P72: =+N72/L72*100 -> 4.168393042
A74: TOTAL MARTIN STEAM PLANT | L74: =+SUBTOTAL(9,L46:L73) -> 971782237.7 | N74: =+SUBTOTAL(9,N46:N73) -> 35620421 | P74: =+N74/L74*100 -> 3.665473562
A77: SCHERER STEAM PLANT
B79: SCHERER COAL CARS
A80: 312 | B80: BOILER PLANT EQUIPMENT | D80: 2039-06-30 | F80: 50 | G80: - | H80: S0 * | J80: 0 | L80: 33149442.2 | N80: 942509 | P80: 2.84
B81: TOTAL SCHERER COAL CARS | L81: =+SUBTOTAL(9,L80:L80) -> 33149442.2 | N81: =+SUBTOTAL(9,N80:N80) -> 942509 | P81: =+N81/L81*100 -> 2.843212246
B83: SCHERER COMMON
A84: 311 | B84: STRUCTURES AND IMPROVEMENTS | D84: 2039-06-30 | F84: 80 | G84: - | H84: R2 * | J84: -1 | L84: 40048942.61 | N84: 1008106 | P84: 2.52
A85: 312 | B85: BOILER PLANT EQUIPMENT | D85: 2039-06-30 | F85: 50 | G85: - | H85: S0 * | J85: -4 | L85: 26275279.31 | N85: 803601 | P85: 3.06
A86: 314 | B86: TURBOGENERATOR UNITS | D86: 2039-06-30 | F86: 55 | G86: - | H86: R0.5 * | J86: -1 | L86: 4409078.75 | N86: 128827 | P86: 2.92
A87: 315 | B87: ACCESSORY ELECTRIC EQUIPMENT | D87: 2039-06-30 | F87: 65 | G87: - | H87: S0 * | J87: -3 | L87: 1246717.64 | N87: 32913 | P87: 2.64
A88: 316 | B88: MISCELLANEOUS POWER PLANT EQUIPMENT | D88: 2039-06-30 | F88: 65 | G88: - | H88: R0.5 * | J88: -1 | L88: 3720891.68 | N88: 106108 | P88: 2.85
B89: TOTAL SCHERER COMMON | L89: =+SUBTOTAL(9,L84:L88) -> 75700909.99 | N89: =+SUBTOTAL(9,N84:N88) -> 2079555 | P89: =+N89/L89*100 -> 2.747067374
B91: SCHERER COMMON UNIT 3 AND 4
A92: 311 | B92: STRUCTURES AND IMPROVEMENTS | D92: 2039-06-30 | F92: 80 | G92: - | H92: R2 * | J92: -1 | L92: 3049496.26 | N92: 74295 | P92: 2.44
A93: 312 | B93: BOILER PLANT EQUIPMENT | D93: 2039-06-30 | F93: 50 | G93: - | H93: S0 * | J93: -4 | L93: 22708657.52 | N93: 731222 | P93: 3.22
A94: 314 | B94: TURBOGENERATOR UNITS | D94: 2039-06-30 | F94: 55 | G94: - | H94: R0.5 * | J94: -1 | L94: 2878397.99 | N94: 127520 | P94: 4.43
A95: 315 | B95: ACCESSORY ELECTRIC EQUIPMENT | D95: 2039-06-30 | F95: 65 | G95: - | H95: S0 * | J95: -3 | L95: 2865604.55 | N95: 123128 | P95: 4.3
B96: TOTAL SCHERER COMMON UNIT 3 AND 4 | L96: =+SUBTOTAL(9,L92:L95) -> 31502156.32 | N96: =+SUBTOTAL(9,N92:N95) -> 1056165 | P96: =+N96/L96*100 -> 3.352675256
B98: SCHERER UNIT 4
A99: 311 | B99: STRUCTURES AND IMPROVEMENTS | D99: 2039-06-30 | F99: 80 | G99: - | H99: R2 * | J99: -1 | L99: 161759187.5 | N99: 5345828 | P99: 3.3
A100: 312 | B100: BOILER PLANT EQUIPMENT | D100: 2039-06-30 | F100: 50 | G100: - | H100: S0 * | J100: -4 | L100: 682720321.1 | N100: 24868117 | P100: 3.64
A101: 314 | B101: TURBOGENERATOR UNITS | D101: 2039-06-30 | F101: 55 | G101: - | H101: R0.5 * | J101: -1 | L101: 124903380.6 | N101: 3607288 | P101: 2.89
A102: 315 | B102: ACCESSORY ELECTRIC EQUIPMENT | D102: 2039-06-30 | F102: 65 | G102: - | H102: S0 * | J102: -3 | L102: 50198263.53 | N102: 1712746 | P102: 3.41
A103: 316 | B103: MISCELLANEOUS POWER PLANT EQUIPMENT | D103: 2039-06-30 | F103: 65 | G103: - | H103: R0.5 * | J103: -1 | L103: 5202651.35 | N103: 168161 | P103: 3.23
B104: TOTAL SCHERER UNIT 4 | L104: =+SUBTOTAL(9,L99:L103) -> 1024783804 | N104: =+SUBTOTAL(9,N99:N103) -> 35702140 | P104: =+N104/L104*100 -> 3.483870437
A106: TOTAL SCHERER STEAM PLANT | L106: =+SUBTOTAL(9,L78:L105) -> 1165136313 | N106: =+SUBTOTAL(9,N78:N105) -> 39780369 | P106: =+N106/L106*100 -> 3.414224462
A109: SJRPP STEAM PLANT
B111: SJRPP COAL AND LIMESTONE
A112: 311 | B112: STRUCTURES AND IMPROVEMENTS | D112: 2038-06-30 | F112: 80 | G112: - | H112: R2 * | J112: -1 | L112: 3538785.86 | N112: 79596 | P112: 2.25
A113: 312 | B113: BOILER PLANT EQUIPMENT | D113: 2038-06-30 | F113: 50 | G113: - | H113: S0 * | J113: -4 | L113: 30678751.75 | N113: 847002 | P113: 2.76
A114: 315 | B114: ACCESSORY ELECTRIC EQUIPMENT | D114: 2038-06-30 | F114: 65 | G114: - | H114: S0 * | J114: -3 | L114: 3748249.87 | N114: 91308 | P114: 2.44
A115: 316 | B115: MISCELLANEOUS POWER PLANT EQUIPMENT | D115: 2038-06-30 | F115: 65 | G115: - | H115: R0.5 * | J115: -1 | L115: 298312.17 | N115: 7148 | P115: 2.4
B116: TOTAL SJRPP COAL AND LIMESTONE | L116: =+SUBTOTAL(9,L112:L115) -> 38264099.65 | N116: =+SUBTOTAL(9,N112:N115) -> 1025054 | P116: =+N116/L116*100 -> 2.67889225
B118: SJRPP COAL CARS
A119: 312 | B119: BOILER PLANT EQUIPMENT | D119: 2038-06-30 | F119: 50 | G119: - | H119: S0 * | J119: 0 | L119: 52104.91 | N119: 1339 | P119: 2.57
B120: TOTAL SJRPP COAL CARS | L120: =+SUBTOTAL(9,L119:L119) -> 52104.91 | N120: =+SUBTOTAL(9,N119:N119) -> 1339 | P120: =+N120/L120*100 -> 2.569815397
B122: SJRPP COMMON
A123: 311 | B123: STRUCTURES AND IMPROVEMENTS | D123: 2038-06-30 | F123: 80 | G123: - | H123: R2 * | J123: -1 | L123: 33324990.64 | N123: 785929 | P123: 2.36
A124: 312 | B124: BOILER PLANT EQUIPMENT | D124: 2038-06-30 | F124: 50 | G124: - | H124: S0 * | J124: -4 | L124: 3714735.93 | N124: 108192 | P124: 2.91
A125: 314 | B125: TURBOGENERATOR UNITS | D125: 2038-06-30 | F125: 55 | G125: - | H125: R0.5 * | J125: -1 | L125: 2511326.32 | N125: 65168 | P125: 2.59
A126: 315 | B126: ACCESSORY ELECTRIC EQUIPMENT | D126: 2038-06-30 | F126: 65 | G126: - | H126: S0 * | J126: -3 | L126: 5865106.8 | N126: 149388 | P126: 2.55
A127: 316 | B127: MISCELLANEOUS POWER PLANT EQUIPMENT | D127: 2038-06-30 | F127: 65 | G127: - | H127: R0.5 * | J127: -1 | L127: 1607470.4 | N127: 43309 | P127: 2.69
B128: TOTAL SJRPP COMMON | L128: =+SUBTOTAL(9,L123:L127) -> 47023630.09 | N128: =+SUBTOTAL(9,N123:N127) -> 1151986 | P128: =+N128/L128*100 -> 2.449802361
B130: SJRPP GYPSUM AND ASH
A131: 311 | B131: STRUCTURES AND IMPROVEMENTS | D131: 2038-06-30 | F131: 80 | G131: - | H131: R2 * | J131: -1 | L131: 2158590.42 | N131: 50250 | P131: 2.33
A132: 312 | B132: BOILER PLANT EQUIPMENT | D132: 2038-06-30 | F132: 50 | G132: - | H132: S0 * | J132: -4 | L132: 16972047.61 | N132: 458090 | P132: 2.7
A133: 315 | B133: ACCESSORY ELECTRIC EQUIPMENT | D133: 2038-06-30 | F133: 65 | G133: - | H133: S0 * | J133: -3 | L133: 52222.78 | N133: 1353 | P133: 2.59
A134: 316 | B134: MISCELLANEOUS POWER PLANT EQUIPMENT | D134: 2038-06-30 | F134: 65 | G134: - | H134: R0.5 * | J134: -1 | L134: 153865.69 | N134: 4644 | P134: 3.02
B135: TOTAL SJRPP GYPSUM AND ASH | L135: =+SUBTOTAL(9,L131:L134) -> 19336726.5 | N135: =+SUBTOTAL(9,N131:N134) -> 514337 | P135: =+N135/L135*100 -> 2.659896958
B137: SJRPP UNIT 1
A138: 311 | B138: STRUCTURES AND IMPROVEMENTS | D138: 2038-06-30 | F138: 80 | G138: - | H138: R2 * | J138: -1 | L138: 9098352.49 | N138: 200634 | P138: 2.21
A139: 312 | B139: BOILER PLANT EQUIPMENT | D139: 2038-06-30 | F139: 50 | G139: - | H139: S0 * | J139: -4 | L139: 100163071.9 | N139: 3116984 | P139: 3.11
A140: 314 | B140: TURBOGENERATOR UNITS | D140: 2038-06-30 | F140: 55 | G140: - | H140: R0.5 * | J140: -1 | L140: 31632809.4 | N140: 1015238 | P140: 3.21
A141: 315 | B141: ACCESSORY ELECTRIC EQUIPMENT | D141: 2038-06-30 | F141: 65 | G141: - | H141: S0 * | J141: -3 | L141: 12543007.01 | N141: 329472 | P141: 2.63
A142: 316 | B142: MISCELLANEOUS POWER PLANT EQUIPMENT | D142: 2038-06-30 | F142: 65 | G142: - | H142: R0.5 * | J142: -1 | L142: 2049400.34 | N142: 51999 | P142: 2.54
B143: TOTAL SJRPP UNIT 1 | L143: =+SUBTOTAL(9,L138:L142) -> 155486641.2 | N143: =+SUBTOTAL(9,N138:N142) -> 4714327 | P143: =+N143/L143*100 -> 3.031982018
B145: SJRPP UNIT 2
A146: 311 | B146: STRUCTURES AND IMPROVEMENTS | D146: 2038-06-30 | F146: 80 | G146: - | H146: R2 * | J146: -1 | L146: 7123662.16 | N146: 154254 | P146: 2.17
A147: 312 | B147: BOILER PLANT EQUIPMENT | D147: 2038-06-30 | F147: 50 | G147: - | H147: S0 * | J147: -4 | L147: 89481418.8 | N147: 2765419 | P147: 3.09
A148: 314 | B148: TURBOGENERATOR UNITS | D148: 2038-06-30 | F148: 55 | G148: - | H148: R0.5 * | J148: -1 | L148: 28267581.84 | N148: 906800 | P148: 3.21
A149: 315 | B149: ACCESSORY ELECTRIC EQUIPMENT | D149: 2038-06-30 | F149: 65 | G149: - | H149: S0 * | J149: -3 | L149: 10030603.41 | N149: 256107 | P149: 2.55
A150: 316 | B150: MISCELLANEOUS POWER PLANT EQUIPMENT | D150: 2038-06-30 | F150: 65 | G150: - | H150: R0.5 * | J150: -1 | L150: 1560108.42 | N150: 38842 | P150: 2.49
B151: TOTAL SJRPP UNIT 2 | L151: =+SUBTOTAL(9,L146:L150) -> 136463374.6 | N151: =+SUBTOTAL(9,N146:N150) -> 4121422 | P151: =+N151/L151*100 -> 3.020167141
A153: TOTAL SJRPP STEAM PLANT | L153: =+SUBTOTAL(9,L111:L152) -> 396626576.9 | N153: =+SUBTOTAL(9,N111:N152) -> 11528465 | P153: =+N153/L153*100 -> 2.906629477
A155: TOTAL STEAM PRODUCTION | L155: =+SUBTOTAL(9,L15:L153) -> 3243194417 | N155: =+SUBTOTAL(9,N15:N153) -> 119471157 | P155: =+N155/L155*100 -> 3.683749466
A158: NUCLEAR PRODUCTION PLANT
A160: ST. LUCIE NUCLEAR PLANT
B162: ST. LUCIE COMMON
A163: 321 | B163: STRUCTURES AND IMPROVEMENTS | D163: 2043-04-30 | F163: 100 | G163: - | H163: R1.5 * | J163: -1 | L163: 397119195.7 | N163: 9094889 | P163: 2.29
A164: 322 | B164: REACTOR PLANT EQUIPMENT | D164: 2043-04-30 | F164: 60 | G164: - | H164: R1 * | J164: -2 | L164: 55584106.71 | N164: 1665151 | P164: 3
A165: 323 | B165: TURBOGENERATOR UNITS | D165: 2043-04-30 | F165: 45 | G165: - | H165: R0.5 * | J165: 0 | L165: 12406915.97 | N165: 431895 | P165: 3.48
A166: 324 | B166: ACCESSORY ELECTRIC EQUIPMENT | D166: 2043-04-30 | F166: 75 | G166: - | H166: R2.5 * | J166: -1 | L166: 34379625.87 | N166: 756459 | P166: 2.2
A167: 325 | B167: MISCELLANEOUS POWER PLANT EQUIPMENT | D167: 2043-04-30 | F167: 50 | G167: - | H167: R1.5 * | J167: -3 | L167: 20728940.61 | N167: 611062 | P167: 2.95
B168: TOTAL ST. LUCIE COMMON | L168: =+SUBTOTAL(9,L163:L167) -> 520218784.8 | N168: =+SUBTOTAL(9,N163:N167) -> 12559456 | P168: =+N168/L168*100 -> 2.414264222
B170: ST. LUCIE UNIT 1
A171: 321 | B171: STRUCTURES AND IMPROVEMENTS | D171: 2036-03-31 | F171: 100 | G171: - | H171: R1.5 * | J171: -1 | L171: 196854866.3 | N171: 5456908 | P171: 2.77
A172: 322 | B172: REACTOR PLANT EQUIPMENT | D172: 2036-03-31 | F172: 60 | G172: - | H172: R1 * | J172: -2 | L172: 845363775 | N172: 31576691 | P172: 3.74
A173: 323 | B173: TURBOGENERATOR UNITS | D173: 2036-03-31 | F173: 45 | G173: - | H173: R0.5 * | J173: 0 | L173: 413333703.6 | N173: 18554218 | P173: 4.49
A174: 324 | B174: ACCESSORY ELECTRIC EQUIPMENT | D174: 2036-03-31 | F174: 75 | G174: - | H174: R2.5 * | J174: -1 | L174: 120786348.1 | N174: 3731554 | P174: 3.09
A175: 325 | B175: MISCELLANEOUS POWER PLANT EQUIPMENT | D175: 2036-03-31 | F175: 50 | G175: - | H175: R1.5 * | J175: -3 | L175: 11438745.22 | N175: 301949 | P175: 2.64
B176: TOTAL ST. LUCIE UNIT 1 | L176: =+SUBTOTAL(9,L171:L175) -> 1587777438 | N176: =+SUBTOTAL(9,N171:N175) -> 59621320 | P176: =+N176/L176*100 -> 3.755017458
B178: ST. LUCIE UNIT 2
A179: 321 | B179: STRUCTURES AND IMPROVEMENTS | D179: 2043-04-30 | F179: 100 | G179: - | H179: R1.5 * | J179: -1 | L179: 298911837.3 | N179: 6567385 | P179: 2.2
A180: 322 | B180: REACTOR PLANT EQUIPMENT | D180: 2043-04-30 | F180: 60 | G180: - | H180: R1 * | J180: -2 | L180: 1057336501 | N180: 30941504 | P180: 2.93
A181: 323 | B181: TURBOGENERATOR UNITS | D181: 2043-04-30 | F181: 45 | G181: - | H181: R0.5 * | J181: 0 | L181: 350466490.1 | N181: 12304351 | P181: 3.51
A182: 324 | B182: ACCESSORY ELECTRIC EQUIPMENT | D182: 2043-04-30 | F182: 75 | G182: - | H182: R2.5 * | J182: -1 | L182: 189637024.6 | N182: 4061030 | P182: 2.14
A183: 325 | B183: MISCELLANEOUS POWER PLANT EQUIPMENT | D183: 2043-04-30 | F183: 50 | G183: - | H183: R1.5 * | J183: -3 | L183: 24225433.39 | N183: 595520 | P183: 2.46
B184: TOTAL ST. LUCIE UNIT 2 | L184: =+SUBTOTAL(9,L179:L183) -> 1920577286 | N184: =+SUBTOTAL(9,N179:N183) -> 54469790 | P184: =+N184/L184*100 -> 2.836115494
A186: TOTAL ST. LUCIE NUCLEAR PLANT | L186: =+SUBTOTAL(9,L163:L185) -> 4028573509 | N186: =+SUBTOTAL(9,N163:N185) -> 126650566 | P186: =+N186/L186*100 -> 3.143806752
A189: TURKEY POINT NUCLEAR PLANT
B191: TURKEY POINT COMMON
A192: 321 | B192: STRUCTURES AND IMPROVEMENTS | D192: 2033-04-30 | F192: 100 | G192: - | H192: R1.5 * | J192: -1 | L192: 380704673.4 | N192: 14422958 | P192: 3.79
A193: 322 | B193: REACTOR PLANT EQUIPMENT | D193: 2033-04-30 | F193: 60 | G193: - | H193: R1 * | J193: -2 | L193: 144884580.2 | N193: 7197397 | P193: 4.97
A194: 323 | B194: TURBOGENERATOR UNITS | D194: 2033-04-30 | F194: 45 | G194: - | H194: R0.5 * | J194: 0 | L194: 22821885.52 | N194: 1129284 | P194: 4.95
A195: 324 | B195: ACCESSORY ELECTRIC EQUIPMENT | D195: 2033-04-30 | F195: 75 | G195: - | H195: R2.5 * | J195: -1 | L195: 56769857.59 | N195: 1959578 | P195: 3.45
A196: 325 | B196: MISCELLANEOUS POWER PLANT EQUIPMENT | D196: 2033-04-30 | F196: 50 | G196: - | H196: R1.5 * | J196: -3 | L196: 39215641.06 | N196: 1687193 | P196: 4.3
B197: TOTAL TURKEY POINT COMMON | L197: =+SUBTOTAL(9,L192:L196) -> 644396637.8 | N197: =+SUBTOTAL(9,N192:N196) -> 26396410 | P197: =+N197/L197*100 -> 4.09629853
B199: TURKEY POINT UNIT 3
A200: 321 | B200: STRUCTURES AND IMPROVEMENTS | D200: 2032-07-31 | F200: 100 | G200: - | H200: R1.5 * | J200: -1 | L200: 185601316.1 | N200: 8521127 | P200: 4.59
A201: 322 | B201: REACTOR PLANT EQUIPMENT | D201: 2032-07-31 | F201: 60 | G201: - | H201: R1 * | J201: -2 | L201: 595235354.2 | N201: 26935602 | P201: 4.53
A202: 323 | B202: TURBOGENERATOR UNITS | D202: 2032-07-31 | F202: 45 | G202: - | H202: R0.5 * | J202: 0 | L202: 758820503.5 | N202: 40789809 | P202: 5.38
A203: 324 | B203: ACCESSORY ELECTRIC EQUIPMENT | D203: 2032-07-31 | F203: 75 | G203: - | H203: R2.5 * | J203: -1 | L203: 153810947.6 | N203: 5468395 | P203: 3.56
A204: 325 | B204: MISCELLANEOUS POWER PLANT EQUIPMENT | D204: 2032-07-31 | F204: 50 | G204: - | H204: R1.5 * | J204: -3 | L204: 16088187.86 | N204: 834922 | P204: 5.19
B205: TOTAL TURKEY POINT UNIT 3 | L205: =+SUBTOTAL(9,L200:L204) -> 1709556309 | N205: =+SUBTOTAL(9,N200:N204) -> 82549855 | P205: =+N205/L205*100 -> 4.828729803
B207: TURKEY POINT UNIT 4
A208: 321 | B208: STRUCTURES AND IMPROVEMENTS | D208: 2033-04-30 | F208: 100 | G208: - | H208: R1.5 * | J208: -1 | L208: 129681129.7 | N208: 5020912 | P208: 3.87
A209: 322 | B209: REACTOR PLANT EQUIPMENT | D209: 2033-04-30 | F209: 60 | G209: - | H209: R1 * | J209: -2 | L209: 518893110.5 | N209: 22427967 | P209: 4.32
A210: 323 | B210: TURBOGENERATOR UNITS | D210: 2033-04-30 | F210: 45 | G210: - | H210: R0.5 * | J210: 0 | L210: 601429270.4 | N210: 31775840 | P210: 5.28
A211: 324 | B211: ACCESSORY ELECTRIC EQUIPMENT | D211: 2033-04-30 | F211: 75 | G211: - | H211: R2.5 * | J211: -1 | L211: 177722654 | N211: 5469807 | P211: 3.08
A212: 325 | B212: MISCELLANEOUS POWER PLANT EQUIPMENT | D212: 2033-04-30 | F212: 50 | G212: - | H212: R1.5 * | J212: -3 | L212: 12121306.1 | N212: 571133 | P212: 4.71
B213: TOTAL TURKEY POINT UNIT 4 | L213: =+SUBTOTAL(9,L208:L212) -> 1439847471 | N213: =+SUBTOTAL(9,N208:N212) -> 65265659 | P213: =+N213/L213*100 -> 4.532817561
A215: TOTAL TURKEY POINT NUCLEAR PLANT | L215: =+SUBTOTAL(9,L191:L214) -> 3793800418 | N215: =+SUBTOTAL(9,N191:N214) -> 174211924 | P215: =+N215/L215*100 -> 4.592016048
A217: TOTAL NUCLEAR PRODUCTION PLANT | L217: =+SUBTOTAL(9,L163:L216) -> 7822373927 | N217: =+SUBTOTAL(9,N163:N216) -> 300862490 | P217: =+N217/L217*100 -> 3.84617883
A220: COMBINED CYCLE PRODUCTION PLANT
A222: LAUDERDALE COMBINED CYCLE PLANT
B224: LAUDERDALE COMMON
A225: 341 | B225: STRUCTURES AND IMPROVEMENTS | D225: 2033-06-30 | F225: 80 | G225: - | H225: R2 * | J225: -2 | L225: 87455288.39 | N225: 2882818 | P225: 3.3
A226: 342 | B226: FUEL HOLDERS, PRODUCERS AND ACCESSORIES | D226: 2033-06-30 | F226: 50 | G226: - | H226: R1.5 * | J226: -3 | L226: 11879794.88 | N226: 458704 | P226: 3.86
A227: 343 | B227: PRIME MOVERS - GENERAL | D227: 2033-06-30 | F227: 50 | G227: - | H227: R1 * | J227: -3 | L227: 29161925.58 | N227: 1685161 | P227: 5.78
A228: 343.2 | B228: PRIME MOVERS - CAPITAL SPARE PARTS | D228: 2033-06-30 | F228: 9 | G228: - | H228: L0 * | J228: 35 | L228: 37564239.13 | N228: 2760417 | P228: 7.35
A229: 344 | B229: GENERATORS | D229: 2033-06-30 | F229: 60 | G229: - | H229: R2 * | J229: -3 | L229: 702077.8 | N229: 26867 | P229: 3.83
A230: 345 | B230: ACCESSORY ELECTRIC EQUIPMENT | D230: 2033-06-30 | F230: 50 | G230: - | H230: R2.5 * | J230: -2 | L230: 12506640.1 | N230: 382947 | P230: 3.06
A231: 346 | B231: MISCELLANEOUS POWER PLANT EQUIPMENT | D231: 2033-06-30 | F231: 50 | G231: - | H231: S0.5 * | J231: -2 | L231: 1273680.52 | N231: 52286 | P231: 4.11
B232: TOTAL LAUDERDALE COMMON | L232: =+SUBTOTAL(9,L225:L231) -> 180543646.4 | N232: =+SUBTOTAL(9,N225:N231) -> 8249200 | P232: =+N232/L232*100 -> 4.569089062
B234: LAUDERDALE UNIT 4
A235: 341 | B235: STRUCTURES AND IMPROVEMENTS | D235: 2033-06-30 | F235: 80 | G235: - | H235: R2 * | J235: -2 | L235: 5252476.74 | N235: 168116 | P235: 3.2
A236: 342 | B236: FUEL HOLDERS, PRODUCERS AND ACCESSORIES | D236: 2033-06-30 | F236: 50 | G236: - | H236: R1.5 * | J236: -3 | L236: 695047.38 | N236: 23808 | P236: 3.43
A237: 343 | B237: PRIME MOVERS - GENERAL | D237: 2033-06-30 | F237: 50 | G237: - | H237: R1 * | J237: -3 | L237: 130963584.1 | N237: 5117407 | P237: 3.91
A238: 343.2 | B238: PRIME MOVERS - CAPITAL SPARE PARTS | D238: 2033-06-30 | F238: 9 | G238: - | H238: L0 * | J238: 35 | L238: 64498883.46 | N238: 4732537 | P238: 7.34
A239: 344 | B239: GENERATORS | D239: 2033-06-30 | F239: 60 | G239: - | H239: R2 * | J239: -3 | L239: 29715224.53 | N239: 958327 | P239: 3.23
A240: 345 | B240: ACCESSORY ELECTRIC EQUIPMENT | D240: 2033-06-30 | F240: 50 | G240: - | H240: R2.5 * | J240: -2 | L240: 30758543.48 | N240: 1026889 | P240: 3.34
A241: 346 | B241: MISCELLANEOUS POWER PLANT EQUIPMENT | D241: 2033-06-30 | F241: 50 | G241: - | H241: S0.5 * | J241: -2 | L241: 2681785.28 | N241: 89560 | P241: 3.34
B242: TOTAL LAUDERDALE UNIT 4 | L242: =+SUBTOTAL(9,L235:L241) -> 264565544.9 | N242: =+SUBTOTAL(9,N235:N241) -> 12116644 | P242: =+N242/L242*100 -> 4.579826902
B244: LAUDERDALE UNIT 5
A245: 341 | B245: STRUCTURES AND IMPROVEMENTS | D245: 2033-06-30 | F245: 80 | G245: - | H245: R2 * | J245: -2 | L245: 3304987.8 | N245: 113851 | P245: 3.44
A246: 342 | B246: FUEL HOLDERS, PRODUCERS AND ACCESSORIES | D246: 2033-06-30 | F246: 50 | G246: - | H246: R1.5 * | J246: -3 | L246: 766036.02 | N246: 28512 | P246: 3.72
A247: 343 | B247: PRIME MOVERS - GENERAL | D247: 2033-06-30 | F247: 50 | G247: - | H247: R1 * | J247: -3 | L247: 130296358.8 | N247: 5111119 | P247: 3.92
A248: 343.2 | B248: PRIME MOVERS - CAPITAL SPARE PARTS | D248: 2033-06-30 | F248: 9 | G248: - | H248: L0 * | J248: 35 | L248: 24422477.67 | N248: 1807087 | P248: 7.4
A249: 344 | B249: GENERATORS | D249: 2033-06-30 | F249: 60 | G249: - | H249: R2 * | J249: -3 | L249: 32777730.66 | N249: 1111859 | P249: 3.39
A250: 345 | B250: ACCESSORY ELECTRIC EQUIPMENT | D250: 2033-06-30 | F250: 50 | G250: - | H250: R2.5 * | J250: -2 | L250: 25710169.04 | N250: 886558 | P250: 3.45
A251: 346 | B251: MISCELLANEOUS POWER PLANT EQUIPMENT | D251: 2033-06-30 | F251: 50 | G251: - | H251: S0.5 * | J251: -2 | L251: 1868249.99 | N251: 62900 | P251: 3.37
B252: TOTAL LAUDERDALE UNIT 5 | L252: =+SUBTOTAL(9,L245:L251) -> 219146010 | N252: =+SUBTOTAL(9,N245:N251) -> 9121886 | P252: =+N252/L252*100 -> 4.162469579
... 295 more rows

Sheet Table 4
A1: FLORIDA POWER AND LIGHT COMPANY
A2: OPC 002091 FPL RC-16
A3: TABLE 4. COMPARISON OF WHOLE LIFE ANNUAL DEPRECIATION RATES AND ACCRUALS FOR ELECTRIC PLANT AS OF DECEMBER 31, 2017
A4: BASED ON DEPRECIATION RATES ORDERED IN DOCKET NO. 090130-EI AND PROPOSED DEPRECIATION RATES
F7: ORDERED IN DOCKET NO. 090130-EI | R7: PROPOSED ESTIMATES
F8: PROBABLE | H8: SURVIVOR CURVE/ | N8: ANNUAL | P8: ANNUAL | R8: PROBABLE | Z8: ANNUAL | AB8: ANNUAL
D9: ORIGINAL | F9: RETIREMENT | H9: INTERIM | L9: NET | N9: DEPRECIATION | P9: DEPRECIATION | R9: RETIREMENT | X9: NET | Z9: DEPRECIATION | AB9: DEPRECIATION | AD9: INCREASE/
D10: COST | F10: DATE | H10: RETIREMENT RATE | L10: SALVAGE | N10: RATE | P10: ACCRUALS | R10: DATE | T10: SURVIVOR CURVE | X10: SALVAGE | Z10: ACCRUALS | AB10: RATE | AD10: DECREASE
D11: -1 | F11: -2 | H11: -3 | L11: -4 | N11: -5 | P11: (6)=(5)x(1) | R11: -7 | T11: -8 | X11: -9 | Z11: -10 | AB11: -11 | AD11: (12)=(11)-(6)
A13: STEAM PRODUCTION PLANT
A15: MANATEE STEAM PLANT
B17: MANATEE COMMON
A18: 311 | B18: STRUCTURES AND IMPROVEMENTS | D18: 114283077.9 | F18: 2027-06-30 | H18: 0.0032 | L18: -2 | N18: 2.1 | P18: =+ROUND(D18*N18/100,0) -> 2399945 | R18: 2028-06-30 | T18: 80 | U18: - | V18: R2 * | X18: -1 | Z18: 4415875 | AB18: 3.86 | AD18: =+Z18-P18 -> 2015930
A19: 312 | B19: BOILER PLANT EQUIPMENT | D19: 7864883.47 | F19: 2027-06-30 | H19: 0.0094 | L19: -7 | N19: 2.6 | P19: =+ROUND(D19*N19/100,0) -> 204487 | R19: 2028-06-30 | T19: 50 | U19: - | V19: S0 * | X19: -2 | Z19: 539591 | AB19: 6.86 | AD19: =+Z19-P19 -> 335104
A20: 314 | B20: TURBOGENERATOR UNITS | D20: 9839030.51 | F20: 2027-06-30 | H20: 0.012 | L20: 0 | N20: 2.6 | P20: =+ROUND(D20*N20/100,0) -> 255815 | R20: 2028-06-30 | T20: 55 | U20: - | V20: R0.5 * | X20: -1 | Z20: 363376 | AB20: 3.69 | AD20: =+Z20-P20 -> 107561
A21: 315 | B21: ACCESSORY ELECTRIC EQUIPMENT | D21: 9833462.49 | F21: 2027-06-30 | H21: 0.0052 | L21: -6 | N21: 2.4 | P21: =+ROUND(D21*N21/100,0) -> 236003 | R21: 2028-06-30 | T21: 65 | U21: - | V21: S0 * | X21: -2 | Z21: 312835 | AB21: 3.18 | AD21: =+Z21-P21 -> 76832
A22: 316 | B22: MISCELLANEOUS POWER PLANT EQUIPMENT | D22: 2498111.02 | F22: 2027-06-30 | H22: 0.0071 | L22: 0 | N22: 2.4 | P22: =+ROUND(D22*N22/100,0) -> 59955 | R22: 2028-06-30 | T22: 65 | U22: - | V22: R0.5 * | X22: 0 | Z22: 84712 | AB22: 3.39 | AD22: =+Z22-P22 -> 24757
B23: TOTAL MANATEE COMMON | D23: =+SUBTOTAL(9,D18:D22) -> 144318565.4 | N23: =+ROUND(P23/D23*100,1) -> 2.2 | P23: =+SUBTOTAL(9,P18:P22) -> 3156205 | Z23: =+SUBTOTAL(9,Z18:Z22) -> 5716389 | AB23: =+Z23/D23*100 -> 3.96095193 | AD23: =+SUBTOTAL(9,AD18:AD22) -> 2560184
B25: MANATEE UNIT 1
A26: 311 | B26: STRUCTURES AND IMPROVEMENTS | D26: 6968574.08 | F26: 2027-06-30 | H26: 0.0032 | L26: -2 | N26: 2.1 | P26: =+ROUND(D26*N26/100,0) -> 146340 | R26: 2028-06-30 | T26: 80 | U26: - | V26: R2 * | X26: -1 | Z26: 174753 | AB26: 2.51 | AD26: =+Z26-P26 -> 28413
A27: 312 | B27: BOILER PLANT EQUIPMENT | D27: 184992667.8 | F27: 2027-06-30 | H27: 0.0094 | L27: -7 | N27: 2.6 | P27: =+ROUND(D27*N27/100,0) -> 4809809 | R27: 2028-06-30 | T27: 50 | U27: - | V27: S0 * | X27: -2 | Z27: 9066830 | AB27: 4.9 | AD27: =+Z27-P27 -> 4257021
A28: 314 | B28: TURBOGENERATOR UNITS | D28: 74066120.92 | F28: 2027-06-30 | H28: 0.012 | L28: 0 | N28: 2.6 | P28: =+ROUND(D28*N28/100,0) -> 1925719 | R28: 2028-06-30 | T28: 55 | U28: - | V28: R0.5 * | X28: -1 | Z28: 3299614 | AB28: 4.45 | AD28: =+Z28-P28 -> 1373895
A29: 315 | B29: ACCESSORY ELECTRIC EQUIPMENT | D29: 14537672.54 | F29: 2027-06-30 | H29: 0.0052 | L29: -6 | N29: 2.4 | P29: =+ROUND(D29*N29/100,0) -> 348904 | R29: 2028-06-30 | T29: 65 | U29: - | V29: S0 * | X29: -2 | Z29: 686766 | AB29: 4.72 | AD29: =+Z29-P29 -> 337862
A30: 316 | B30: MISCELLANEOUS POWER PLANT EQUIPMENT | D30: 4000322.68 | F30: 2027-06-30 | H30: 0.0071 | L30: 0 | N30: 2.4 | P30: =+ROUND(D30*N30/100,0) -> 96008 | R30: 2028-06-30 | T30: 65 | U30: - | V30: R0.5 * | X30: 0 | Z30: 161896 | AB30: 4.05 | AD30: =+Z30-P30 -> 65888
B31: TOTAL MANATEE UNIT 1 | D31: =+SUBTOTAL(9,D26:D30) -> 284565358 | N31: =+ROUND(P31/D31*100,1) -> 2.6 | P31: =+SUBTOTAL(9,P26:P30) -> 7326780 | Z31: =+SUBTOTAL(9,Z26:Z30) -> 13389859 | AB31: =+Z31/D31*100 -> 4.705372113 | AD31: =+SUBTOTAL(9,AD26:AD30) -> 6063079
B33: MANATEE UNIT 2
A34: 311 | B34: STRUCTURES AND IMPROVEMENTS | D34: 5083211.03 | F34: 2027-06-30 | H34: 0.0032 | L34: -2 | N34: 2.1 | P34: =+ROUND(D34*N34/100,0) -> 106747 | R34: 2028-06-30 | T34: 80 | U34: - | V34: R2 * | X34: -1 | Z34: 129842 | AB34: 2.55 | AD34: =+Z34-P34 -> 23095
A35: 312 | B35: BOILER PLANT EQUIPMENT | D35: 187516002.4 | F35: 2027-06-30 | H35: 0.0094 | L35: -7 | N35: 2.6 | P35: =+ROUND(D35*N35/100,0) -> 4875416 | R35: 2028-06-30 | T35: 50 | U35: - | V35: S0 * | X35: -2 | Z35: 9492585 | AB35: 5.06 | AD35: =+Z35-P35 -> 4617169
A36: 314 | B36: TURBOGENERATOR UNITS | D36: 72134310.35 | F36: 2027-06-30 | H36: 0.012 | L36: 0 | N36: 2.6 | P36: =+ROUND(D36*N36/100,0) -> 1875492 | R36: 2028-06-30 | T36: 55 | U36: - | V36: R0.5 * | X36: -1 | Z36: 3031453 | AB36: 4.2 | AD36: =+Z36-P36 -> 1155961
A37: 315 | B37: ACCESSORY ELECTRIC EQUIPMENT | D37: 12511248.53 | F37: 2027-06-30 | H37: 0.0052 | L37: -6 | N37: 2.4 | P37: =+ROUND(D37*N37/100,0) -> 300270 | R37: 2028-06-30 | T37: 65 | U37: - | V37: S0 * | X37: -2 | Z37: 623025 | AB37: 4.98 | AD37: =+Z37-P37 -> 322755
A38: 316 | B38: MISCELLANEOUS POWER PLANT EQUIPMENT | D38: 3520593.83 | F38: 2027-06-30 | H38: 0.0071 | L38: 0 | N38: 2.4 | P38: =+ROUND(D38*N38/100,0) -> 84494 | R38: 2028-06-30 | T38: 65 | U38: - | V38: R0.5 * | X38: 0 | Z38: 158749 | AB38: 4.51 | AD38: =+Z38-P38 -> 74255
B39: TOTAL MANATEE UNIT 2 | D39: =+SUBTOTAL(9,D34:D38) -> 280765366.2 | N39: =+ROUND(P39/D39*100,1) -> 2.6 | P39: =+SUBTOTAL(9,P34:P38) -> 7242419 | Z39: =+SUBTOTAL(9,Z34:Z38) -> 13435654 | AB39: =+Z39/D39*100 -> 4.785367292 | AD39: =+SUBTOTAL(9,AD34:AD38) -> 6193235
A41: TOTAL MANATEE STEAM PLANT | D41: =+SUBTOTAL(9,D17:D40) -> 709649289.6 | N41: =+ROUND(P41/D41*100,1) -> 2.5 | P41: =+SUBTOTAL(9,P17:P40) -> 17725404 | Z41: =+SUBTOTAL(9,Z17:Z40) -> 32541902 | AB41: =+Z41/D41*100 -> 4.58563159 | AD41: =+SUBTOTAL(9,AD17:AD40) -> 14816498
A44: MARTIN STEAM PLANT
B46: MARTIN COMMON
A47: 311 | B47: STRUCTURES AND IMPROVEMENTS | D47: 241400701.3 | F47: 2031-06-30 | H47: 0.0032 | L47: -2 | N47: 2.1 | P47: =+ROUND(D47*N47/100,0) -> 5069415 | R47: 2031-06-30 | T47: 80 | U47: - | V47: R2 * | X47: -1 | Z47: 6289289 | AB47: 2.61 | AD47: =+Z47-P47 -> 1219874
A48: 312 | B48: BOILER PLANT EQUIPMENT | D48: 7052454.52 | F48: 2031-06-30 | H48: 0.0094 | L48: -7 | N48: 2.6 | P48: =+ROUND(D48*N48/100,0) -> 183364 | R48: 2031-06-30 | T48: 50 | U48: - | V48: S0 * | X48: -2 | Z48: 314418 | AB48: 4.46 | AD48: =+Z48-P48 -> 131054
A49: 314 | B49: TURBOGENERATOR UNITS | D49: 27411865.75 | F49: 2031-06-30 | H49: 0.012 | L49: 0 | N49: 2.6 | P49: =+ROUND(D49*N49/100,0) -> 712709 | R49: 2031-06-30 | T49: 55 | U49: - | V49: R0.5 * | X49: -1 | Z49: 970549 | AB49: 3.54 | AD49: =+Z49-P49 -> 257840
A50: 315 | B50: ACCESSORY ELECTRIC EQUIPMENT | D50: 10271933.77 | F50: 2031-06-30 | H50: 0.0052 | L50: -6 | N50: 2.4 | P50: =+ROUND(D50*N50/100,0) -> 246526 | R50: 2031-06-30 | T50: 65 | U50: - | V50: S0 * | X50: -2 | Z50: 383303 | AB50: 3.73 | AD50: =+Z50-P50 -> 136777
A51: 316 | B51: MISCELLANEOUS POWER PLANT EQUIPMENT | D51: 3879628.68 | F51: 2031-06-30 | H51: 0.0071 | L51: 0 | N51: 2.4 | P51: =+ROUND(D51*N51/100,0) -> 93111 | R51: 2031-06-30 | T51: 65 | U51: - | V51: R0.5 * | X51: 0 | Z51: 142541 | AB51: 3.67 | AD51: =+Z51-P51 -> 49430
B52: TOTAL MARTIN COMMON | D52: =+SUBTOTAL(9,D47:D51) -> 290016584.1 | N52: =+ROUND(P52/D52*100,1) -> 2.2 | P52: =+SUBTOTAL(9,P47:P51) -> 6305125 | Z52: =+SUBTOTAL(9,Z47:Z51) -> 8100100 | AB52: =+Z52/D52*100 -> 2.792978211 | AD52: =+SUBTOTAL(9,AD47:AD51) -> 1794975
B54: MARTIN PIPELINE
A55: 312 | B55: BOILER PLANT EQUIPMENT | D55: 370941.56 | F55: 2031-06-30 | H55: 0.0094 | L55: -7 | N55: 2.6 | P55: =+ROUND(D55*N55/100,0) -> 9644 | Z55: 11202 | AB55: 3.02 | AD55: =+Z55-P55 -> 1558
B56: TOTAL MARTIN PIPELINE | D56: =+SUBTOTAL(9,D55:D55) -> 370941.56 | N56: =+ROUND(P56/D56*100,1) -> 2.6 | P56: =+SUBTOTAL(9,P55:P55) -> 9644 | Z56: =+SUBTOTAL(9,Z55:Z55) -> 11202 | AD56: =+SUBTOTAL(9,AD55:AD55) -> 1558
B58: MARTIN UNIT 1
A59: 311 | B59: STRUCTURES AND IMPROVEMENTS | D59: 16367428.14 | F59: 2031-06-30 | H59: 0.0032 | L59: -2 | N59: 2.1 | P59: =+ROUND(D59*N59/100,0) -> 343716 | R59: 2031-06-30 | T59: 80 | U59: - | V59: R2 * | X59: -1 | Z59: 420126 | AB59: 2.57 | AD59: =+Z59-P59 -> 76410
A60: 312 | B60: BOILER PLANT EQUIPMENT | D60: 212347650.8 | F60: 2031-06-30 | H60: 0.0094 | L60: -7 | N60: 2.6 | P60: =+ROUND(D60*N60/100,0) -> 5521039 | R60: 2031-06-30 | T60: 50 | U60: - | V60: S0 * | X60: -2 | Z60: 8848949 | AB60: 4.17 | AD60: =+Z60-P60 -> 3327910
A61: 314 | B61: TURBOGENERATOR UNITS | D61: 89915729.92 | F61: 2031-06-30 | H61: 0.012 | L61: 0 | N61: 2.6 | P61: =+ROUND(D61*N61/100,0) -> 2337809 | R61: 2031-06-30 | T61: 55 | U61: - | V61: R0.5 * | X61: -1 | Z61: 3297804 | AB61: 3.67 | AD61: =+Z61-P61 -> 959995
A62: 315 | B62: ACCESSORY ELECTRIC EQUIPMENT | D62: 24335747.45 | F62: 2031-06-30 | H62: 0.0052 | L62: -6 | N62: 2.4 | P62: =+ROUND(D62*N62/100,0) -> 584058 | R62: 2031-06-30 | T62: 65 | U62: - | V62: S0 * | X62: -2 | Z62: 848600 | AB62: 3.49 | AD62: =+Z62-P62 -> 264542
A63: 316 | B63: MISCELLANEOUS POWER PLANT EQUIPMENT | D63: 3586002.99 | F63: 2031-06-30 | H63: 0.0071 | L63: 0 | N63: 2.4 | P63: =+ROUND(D63*N63/100,0) -> 86064 | R63: 2031-06-30 | T63: 65 | U63: - | V63: R0.5 * | X63: 0 | Z63: 136103 | AB63: 3.8 | AD63: =+Z63-P63 -> 50039
B64: TOTAL MARTIN UNIT 1 | D64: =+SUBTOTAL(9,D59:D63) -> 346552559.3 | N64: =+ROUND(P64/D64*100,1) -> 2.6 | P64: =+SUBTOTAL(9,P59:P63) -> 8872686 | Z64: =+SUBTOTAL(9,Z59:Z63) -> 13551582 | AB64: =+Z64/D64*100 -> 3.910397323 | AD64: =+SUBTOTAL(9,AD59:AD63) -> 4678896
B66: MARTIN UNIT 2
A67: 311 | B67: STRUCTURES AND IMPROVEMENTS | D67: 11241256.67 | F67: 2031-06-30 | H67: 0.0032 | L67: -2 | N67: 2.1 | P67: =+ROUND(D67*N67/100,0) -> 236066 | R67: 2031-06-30 | T67: 80 | U67: - | V67: R2 * | X67: -1 | Z67: 273240 | AB67: 2.43 | AD67: =+Z67-P67 -> 37174
A68: 312 | B68: BOILER PLANT EQUIPMENT | D68: 214665917.3 | F68: 2031-06-30 | H68: 0.0094 | L68: -7 | N68: 2.6 | P68: =+ROUND(D68*N68/100,0) -> 5581314 | R68: 2031-06-30 | T68: 50 | U68: - | V68: S0 * | X68: -2 | Z68: 9139233 | AB68: 4.26 | AD68: =+Z68-P68 -> 3557919
A69: 314 | B69: TURBOGENERATOR UNITS | D69: 82668790.6 | F69: 2031-06-30 | H69: 0.012 | L69: 0 | N69: 2.6 | P69: =+ROUND(D69*N69/100,0) -> 2149389 | R69: 2031-06-30 | T69: 55 | U69: - | V69: R0.5 * | X69: -1 | Z69: 3506431 | AB69: 4.24 | AD69: =+Z69-P69 -> 1357042
A70: 315 | B70: ACCESSORY ELECTRIC EQUIPMENT | D70: 22992822.89 | F70: 2031-06-30 | H70: 0.0052 | L70: -6 | N70: 2.4 | P70: =+ROUND(D70*N70/100,0) -> 551828 | R70: 2031-06-30 | T70: 65 | U70: - | V70: S0 * | X70: -2 | Z70: 908581 | AB70: 3.95 | AD70: =+Z70-P70 -> 356753
A71: 316 | B71: MISCELLANEOUS POWER PLANT EQUIPMENT | D71: 3273365.34 | F71: 2031-06-30 | H71: 0.0071 | L71: 0 | N71: 2.4 | P71: =+ROUND(D71*N71/100,0) -> 78561 | R71: 2031-06-30 | T71: 65 | U71: - | V71: R0.5 * | X71: 0 | Z71: 130052 | AB71: 3.97 | AD71: =+Z71-P71 -> 51491
B72: TOTAL MARTIN UNIT 2 | D72: =+SUBTOTAL(9,D67:D71) -> 334842152.8 | N72: =+ROUND(P72/D72*100,1) -> 2.6 | P72: =+SUBTOTAL(9,P67:P71) -> 8597158 | Z72: =+SUBTOTAL(9,Z67:Z71) -> 13957537 | AB72: =+Z72/D72*100 -> 4.168393042 | AD72: =+SUBTOTAL(9,AD67:AD71) -> 5360379
A74: TOTAL MARTIN STEAM PLANT | D74: =+SUBTOTAL(9,D46:D73) -> 971782237.7 | N74: =+ROUND(P74/D74*100,1) -> 2.4 | P74: =+SUBTOTAL(9,P46:P73) -> 23784613 | Z74: =+SUBTOTAL(9,Z46:Z73) -> 35620421 | AB74: =+Z74/D74*100 -> 3.665473562 | AD74: =+SUBTOTAL(9,AD46:AD73) -> 11835808
A77: SCHERER STEAM PLANT
B79: SCHERER COAL CARS
A80: 312 | B80: BOILER PLANT EQUIPMENT | D80: 33149442.2 | F80: 2039-06-30 | H80: 0.0094 | L80: -7 | N80: 2.6 | P80: =+ROUND(D80*N80/100,0) -> 861885 | R80: 2039-06-30 | T80: 50 | U80: - | V80: S0 * | X80: 0 | Z80: 942509 | AB80: 2.84 | AD80: =+Z80-P80 -> 80624
B81: TOTAL SCHERER COAL CARS | D81: =+SUBTOTAL(9,D80:D80) -> 33149442.2 | N81: =+ROUND(P81/D81*100,1) -> 2.6 | P81: =+SUBTOTAL(9,P80:P80) -> 861885 | Z81: =+SUBTOTAL(9,Z80:Z80) -> 942509 | AB81: =+Z81/D81*100 -> 2.843212246 | AD81: =+SUBTOTAL(9,AD80:AD80) -> 80624
B83: SCHERER COMMON
A84: 311 | B84: STRUCTURES AND IMPROVEMENTS | D84: 40048942.61 | F84: 2039-06-30 | H84: 0.0032 | L84: -2 | N84: 2.1 | P84: =+ROUND(D84*N84/100,0) -> 841028 | R84: 2039-06-30 | T84: 80 | U84: - | V84: R2 * | X84: -1 | Z84: 1008106 | AB84: 2.52 | AD84: =+Z84-P84 -> 167078
A85: 312 | B85: BOILER PLANT EQUIPMENT | D85: 26275279.31 | F85: 2039-06-30 | H85: 0.0094 | L85: -7 | N85: 2.6 | P85: =+ROUND(D85*N85/100,0) -> 683157 | R85: 2039-06-30 | T85: 50 | U85: - | V85: S0 * | X85: -4 | Z85: 803601 | AB85: 3.06 | AD85: =+Z85-P85 -> 120444
A86: 314 | B86: TURBOGENERATOR UNITS | D86: 4409078.75 | F86: 2039-06-30 | H86: 0.012 | L86: 0 | N86: 2.6 | P86: =+ROUND(D86*N86/100,0) -> 114636 | R86: 2039-06-30 | T86: 55 | U86: - | V86: R0.5 * | X86: -1 | Z86: 128827 | AB86: 2.92 | AD86: =+Z86-P86 -> 14191
A87: 315 | B87: ACCESSORY ELECTRIC EQUIPMENT | D87: 1246717.64 | F87: 2039-06-30 | H87: 0.0052 | L87: -6 | N87: 2.4 | P87: =+ROUND(D87*N87/100,0) -> 29921 | R87: 2039-06-30 | T87: 65 | U87: - | V87: S0 * | X87: -3 | Z87: 32913 | AB87: 2.64 | AD87: =+Z87-P87 -> 2992
A88: 316 | B88: MISCELLANEOUS POWER PLANT EQUIPMENT | D88: 3720891.68 | F88: 2039-06-30 | H88: 0.0071 | L88: 0 | N88: 2.4 | P88: =+ROUND(D88*N88/100,0) -> 89301 | R88: 2039-06-30 | T88: 65 | U88: - | V88: R0.5 * | X88: -1 | Z88: 106108 | AB88: 2.85 | AD88: =+Z88-P88 -> 16807
B89: TOTAL SCHERER COMMON | D89: =+SUBTOTAL(9,D84:D88) -> 75700909.99 | N89: =+ROUND(P89/D89*100,1) -> 2.3 | P89: =+SUBTOTAL(9,P84:P88) -> 1758043 | Z89: =+SUBTOTAL(9,Z84:Z88) -> 2079555 | AB89: =+Z89/D89*100 -> 2.747067374 | AD89: =+SUBTOTAL(9,AD84:AD88) -> 321512
B91: SCHERER COMMON UNIT 3 AND 4
A92: 311 | B92: STRUCTURES AND IMPROVEMENTS | D92: 3049496.26 | F92: 2039-06-30 | H92: 0.0032 | L92: -2 | N92: 2.2 | P92: =+ROUND(D92*N92/100,0) -> 67089 | R92: 2039-06-30 | T92: 80 | U92: - | V92: R2 * | X92: -1 | Z92: 74295 | AB92: 2.44 | AD92: =+Z92-P92 -> 7206
A93: 312 | B93: BOILER PLANT EQUIPMENT | D93: 22708657.52 | F93: 2039-06-30 | H93: 0.0094 | L93: -7 | N93: 2.7 | P93: =+ROUND(D93*N93/100,0) -> 613134 | R93: 2039-06-30 | T93: 50 | U93: - | V93: S0 * | X93: -4 | Z93: 731222 | AB93: 3.22 | AD93: =+Z93-P93 -> 118088
A94: 314 | B94: TURBOGENERATOR UNITS | D94: 2878397.99 | F94: 2039-06-30 | H94: 0.012 | L94: 0 | N94: 2.6 | P94: =+ROUND(D94*N94/100,0) -> 74838 | R94: 2039-06-30 | T94: 55 | U94: - | V94: R0.5 * | X94: -1 | Z94: 127520 | AB94: 4.43 | AD94: =+Z94-P94 -> 52682
A95: 315 | B95: ACCESSORY ELECTRIC EQUIPMENT | D95: 2865604.55 | F95: 2039-06-30 | H95: 0.0052 | L95: -6 | N95: 2.4 | P95: =+ROUND(D95*N95/100,0) -> 68775 | R95: 2039-06-30 | T95: 65 | U95: - | V95: S0 * | X95: -3 | Z95: 123128 | AB95: 4.3 | AD95: =+Z95-P95 -> 54353
B96: TOTAL SCHERER COMMON UNIT 3 AND 4 | D96: =+SUBTOTAL(9,D92:D95) -> 31502156.32 | N96: =+ROUND(P96/D96*100,1) -> 2.6 | P96: =+SUBTOTAL(9,P92:P95) -> 823836 | Z96: =+SUBTOTAL(9,Z92:Z95) -> 1056165 | AB96: =+Z96/D96*100 -> 3.352675256 | AD96: =+SUBTOTAL(9,AD92:AD95) -> 232329
B98: SCHERER UNIT 4
A99: 311 | B99: STRUCTURES AND IMPROVEMENTS | D99: 161759187.5 | F99: 2039-06-30 | H99: 0.0032 | L99: -2 | N99: 2.1 | P99: =+ROUND(D99*N99/100,0) -> 3396943 | R99: 2039-06-30 | T99: 80 | U99: - | V99: R2 * | X99: -1 | Z99: 5345828 | AB99: 3.3 | AD99: =+Z99-P99 -> 1948885
A100: 312 | B100: BOILER PLANT EQUIPMENT | D100: 682720321.1 | F100: 2039-06-30 | H100: 0.0094 | L100: -7 | N100: 2.6 | P100: =+ROUND(D100*N100/100,0) -> 17750728 | R100: 2039-06-30 | T100: 50 | U100: - | V100: S0 * | X100: -4 | Z100: 24868117 | AB100: 3.64 | AD100: =+Z100-P100 -> 7117389
A101: 314 | B101: TURBOGENERATOR UNITS | D101: 124903380.6 | F101: 2039-06-30 | H101: 0.012 | L101: 0 | N101: 2.6 | P101: =+ROUND(D101*N101/100,0) -> 3247488 | R101: 2039-06-30 | T101: 55 | U101: - | V101: R0.5 * | X101: -1 | Z101: 3607288 | AB101: 2.89 | AD101: =+Z101-P101 -> 359800
A102: 315 | B102: ACCESSORY ELECTRIC EQUIPMENT | D102: 50198263.53 | F102: 2039-06-30 | H102: 0.0052 | L102: -6 | N102: 2.4 | P102: =+ROUND(D102*N102/100,0) -> 1204758 | R102: 2039-06-30 | T102: 65 | U102: - | V102: S0 * | X102: -3 | Z102: 1712746 | AB102: 3.41 | AD102: =+Z102-P102 -> 507988
A103: 316 | B103: MISCELLANEOUS POWER PLANT EQUIPMENT | D103: 5202651.35 | F103: 2039-06-30 | H103: 0.0071 | L103: 0 | N103: 2.4 | P103: =+ROUND(D103*N103/100,0) -> 124864 | R103: 2039-06-30 | T103: 65 | U103: - | V103: R0.5 * | X103: -1 | Z103: 168161 | AB103: 3.23 | AD103: =+Z103-P103 -> 43297
B104: TOTAL SCHERER UNIT 4 | D104: =+SUBTOTAL(9,D99:D103) -> 1024783804 | N104: =+ROUND(P104/D104*100,1) -> 2.5 | P104: =+SUBTOTAL(9,P99:P103) -> 25724781 | Z104: =+SUBTOTAL(9,Z99:Z103) -> 35702140 | AB104: =+Z104/D104*100 -> 3.483870437 | AD104: =+SUBTOTAL(9,AD99:AD103) -> 9977359
A106: TOTAL SCHERER STEAM PLANT | D106: =+SUBTOTAL(9,D78:D105) -> 1165136313 | N106: =+ROUND(P106/D106*100,1) -> 2.5 | P106: =+SUBTOTAL(9,P78:P105) -> 29168545 | Z106: =+SUBTOTAL(9,Z78:Z105) -> 39780369 | AB106: =+Z106/D106*100 -> 3.414224462 | AD106: =+SUBTOTAL(9,AD78:AD105) -> 10611824
A109: SJRPP STEAM PLANT
B111: SJRPP COAL AND LIMESTONE
A112: 311 | B112: STRUCTURES AND IMPROVEMENTS | D112: 3538785.86 | F112: 2038-06-30 | H112: 0.0032 | L112: -2 | N112: 2.1 | P112: =+ROUND(D112*N112/100,0) -> 74315 | R112: 2038-06-30 | T112: 80 | U112: - | V112: R2 * | X112: -1 | Z112: 79596 | AB112: 2.25 | AD112: =+Z112-P112 -> 5281
A113: 312 | B113: BOILER PLANT EQUIPMENT | D113: 30678751.75 | F113: 2038-06-30 | H113: 0.0094 | L113: -7 | N113: 2.6 | P113: =+ROUND(D113*N113/100,0) -> 797648 | R113: 2038-06-30 | T113: 50 | U113: - | V113: S0 * | X113: -4 | Z113: 847002 | AB113: 2.76 | AD113: =+Z113-P113 -> 49354
A114: 315 | B114: ACCESSORY ELECTRIC EQUIPMENT | D114: 3748249.87 | F114: 2038-06-30 | H114: 0.0052 | L114: -6 | N114: 2.4 | P114: =+ROUND(D114*N114/100,0) -> 89958 | R114: 2038-06-30 | T114: 65 | U114: - | V114: S0 * | X114: -3 | Z114: 91308 | AB114: 2.44 | AD114: =+Z114-P114 -> 1350
A115: 316 | B115: MISCELLANEOUS POWER PLANT EQUIPMENT | D115: 298312.17 | F115: 2038-06-30 | H115: 0.0071 | L115: 0 | N115: 2.4 | P115: =+ROUND(D115*N115/100,0) -> 7159 | R115: 2038-06-30 | T115: 65 | U115: - | V115: R0.5 * | X115: -1 | Z115: 7148 | AB115: 2.4 | AD115: =+Z115-P115 -> -11
B116: TOTAL SJRPP COAL AND LIMESTONE | D116: =+SUBTOTAL(9,D112:D115) -> 38264099.65 | N116: =+ROUND(P116/D116*100,1) -> 2.5 | P116: =+SUBTOTAL(9,P112:P115) -> 969080 | Z116: =+SUBTOTAL(9,Z112:Z115) -> 1025054 | AB116: =+Z116/D116*100 -> 2.67889225 | AD116: =+SUBTOTAL(9,AD112:AD115) -> 55974
B118: SJRPP COAL CARS
A119: 312 | B119: BOILER PLANT EQUIPMENT | D119: 52104.91 | F119: 2038-06-30 | H119: 0.0094 | L119: -7 | N119: 2.6 | P119: =+ROUND(D119*N119/100,0) -> 1355 | R119: 2038-06-30 | T119: 50 | U119: - | V119: S0 * | X119: 0 | Z119: 1339 | AB119: 2.57 | AD119: =+Z119-P119 -> -16
B120: TOTAL SJRPP COAL CARS | D120: =+SUBTOTAL(9,D119:D119) -> 52104.91 | N120: =+ROUND(P120/D120*100,1) -> 2.6 | P120: =+SUBTOTAL(9,P119:P119) -> 1355 | Z120: =+SUBTOTAL(9,Z119:Z119) -> 1339 | AB120: =+Z120/D120*100 -> 2.569815397 | AD120: =+SUBTOTAL(9,AD119:AD119) -> -16
B122: SJRPP COMMON
A123: 311 | B123: STRUCTURES AND IMPROVEMENTS | D123: 33324990.64 | F123: 2038-06-30 | H123: 0.0032 | L123: -2 | N123: 2.1 | P123: =+ROUND(D123*N123/100,0) -> 699825 | R123: 2038-06-30 | T123: 80 | U123: - | V123: R2 * | X123: -1 | Z123: 785929 | AB123: 2.36 | AD123: =+Z123-P123 -> 86104
A124: 312 | B124: BOILER PLANT EQUIPMENT | D124: 3714735.93 | F124: 2038-06-30 | H124: 0.0094 | L124: -7 | N124: 2.6 | P124: =+ROUND(D124*N124/100,0) -> 96583 | R124: 2038-06-30 | T124: 50 | U124: - | V124: S0 * | X124: -4 | Z124: 108192 | AB124: 2.91 | AD124: =+Z124-P124 -> 11609
A125: 314 | B125: TURBOGENERATOR UNITS | D125: 2511326.32 | F125: 2038-06-30 | H125: 0.012 | L125: 0 | N125: 2.6 | P125: =+ROUND(D125*N125/100,0) -> 65294 | R125: 2038-06-30 | T125: 55 | U125: - | V125: R0.5 * | X125: -1 | Z125: 65168 | AB125: 2.59 | AD125: =+Z125-P125 -> -126
A126: 315 | B126: ACCESSORY ELECTRIC EQUIPMENT | D126: 5865106.8 | F126: 2038-06-30 | H126: 0.0052 | L126: -6 | N126: 2.4 | P126: =+ROUND(D126*N126/100,0) -> 140763 | R126: 2038-06-30 | T126: 65 | U126: - | V126: S0 * | X126: -3 | Z126: 149388 | AB126: 2.55 | AD126: =+Z126-P126 -> 8625
A127: 316 | B127: MISCELLANEOUS POWER PLANT EQUIPMENT | D127: 1607470.4 | F127: 2038-06-30 | H127: 0.0071 | L127: 0 | N127: 2.4 | P127: =+ROUND(D127*N127/100,0) -> 38579 | R127: 2038-06-30 | T127: 65 | U127: - | V127: R0.5 * | X127: -1 | Z127: 43309 | AB127: 2.69 | AD127: =+Z127-P127 -> 4730
B128: TOTAL SJRPP COMMON | D128: =+SUBTOTAL(9,D123:D127) -> 47023630.09 | N128: =+ROUND(P128/D128*100,1) -> 2.2 | P128: =+SUBTOTAL(9,P123:P127) -> 1041044 | Z128: =+SUBTOTAL(9,Z123:Z127) -> 1151986 | AB128: =+Z128/D128*100 -> 2.449802361 | AD128: =+SUBTOTAL(9,AD123:AD127) -> 110942
B130: SJRPP GYPSUM AND ASH
A131: 311 | B131: STRUCTURES AND IMPROVEMENTS | D131: 2158590.42 | F131: 2038-06-30 | H131: 0.0032 | L131: -2 | N131: 2.1 | P131: =+ROUND(D131*N131/100,0) -> 45330 | R131: 2038-06-30 | T131: 80 | U131: - | V131: R2 * | X131: -1 | Z131: 50250 | AB131: 2.33 | AD131: =+Z131-P131 -> 4920
A132: 312 | B132: BOILER PLANT EQUIPMENT | D132: 16972047.61 | F132: 2038-06-30 | H132: 0.0094 | L132: -7 | N132: 2.6 | P132: =+ROUND(D132*N132/100,0) -> 441273 | R132: 2038-06-30 | T132: 50 | U132: - | V132: S0 * | X132: -4 | Z132: 458090 | AB132: 2.7 | AD132: =+Z132-P132 -> 16817
A133: 315 | B133: ACCESSORY ELECTRIC EQUIPMENT | D133: 52222.78 | F133: 2038-06-30 | H133: 0.0052 | L133: -6 | N133: 2.4 | P133: =+ROUND(D133*N133/100,0) -> 1253 | R133: 2038-06-30 | T133: 65 | U133: - | V133: S0 * | X133: -3 | Z133: 1353 | AB133: 2.59 | AD133: =+Z133-P133 -> 100
A134: 316 | B134: MISCELLANEOUS POWER PLANT EQUIPMENT | D134: 153865.69 | F134: 2038-06-30 | H134: 0.0071 | L134: 0 | N134: 2.4 | P134: =+ROUND(D134*N134/100,0) -> 3693 | R134: 2038-06-30 | T134: 65 | U134: - | V134: R0.5 * | X134: -1 | Z134: 4644 | AB134: 3.02 | AD134: =+Z134-P134 -> 951
B135: TOTAL SJRPP GYPSUM AND ASH | D135: =+SUBTOTAL(9,D131:D134) -> 19336726.5 | N135: =+ROUND(P135/D135*100,1) -> 2.5 | P135: =+SUBTOTAL(9,P131:P134) -> 491549 | Z135: =+SUBTOTAL(9,Z131:Z134) -> 514337 | AB135: =+Z135/D135*100 -> 2.659896958 | AD135: =+SUBTOTAL(9,AD131:AD134) -> 22788
B137: SJRPP UNIT 1
A138: 311 | B138: STRUCTURES AND IMPROVEMENTS | D138: 9098352.49 | F138: 2038-06-30 | H138: 0.0032 | L138: -2 | N138: 2.1 | P138: =+ROUND(D138*N138/100,0) -> 191065 | R138: 2038-06-30 | T138: 80 | U138: - | V138: R2 * | X138: -1 | Z138: 200634 | AB138: 2.21 | AD138: =+Z138-P138 -> 9569
A139: 312 | B139: BOILER PLANT EQUIPMENT | D139: 100163071.9 | F139: 2038-06-30 | H139: 0.0094 | L139: -7 | N139: 2.6 | P139: =+ROUND(D139*N139/100,0) -> 2604240 | R139: 2038-06-30 | T139: 50 | U139: - | V139: S0 * | X139: -4 | Z139: 3116984 | AB139: 3.11 | AD139: =+Z139-P139 -> 512744
A140: 314 | B140: TURBOGENERATOR UNITS | D140: 31632809.4 | F140: 2038-06-30 | H140: 0.012 | L140: 0 | N140: 2.6 | P140: =+ROUND(D140*N140/100,0) -> 822453 | R140: 2038-06-30 | T140: 55 | U140: - | V140: R0.5 * | X140: -1 | Z140: 1015238 | AB140: 3.21 | AD140: =+Z140-P140 -> 192785
A141: 315 | B141: ACCESSORY ELECTRIC EQUIPMENT | D141: 12543007.01 | F141: 2038-06-30 | H141: 0.0052 | L141: -6 | N141: 2.4 | P141: =+ROUND(D141*N141/100,0) -> 301032 | R141: 2038-06-30 | T141: 65 | U141: - | V141: S0 * | X141: -3 | Z141: 329472 | AB141: 2.63 | AD141: =+Z141-P141 -> 28440
A142: 316 | B142: MISCELLANEOUS POWER PLANT EQUIPMENT | D142: 2049400.34 | F142: 2038-06-30 | H142: 0.0071 | L142: 0 | N142: 2.4 | P142: =+ROUND(D142*N142/100,0) -> 49186 | R142: 2038-06-30 | T142: 65 | U142: - | V142: R0.5 * | X142: -1 | Z142: 51999 | AB142: 2.54 | AD142: =+Z142-P142 -> 2813
B143: TOTAL SJRPP UNIT 1 | D143: =+SUBTOTAL(9,D138:D142) -> 155486641.2 | N143: =+ROUND(P143/D143*100,1) -> 2.6 | P143: =+SUBTOTAL(9,P138:P142) -> 3967976 | Z143: =+SUBTOTAL(9,Z138:Z142) -> 4714327 | AB143: =+Z143/D143*100 -> 3.031982018 | AD143: =+SUBTOTAL(9,AD138:AD142) -> 746351
B145: SJRPP UNIT 2
A146: 311 | B146: STRUCTURES AND IMPROVEMENTS | D146: 7123662.16 | F146: 2038-06-30 | H146: 0.0032 | L146: -2 | N146: 2.1 | P146: =+ROUND(D146*N146/100,0) -> 149597 | R146: 2038-06-30 | T146: 80 | U146: - | V146: R2 * | X146: -1 | Z146: 154254 | AB146: 2.17 | AD146: =+Z146-P146 -> 4657
A147: 312 | B147: BOILER PLANT EQUIPMENT | D147: 89481418.8 | F147: 2038-06-30 | H147: 0.0094 | L147: -7 | N147: 2.6 | P147: =+ROUND(D147*N147/100,0) -> 2326517 | R147: 2038-06-30 | T147: 50 | U147: - | V147: S0 * | X147: -4 | Z147: 2765419 | AB147: 3.09 | AD147: =+Z147-P147 -> 438902
A148: 314 | B148: TURBOGENERATOR UNITS | D148: 28267581.84 | F148: 2038-06-30 | H148: 0.012 | L148: 0 | N148: 2.6 | P148: =+ROUND(D148*N148/100,0) -> 734957 | R148: 2038-06-30 | T148: 55 | U148: - | V148: R0.5 * | X148: -1 | Z148: 906800 | AB148: 3.21 | AD148: =+Z148-P148 -> 171843
A149: 315 | B149: ACCESSORY ELECTRIC EQUIPMENT | D149: 10030603.41 | F149: 2038-06-30 | H149: 0.0052 | L149: -6 | N149: 2.4 | P149: =+ROUND(D149*N149/100,0) -> 240734 | R149: 2038-06-30 | T149: 65 | U149: - | V149: S0 * | X149: -3 | Z149: 256107 | AB149: 2.55 | AD149: =+Z149-P149 -> 15373
A150: 316 | B150: MISCELLANEOUS POWER PLANT EQUIPMENT | D150: 1560108.42 | F150: 2038-06-30 | H150: 0.0071 | L150: 0 | N150: 2.4 | P150: =+ROUND(D150*N150/100,0) -> 37443 | R150: 2038-06-30 | T150: 65 | U150: - | V150: R0.5 * | X150: -1 | Z150: 38842 | AB150: 2.49 | AD150: =+Z150-P150 -> 1399
B151: TOTAL SJRPP UNIT 2 | D151: =+SUBTOTAL(9,D146:D150) -> 136463374.6 | N151: =+ROUND(P151/D151*100,1) -> 2.6 | P151: =+SUBTOTAL(9,P146:P150) -> 3489248 | Z151: =+SUBTOTAL(9,Z146:Z150) -> 4121422 | AB151: =+Z151/D151*100 -> 3.020167141 | AD151: =+SUBTOTAL(9,AD146:AD150) -> 632174
A153: TOTAL SJRPP STEAM PLANT | D153: =+SUBTOTAL(9,D111:D152) -> 396626576.9 | N153: =+ROUND(P153/D153*100,1) -> 2.5 | P153: =+SUBTOTAL(9,P111:P152) -> 9960252 | Z153: =+SUBTOTAL(9,Z111:Z152) -> 11528465 | AB153: =+Z153/D153*100 -> 2.906629477 | AD153: =+SUBTOTAL(9,AD111:AD152) -> 1568213
A155: TOTAL STEAM PRODUCTION | D155: =+SUBTOTAL(9,D15:D154) -> 3243194417 | N155: =+ROUND(P155/D155*100,1) -> 2.5 | P155: =+SUBTOTAL(9,P15:P154) -> 80638814 | Z155: =+SUBTOTAL(9,Z15:Z154) -> 119471157 | AB155: =+Z155/D155*100 -> 3.683749466 | AD155: =+SUBTOTAL(9,AD15:AD154) -> 38832343
A158: NUCLEAR PRODUCTION PLANT
A160: ST. LUCIE NUCLEAR PLANT
B162: ST. LUCIE COMMON
A163: 321 | B163: STRUCTURES AND IMPROVEMENTS | D163: 397119195.7 | F163: 2043-06-30 | H163: 0.0028 | L163: 0 | N163: 1.8 | P163: =+ROUND(D163*N163/100,0) -> 7148146 | R163: 2043-04-30 | T163: 100 | U163: - | V163: R1.5 * | X163: -1 | Z163: 9094889 | AB163: 2.29 | AD163: =+Z163-P163 -> 1946743
A164: 322 | B164: REACTOR PLANT EQUIPMENT | D164: 55584106.71 | F164: 2043-06-30 | H164: 0.0056 | L164: -2 | N164: 2 | P164: =+ROUND(D164*N164/100,0) -> 1111682 | R164: 2043-04-30 | T164: 60 | U164: - | V164: R1 * | X164: -2 | Z164: 1665151 | AB164: 3 | AD164: =+Z164-P164 -> 553469
A165: 323 | B165: TURBOGENERATOR UNITS | D165: 12406915.97 | F165: 2043-06-30 | H165: 0.0138 | L165: 0 | N165: 2.4 | P165: =+ROUND(D165*N165/100,0) -> 297766 | R165: 2043-04-30 | T165: 45 | U165: - | V165: R0.5 * | X165: 0 | Z165: 431895 | AB165: 3.48 | AD165: =+Z165-P165 -> 134129
A166: 324 | B166: ACCESSORY ELECTRIC EQUIPMENT | D166: 34379625.87 | F166: 2043-06-30 | H166: 0.0012 | L166: -2 | N166: 1.8 | P166: =+ROUND(D166*N166/100,0) -> 618833 | R166: 2043-04-30 | T166: 75 | U166: - | V166: R2.5 * | X166: -1 | Z166: 756459 | AB166: 2.2 | AD166: =+Z166-P166 -> 137626
A167: 325 | B167: MISCELLANEOUS POWER PLANT EQUIPMENT | D167: 20728940.61 | F167: 2043-06-30 | H167: 0.0032 | L167: 0 | N167: 1.8 | P167: =+ROUND(D167*N167/100,0) -> 373121 | R167: 2043-04-30 | T167: 50 | U167: - | V167: R1.5 * | X167: -3 | Z167: 611062 | AB167: 2.95 | AD167: =+Z167-P167 -> 237941
B168: TOTAL ST. LUCIE COMMON | D168: =+SUBTOTAL(9,D163:D167) -> 520218784.8 | N168: =+ROUND(P168/D168*100,1) -> 1.8 | P168: =+SUBTOTAL(9,P163:P167) -> 9549548 | Z168: =+SUBTOTAL(9,Z163:Z167) -> 12559456 | AB168: =+Z168/D168*100 -> 2.414264222 | AD168: =+SUBTOTAL(9,AD163:AD167) -> 3009908
B170: ST. LUCIE UNIT 1
A171: 321 | B171: STRUCTURES AND IMPROVEMENTS | D171: 196854866.3 | F171: 2036-06-30 | H171: 0.0028 | L171: 0 | N171: 1.8 | P171: =+ROUND(D171*N171/100,0) -> 3543388 | R171: 2036-03-31 | T171: 100 | U171: - | V171: R1.5 * | X171: -1 | Z171: 5456908 | AB171: 2.77 | AD171: =+Z171-P171 -> 1913520
A172: 322 | B172: REACTOR PLANT EQUIPMENT | D172: 845363775 | F172: 2036-06-30 | H172: 0.0056 | L172: -2 | N172: 2 | P172: =+ROUND(D172*N172/100,0) -> 16907276 | R172: 2036-03-31 | T172: 60 | U172: - | V172: R1 * | X172: -2 | Z172: 31576691 | AB172: 3.74 | AD172: =+Z172-P172 -> 14669415
A173: 323 | B173: TURBOGENERATOR UNITS | D173: 413333703.6 | F173: 2036-06-30 | H173: 0.0138 | L173: 0 | N173: 2.4 | P173: =+ROUND(D173*N173/100,0) -> 9920009 | R173: 2036-03-31 | T173: 45 | U173: - | V173: R0.5 * | X173: 0 | Z173: 18554218 | AB173: 4.49 | AD173: =+Z173-P173 -> 8634209
A174: 324 | B174: ACCESSORY ELECTRIC EQUIPMENT | D174: 120786348.1 | F174: 2036-06-30 | H174: 0.0012 | L174: -2 | N174: 1.8 | P174: =+ROUND(D174*N174/100,0) -> 2174154 | R174: 2036-03-31 | T174: 75 | U174: - | V174: R2.5 * | X174: -1 | Z174: 3731554 | AB174: 3.09 | AD174: =+Z174-P174 -> 1557400
A175: 325 | B175: MISCELLANEOUS POWER PLANT EQUIPMENT | D175: 11438745.22 | F175: 2036-06-30 | H175: 0.0032 | L175: 0 | N175: 1.8 | P175: =+ROUND(D175*N175/100,0) -> 205897 | R175: 2036-03-31 | T175: 50 | U175: - | V175: R1.5 * | X175: -3 | Z175: 301949 | AB175: 2.64 | AD175: =+Z175-P175 -> 96052
B176: TOTAL ST. LUCIE UNIT 1 | D176: =+SUBTOTAL(9,D171:D175) -> 1587777438 | N176: =+ROUND(P176/D176*100,1) -> 2.1 | P176: =+SUBTOTAL(9,P171:P175) -> 32750724 | Z176: =+SUBTOTAL(9,Z171:Z175) -> 59621320 | AB176: =+Z176/D176*100 -> 3.755017458 | AD176: =+SUBTOTAL(9,AD171:AD175) -> 26870596
B178: ST. LUCIE UNIT 2
A179: 321 | B179: STRUCTURES AND IMPROVEMENTS | D179: 298911837.3 | F179: 2043-06-30 | H179: 0.0028 | L179: 0 | N179: 1.8 | P179: =+ROUND(D179*N179/100,0) -> 5380413 | R179: 2043-04-30 | T179: 100 | U179: - | V179: R1.5 * | X179: -1 | Z179: 6567385 | AB179: 2.2 | AD179: =+Z179-P179 -> 1186972
A180: 322 | B180: REACTOR PLANT EQUIPMENT | D180: 1057336501 | F180: 2043-06-30 | H180: 0.0056 | L180: -2 | N180: 2 | P180: =+ROUND(D180*N180/100,0) -> 21146730 | R180: 2043-04-30 | T180: 60 | U180: - | V180: R1 * | X180: -2 | Z180: 30941504 | AB180: 2.93 | AD180: =+Z180-P180 -> 9794774
A181: 323 | B181: TURBOGENERATOR UNITS | D181: 350466490.1 | F181: 2043-06-30 | H181: 0.0138 | L181: 0 | N181: 2.4 | P181: =+ROUND(D181*N181/100,0) -> 8411196 | R181: 2043-04-30 | T181: 45 | U181: - | V181: R0.5 * | X181: 0 | Z181: 12304351 | AB181: 3.51 | AD181: =+Z181-P181 -> 3893155
A182: 324 | B182: ACCESSORY ELECTRIC EQUIPMENT | D182: 189637024.6 | F182: 2043-06-30 | H182: 0.0012 | L182: -2 | N182: 1.8 | P182: =+ROUND(D182*N182/100,0) -> 3413466 | R182: 2043-04-30 | T182: 75 | U182: - | V182: R2.5 * | X182: -1 | Z182: 4061030 | AB182: 2.14 | AD182: =+Z182-P182 -> 647564
A183: 325 | B183: MISCELLANEOUS POWER PLANT EQUIPMENT | D183: 24225433.39 | F183: 2043-06-30 | H183: 0.0032 | L183: 0 | N183: 1.8 | P183: =+ROUND(D183*N183/100,0) -> 436058 | R183: 2043-04-30 | T183: 50 | U183: - | V183: R1.5 * | X183: -3 | Z183: 595520 | AB183: 2.46 | AD183: =+Z183-P183 -> 159462
B184: TOTAL ST. LUCIE UNIT 2 | D184: =+SUBTOTAL(9,D179:D183) -> 1920577286 | N184: =+ROUND(P184/D184*100,1) -> 2 | P184: =+SUBTOTAL(9,P179:P183) -> 38787863 | Z184: =+SUBTOTAL(9,Z179:Z183) -> 54469790 | AB184: =+Z184/D184*100 -> 2.836115494 | AD184: =+SUBTOTAL(9,AD179:AD183) -> 15681927
A186: TOTAL ST. LUCIE NUCLEAR PLANT | D186: =+SUBTOTAL(9,D163:D185) -> 4028573509 | N186: =+ROUND(P186/D186*100,1) -> 2 | P186: =+SUBTOTAL(9,P163:P185) -> 81088135 | Z186: =+SUBTOTAL(9,Z163:Z185) -> 126650566 | AB186: =+Z186/D186*100 -> 3.143806752 | AD186: =+SUBTOTAL(9,AD163:AD185) -> 45562431
A189: TURKEY POINT NUCLEAR PLANT
B191: TURKEY POINT COMMON
A192: 321 | B192: STRUCTURES AND IMPROVEMENTS | D192: 380704673.4 | F192: 2033-06-30 | H192: 0.0028 | L192: 0 | N192: 1.8 | P192: =+ROUND(D192*N192/100,0) -> 6852684 | R192: 2033-04-30 | T192: 100 | U192: - | V192: R1.5 * | X192: -1 | Z192: 14422958 | AB192: 3.79 | AD192: =+Z192-P192 -> 7570274
A193: 322 | B193: REACTOR PLANT EQUIPMENT | D193: 144884580.2 | F193: 2033-06-30 | H193: 0.0056 | L193: -2 | N193: 2 | P193: =+ROUND(D193*N193/100,0) -> 2897692 | R193: 2033-04-30 | T193: 60 | U193: - | V193: R1 * | X193: -2 | Z193: 7197397 | AB193: 4.97 | AD193: =+Z193-P193 -> 4299705
A194: 323 | B194: TURBOGENERATOR UNITS | D194: 22821885.52 | F194: 2033-06-30 | H194: 0.0138 | L194: 0 | N194: 2.4 | P194: =+ROUND(D194*N194/100,0) -> 547725 | R194: 2033-04-30 | T194: 45 | U194: - | V194: R0.5 * | X194: 0 | Z194: 1129284 | AB194: 4.95 | AD194: =+Z194-P194 -> 581559
A195: 324 | B195: ACCESSORY ELECTRIC EQUIPMENT | D195: 56769857.59 | F195: 2033-06-30 | H195: 0.0012 | L195: -2 | N195: 1.8 | P195: =+ROUND(D195*N195/100,0) -> 1021857 | R195: 2033-04-30 | T195: 75 | U195: - | V195: R2.5 * | X195: -1 | Z195: 1959578 | AB195: 3.45 | AD195: =+Z195-P195 -> 937721
A196: 325 | B196: MISCELLANEOUS POWER PLANT EQUIPMENT | D196: 39215641.06 | F196: 2033-06-30 | H196: 0.0032 | L196: 0 | N196: 1.8 | P196: =+ROUND(D196*N196/100,0) -> 705882 | R196: 2033-04-30 | T196: 50 | U196: - | V196: R1.5 * | X196: -3 | Z196: 1687193 | AB196: 4.3 | AD196: =+Z196-P196 -> 981311
B197: TOTAL TURKEY POINT COMMON | D197: =+SUBTOTAL(9,D192:D196) -> 644396637.8 | N197: =+ROUND(P197/D197*100,1) -> 1.9 | P197: =+SUBTOTAL(9,P192:P196) -> 12025840 | Z197: =+SUBTOTAL(9,Z192:Z196) -> 26396410 | AB197: =+Z197/D197*100 -> 4.09629853 | AD197: =+SUBTOTAL(9,AD192:AD196) -> 14370570
B199: TURKEY POINT UNIT 3
A200: 321 | B200: STRUCTURES AND IMPROVEMENTS | D200: 185601316.1 | F200: 2032-06-30 | H200: 0.0028 | L200: 0 | N200: 1.8 | P200: =+ROUND(D200*N200/100,0) -> 3340824 | R200: 2032-07-31 | T200: 100 | U200: - | V200: R1.5 * | X200: -1 | Z200: 8521127 | AB200: 4.59 | AD200: =+Z200-P200 -> 5180303
A201: 322 | B201: REACTOR PLANT EQUIPMENT | D201: 595235354.2 | F201: 2032-06-30 | H201: 0.0056 | L201: -2 | N201: 2 | P201: =+ROUND(D201*N201/100,0) -> 11904707 | R201: 2032-07-31 | T201: 60 | U201: - | V201: R1 * | X201: -2 | Z201: 26935602 | AB201: 4.53 | AD201: =+Z201-P201 -> 15030895
A202: 323 | B202: TURBOGENERATOR UNITS | D202: 758820503.5 | F202: 2032-06-30 | H202: 0.0138 | L202: 0 | N202: 2.4 | P202: =+ROUND(D202*N202/100,0) -> 18211692 | R202: 2032-07-31 | T202: 45 | U202: - | V202: R0.5 * | X202: 0 | Z202: 40789809 | AB202: 5.38 | AD202: =+Z202-P202 -> 22578117
A203: 324 | B203: ACCESSORY ELECTRIC EQUIPMENT | D203: 153810947.6 | F203: 2032-06-30 | H203: 0.0012 | L203: -2 | N203: 1.8 | P203: =+ROUND(D203*N203/100,0) -> 2768597 | R203: 2032-07-31 | T203: 75 | U203: - | V203: R2.5 * | X203: -1 | Z203: 5468395 | AB203: 3.56 | AD203: =+Z203-P203 -> 2699798
A204: 325 | B204: MISCELLANEOUS POWER PLANT EQUIPMENT | D204: 16088187.86 | F204: 2032-06-30 | H204: 0.0032 | L204: 0 | N204: 1.8 | P204: =+ROUND(D204*N204/100,0) -> 289587 | R204: 2032-07-31 | T204: 50 | U204: - | V204: R1.5 * | X204: -3 | Z204: 834922 | AB204: 5.19 | AD204: =+Z204-P204 -> 545335
B205: TOTAL TURKEY POINT UNIT 3 | D205: =+SUBTOTAL(9,D200:D204) -> 1709556309 | N205: =+ROUND(P205/D205*100,1) -> 2.1 | P205: =+SUBTOTAL(9,P200:P204) -> 36515407 | Z205: =+SUBTOTAL(9,Z200:Z204) -> 82549855 | AB205: =+Z205/D205*100 -> 4.828729803 | AD205: =+SUBTOTAL(9,AD200:AD204) -> 46034448
B207: TURKEY POINT UNIT 4
A208: 321 | B208: STRUCTURES AND IMPROVEMENTS | D208: 129681129.7 | F208: 2033-06-30 | H208: 0.0028 | L208: 0 | N208: 1.8 | P208: =+ROUND(D208*N208/100,0) -> 2334260 | R208: 2033-04-30 | T208: 100 | U208: - | V208: R1.5 * | X208: -1 | Z208: 5020912 | AB208: 3.87 | AD208: =+Z208-P208 -> 2686652
A209: 322 | B209: REACTOR PLANT EQUIPMENT | D209: 518893110.5 | F209: 2033-06-30 | H209: 0.0056 | L209: -2 | N209: 2 | P209: =+ROUND(D209*N209/100,0) -> 10377862 | R209: 2033-04-30 | T209: 60 | U209: - | V209: R1 * | X209: -2 | Z209: 22427967 | AB209: 4.32 | AD209: =+Z209-P209 -> 12050105
A210: 323 | B210: TURBOGENERATOR UNITS | D210: 601429270.4 | F210: 2033-06-30 | H210: 0.0138 | L210: 0 | N210: 2.4 | P210: =+ROUND(D210*N210/100,0) -> 14434302 | R210: 2033-04-30 | T210: 45 | U210: - | V210: R0.5 * | X210: 0 | Z210: 31775840 | AB210: 5.28 | AD210: =+Z210-P210 -> 17341538
A211: 324 | B211: ACCESSORY ELECTRIC EQUIPMENT | D211: 177722654 | F211: 2033-06-30 | H211: 0.0012 | L211: -2 | N211: 1.8 | P211: =+ROUND(D211*N211/100,0) -> 3199008 | R211: 2033-04-30 | T211: 75 | U211: - | V211: R2.5 * | X211: -1 | Z211: 5469807 | AB211: 3.08 | AD211: =+Z211-P211 -> 2270799
A212: 325 | B212: MISCELLANEOUS POWER PLANT EQUIPMENT | D212: 12121306.1 | F212: 2033-06-30 | H212: 0.0032 | L212: 0 | N212: 1.8 | P212: =+ROUND(D212*N212/100,0) -> 218184 | R212: 2033-04-30 | T212: 50 | U212: - | V212: R1.5 * | X212: -3 | Z212: 571133 | AB212: 4.71 | AD212: =+Z212-P212 -> 352949
B213: TOTAL TURKEY POINT UNIT 4 | D213: =+SUBTOTAL(9,D208:D212) -> 1439847471 | N213: =+ROUND(P213/D213*100,1) -> 2.1 | P213: =+SUBTOTAL(9,P208:P212) -> 30563616 | Z213: =+SUBTOTAL(9,Z208:Z212) -> 65265659 | AB213: =+Z213/D213*100 -> 4.532817561 | AD213: =+SUBTOTAL(9,AD208:AD212) -> 34702043
A215: TOTAL TURKEY POINT NUCLEAR PLANT | D215: =+SUBTOTAL(9,D191:D214) -> 3793800418 | N215: =+ROUND(P215/D215*100,1) -> 2.1 | P215: =+SUBTOTAL(9,P191:P214) -> 79104863 | Z215: =+SUBTOTAL(9,Z191:Z214) -> 174211924 | AB215: =+Z215/D215*100 -> 4.592016048 | AD215: =+SUBTOTAL(9,AD191:AD214) -> 95107061
A217: TOTAL NUCLEAR PRODUCTION PLANT | D217: =+SUBTOTAL(9,D163:D216) -> 7822373927 | N217: =+ROUND(P217/D217*100,1) -> 2 | P217: =+SUBTOTAL(9,P163:P216) -> 160192998 | Z217: =+SUBTOTAL(9,Z163:Z216) -> 300862490 | AB217: =+Z217/D217*100 -> 3.84617883 | AD217: =+SUBTOTAL(9,AD163:AD216) -> 140669492
A220: COMBINED CYCLE PRODUCTION PLANT
A222: LAUDERDALE COMBINED CYCLE PLANT
B224: LAUDERDALE COMMON
A225: 341 | B225: STRUCTURES AND IMPROVEMENTS | D225: 87455288.39 | F225: 2023-06-30 | H225: 0.0023 | L225: -2 | N225: 3.5 | P225: =+ROUND(D225*N225/100,0) -> 3060935 | R225: 2033-06-30 | T225: 80 | U225: - | V225: R2 * | X225: -2 | Z225: 2882818 | AB225: 3.3 | AD225: =+Z225-P225 -> -178117
A226: 342 | B226: FUEL HOLDERS, PRODUCERS AND ACCESSORIES | D226: 11879794.88 | F226: 2023-06-30 | H226: 0.0095 | L226: 0 | N226: 3.8 | P226: 451432 | R226: 2033-06-30 | T226: 50 | U226: - | V226: R1.5 * | X226: -3 | Z226: 458704 | AB226: 3.86 | AD226: =+Z226-P226 -> 7272
A227: 343 | B227: PRIME MOVERS - GENERAL | D227: 29161925.58 | F227: 2023-06-30 | H227: 0.0057 | L227: 0 | N227: 6 | P227: 1749716 | R227: 2033-06-30 | T227: 50 | U227: - | V227: R1 * | X227: -3 | Z227: 1685161 | AB227: 5.78 | AD227: =+Z227-P227 -> -64555
A228: 343.2 | B228: PRIME MOVERS - CAPITAL SPARE PARTS | D228: 37564239.13 | F228: 2023-06-30 | H228: 0.1565 | L228: 0 | N228: 6 | P228: 2253854 | R228: 2033-06-30 | T228: 9 | U228: - | V228: L0 * | X228: 35 | Z228: 2760417 | AB228: 7.35 | AD228: 506563
A229: 344 | B229: GENERATORS | D229: 702077.8 | F229: 2023-06-30 | H229: 0.0016 | L229: -1 | N229: 3.4 | P229: 23871 | R229: 2033-06-30 | T229: 60 | U229: - | V229: R2 * | X229: -3 | Z229: 26867 | AB229: 3.83 | AD229: =+Z229-P229 -> 2996
A230: 345 | B230: ACCESSORY ELECTRIC EQUIPMENT | D230: 12506640.1 | F230: 2023-06-30 | H230: 0.0013 | L230: -1 | N230: 3.4 | P230: 425226 | R230: 2033-06-30 | T230: 50 | U230: - | V230: R2.5 * | X230: -2 | Z230: 382947 | AB230: 3.06 | AD230: =+Z230-P230 -> -42279
A231: 346 | B231: MISCELLANEOUS POWER PLANT EQUIPMENT | D231: 1273680.52 | F231: 2023-06-30 | H231: 0.0026 | L231: 0 | N231: 3.4 | P231: 43305 | R231: 2033-06-30 | T231: 50 | U231: - | V231: S0.5 * | X231: -2 | Z231: 52286 | AB231: 4.11 | AD231: =+Z231-P231 -> 8981
B232: TOTAL LAUDERDALE COMMON | D232: =+SUBTOTAL(9,D225:D231) -> 180543646.4 | N232: =+ROUND(P232/D232*100,1) -> 4.4 | P232: =+SUBTOTAL(9,P225:P231) -> 8008339 | Z232: =+SUBTOTAL(9,Z225:Z231) -> 8249200 | AB232: =+Z232/D232*100 -> 4.569089062 | AD232: =+SUBTOTAL(9,AD225:AD231) -> 240861
B234: LAUDERDALE UNIT 4
A235: 341 | B235: STRUCTURES AND IMPROVEMENTS | D235: 5252476.74 | F235: 2023-06-30 | H235: 0.0023 | L235: -2 | N235: 3.5 | P235: =+ROUND(D235*N235/100,0) -> 183837 | R235: 2033-06-30 | T235: 80 | U235: - | V235: R2 * | X235: -2 | Z235: 168116 | AB235: 3.2 | AD235: =+Z235-P235 -> -15721
A236: 342 | B236: FUEL HOLDERS, PRODUCERS AND ACCESSORIES | D236: 695047.38 | F236: 2023-06-30 | H236: 0.0095 | L236: 0 | N236: 3.8 | P236: 26412 | R236: 2033-06-30 | T236: 50 | U236: - | V236: R1.5 * | X236: -3 | Z236: 23808 | AB236: 3.43 | AD236: =+Z236-P236 -> -2604
A237: 343 | B237: PRIME MOVERS - GENERAL | D237: 130963584.1 | F237: 2023-06-30 | H237: 0.0057 | L237: 0 | N237: 4.3 | P237: 5631434 | R237: 2033-06-30 | T237: 50 | U237: - | V237: R1 * | X237: -3 | Z237: 5117407 | AB237: 3.91 | AD237: =+Z237-P237 -> -514027
A238: 343.2 | B238: PRIME MOVERS - CAPITAL SPARE PARTS | D238: 64498883.46 | F238: 2023-06-30 | H238: 0.1565 | L238: 0 | N238: 4.3 | P238: 2773452 | R238: 2033-06-30 | T238: 9 | U238: - | V238: L0 * | X238: 35 | Z238: 4732537 | AB238: 7.34 | AD238: 1959085
A239: 344 | B239: GENERATORS | D239: 29715224.53 | F239: 2023-06-30 | H239: 0.0016 | L239: -1 | N239: 3.4 | P239: 1010318 | R239: 2033-06-30 | T239: 60 | U239: - | V239: R2 * | X239: -3 | Z239: 958327 | AB239: 3.23 | AD239: =+Z239-P239 -> -51991
A240: 345 | B240: ACCESSORY ELECTRIC EQUIPMENT | D240: 30758543.48 | F240: 2023-06-30 | H240: 0.0013 | L240: -1 | N240: 3.4 | P240: 1045790 | R240: 2033-06-30 | T240: 50 | U240: - | V240: R2.5 * | X240: -2 | Z240: 1026889 | AB240: 3.34 | AD240: =+Z240-P240 -> -18901
A241: 346 | B241: MISCELLANEOUS POWER PLANT EQUIPMENT | D241: 2681785.28 | F241: 2023-06-30 | H241: 0.0026 | L241: 0 | N241: 3.4 | P241: 91181 | R241: 2033-06-30 | T241: 50 | U241: - | V241: S0.5 * | X241: -2 | Z241: 89560 | AB241: 3.34 | AD241: =+Z241-P241 -> -1621
B242: TOTAL LAUDERDALE UNIT 4 | D242: =+SUBTOTAL(9,D235:D241) -> 264565544.9 | N242: =+ROUND(P242/D242*100,1) -> 4.1 | P242: =+SUBTOTAL(9,P235:P241) -> 10762424 | Z242: =+SUBTOTAL(9,Z235:Z241) -> 12116644 | AB242: =+Z242/D242*100 -> 4.579826902 | AD242: =+SUBTOTAL(9,AD235:AD241) -> 1354220
B244: LAUDERDALE UNIT 5
A245: 341 | B245: STRUCTURES AND IMPROVEMENTS | D245: 3304987.8 | F245: 2023-06-30 | H245: 0.0023 | L245: -2 | N245: 3.5 | P245: =+ROUND(D245*N245/100,0) -> 115675 | R245: 2033-06-30 | T245: 80 | U245: - | V245: R2 * | X245: -2 | Z245: 113851 | AB245: 3.44 | AD245: =+Z245-P245 -> -1824
A246: 342 | B246: FUEL HOLDERS, PRODUCERS AND ACCESSORIES | D246: 766036.02 | F246: 2023-06-30 | H246: 0.0095 | L246: 0 | N246: 3.8 | P246: 29109 | R246: 2033-06-30 | T246: 50 | U246: - | V246: R1.5 * | X246: -3 | Z246: 28512 | AB246: 3.72 | AD246: =+Z246-P246 -> -597
A247: 343 | B247: PRIME MOVERS - GENERAL | D247: 130296358.8 | F247: 2023-06-30 | H247: 0.0057 | L247: 0 | N247: 4.2 | P247: 5472447 | R247: 2033-06-30 | T247: 50 | U247: - | V247: R1 * | X247: -3 | Z247: 5111119 | AB247: 3.92 | AD247: =+Z247-P247 -> -361328
A248: 343.2 | B248: PRIME MOVERS - CAPITAL SPARE PARTS | D248: 24422477.67 | F248: 2023-06-30 | H248: 0.1565 | L248: 0 | N248: 4.2 | P248: 1025744 | R248: 2033-06-30 | T248: 9 | U248: - | V248: L0 * | X248: 35 | Z248: 1807087 | AB248: 7.4 | AD248: 781343
A249: 344 | B249: GENERATORS | D249: 32777730.66 | F249: 2023-06-30 | H249: 0.0016 | L249: -1 | N249: 3.4 | P249: 1114443 | R249: 2033-06-30 | T249: 60 | U249: - | V249: R2 * | X249: -3 | Z249: 1111859 | AB249: 3.39 | AD249: =+Z249-P249 -> -2584
A250: 345 | B250: ACCESSORY ELECTRIC EQUIPMENT | D250: 25710169.04 | F250: 2023-06-30 | H250: 0.0013 | L250: -1 | N250: 3.4 | P250: 874146 | R250: 2033-06-30 | T250: 50 | U250: - | V250: R2.5 * | X250: -2 | Z250: 886558 | AB250: 3.45 | AD250: =+Z250-P250 -> 12412
A251: 346 | B251: MISCELLANEOUS POWER PLANT EQUIPMENT | D251: 1868249.99 | F251: 2023-06-30 | H251: 0.0026 | L251: 0 | N251: 3.4 | P251: 63520 | R251: 2033-06-30 | T251: 50 | U251: - | V251: S0.5 * | X251: -2 | Z251: 62900 | AB251: 3.37 | AD251: =+Z251-P251 -> -620
B252: TOTAL LAUDERDALE UNIT 5 | D252: =+SUBTOTAL(9,D245:D251) -> 219146010 | N252: =+ROUND(P252/D252*100,1) -> 4 | P252: =+SUBTOTAL(9,P245:P251) -> 8695084 | Z252: =+SUBTOTAL(9,Z245:Z251) -> 9121886 | AB252: =+Z252/D252*100 -> 4.162469579 | AD252: =+SUBTOTAL(9,AD245:AD251) -> 426802
... 296 more rows

Sheet Table 5
A1: FLORIDA POWER AND LIGHT COMPANY
A2: OPC 002092 FPL RC-16
A3: TABLE 5. COMPARISON OF BOOK RESERVE AND THEORETICAL RESERVE FOR ELECTRIC PLANT AS OF DECEMBER 31, 2017
J5: THEORETICAL
D6: ORIGINAL | F6: BOOK | H6: THEORETICAL | J6: RESERVE
D7: COST | F7: RESERVE | H7: RESERVE | J7: IMBALANCE
D8: -1 | F8: -2 | H8: -3 | J8: (4) = (2) - (3)
A10: STEAM PRODUCTION PLANT
A12: MANATEE STEAM PLANT
B14: MANATEE COMMON
A15: 311 | B15: STRUCTURES AND IMPROVEMENTS | D15: 114283077.9 | F15: 73863099.7 | H15: 69842491 | J15: =+F15-H15 -> 4020608.698
A16: 312 | B16: BOILER PLANT EQUIPMENT | D16: 7864883.47 | F16: 1419252.067 | H16: 2530638 | J16: =+F16-H16 -> -1111385.933
A17: 314 | B17: TURBOGENERATOR UNITS | D17: 9839030.51 | F17: 7821767.522 | H17: 6352482 | J17: =+F17-H17 -> 1469285.522
A18: 315 | B18: ACCESSORY ELECTRIC EQUIPMENT | D18: 9833462.49 | F18: 7455584.67 | H18: 6905250 | J18: =+F18-H18 -> 550334.6702
A19: 316 | B19: MISCELLANEOUS POWER PLANT EQUIPMENT | D19: 2498111.02 | F19: 1956325.337 | H19: 1649072 | J19: =+F19-H19 -> 307253.3373
B20: TOTAL MANATEE COMMON | D20: =+SUBTOTAL(9,D15:D19) -> 144318565.4 | F20: =+SUBTOTAL(9,F15:F19) -> 92516029.3 | H20: =+SUBTOTAL(9,H15:H19) -> 87279933 | J20: =+SUBTOTAL(9,J15:J19) -> 5236096.295
B22: MANATEE UNIT 1
A23: 311 | B23: STRUCTURES AND IMPROVEMENTS | D23: 6968574.08 | F23: 5629218.797 | H23: 5256783 | J23: =+F23-H23 -> 372435.7973
A24: 312 | B24: BOILER PLANT EQUIPMENT | D24: 184992667.8 | F24: 95599217.64 | H24: 98159335 | J24: =+F24-H24 -> -2560117.36
A25: 314 | B25: TURBOGENERATOR UNITS | D25: 74066120.92 | F25: 43199871.11 | H25: 41919757 | J25: =+F25-H25 -> 1280114.113
A26: 315 | B26: ACCESSORY ELECTRIC EQUIPMENT | D26: 14537672.54 | F26: 8121393.657 | H26: 7837626 | J26: =+F26-H26 -> 283767.6567
A27: 316 | B27: MISCELLANEOUS POWER PLANT EQUIPMENT | D27: 4000322.68 | F27: 2337843.906 | H27: 2372272 | J27: =+F27-H27 -> -34428.09443
B28: TOTAL MANATEE UNIT 1 | D28: =+SUBTOTAL(9,D23:D27) -> 284565358 | F28: =+SUBTOTAL(9,F23:F27) -> 154887545.1 | H28: =+SUBTOTAL(9,H23:H27) -> 155545773 | J28: =+SUBTOTAL(9,J23:J27) -> -658227.8873
B30: MANATEE UNIT 2
A31: 311 | B31: STRUCTURES AND IMPROVEMENTS | D31: 5083211.03 | F31: 4050365.75 | H31: 3806654 | J31: =+F31-H31 -> 243711.7496
A32: 312 | B32: BOILER PLANT EQUIPMENT | D32: 187516002.4 | F32: 89627110.3 | H32: 96174982 | J32: =+F32-H32 -> -6547871.7
A33: 314 | B33: TURBOGENERATOR UNITS | D33: 72134310.35 | F33: 44200582.63 | H33: 42677770 | J33: =+F33-H33 -> 1522812.627
A34: 315 | B34: ACCESSORY ELECTRIC EQUIPMENT | D34: 12511248.53 | F34: 6482958.588 | H34: 6405416 | J34: =+F34-H34 -> 77542.58758
A35: 316 | B35: MISCELLANEOUS POWER PLANT EQUIPMENT | D35: 3520593.83 | F35: 1720389.48 | H35: 1921372 | J35: =+F35-H35 -> -200982.5199
B36: TOTAL MANATEE UNIT 2 | D36: =+SUBTOTAL(9,D31:D35) -> 280765366.2 | F36: =+SUBTOTAL(9,F31:F35) -> 146081406.7 | H36: =+SUBTOTAL(9,H31:H35) -> 150986194 | J36: =+SUBTOTAL(9,J31:J35) -> -4904787.256
A38: TOTAL MANATEE STEAM PLANT | D38: =+SUBTOTAL(9,D14:D37) -> 709649289.6 | F38: =+SUBTOTAL(9,F14:F37) -> 393484981.2 | H38: =+SUBTOTAL(9,H14:H37) -> 393811900 | J38: =+SUBTOTAL(9,J14:J37) -> -326918.8479
A41: MARTIN STEAM PLANT
B43: MARTIN COMMON
A44: 311 | B44: STRUCTURES AND IMPROVEMENTS | D44: 241400701.3 | F44: 161452115.2 | H44: 161450058 | J44: =+F44-H44 -> 2057.171605
A45: 312 | B45: BOILER PLANT EQUIPMENT | D45: 7052454.52 | F45: 3063360.013 | H45: 3209432 | J45: =+F45-H45 -> -146071.9871
A46: 314 | B46: TURBOGENERATOR UNITS | D46: 27411865.75 | F46: 15382397.12 | H46: 15500124 | J46: =+F46-H46 -> -117726.8835
A47: 315 | B47: ACCESSORY ELECTRIC EQUIPMENT | D47: 10271933.77 | F47: 5585791.271 | H47: 5547190 | J47: =+F47-H47 -> 38601.2708
A48: 316 | B48: MISCELLANEOUS POWER PLANT EQUIPMENT | D48: 3879628.68 | F48: 1972391.771 | H48: 2058936 | J48: =+F48-H48 -> -86544.22941
B49: TOTAL MARTIN COMMON | D49: =+SUBTOTAL(9,D44:D48) -> 290016584.1 | F49: =+SUBTOTAL(9,F44:F48) -> 187456055.3 | H49: =+SUBTOTAL(9,H44:H48) -> 187765740 | J49: =+SUBTOTAL(9,J44:J48) -> -309684.6575
B51: MARTIN PIPELINE
A52: 312 | B52: BOILER PLANT EQUIPMENT | D52: 370941.56 | F52: 370941.56 | H52: 234209 | J52: =+F52-H52 -> 136732.56
B53: TOTAL MARTIN PIPELINE | D53: =+SUBTOTAL(9,D52:D52) -> 370941.56 | F53: =+SUBTOTAL(9,F52:F52) -> 370941.56 | H53: =+SUBTOTAL(9,H52:H52) -> 234209 | J53: =+SUBTOTAL(9,J52:J52) -> 136732.56
B55: MARTIN UNIT 1
A56: 311 | B56: STRUCTURES AND IMPROVEMENTS | D56: 16367428.14 | F56: 10593608.28 | H56: 11032619 | J56: =+F56-H56 -> -439010.7185
A57: 312 | B57: BOILER PLANT EQUIPMENT | D57: 212347650.8 | F57: 91195079.78 | H57: 105463439 | J57: =+F57-H57 -> -14268359.22
A58: 314 | B58: TURBOGENERATOR UNITS | D58: 89915729.92 | F58: 52042195.83 | H58: 49346496 | J58: =+F58-H58 -> 2695699.834
A59: 315 | B59: ACCESSORY ELECTRIC EQUIPMENT | D59: 24335747.45 | F59: 14796848.53 | H59: 13954809 | J59: =+F59-H59 -> 842039.5349
A60: 316 | B60: MISCELLANEOUS POWER PLANT EQUIPMENT | D60: 3586002.99 | F60: 1812805.457 | H60: 1846999 | J60: =+F60-H60 -> -34193.54312
B61: TOTAL MARTIN UNIT 1 | D61: =+SUBTOTAL(9,D56:D60) -> 346552559.3 | F61: =+SUBTOTAL(9,F56:F60) -> 170440537.9 | H61: =+SUBTOTAL(9,H56:H60) -> 181644362 | J61: =+SUBTOTAL(9,J56:J60) -> -11203824.11
B63: MARTIN UNIT 2
A64: 311 | B64: STRUCTURES AND IMPROVEMENTS | D64: 11241256.67 | F64: 7751660.291 | H64: 7787713 | J64: =+F64-H64 -> -36052.70884
A65: 312 | B65: BOILER PLANT EQUIPMENT | D65: 214665917.3 | F65: 88354501.53 | H65: 103872787 | J65: =+F65-H65 -> -15518285.47
A66: 314 | B66: TURBOGENERATOR UNITS | D66: 82668790.6 | F66: 31513006.1 | H66: 39183316 | J66: =+F66-H66 -> -7670309.9
A67: 315 | B67: ACCESSORY ELECTRIC EQUIPMENT | D67: 22992822.89 | F67: 12504334.39 | H67: 11727854 | J67: =+F67-H67 -> 776480.3903
A68: 316 | B68: MISCELLANEOUS POWER PLANT EQUIPMENT | D68: 3273365.34 | F68: 1424240.871 | H68: 1607500 | J68: =+F68-H68 -> -183259.1286
B69: TOTAL MARTIN UNIT 2 | D69: =+SUBTOTAL(9,D64:D68) -> 334842152.8 | F69: =+SUBTOTAL(9,F64:F68) -> 141547743.2 | H69: =+SUBTOTAL(9,H64:H68) -> 164179170 | J69: =+SUBTOTAL(9,J64:J68) -> -22631426.82
A71: TOTAL MARTIN STEAM PLANT | D71: =+SUBTOTAL(9,D43:D70) -> 971782237.7 | F71: =+SUBTOTAL(9,F43:F70) -> 499815278 | H71: =+SUBTOTAL(9,H43:H70) -> 533823481 | J71: =+SUBTOTAL(9,J43:J70) -> -34008203.02
A74: SCHERER STEAM PLANT
B76: SCHERER COAL CARS
A77: 312 | B77: BOILER PLANT EQUIPMENT | D77: 33149442.2 | F77: 33149442.2 | H77: 15756682 | J77: =+F77-H77 -> 17392760.2
B78: TOTAL SCHERER COAL CARS | D78: =+SUBTOTAL(9,D77:D77) -> 33149442.2 | F78: =+SUBTOTAL(9,F77:F77) -> 33149442.2 | H78: =+SUBTOTAL(9,H77:H77) -> 15756682 | J78: =+SUBTOTAL(9,J77:J77) -> 17392760.2
B80: SCHERER COMMON
A81: 311 | B81: STRUCTURES AND IMPROVEMENTS | D81: 40048942.61 | F81: 21435438.49 | H81: 19604490 | J81: =+F81-H81 -> 1830948.487
A82: 312 | B82: BOILER PLANT EQUIPMENT | D82: 26275279.31 | F82: 12672089.54 | H82: 12388392 | J82: =+F82-H82 -> 283697.539
A83: 314 | B83: TURBOGENERATOR UNITS | D83: 4409078.75 | F83: 1937291.35 | H83: 1990166 | J83: =+F83-H83 -> -52874.65027
A84: 315 | B84: ACCESSORY ELECTRIC EQUIPMENT | D84: 1246717.64 | F84: 704489.4484 | H84: 644801 | J84: =+F84-H84 -> 59688.4484
A85: 316 | B85: MISCELLANEOUS POWER PLANT EQUIPMENT | D85: 3720891.68 | F85: 1817682.14 | H85: 1672045 | J85: =+F85-H85 -> 145637.1399
B86: TOTAL SCHERER COMMON | D86: =+SUBTOTAL(9,D81:D85) -> 75700909.99 | F86: =+SUBTOTAL(9,F81:F85) -> 38566990.96 | H86: =+SUBTOTAL(9,H81:H85) -> 36299894 | J86: =+SUBTOTAL(9,J81:J85) -> 2267096.964
B88: SCHERER COMMON UNIT 3 AND 4
A89: 311 | B89: STRUCTURES AND IMPROVEMENTS | D89: 3049496.26 | F89: 1704572.549 | H89: 1546592 | J89: =+F89-H89 -> 157980.5491
A90: 312 | B90: BOILER PLANT EQUIPMENT | D90: 22708657.52 | F90: 10156497.58 | H90: 9860365 | J90: =+F90-H90 -> 296132.5782
A91: 314 | B91: TURBOGENERATOR UNITS | D91: 2878397.99 | F91: 294184.2446 | H91: 394468 | J91: =+F91-H91 -> -100283.7554
A92: 315 | B92: ACCESSORY ELECTRIC EQUIPMENT | D92: 2865604.55 | F92: 303886.8386 | H92: 425391 | J92: =+F92-H92 -> -121504.1614
B93: TOTAL SCHERER COMMON UNIT 3 AND 4 | D93: =+SUBTOTAL(9,D89:D92) -> 31502156.32 | F93: =+SUBTOTAL(9,F89:F92) -> 12459141.21 | H93: =+SUBTOTAL(9,H89:H92) -> 12226816 | J93: =+SUBTOTAL(9,J89:J92) -> 232325.2105
B95: SCHERER UNIT 4
A96: 311 | B96: STRUCTURES AND IMPROVEMENTS | D96: 161759187.5 | F96: 42338154.11 | H96: 51467084 | J96: =+F96-H96 -> -9128929.888
A97: 312 | B97: BOILER PLANT EQUIPMENT | D97: 682720321.1 | F97: 193672542.1 | H97: 229856750 | J97: =+F97-H97 -> -36184207.92
A98: 314 | B98: TURBOGENERATOR UNITS | D98: 124903380.6 | F98: 61685842.93 | H98: 57307055 | J98: =+F98-H98 -> 4378787.934
A99: 315 | B99: ACCESSORY ELECTRIC EQUIPMENT | D99: 50198263.53 | F99: 15152820.55 | H99: 17332147 | J99: =+F99-H99 -> -2179326.454
A100: 316 | B100: MISCELLANEOUS POWER PLANT EQUIPMENT | D100: 5202651.35 | F100: 2391381.315 | H100: 1929281 | J100: =+F100-H100 -> 462100.3154
B101: TOTAL SCHERER UNIT 4 | D101: =+SUBTOTAL(9,D96:D100) -> 1024783804 | F101: =+SUBTOTAL(9,F96:F100) -> 315240741 | H101: =+SUBTOTAL(9,H96:H100) -> 357892317 | J101: =+SUBTOTAL(9,J96:J100) -> -42651576.01
A103: TOTAL SCHERER STEAM PLANT | D103: =+SUBTOTAL(9,D75:D102) -> 1165136313 | F103: =+SUBTOTAL(9,F75:F102) -> 399416315.4 | H103: =+SUBTOTAL(9,H75:H102) -> 422175709 | J103: =+SUBTOTAL(9,J75:J102) -> -22759393.63
A106: SJRPP STEAM PLANT
B108: SJRPP COAL AND LIMESTONE
A109: 311 | B109: STRUCTURES AND IMPROVEMENTS | D109: 3538785.86 | F109: 1868163.03 | H109: 2018142 | J109: =+F109-H109 -> -149978.97
A110: 312 | B110: BOILER PLANT EQUIPMENT | D110: 30678751.75 | F110: 15854784.62 | H110: 17307924 | J110: =+F110-H110 -> -1453139.38
A111: 315 | B111: ACCESSORY ELECTRIC EQUIPMENT | D111: 3748249.87 | F111: 2207826.06 | H111: 2185433 | J111: =+F111-H111 -> 22393.06
A112: 316 | B112: MISCELLANEOUS POWER PLANT EQUIPMENT | D112: 298312.17 | F112: 167024.57 | H112: 169054 | J112: =+F112-H112 -> -2029.43
B113: TOTAL SJRPP COAL AND LIMESTONE | D113: =+SUBTOTAL(9,D109:D112) -> 38264099.65 | F113: =+SUBTOTAL(9,F109:F112) -> 20097798.28 | H113: =+SUBTOTAL(9,H109:H112) -> 21680553 | J113: =+SUBTOTAL(9,J109:J112) -> -1582754.72
B115: SJRPP COAL CARS
A116: 312 | B116: BOILER PLANT EQUIPMENT | D116: 52104.91 | F116: 52104.93 | H116: 29219 | J116: =+F116-H116 -> 22885.93
B117: TOTAL SJRPP COAL CARS | D117: =+SUBTOTAL(9,D116:D116) -> 52104.91 | F117: =+SUBTOTAL(9,F116:F116) -> 52104.93 | H117: =+SUBTOTAL(9,H116:H116) -> 29219 | J117: =+SUBTOTAL(9,J116:J116) -> 22885.93
B119: SJRPP COMMON
A120: 311 | B120: STRUCTURES AND IMPROVEMENTS | D120: 33324990.64 | F120: 22656891.85 | H120: 18238256 | J120: =+F120-H120 -> 4418635.845
A121: 312 | B121: BOILER PLANT EQUIPMENT | D121: 3714735.93 | F121: 2636058.376 | H121: 1971927 | J121: =+F121-H121 -> 664131.3762
A122: 314 | B122: TURBOGENERATOR UNITS | D122: 2511326.32 | F122: 1735625.518 | H122: 1365246 | J122: =+F122-H122 -> 370379.5175
A123: 315 | B123: ACCESSORY ELECTRIC EQUIPMENT | D123: 5865106.8 | F123: 4091638.225 | H123: 3282763 | J123: =+F123-H123 -> 808875.2255
A124: 316 | B124: MISCELLANEOUS POWER PLANT EQUIPMENT | D124: 1607470.4 | F124: 1035942.652 | H124: 814322 | J124: =+F124-H124 -> 221620.652
B125: TOTAL SJRPP COMMON | D125: =+SUBTOTAL(9,D120:D124) -> 47023630.09 | F125: =+SUBTOTAL(9,F120:F124) -> 32156156.62 | H125: =+SUBTOTAL(9,H120:H124) -> 25672514 | J125: =+SUBTOTAL(9,J120:J124) -> 6483642.616
B127: SJRPP GYPSUM AND ASH
A128: 311 | B128: STRUCTURES AND IMPROVEMENTS | D128: 2158590.42 | F128: 1153359.85 | H128: 1194802 | J128: =+F128-H128 -> -41442.15
A129: 312 | B129: BOILER PLANT EQUIPMENT | D129: 16972047.61 | F129: 9823710.95 | H129: 9807928 | J129: =+F129-H129 -> 15782.95
A130: 315 | B130: ACCESSORY ELECTRIC EQUIPMENT | D130: 52222.78 | F130: 32590.69 | H130: 28745 | J130: =+F130-H130 -> 3845.69
A131: 316 | B131: MISCELLANEOUS POWER PLANT EQUIPMENT | D131: 153865.69 | F131: 67155.16 | H131: 68118 | J131: =+F131-H131 -> -962.84
B132: TOTAL SJRPP GYPSUM AND ASH | D132: =+SUBTOTAL(9,D128:D131) -> 19336726.5 | F132: =+SUBTOTAL(9,F128:F131) -> 11076816.65 | H132: =+SUBTOTAL(9,H128:H131) -> 11099593 | J132: =+SUBTOTAL(9,J128:J131) -> -22776.35
B134: SJRPP UNIT 1
A135: 311 | B135: STRUCTURES AND IMPROVEMENTS | D135: 9098352.49 | F135: 6630362.909 | H135: 5269582 | J135: =+F135-H135 -> 1360780.909
A136: 312 | B136: BOILER PLANT EQUIPMENT | D136: 100163071.9 | F136: 52036604.99 | H136: 48780057 | J136: =+F136-H136 -> 3256547.985
A137: 314 | B137: TURBOGENERATOR UNITS | D137: 31632809.4 | F137: 15898435.54 | H137: 13286781 | J137: =+F137-H137 -> 2611654.542
A138: 315 | B138: ACCESSORY ELECTRIC EQUIPMENT | D138: 12543007.01 | F138: 8124525.988 | H138: 6808654 | J138: =+F138-H138 -> 1315871.988
A139: 316 | B139: MISCELLANEOUS POWER PLANT EQUIPMENT | D139: 2049400.34 | F139: 1428937.052 | H139: 1103925 | J139: =+F139-H139 -> 325012.0515
B140: TOTAL SJRPP UNIT 1 | D140: =+SUBTOTAL(9,D135:D139) -> 155486641.2 | F140: =+SUBTOTAL(9,F135:F139) -> 84118866.48 | H140: =+SUBTOTAL(9,H135:H139) -> 75248999 | J140: =+SUBTOTAL(9,J135:J139) -> 8869867.476
B142: SJRPP UNIT 2
A143: 311 | B143: STRUCTURES AND IMPROVEMENTS | D143: 7123662.16 | F143: 4212841.51 | H143: 4185861 | J143: =+F143-H143 -> 26980.51
A144: 312 | B144: BOILER PLANT EQUIPMENT | D144: 89481418.8 | F144: 41170858.05 | H144: 43954999 | J144: =+F144-H144 -> -2784140.95
A145: 314 | B145: TURBOGENERATOR UNITS | D145: 28267581.84 | F145: 11215912.66 | H145: 11882857 | J145: =+F145-H145 -> -666944.34
A146: 315 | B146: ACCESSORY ELECTRIC EQUIPMENT | D146: 10030603.41 | F146: 5480957.91 | H146: 5609938 | J146: =+F146-H146 -> -128980.09
A147: 316 | B147: MISCELLANEOUS POWER PLANT EQUIPMENT | D147: 1560108.42 | F147: 895106.18 | H147: 853180 | J147: =+F147-H147 -> 41926.18
B148: TOTAL SJRPP UNIT 2 | D148: =+SUBTOTAL(9,D143:D147) -> 136463374.6 | F148: =+SUBTOTAL(9,F143:F147) -> 62975676.31 | H148: =+SUBTOTAL(9,H143:H147) -> 66486835 | J148: =+SUBTOTAL(9,J143:J147) -> -3511158.69
A150: TOTAL SJRPP STEAM PLANT | D150: =+SUBTOTAL(9,D108:D149) -> 396626576.9 | F150: =+SUBTOTAL(9,F108:F149) -> 210477419.3 | H150: =+SUBTOTAL(9,H108:H149) -> 200217713 | J150: =+SUBTOTAL(9,J108:J149) -> 10259706.26
A152: TOTAL STEAM PRODUCTION | D152: =+SUBTOTAL(9,D12:D151) -> 3243194417 | F152: =+SUBTOTAL(9,F12:F151) -> 1503193994 | H152: =+SUBTOTAL(9,H12:H151) -> 1550028803 | J152: =+SUBTOTAL(9,J12:J151) -> -46834809.24
A155: NUCLEAR PRODUCTION PLANT
A157: ST. LUCIE NUCLEAR PLANT
B159: ST. LUCIE COMMON
A160: 321 | B160: STRUCTURES AND IMPROVEMENTS | D160: 397119195.7 | F160: 177004049.9 | H160: 180486397 | J160: =+F160-H160 -> -3482347.134
A161: 322 | B161: REACTOR PLANT EQUIPMENT | D161: 55584106.71 | F161: 31607489.04 | H161: 18621310 | J161: =+F161-H161 -> 12986179.04
A162: 323 | B162: TURBOGENERATOR UNITS | D162: 12406915.97 | F162: -7437953.893 | H162: 3111495 | J162: =+F162-H162 -> -10549448.89
A163: 324 | B163: ACCESSORY ELECTRIC EQUIPMENT | D163: 34379625.87 | F163: 16953508.44 | H163: 16653924 | J163: =+F163-H163 -> 299584.436
A164: 325 | B164: MISCELLANEOUS POWER PLANT EQUIPMENT | D164: 20728940.61 | F164: 2303180.018 | H164: 7948849 | J164: =+F164-H164 -> -5645668.982
B165: TOTAL ST. LUCIE COMMON | D165: =+SUBTOTAL(9,D160:D164) -> 520218784.8 | F165: =+SUBTOTAL(9,F160:F164) -> 220430273.5 | H165: =+SUBTOTAL(9,H160:H164) -> 226821975 | J165: =+SUBTOTAL(9,J160:J164) -> -6391701.53
B167: ST. LUCIE UNIT 1
A168: 321 | B168: STRUCTURES AND IMPROVEMENTS | D168: 196854866.3 | F168: 101666895.5 | H168: 102053830 | J168: =+F168-H168 -> -386934.4777
A169: 322 | B169: REACTOR PLANT EQUIPMENT | D169: 845363775 | F169: 303976050.3 | H169: 321983748 | J169: =+F169-H169 -> -18007697.66
A170: 323 | B170: TURBOGENERATOR UNITS | D170: 413333703.6 | F170: 56813276.81 | H170: 107584272 | J170: =+F170-H170 -> -50770995.19
A171: 324 | B171: ACCESSORY ELECTRIC EQUIPMENT | D171: 120786348.1 | F171: 50666362.97 | H171: 55812041 | J171: =+F171-H171 -> -5145678.025
A172: 325 | B172: MISCELLANEOUS POWER PLANT EQUIPMENT | D172: 11438745.22 | F172: 7097019.395 | H172: 7187150 | J172: =+F172-H172 -> -90130.60499
B173: TOTAL ST. LUCIE UNIT 1 | D173: =+SUBTOTAL(9,D168:D172) -> 1587777438 | F173: =+SUBTOTAL(9,F168:F172) -> 520219605 | H173: =+SUBTOTAL(9,H168:H172) -> 594621041 | J173: =+SUBTOTAL(9,J168:J172) -> -74401435.96
B175: ST. LUCIE UNIT 2
A176: 321 | B176: STRUCTURES AND IMPROVEMENTS | D176: 298911837.3 | F176: 133449792.7 | H176: 142728492 | J176: =+F176-H176 -> -9278699.278
A177: 322 | B177: REACTOR PLANT EQUIPMENT | D177: 1057336501 | F177: 401479217 | H177: 371136107 | J177: =+F177-H177 -> 30343109.98
A178: 323 | B178: TURBOGENERATOR UNITS | D178: 350466490.1 | F178: 54374394.01 | H178: 84113764 | J178: =+F178-H178 -> -29739369.99
A179: 324 | B179: ACCESSORY ELECTRIC EQUIPMENT | D179: 189637024.6 | F179: 86957686.15 | H179: 94966801 | J179: =+F179-H179 -> -8009114.847
A180: 325 | B180: MISCELLANEOUS POWER PLANT EQUIPMENT | D180: 24225433.39 | F180: 11438959.96 | H180: 12978910 | J180: =+F180-H180 -> -1539950.035
B181: TOTAL ST. LUCIE UNIT 2 | D181: =+SUBTOTAL(9,D176:D180) -> 1920577286 | F181: =+SUBTOTAL(9,F176:F180) -> 687700049.8 | H181: =+SUBTOTAL(9,H176:H180) -> 705924074 | J181: =+SUBTOTAL(9,J176:J180) -> -18224024.17
A183: TOTAL ST. LUCIE NUCLEAR PLANT | D183: =+SUBTOTAL(9,D160:D182) -> 4028573509 | F183: =+SUBTOTAL(9,F160:F182) -> 1428349928 | H183: =+SUBTOTAL(9,H160:H182) -> 1527367090 | J183: =+SUBTOTAL(9,J160:J182) -> -99017161.66
A186: TURKEY POINT NUCLEAR PLANT
B188: TURKEY POINT COMMON
A189: 321 | B189: STRUCTURES AND IMPROVEMENTS | D189: 380704673.4 | F189: 186854084 | H189: 167735422 | J189: =+F189-H189 -> 19118661.99
A190: 322 | B190: REACTOR PLANT EQUIPMENT | D190: 144884580.2 | F190: 25644014.41 | H190: 42246748 | J190: =+F190-H190 -> -16602733.59
A191: 323 | B191: TURBOGENERATOR UNITS | D191: 22821885.52 | F191: 5761406.509 | H191: 6931801 | J191: =+F191-H191 -> -1170394.491
A192: 324 | B192: ACCESSORY ELECTRIC EQUIPMENT | D192: 56769857.59 | F192: 34483979.7 | H192: 27882506 | J192: =+F192-H192 -> 6601473.697
A193: 325 | B193: MISCELLANEOUS POWER PLANT EQUIPMENT | D193: 39215641.06 | F193: 17765783.16 | H193: 16035940 | J193: =+F193-H193 -> 1729843.163
B194: TOTAL TURKEY POINT COMMON | D194: =+SUBTOTAL(9,D189:D193) -> 644396637.8 | F194: =+SUBTOTAL(9,F189:F193) -> 270509267.8 | H194: =+SUBTOTAL(9,H189:H193) -> 260832417 | J194: =+SUBTOTAL(9,J189:J193) -> 9676850.761
B196: TURKEY POINT UNIT 3
A197: 321 | B197: STRUCTURES AND IMPROVEMENTS | D197: 185601316.1 | F197: 40968914.85 | H197: 65258172 | J197: =+F197-H197 -> -24289257.15
A198: 322 | B198: REACTOR PLANT EQUIPMENT | D198: 595235354.2 | F198: 176726668.3 | H198: 232492303 | J198: =+F198-H198 -> -55765634.66
A199: 323 | B199: TURBOGENERATOR UNITS | D199: 758820503.5 | F199: 99120406.05 | H199: 207061681 | J199: =+F199-H199 -> -107941274.9
A200: 324 | B200: ACCESSORY ELECTRIC EQUIPMENT | D200: 153810947.6 | F200: 73799056.88 | H200: 77040797 | J200: =+F200-H200 -> -3241740.122
A201: 325 | B201: MISCELLANEOUS POWER PLANT EQUIPMENT | D201: 16088187.86 | F201: 890396.5208 | H201: 4936779 | J201: =+F201-H201 -> -4046382.479
B202: TOTAL TURKEY POINT UNIT 3 | D202: =+SUBTOTAL(9,D197:D201) -> 1709556309 | F202: =+SUBTOTAL(9,F197:F201) -> 391505442.6 | H202: =+SUBTOTAL(9,H197:H201) -> 586789732 | J202: =+SUBTOTAL(9,J197:J201) -> -195284289.4
B204: TURKEY POINT UNIT 4
A205: 321 | B205: STRUCTURES AND IMPROVEMENTS | D205: 129681129.7 | F205: 50771974.78 | H205: 55438682 | J205: =+F205-H205 -> -4666707.221
A206: 322 | B206: REACTOR PLANT EQUIPMENT | D206: 518893110.5 | F206: 190785223.5 | H206: 202183054 | J206: =+F206-H206 -> -11397830.47
A207: 323 | B207: TURBOGENERATOR UNITS | D207: 601429270.4 | F207: 92161742.46 | H207: 151579171 | J207: =+F207-H207 -> -59417428.54
A208: 324 | B208: ACCESSORY ELECTRIC EQUIPMENT | D208: 177722654 | F208: 105343398.3 | H208: 97564096 | J208: =+F208-H208 -> 7779302.33
A209: 325 | B209: MISCELLANEOUS POWER PLANT EQUIPMENT | D209: 12121306.1 | F209: 279921.0715 | H209: 4165102 | J209: =+F209-H209 -> -3885180.928
B210: TOTAL TURKEY POINT UNIT 4 | D210: =+SUBTOTAL(9,D205:D209) -> 1439847471 | F210: =+SUBTOTAL(9,F205:F209) -> 439342260.2 | H210: =+SUBTOTAL(9,H205:H209) -> 510930105 | J210: =+SUBTOTAL(9,J205:J209) -> -71587844.83
A212: TOTAL TURKEY POINT NUCLEAR PLANT | D212: =+SUBTOTAL(9,D188:D211) -> 3793800418 | F212: =+SUBTOTAL(9,F188:F211) -> 1101356971 | H212: =+SUBTOTAL(9,H188:H211) -> 1358552254 | J212: =+SUBTOTAL(9,J188:J211) -> -257195283.4
A214: TOTAL NUCLEAR PRODUCTION PLANT | D214: =+SUBTOTAL(9,D160:D213) -> 7822373927 | F214: =+SUBTOTAL(9,F160:F213) -> 2529706899 | H214: =+SUBTOTAL(9,H160:H213) -> 2885919344 | J214: =+SUBTOTAL(9,J160:J213) -> -356212445.1
A217: COMBINED CYCLE PRODUCTION PLANT
A219: LAUDERDALE COMBINED CYCLE PLANT
B221: LAUDERDALE COMMON
A222: 341 | B222: STRUCTURES AND IMPROVEMENTS | D222: 87455288.39 | F222: 58653734.34 | H222: 45564365 | J222: =+F222-H222 -> 13089369.34
A223: 342 | B223: FUEL HOLDERS, PRODUCERS AND ACCESSORIES | D223: 11879794.88 | F223: 6764061.084 | H223: 5609944 | J223: 1154117.084
A224: 343 | B224: PRIME MOVERS - GENERAL | D224: 29161925.58 | F224: 7732617.9 | H224: 5239298 | J224: 2493319.9
A225: 343.2 | B225: PRIME MOVERS - CAPITAL SPARE PARTS | D225: 37564239.13 | F225: 8857045.435 | H225: 6001163 | J225: 2855882.435
A226: 344 | B226: GENERATORS | D226: 702077.8 | F226: 422319.0893 | H226: 320962 | J226: 101357.0893
A227: 345 | B227: ACCESSORY ELECTRIC EQUIPMENT | D227: 12506640.1 | F227: 9717935.833 | H227: 7234374 | J227: 2483561.833
A228: 346 | B228: MISCELLANEOUS POWER PLANT EQUIPMENT | D228: 1273680.52 | F228: 642012.1297 | H228: 540018 | J228: 101994.1297
B229: TOTAL LAUDERDALE COMMON | D229: =+SUBTOTAL(9,D222:D228) -> 180543646.4 | F229: =+SUBTOTAL(9,F222:F228) -> 92789725.81 | H229: =+SUBTOTAL(9,H222:H228) -> 70510124 | J229: =+SUBTOTAL(9,J222:J228) -> 22279601.81
B231: LAUDERDALE UNIT 4
A232: 341 | B232: STRUCTURES AND IMPROVEMENTS | D232: 5252476.74 | F232: 3609976.58 | H232: 2814150 | J232: =+F232-H232 -> 795826.58
A233: 342 | B233: FUEL HOLDERS, PRODUCERS AND ACCESSORIES | D233: 695047.38 | F233: 531831.3339 | H233: 373863 | J233: 157968.3339
A234: 343 | B234: PRIME MOVERS - GENERAL | D234: 130963584.1 | F234: 56698997.68 | H234: 61416478 | J234: -4717480.315
A235: 343.2 | B235: PRIME MOVERS - CAPITAL SPARE PARTS | D235: 64498883.46 | F235: 10698974.94 | H235: 11589153 | J235: -890178.0586
A236: 344 | B236: GENERATORS | D236: 29715224.53 | F236: 21249929.87 | H236: 16418900 | J236: 4831029.872
A237: 345 | B237: ACCESSORY ELECTRIC EQUIPMENT | D237: 30758543.48 | F237: 20012938.55 | H237: 16408380 | J237: 3604558.555
A238: 346 | B238: MISCELLANEOUS POWER PLANT EQUIPMENT | D238: 2681785.28 | F238: 1971609.478 | H238: 1471872 | J238: 499737.478
B239: TOTAL LAUDERDALE UNIT 4 | D239: =+SUBTOTAL(9,D232:D238) -> 264565544.9 | F239: =+SUBTOTAL(9,F232:F238) -> 114774258.4 | H239: =+SUBTOTAL(9,H232:H238) -> 110492796 | J239: =+SUBTOTAL(9,J232:J238) -> 4281462.445
B241: LAUDERDALE UNIT 5
A242: 341 | B242: STRUCTURES AND IMPROVEMENTS | D242: 3304987.8 | F242: 2032622.15 | H242: 1645313 | J242: =+F242-H242 -> 387309.1497
A243: 342 | B243: FUEL HOLDERS, PRODUCERS AND ACCESSORIES | D243: 766036.02 | F243: 526297.6635 | H243: 375150 | J243: 151147.6635
A244: 343 | B244: PRIME MOVERS - GENERAL | D244: 130296358.8 | F244: 36892591.6 | H244: 60763615 | J244: -23871023.4
A245: 343.2 | B245: PRIME MOVERS - CAPITAL SPARE PARTS | D245: 24422477.67 | F245: 2046911.872 | H245: 3371348 | J245: -1324436.128
A246: 344 | B246: GENERATORS | D246: 32777730.66 | F246: 23372189.7 | H246: 17238222 | J246: 6133967.698
A247: 345 | B247: ACCESSORY ELECTRIC EQUIPMENT | D247: 25710169.04 | F247: 16111822.17 | H247: 13249017 | J247: 2862805.174
A248: 346 | B248: MISCELLANEOUS POWER PLANT EQUIPMENT | D248: 1868249.99 | F248: 1335398.919 | H248: 1017183 | J248: 318215.9189
B249: TOTAL LAUDERDALE UNIT 5 | D249: =+SUBTOTAL(9,D242:D248) -> 219146010 | F249: =+SUBTOTAL(9,F242:F248) -> 82317834.08 | H249: =+SUBTOTAL(9,H242:H248) -> 97659848 | J249: =+SUBTOTAL(9,J242:J248) -> -15342013.92
A251: TOTAL LAUDERDALE COMBINED CYCLE PLANT | D251: =+SUBTOTAL(9,D221:D250) -> 664255201.3 | F251: =+SUBTOTAL(9,F221:F250) -> 289881818.3 | H251: =+SUBTOTAL(9,H221:H250) -> 278662768 | J251: =+SUBTOTAL(9,J221:J250) -> 11219050.33
A254: FT. MYERS COMBINED CYCLE PLANT
... 292 more rows

Sheet Table 6
A1: FLORIDA POWER AND LIGHT COMPANY
A2: OPC 002093 FPL RC-16
A3: TABLE 6. COMPARISON OF ESTIMATED SURVIVOR CURVES, NET SALVAGE, AVERAGE AGES, AVERAGE REMAINING LIVES AND ANNUAL DEPRECIATION RATES
A4: BASED ON DEPRECIATION RATES ORDERED IN DOCKET NO. 090130-EI AND PROPOSED DEPRECIATION RATES
D7: ORDERED COMPONENTS IN DOCKET NO. 090130-EI AS OF DECEMBER 31, 2009 | R7: PROPOSED COMPONENTS AS OF DECEMBER 31, 2017
D8: PROBABLE | F8: SURVIVOR CURVE/ | N8: AVERAGE | P8: ANNUAL | R8: PROBABLE | AB8: AVERAGE | AD8: ANNUAL
D9: RETIREMENT | F9: INTERIM | J9: NET | L9: AVERAGE | N9: REMAINING | P9: DEPRECIATION | R9: RETIREMENT | X9: NET | Z9: AVERAGE | AB9: REMAINING | AD9: DEPRECIATION
D10: DATE | F10: RETIREMENT RATE | J10: SALVAGE | L10: AGE | N10: LIFE | P10: RATE | R10: DATE | T10: SURVIVOR CURVE | X10: SALVAGE | Z10: AGE | AB10: LIFE | AD10: RATE
D11: -1 | F11: -2 | J11: -3 | L11: -4 | N11: -5 | P11: -6 | R11: -7 | T11: -8 | X11: -9 | Z11: -10 | AB11: -11 | AD11: -12
A13: STEAM PRODUCTION PLANT
A16: MANATEE STEAM PLANT
B18: MANATEE COMMON
A19: 311 | B19: STRUCTURES AND IMPROVEMENTS | D19: 2027-06-30 | F19: 0.0032 | J19: -2 | L19: 23.9 | N19: 17 | P19: 2.1 | R19: 2028-06-30 | T19: 80 | U19: - | V19: R2 * | X19: -1 | Z19: 26.6 | AB19: 10.32 | AD19: 3.52
A20: 312 | B20: BOILER PLANT EQUIPMENT | D20: 2027-06-30 | F20: 0.0094 | J20: -7 | L20: 21.5 | N20: 16.1 | P20: 2.6 | R20: 2028-06-30 | T20: 50 | U20: - | V20: S0 * | X20: -2 | Z20: 8.9 | AB20: 10.18 | AD20: 8.25
A21: 314 | B21: TURBOGENERATOR UNITS | D21: 2027-06-30 | F21: 0.012 | J21: 0 | L21: 21.5 | N21: 15.7 | P21: 2.6 | R21: 2028-06-30 | T21: 55 | U21: - | V21: R0.5 * | X21: -1 | Z21: 31 | AB21: 9.87 | AD21: 2.18
A22: 315 | B22: ACCESSORY ELECTRIC EQUIPMENT | D22: 2027-06-30 | F22: 0.0052 | J22: -6 | L22: 29 | N22: 16.7 | P22: 2.4 | R22: 2028-06-30 | T22: 65 | U22: - | V22: S0 * | X22: -2 | Z22: 34.4 | AB22: 9.99 | AD22: 2.62
A23: 316 | B23: MISCELLANEOUS POWER PLANT EQUIPMENT | D23: 2027-06-30 | F23: 0.0071 | J23: 0 | L23: 22.5 | N23: 16.4 | P23: 2.4 | R23: 2028-06-30 | T23: 65 | U23: - | V23: R0.5 * | X23: 0 | Z23: 29.9 | AB23: 10.02 | AD23: 2.16
B25: MANATEE UNIT 1
A26: 311 | B26: STRUCTURES AND IMPROVEMENTS | D26: 2027-06-30 | F26: 0.0032 | J26: -2 | L26: 29.5 | N26: 17 | P26: 2.1 | R26: 2028-06-30 | T26: 80 | U26: - | V26: R2 * | X26: -1 | Z26: 38.6 | AB26: 10.19 | AD26: 1.98
A27: 312 | B27: BOILER PLANT EQUIPMENT | D27: 2027-06-30 | F27: 0.0094 | J27: -7 | L27: 19.7 | N27: 16.1 | P27: 2.6 | R27: 2028-06-30 | T27: 50 | U27: - | V27: S0 * | X27: -2 | Z27: 19 | AB27: 9.99 | AD27: 5.04
A28: 314 | B28: TURBOGENERATOR UNITS | D28: 2027-06-30 | F28: 0.012 | J28: 0 | L28: 18.6 | N28: 15.7 | P28: 2.6 | R28: 2028-06-30 | T28: 55 | U28: - | V28: R0.5 * | X28: -1 | Z28: 21.4 | AB28: 9.97 | AD28: 4.28
A29: 315 | B29: ACCESSORY ELECTRIC EQUIPMENT | D29: 2027-06-30 | F29: 0.0052 | J29: -6 | L29: 19.7 | N29: 16.7 | P29: 2.4 | R29: 2028-06-30 | T29: 65 | U29: - | V29: S0 * | X29: -2 | Z29: 19.6 | AB29: 10.18 | AD29: 4.53
A30: 316 | B30: MISCELLANEOUS POWER PLANT EQUIPMENT | D30: 2027-06-30 | F30: 0.0071 | J30: 0 | L30: 28.2 | N30: 16.4 | P30: 2.4 | R30: 2028-06-30 | T30: 65 | U30: - | V30: R0.5 * | X30: 0 | Z30: 27.9 | AB30: 10.06 | AD30: 4.13
B32: MANATEE UNIT 2
A33: 311 | B33: STRUCTURES AND IMPROVEMENTS | D33: 2027-06-30 | F33: 0.0032 | J33: -2 | L33: 28.8 | N33: 17 | P33: 2.1 | R33: 2028-06-30 | T33: 80 | U33: - | V33: R2 * | X33: -1 | Z33: 37.5 | AB33: 10.22 | AD33: 2.09
A34: 312 | B34: BOILER PLANT EQUIPMENT | D34: 2027-06-30 | F34: 0.0094 | J34: -7 | L34: 17.5 | N34: 16.1 | P34: 2.6 | R34: 2028-06-30 | T34: 50 | U34: - | V34: S0 * | X34: -2 | Z34: 16.8 | AB34: 10.02 | AD34: 5.41
A35: 314 | B35: TURBOGENERATOR UNITS | D35: 2027-06-30 | F35: 0.012 | J35: 0 | L35: 19.7 | N35: 15.7 | P35: 2.6 | R35: 2028-06-30 | T35: 55 | U35: - | V35: R0.5 * | X35: -1 | Z35: 22.8 | AB35: 9.95 | AD35: 3.99
A36: 315 | B36: ACCESSORY ELECTRIC EQUIPMENT | D36: 2027-06-30 | F36: 0.0052 | J36: -6 | L36: 15.4 | N36: 16.7 | P36: 2.4 | R36: 2028-06-30 | T36: 65 | U36: - | V36: S0 * | X36: -2 | Z36: 16 | AB36: 10.2 | AD36: 4.92
A37: 316 | B37: MISCELLANEOUS POWER PLANT EQUIPMENT | D37: 2027-06-30 | F37: 0.0071 | J37: 0 | L37: 27.1 | N37: 16.4 | P37: 2.4 | R37: 2028-06-30 | T37: 65 | U37: - | V37: R0.5 * | X37: 0 | Z37: 23.2 | AB37: 10.07 | AD37: 5.08
A39: MARTIN STEAM PLANT
B41: MARTIN COMMON
A42: 311 | B42: STRUCTURES AND IMPROVEMENTS | D42: 2031-06-30 | F42: 0.0032 | J42: -2 | L42: 26.5 | N42: 21 | P42: 2.1 | R42: 2031-06-30 | T42: 80 | U42: - | V42: R2 * | X42: -1 | Z42: 32.7 | AB42: 13.1 | AD42: 2.6
A43: 312 | B43: BOILER PLANT EQUIPMENT | D43: 2031-06-30 | F43: 0.0094 | J43: -7 | L43: 20.5 | N43: 19.4 | P43: 2.6 | R43: 2031-06-30 | T43: 50 | U43: - | V43: S0 * | X43: -2 | Z43: 17.4 | AB43: 12.67 | AD43: 4.62
A44: 314 | B44: TURBOGENERATOR UNITS | D44: 2031-06-30 | F44: 0.012 | J44: 0 | L44: 17.6 | N44: 18.8 | P44: 2.6 | R44: 2031-06-30 | T44: 55 | U44: - | V44: R0.5 * | X44: -1 | Z44: 23.4 | AB44: 12.56 | AD44: 3.57
A45: 315 | B45: ACCESSORY ELECTRIC EQUIPMENT | D45: 2031-06-30 | F45: 0.0052 | J45: -6 | L45: 24 | N45: 20 | P45: 2.4 | R45: 2031-06-30 | T45: 65 | U45: - | V45: S0 * | X45: -2 | Z45: 23.9 | AB45: 12.86 | AD45: 3.7
A46: 316 | B46: MISCELLANEOUS POWER PLANT EQUIPMENT | D46: 2031-06-30 | F46: 0.0071 | J46: 0 | L46: 23.2 | N46: 19.9 | P46: 2.4 | R46: 2031-06-30 | T46: 65 | U46: - | V46: R0.5 * | X46: 0 | Z46: 23.3 | AB46: 12.77 | AD46: 3.85
B48: MARTIN PIPELINE
A49: 312 | B49: BOILER PLANT EQUIPMENT | D49: 2031-06-30 | F49: 0.0094 | J49: -7 | L49: 16.5 | N49: 19.4 | P49: 2.6 | R49: 2031-06-30 | T49: 50 | U49: - | V49: S0 * | X49: 0 | Z49: 24.5 | AB49: 12.21 | AD49: 0
B51: MARTIN UNIT 1
A52: 311 | B52: STRUCTURES AND IMPROVEMENTS | D52: 2031-06-30 | F52: 0.0032 | J52: -2 | L52: 28 | N52: 21 | P52: 2.1 | R52: 2031-06-30 | T52: 80 | U52: - | V52: R2 * | X52: -1 | Z52: 33.1 | AB52: 13.09 | AD52: 2.77
A53: 312 | B53: BOILER PLANT EQUIPMENT | D53: 2031-06-30 | F53: 0.0094 | J53: -7 | L53: 25.1 | N53: 19.4 | P53: 2.6 | R53: 2031-06-30 | T53: 50 | U53: - | V53: S0 * | X53: -2 | Z53: 20.8 | AB53: 12.56 | AD53: 4.7
A54: 314 | B54: TURBOGENERATOR UNITS | D54: 2031-06-30 | F54: 0.012 | J54: 0 | L54: 20.1 | N54: 18.8 | P54: 2.6 | R54: 2031-06-30 | T54: 55 | U54: - | V54: R0.5 * | X54: -1 | Z54: 22.9 | AB54: 12.57 | AD54: 3.43
A55: 315 | B55: ACCESSORY ELECTRIC EQUIPMENT | D55: 2031-06-30 | F55: 0.0052 | J55: -6 | L55: 23.7 | N55: 20 | P55: 2.4 | R55: 2031-06-30 | T55: 65 | U55: - | V55: S0 * | X55: -2 | Z55: 25.7 | AB55: 12.81 | AD55: 3.22
A56: 316 | B56: MISCELLANEOUS POWER PLANT EQUIPMENT | D56: 2031-06-30 | F56: 0.0071 | J56: 0 | L56: 25.2 | N56: 19.9 | P56: 2.4 | R56: 2031-06-30 | T56: 65 | U56: - | V56: R0.5 * | X56: 0 | Z56: 24.2 | AB56: 12.78 | AD56: 3.87
B58: MARTIN UNIT 2
A59: 311 | B59: STRUCTURES AND IMPROVEMENTS | D59: 2031-06-30 | F59: 0.0032 | J59: -2 | L59: 27.2 | N59: 21 | P59: 2.1 | R59: 2031-06-30 | T59: 80 | U59: - | V59: R2 * | X59: -1 | Z59: 34.2 | AB59: 13.05 | AD59: 2.46
A60: 312 | B60: BOILER PLANT EQUIPMENT | D60: 2031-06-30 | F60: 0.0094 | J60: -7 | L60: 23.1 | N60: 19.4 | P60: 2.6 | R60: 2031-06-30 | T60: 50 | U60: - | V60: S0 * | X60: -2 | Z60: 19.8 | AB60: 12.59 | AD60: 4.83
A61: 314 | B61: TURBOGENERATOR UNITS | D61: 2031-06-30 | F61: 0.012 | J61: 0 | L61: 20.5 | N61: 18.8 | P61: 2.6 | R61: 2031-06-30 | T61: 55 | U61: - | V61: R0.5 * | X61: -1 | Z61: 19.6 | AB61: 12.64 | AD61: 4.97
A62: 315 | B62: ACCESSORY ELECTRIC EQUIPMENT | D62: 2031-06-30 | F62: 0.0052 | J62: -6 | L62: 19.2 | N62: 20 | P62: 2.4 | R62: 2031-06-30 | T62: 65 | U62: - | V62: S0 * | X62: -2 | Z62: 20.6 | AB62: 12.9 | AD62: 3.69
A63: 316 | B63: MISCELLANEOUS POWER PLANT EQUIPMENT | D63: 2031-06-30 | F63: 0.0071 | J63: 0 | L63: 25.1 | N63: 19.9 | P63: 2.4 | R63: 2031-06-30 | T63: 65 | U63: - | V63: R0.5 * | X63: 0 | Z63: 22.3 | AB63: 12.81 | AD63: 4.41
A65: SCHERER STEAM PLANT
B67: SCHERER COAL CARS
A68: 312 | B68: BOILER PLANT EQUIPMENT | D68: 2039-06-30 | F68: 0.0094 | J68: -7 | L68: 12 | N68: 26 | P68: 2.6 | R68: 2039-06-30 | T68: 50 | U68: - | V68: S0 * | X68: 0 | Z68: 20.2 | AB68: 18.45 | AD68: 0
B70: SCHERER COMMON
A71: 311 | B71: STRUCTURES AND IMPROVEMENTS | D71: 2039-06-30 | F71: 0.0032 | J71: -2 | L71: 14.9 | N71: 28 | P71: 2.1 | R71: 2039-06-30 | T71: 80 | U71: - | V71: R2 * | X71: -1 | Z71: 21.9 | AB71: 20.68 | AD71: 2.3
A72: 312 | B72: BOILER PLANT EQUIPMENT | D72: 2039-06-30 | F72: 0.0094 | J72: -7 | L72: 14.4 | N72: 26 | P72: 2.6 | R72: 2039-06-30 | T72: 50 | U72: - | V72: S0 * | X72: -4 | Z72: 19.8 | AB72: 18.59 | AD72: 3
A73: 314 | B73: TURBOGENERATOR UNITS | D73: 2039-06-30 | F73: 0.012 | J73: 0 | L73: 16 | N73: 25 | P73: 2.6 | R73: 2039-06-30 | T73: 55 | U73: - | V73: R0.5 * | X73: -1 | Z73: 21.2 | AB73: 19.12 | AD73: 2.98
A74: 315 | B74: ACCESSORY ELECTRIC EQUIPMENT | D74: 2039-06-30 | F74: 0.0052 | J74: -6 | L74: 15.9 | N74: 27 | P74: 2.4 | R74: 2039-06-30 | T74: 65 | U74: - | V74: S0 * | X74: -3 | Z74: 23.3 | AB74: 19.42 | AD74: 2.39
A75: 316 | B75: MISCELLANEOUS POWER PLANT EQUIPMENT | D75: 2039-06-30 | F75: 0.0071 | J75: 0 | L75: 15 | N75: 27 | P75: 2.4 | R75: 2039-06-30 | T75: 65 | U75: - | V75: R0.5 * | X75: -1 | Z75: 20.8 | AB75: 19.66 | AD75: 2.65
B77: SCHERER COMMON UNIT 3 AND 4
A78: 311 | B78: STRUCTURES AND IMPROVEMENTS | D78: 2039-06-30 | F78: 0.0032 | J78: -2 | L78: 16 | N78: 28 | P78: 2.2 | R78: 2039-06-30 | T78: 80 | U78: - | V78: R2 * | X78: -1 | Z78: 23.1 | AB78: 20.64 | AD78: 2.19
A79: 312 | B79: BOILER PLANT EQUIPMENT | D79: 2039-06-30 | F79: 0.0094 | J79: -7 | L79: 14.6 | N79: 26 | P79: 2.7 | R79: 2039-06-30 | T79: 50 | U79: - | V79: S0 * | X79: -4 | Z79: 18.1 | AB79: 18.81 | AD79: 3.15
A80: 314 | B80: TURBOGENERATOR UNITS | D80: 2039-06-30 | F80: 0.012 | J80: 0 | L80: 16 | N80: 25 | P80: 2.6 | R80: 2039-06-30 | T80: 55 | U80: - | V80: R0.5 * | X80: -1 | Z80: 4.6 | AB80: 19.7 | AD80: 4.61
A81: 315 | B81: ACCESSORY ELECTRIC EQUIPMENT | D81: 2039-06-30 | F81: 0.0052 | J81: -6 | L81: 14.7 | N81: 27 | P81: 2.4 | R81: 2039-06-30 | T81: 65 | U81: - | V81: S0 * | X81: -3 | Z81: 4.5 | AB81: 20.52 | AD81: 4.5
B83: SCHERER UNIT 4
A84: 311 | B84: STRUCTURES AND IMPROVEMENTS | D84: 2039-06-30 | F84: 0.0032 | J84: -2 | L84: 15.8 | N84: 28 | P84: 2.1 | R84: 2039-06-30 | T84: 80 | U84: - | V84: R2 * | X84: -1 | Z84: 12.4 | AB84: 20.93 | AD84: 3.58
A85: 312 | B85: BOILER PLANT EQUIPMENT | D85: 2039-06-30 | F85: 0.0094 | J85: -7 | L85: 15 | N85: 26 | P85: 2.6 | R85: 2039-06-30 | T85: 50 | U85: - | V85: S0 * | X85: -4 | Z85: 12.5 | AB85: 19.31 | AD85: 3.92
A86: 314 | B86: TURBOGENERATOR UNITS | D86: 2039-06-30 | F86: 0.012 | J86: 0 | L86: 15.7 | N86: 25 | P86: 2.6 | R86: 2039-06-30 | T86: 55 | U86: - | V86: R0.5 * | X86: -1 | Z86: 22 | AB86: 19.09 | AD86: 2.7
A87: 315 | B87: ACCESSORY ELECTRIC EQUIPMENT | D87: 2039-06-30 | F87: 0.0052 | J87: -6 | L87: 15.6 | N87: 27 | P87: 2.4 | R87: 2039-06-30 | T87: 65 | U87: - | V87: S0 * | X87: -3 | Z87: 13.4 | AB87: 20.07 | AD87: 3.63
A88: 316 | B88: MISCELLANEOUS POWER PLANT EQUIPMENT | D88: 2039-06-30 | F88: 0.0071 | J88: 0 | L88: 12.7 | N88: 27 | P88: 2.4 | R88: 2039-06-30 | T88: 65 | U88: - | V88: R0.5 * | X88: -1 | Z88: 16.8 | AB88: 19.78 | AD88: 2.78
A90: SJRPP STEAM PLANT
B92: SJRPP COAL AND LIMESTONE
A93: 311 | B93: STRUCTURES AND IMPROVEMENTS | D93: 2038-06-30 | F93: 0.0032 | J93: -2 | L93: 20.2 | N93: 28 | P93: 2.1 | R93: 2038-06-30 | T93: 80 | U93: - | V93: R2 * | X93: -1 | Z93: 28 | AB93: 19.55 | AD93: 2.47
A94: 312 | B94: BOILER PLANT EQUIPMENT | D94: 2038-06-30 | F94: 0.0094 | J94: -7 | L94: 19.8 | N94: 26 | P94: 2.6 | R94: 2038-06-30 | T94: 50 | U94: - | V94: S0 * | X94: -4 | Z94: 27.2 | AB94: 17.23 | AD94: 3.04
A95: 315 | B95: ACCESSORY ELECTRIC EQUIPMENT | D95: 2038-06-30 | F95: 0.0052 | J95: -6 | L95: 20.6 | N95: 27 | P95: 2.4 | R95: 2038-06-30 | T95: 65 | U95: - | V95: S0 * | X95: -3 | Z95: 28.6 | AB95: 18.35 | AD95: 2.4
A96: 316 | B96: MISCELLANEOUS POWER PLANT EQUIPMENT | D96: 2038-06-30 | F96: 0.0071 | J96: 0 | L96: 21.6 | N96: 27 | P96: 2.4 | R96: 2038-06-30 | T96: 65 | U96: - | V96: R0.5 * | X96: -1 | Z96: 30.1 | AB96: 18.5 | AD96: 2.43
B98: SJRPP COAL CARS
A99: 312 | B99: BOILER PLANT EQUIPMENT | D99: 2038-06-30 | F99: 0.0094 | J99: -7 | L99: 15 | N99: 26 | P99: 2.6 | R99: 2038-06-30 | T99: 50 | U99: - | V99: S0 * | X99: 0 | Z99: 27.6 | AB99: 17.1 | AD99: 0
B101: SJRPP COMMON
A102: 311 | B102: STRUCTURES AND IMPROVEMENTS | D102: 2038-06-30 | F102: 0.0032 | J102: -2 | L102: 15.4 | N102: 27 | P102: 2.1 | R102: 2038-06-30 | T102: 80 | U102: - | V102: R2 * | X102: -1 | Z102: 27 | AB102: 19.62 | AD102: 1.68
A103: 312 | B103: BOILER PLANT EQUIPMENT | D103: 2038-06-30 | F103: 0.0094 | J103: -7 | L103: 13.5 | N103: 25 | P103: 2.6 | R103: 2038-06-30 | T103: 50 | U103: - | V103: S0 * | X103: -4 | Z103: 24.9 | AB103: 17.48 | AD103: 1.89
A104: 314 | B104: TURBOGENERATOR UNITS | D104: 2038-06-30 | F104: 0.012 | J104: 0 | L104: 15.7 | N104: 24 | P104: 2.6 | R104: 2038-06-30 | T104: 55 | U104: - | V104: R0.5 * | X104: -1 | Z104: 29 | AB104: 17.97 | AD104: 1.77
A105: 315 | B105: ACCESSORY ELECTRIC EQUIPMENT | D105: 2038-06-30 | F105: 0.0052 | J105: -6 | L105: 15.9 | N105: 26 | P105: 2.4 | R105: 2038-06-30 | T105: 65 | U105: - | V105: S0 * | X105: -3 | Z105: 27.7 | AB105: 18.46 | AD105: 1.8
A106: 316 | B106: MISCELLANEOUS POWER PLANT EQUIPMENT | D106: 2038-06-30 | F106: 0.0071 | J106: 0 | L106: 13.9 | N106: 26 | P106: 2.4 | R106: 2038-06-30 | T106: 65 | U106: - | V106: R0.5 * | X106: -1 | Z106: 25.3 | AB106: 18.68 | AD106: 1.96
B108: SJRPP GYPSUM AND ASH
A109: 311 | B109: STRUCTURES AND IMPROVEMENTS | D109: 2038-06-30 | F109: 0.0032 | J109: -2 | L109: 21 | N109: 27 | P109: 2.1 | R109: 2038-06-30 | T109: 80 | U109: - | V109: R2 * | X109: -1 | Z109: 27.1 | AB109: 19.61 | AD109: 2.43
A110: 312 | B110: BOILER PLANT EQUIPMENT | D110: 2038-06-30 | F110: 0.0094 | J110: -7 | L110: 20 | N110: 25 | P110: 2.6 | R110: 2038-06-30 | T110: 50 | U110: - | V110: S0 * | X110: -4 | Z110: 28 | AB110: 17.12 | AD110: 2.69
A111: 315 | B111: ACCESSORY ELECTRIC EQUIPMENT | D111: 2038-06-30 | F111: 0.0052 | J111: -6 | L111: 16 | N111: 26 | P111: 2.4 | R111: 2038-06-30 | T111: 65 | U111: - | V111: S0 * | X111: -3 | Z111: 24.3 | AB111: 18.5 | AD111: 2.19
A112: 316 | B112: MISCELLANEOUS POWER PLANT EQUIPMENT | D112: 2038-06-30 | F112: 0.0071 | J112: 0 | L112: 21.5 | N112: 26 | P112: 2.4 | R112: 2038-06-30 | T112: 65 | U112: - | V112: R0.5 * | X112: -1 | Z112: 22.3 | AB112: 18.79 | AD112: 3.05
B114: SJRPP UNIT 1
A115: 311 | B115: STRUCTURES AND IMPROVEMENTS | D115: 2038-06-30 | F115: 0.0032 | J115: -2 | L115: 16 | N115: 27 | P115: 2.1 | R115: 2038-06-30 | T115: 80 | U115: - | V115: R2 * | X115: -1 | Z115: 29.3 | AB115: 19.54 | AD115: 1.44
A116: 312 | B116: BOILER PLANT EQUIPMENT | D116: 2038-06-30 | F116: 0.0094 | J116: -7 | L116: 15 | N116: 25 | P116: 2.6 | R116: 2038-06-30 | T116: 50 | U116: - | V116: S0 * | X116: -4 | Z116: 21.9 | AB116: 17.77 | AD116: 2.93
A117: 314 | B117: TURBOGENERATOR UNITS | D117: 2038-06-30 | F117: 0.012 | J117: 0 | L117: 14.4 | N117: 24 | P117: 2.6 | R117: 2038-06-30 | T117: 55 | U117: - | V117: R0.5 * | X117: -1 | Z117: 20.9 | AB117: 18.38 | AD117: 2.76
A118: 315 | B118: ACCESSORY ELECTRIC EQUIPMENT | D118: 2038-06-30 | F118: 0.0052 | J118: -6 | L118: 15.7 | N118: 26 | P118: 2.4 | R118: 2038-06-30 | T118: 65 | U118: - | V118: S0 * | X118: -3 | Z118: 26.4 | AB118: 18.55 | AD118: 2.06
A119: 316 | B119: MISCELLANEOUS POWER PLANT EQUIPMENT | D119: 2038-06-30 | F119: 0.0071 | J119: 0 | L119: 15.2 | N119: 26 | P119: 2.4 | R119: 2038-06-30 | T119: 65 | U119: - | V119: R0.5 * | X119: -1 | Z119: 28.2 | AB119: 18.58 | AD119: 1.68
B121: SJRPP UNIT 2
A122: 311 | B122: STRUCTURES AND IMPROVEMENTS | D122: 2038-06-30 | F122: 0.0032 | J122: -2 | L122: 20.7 | N122: 27 | P122: 2.1 | R122: 2038-06-30 | T122: 80 | U122: - | V122: R2 * | X122: -1 | Z122: 29.2 | AB122: 19.51 | AD122: 2.15
A123: 312 | B123: BOILER PLANT EQUIPMENT | D123: 2038-06-30 | F123: 0.0094 | J123: -7 | L123: 19.2 | N123: 25 | P123: 2.6 | R123: 2038-06-30 | T123: 50 | U123: - | V123: S0 * | X123: -4 | Z123: 21.6 | AB123: 17.76 | AD123: 3.27
A124: 314 | B124: TURBOGENERATOR UNITS | D124: 2038-06-30 | F124: 0.012 | J124: 0 | L124: 18 | N124: 24 | P124: 2.6 | R124: 2038-06-30 | T124: 55 | U124: - | V124: R0.5 * | X124: -1 | Z124: 20.4 | AB124: 18.38 | AD124: 3.34
A125: 315 | B125: ACCESSORY ELECTRIC EQUIPMENT | D125: 2038-06-30 | F125: 0.0052 | J125: -6 | L125: 20.4 | N125: 26 | P125: 2.4 | R125: 2038-06-30 | T125: 65 | U125: - | V125: S0 * | X125: -3 | Z125: 26.8 | AB125: 18.44 | AD125: 2.62
A126: 316 | B126: MISCELLANEOUS POWER PLANT EQUIPMENT | D126: 2038-06-30 | F126: 0.0071 | J126: 0 | L126: 19.6 | N126: 26 | P126: 2.4 | R126: 2038-06-30 | T126: 65 | U126: - | V126: R0.5 * | X126: -1 | Z126: 28.2 | AB126: 18.6 | AD126: 2.35
A128: NUCLEAR PRODUCTION PLANT
A130: ST. LUCIE NUCLEAR PLANT
B132: ST. LUCIE COMMON
A133: 321 | B133: STRUCTURES AND IMPROVEMENTS | D133: 2043-06-30 | F133: 0.0028 | J133: 0 | L133: 20.8 | N133: 32 | P133: 1.8 | R133: 2043-04-30 | T133: 100 | U133: - | V133: R1.5 * | X133: -1 | Z133: 26.3 | AB133: 24.26 | AD133: 2.33
A134: 322 | B134: REACTOR PLANT EQUIPMENT | D134: 2043-06-30 | F134: 0.0056 | J134: -2 | L134: 11 | N134: 30 | P134: 2 | R134: 2043-04-30 | T134: 60 | U134: - | V134: R1 * | X134: -2 | Z134: 18 | AB134: 22.87 | AD134: 1.97
A135: 323 | B135: TURBOGENERATOR UNITS | D135: 2043-06-30 | F135: 0.0138 | J135: 0 | L135: 20.4 | N135: 27 | P135: 2.4 | R135: 2043-04-30 | T135: 45 | U135: - | V135: R0.5 * | X135: 0 | Z135: 12.8 | AB135: 21.52 | AD135: 7.43
A136: 324 | B136: ACCESSORY ELECTRIC EQUIPMENT | D136: 2043-06-30 | F136: 0.0012 | J136: -2 | L136: 20.3 | N136: 33 | P136: 1.8 | R136: 2043-04-30 | T136: 75 | U136: - | V136: R2.5 * | X136: -1 | Z136: 26.9 | AB136: 23.89 | AD136: 2.16
A137: 325 | B137: MISCELLANEOUS POWER PLANT EQUIPMENT | D137: 2043-06-30 | F137: 0.0032 | J137: 0 | L137: 19.5 | N137: 32 | P137: 1.8 | R137: 2043-04-30 | T137: 50 | U137: - | V137: R1.5 * | X137: -3 | Z137: 19 | AB137: 21.93 | AD137: 4.19
B139: ST. LUCIE UNIT 1
A140: 321 | B140: STRUCTURES AND IMPROVEMENTS | D140: 2036-06-30 | F140: 0.0028 | J140: 0 | L140: 25.4 | N140: 26 | P140: 1.8 | R140: 2036-03-31 | T140: 100 | U140: - | V140: R1.5 * | X140: -1 | Z140: 27.4 | AB140: 17.73 | AD140: 2.78
A141: 322 | B141: REACTOR PLANT EQUIPMENT | D141: 2036-06-30 | F141: 0.0056 | J141: -2 | L141: 16.6 | N141: 25 | P141: 2 | R141: 2036-03-31 | T141: 60 | U141: - | V141: R1 * | X141: -2 | Z141: 15.6 | AB141: 17.11 | AD141: 3.86
A142: 323 | B142: TURBOGENERATOR UNITS | D142: 2036-06-30 | F142: 0.0138 | J142: 0 | L142: 25 | N142: 22 | P142: 2.4 | R142: 2036-03-31 | T142: 45 | U142: - | V142: R0.5 * | X142: 0 | Z142: 9 | AB142: 16.48 | AD142: 5.23
A143: 324 | B143: ACCESSORY ELECTRIC EQUIPMENT | D143: 2036-06-30 | F143: 0.0012 | J143: -2 | L143: 24.3 | N143: 26 | P143: 1.8 | R143: 2036-03-31 | T143: 75 | U143: - | V143: R2.5 * | X143: -1 | Z143: 22.1 | AB143: 17.74 | AD143: 3.33
A144: 325 | B144: MISCELLANEOUS POWER PLANT EQUIPMENT | D144: 2036-06-30 | F144: 0.0032 | J144: 0 | L144: 29 | N144: 25 | P144: 1.8 | R144: 2036-03-31 | T144: 50 | U144: - | V144: R1.5 * | X144: -3 | Z144: 34.2 | AB144: 15.22 | AD144: 2.69
B146: ST. LUCIE UNIT 2
A147: 321 | B147: STRUCTURES AND IMPROVEMENTS | D147: 2043-06-30 | F147: 0.0028 | J147: 0 | L147: 24.9 | N147: 32 | P147: 1.8 | R147: 2043-04-30 | T147: 100 | U147: - | V147: R1.5 * | X147: -1 | Z147: 27.7 | AB147: 24.24 | AD147: 2.32
A148: 322 | B148: REACTOR PLANT EQUIPMENT | D148: 2043-06-30 | F148: 0.0056 | J148: -2 | L148: 17.7 | N148: 30 | P148: 2 | R148: 2043-04-30 | T148: 60 | U148: - | V148: R1 * | X148: -2 | Z148: 18 | AB148: 22.86 | AD148: 2.8
A149: 323 | B149: TURBOGENERATOR UNITS | D149: 2043-06-30 | F149: 0.0138 | J149: 0 | L149: 24.4 | N149: 27 | P149: 2.4 | R149: 2043-04-30 | T149: 45 | U149: - | V149: R0.5 * | X149: 0 | Z149: 11 | AB149: 21.65 | AD149: 3.9
A150: 324 | B150: ACCESSORY ELECTRIC EQUIPMENT | D150: 2043-06-30 | F150: 0.0012 | J150: -2 | L150: 24.7 | N150: 33 | P150: 1.8 | R150: 2043-04-30 | T150: 75 | U150: - | V150: R2.5 * | X150: -1 | Z150: 28.4 | AB150: 23.78 | AD150: 2.32
A151: 325 | B151: MISCELLANEOUS POWER PLANT EQUIPMENT | D151: 2043-06-30 | F151: 0.0032 | J151: 0 | L151: 25.9 | N151: 32 | P151: 1.8 | R151: 2043-04-30 | T151: 50 | U151: - | V151: R1.5 * | X151: -3 | Z151: 29.9 | AB151: 20.11 | AD151: 2.77
A153: TURKEY POINT NUCLEAR PLANT
B155: TURKEY POINT COMMON
A156: 321 | B156: STRUCTURES AND IMPROVEMENTS | D156: 2033-06-30 | F156: 0.0028 | J156: 0 | L156: 17.4 | N156: 23 | P156: 1.8 | R156: 2033-04-30 | T156: 100 | U156: - | V156: R1.5 * | X156: -1 | Z156: 18.7 | AB156: 15.03 | AD156: 3.45
A157: 322 | B157: REACTOR PLANT EQUIPMENT | D157: 2033-06-30 | F157: 0.0056 | J157: -2 | L157: 16.3 | N157: 22 | P157: 2 | R157: 2033-04-30 | T157: 60 | U157: - | V157: R1 * | X157: -2 | Z157: 8.8 | AB157: 14.66 | AD157: 5.75
A158: 323 | B158: TURBOGENERATOR UNITS | D158: 2033-06-30 | F158: 0.0138 | J158: 0 | L158: 6.2 | N158: 19.9 | P158: 2.4 | R158: 2033-04-30 | T158: 45 | U158: - | V158: R0.5 * | X158: 0 | Z158: 10.3 | AB158: 14.07 | AD158: 5.31
A159: 324 | B159: ACCESSORY ELECTRIC EQUIPMENT | D159: 2033-06-30 | F159: 0.0012 | J159: -2 | L159: 16.7 | N159: 23 | P159: 1.8 | R159: 2033-04-30 | T159: 75 | U159: - | V159: R2.5 * | X159: -1 | Z159: 20.5 | AB159: 15.03 | AD159: 2.68
A160: 325 | B160: MISCELLANEOUS POWER PLANT EQUIPMENT | D160: 2033-06-30 | F160: 0.0032 | J160: 0 | L160: 15.4 | N160: 23 | P160: 1.8 | R160: 2033-04-30 | T160: 50 | U160: - | V160: R1.5 * | X160: -3 | Z160: 15.5 | AB160: 14.44 | AD160: 4
B162: TURKEY POINT UNIT 3
A163: 321 | B163: STRUCTURES AND IMPROVEMENTS | D163: 2032-06-30 | F163: 0.0028 | J163: 0 | L163: 19.2 | N163: 23 | P163: 1.8 | R163: 2032-07-31 | T163: 100 | U163: - | V163: R1.5 * | X163: -1 | Z163: 11 | AB163: 14.34 | AD163: 5.5
A164: 322 | B164: REACTOR PLANT EQUIPMENT | D164: 2032-06-30 | F164: 0.0056 | J164: -2 | L164: 16.7 | N164: 22 | P164: 2 | R164: 2032-07-31 | T164: 60 | U164: - | V164: R1 * | X164: -2 | Z164: 13.3 | AB164: 13.91 | AD164: 5.2
A165: 323 | B165: TURBOGENERATOR UNITS | D165: 2032-06-30 | F165: 0.0138 | J165: 0 | L165: 23.5 | N165: 19.9 | P165: 2.4 | R165: 2032-07-31 | T165: 45 | U165: - | V165: R0.5 * | X165: 0 | Z165: 6.7 | AB165: 13.53 | AD165: 6.43
A166: 324 | B166: ACCESSORY ELECTRIC EQUIPMENT | D166: 2032-06-30 | F166: 0.0012 | J166: -2 | L166: 22.3 | N166: 23 | P166: 1.8 | R166: 2032-07-31 | T166: 75 | U166: - | V166: R2.5 * | X166: -1 | Z166: 20.3 | AB166: 14.32 | AD166: 3.7
A167: 325 | B167: MISCELLANEOUS POWER PLANT EQUIPMENT | D167: 2032-06-30 | F167: 0.0032 | J167: 0 | L167: 26.7 | N167: 23 | P167: 1.8 | R167: 2032-07-31 | T167: 50 | U167: - | V167: R1.5 * | X167: -3 | Z167: 9 | AB167: 13.93 | AD167: 7
B169: TURKEY POINT UNIT 4
A170: 321 | B170: STRUCTURES AND IMPROVEMENTS | D170: 2033-06-30 | F170: 0.0028 | J170: 0 | L170: 15.9 | N170: 23 | P170: 1.8 | R170: 2033-04-30 | T170: 100 | U170: - | V170: R1.5 * | X170: -1 | Z170: 16 | AB170: 15.04 | AD170: 4.11
A171: 322 | B171: REACTOR PLANT EQUIPMENT | D171: 2033-06-30 | F171: 0.0056 | J171: -2 | L171: 16.3 | N171: 22 | P171: 2 | R171: 2033-04-30 | T171: 60 | U171: - | V171: R1 * | X171: -2 | Z171: 14 | AB171: 14.58 | AD171: 4.47
A172: 323 | B172: TURBOGENERATOR UNITS | D172: 2033-06-30 | F172: 0.0138 | J172: 0 | L172: 20.5 | N172: 19.9 | P172: 2.4 | R172: 2033-04-30 | T172: 45 | U172: - | V172: R0.5 * | X172: 0 | Z172: 7.1 | AB172: 14.16 | AD172: 5.98
A173: 324 | B173: ACCESSORY ELECTRIC EQUIPMENT | D173: 2033-06-30 | F173: 0.0012 | J173: -2 | L173: 19.9 | N173: 23 | P173: 1.8 | R173: 2033-04-30 | T173: 75 | U173: - | V173: R2.5 * | X173: -1 | Z173: 22.7 | AB173: 14.98 | AD173: 2.79
A174: 325 | B174: MISCELLANEOUS POWER PLANT EQUIPMENT | D174: 2033-06-30 | F174: 0.0032 | J174: 0 | L174: 22.6 | N174: 23 | P174: 1.8 | R174: 2033-04-30 | T174: 50 | U174: - | V174: R1.5 * | X174: -3 | Z174: 10.9 | AB174: 14.57 | AD174: 6.91
A176: COMBINED CYCLE PRODUCTION PLANT
A178: LAUDERDALE COMBINED CYCLE PLANT
B180: LAUDERDALE COMMON
A181: 341 | B181: STRUCTURES AND IMPROVEMENTS | D181: 2023-06-30 | F181: 0.0023 | J181: -2 | L181: 15.8 | N181: 13.3 | P181: 3.5 | R181: 2033-06-30 | T181: 80 | U181: - | V181: R2 * | X181: -2 | Z181: 19.9 | AB181: 15.14 | AD181: 2.31
A182: 342 | B182: FUEL HOLDERS, PRODUCERS AND ACCESSORIES | D182: 2023-06-30 | F182: 0.0095 | J182: 0 | L182: 15.6 | N182: 12.6 | P182: 3.8 | R182: 2033-06-30 | T182: 50 | U182: - | V182: R1.5 * | X182: -3 | Z182: 18.2 | AB182: 14.45 | AD182: 3.19
A183: 343 | B183: PRIME MOVERS - GENERAL | D183: 2023-06-30 | F183: 0.0057 | J183: 0 | L183: 3.3 | N183: 8.9 | O183: ** | P183: 6 | R183: 2033-06-30 | T183: 50 | U183: - | V183: R1 * | X183: -3 | Z183: 4.2 | AB183: 14.72 | AD183: 5.2
A184: 343.2 | B184: PRIME MOVERS - CAPITAL SPARE PARTS | D184: 2023-06-30 | F184: 0.1565 | J184: 0 | L184: 2.5 | N184: 8.9 | O184: ** | P184: 6 | R184: 2033-06-30 | T184: 9 | U184: - | V184: L0 * | X184: 35 | Z184: 4.1 | AB184: 6.67 | AD184: 6.21
A185: 344 | B185: GENERATORS | D185: 2023-06-30 | F185: 0.0016 | J185: -1 | L185: 16.7 | N185: 13.3 | P185: 3.4 | R185: 2033-06-30 | T185: 60 | U185: - | V185: R2 * | X185: -3 | Z185: 15.8 | AB185: 14.97 | AD185: 2.86
A186: 345 | B186: ACCESSORY ELECTRIC EQUIPMENT | D186: 2023-06-30 | F186: 0.0013 | J186: -1 | L186: 16.1 | N186: 13.4 | P186: 3.4 | R186: 2033-06-30 | T186: 50 | U186: - | V186: R2.5 * | X186: -2 | Z186: 22.6 | AB186: 14.42 | AD186: 1.69
A187: 346 | B187: MISCELLANEOUS POWER PLANT EQUIPMENT | D187: 2023-06-30 | F187: 0.0026 | J187: 0 | L187: 13 | N187: 13.2 | P187: 3.4 | R187: 2033-06-30 | T187: 50 | U187: - | V187: S0.5 * | X187: -2 | Z187: 15 | AB187: 14.52 | AD187: 3.55
B189: LAUDERDALE UNIT 4
A190: 341 | B190: STRUCTURES AND IMPROVEMENTS | D190: 2023-06-30 | F190: 0.0023 | J190: -2 | L190: 16 | N190: 13.3 | P190: 3.5 | R190: 2033-06-30 | T190: 80 | U190: - | V190: R2 * | X190: -2 | Z190: 20.6 | AB190: 15.13 | AD190: 2.2
A191: 342 | B191: FUEL HOLDERS, PRODUCERS AND ACCESSORIES | D191: 2023-06-30 | F191: 0.0095 | J191: 0 | L191: 13.2 | N191: 12.6 | P191: 3.8 | R191: 2033-06-30 | T191: 50 | U191: - | V191: R1.5 * | X191: -3 | Z191: 19.9 | AB191: 14.37 | AD191: 1.84
A192: 343 | B192: PRIME MOVERS - GENERAL | D192: 2023-06-30 | F192: 0.0057 | J192: 0 | L192: 12.9 | N192: 11.2 | O192: ** | P192: 4.3 | R192: 2033-06-30 | T192: 50 | U192: - | V192: R1 * | X192: -3 | Z192: 17.9 | AB192: 14.36 | AD192: 4.16
A193: 343.2 | B193: PRIME MOVERS - CAPITAL SPARE PARTS | D193: 2023-06-30 | F193: 0.1565 | J193: 0 | L193: 4.9 | N193: 11.2 | O193: ** | P193: 4.3 | R193: 2033-06-30 | T193: 9 | U193: - | V193: L0 * | X193: 35 | Z193: 5.1 | AB193: 6.41 | AD193: 7.55
A194: 344 | B194: GENERATORS | D194: 2023-06-30 | F194: 0.0016 | J194: -1 | L194: 15.4 | N194: 13.3 | P194: 3.4 | R194: 2033-06-30 | T194: 60 | U194: - | V194: R2 * | X194: -3 | Z194: 21.2 | AB194: 14.8 | AD194: 2.13
A195: 345 | B195: ACCESSORY ELECTRIC EQUIPMENT | D195: 2023-06-30 | F195: 0.0013 | J195: -1 | L195: 15.9 | N195: 13.4 | P195: 3.4 | R195: 2033-06-30 | T195: 50 | U195: - | V195: R2.5 * | X195: -2 | Z195: 20.2 | AB195: 14.57 | AD195: 2.54
A196: 346 | B196: MISCELLANEOUS POWER PLANT EQUIPMENT | D196: 2023-06-30 | F196: 0.0026 | J196: 0 | L196: 14.8 | N196: 13.2 | P196: 3.4 | R196: 2033-06-30 | T196: 50 | U196: - | V196: S0.5 * | X196: -2 | Z196: 20.9 | AB196: 14.11 | AD196: 2.02
B198: LAUDERDALE UNIT 5
A199: 341 | B199: STRUCTURES AND IMPROVEMENTS | D199: 2023-06-30 | F199: 0.0023 | J199: -2 | L199: 16 | N199: 13.3 | P199: 3.5 | R199: 2033-06-30 | T199: 80 | U199: - | V199: R2 * | X199: -2 | Z199: 18.6 | AB199: 15.16 | AD199: 2.67
A200: 342 | B200: FUEL HOLDERS, PRODUCERS AND ACCESSORIES | D200: 2023-06-30 | F200: 0.0095 | J200: 0 | L200: 12.2 | N200: 12.6 | P200: 3.8 | R200: 2033-06-30 | T200: 50 | U200: - | V200: R1.5 * | X200: -3 | Z200: 17.2 | AB200: 14.52 | AD200: 2.36
A201: 343 | B201: PRIME MOVERS - GENERAL | D201: 2023-06-30 | F201: 0.0057 | J201: 0 | L201: 13.3 | N201: 11.5 | O201: ** | P201: 4.2 | R201: 2033-06-30 | T201: 50 | U201: - | V201: R1 * | X201: -3 | Z201: 17.6 | AB201: 14.37 | AD201: 5.2
A202: 343.2 | B202: PRIME MOVERS - CAPITAL SPARE PARTS | D202: 2023-06-30 | F202: 0.1565 | J202: 0 | L202: 4.8 | N202: 11.5 | O202: ** | P202: 4.2 | R202: 2033-06-30 | T202: 9 | U202: - | V202: L0 * | X202: 35 | Z202: 3.7 | AB202: 6.92 | AD202: 8.18
A203: 344 | B203: GENERATORS | D203: 2023-06-30 | F203: 0.0016 | J203: -1 | L203: 14.6 | N203: 13.3 | P203: 3.4 | R203: 2033-06-30 | T203: 60 | U203: - | V203: R2 * | X203: -3 | Z203: 19.5 | AB203: 14.86 | AD203: 2.13
A204: 345 | B204: ACCESSORY ELECTRIC EQUIPMENT | D204: 2023-06-30 | F204: 0.0013 | J204: -1 | L204: 16 | N204: 13.4 | P204: 3.4 | R204: 2033-06-30 | T204: 50 | U204: - | V204: R2.5 * | X204: -2 | Z204: 19.3 | AB204: 14.64 | AD204: 2.69
A205: 346 | B205: MISCELLANEOUS POWER PLANT EQUIPMENT | D205: 2023-06-30 | F205: 0.0026 | J205: 0 | L205: 15.2 | N205: 13.2 | P205: 3.4 | R205: 2033-06-30 | T205: 50 | U205: - | V205: S0.5 * | X205: -2 | Z205: 20.8 | AB205: 14.12 | AD205: 2.16
A207: FT. MYERS COMBINED CYCLE PLANT
B209: FT. MYERS COMMON
A210: 341 | B210: STRUCTURES AND IMPROVEMENTS | D210: 2033-06-30 | F210: 0.0023 | J210: -2 | L210: 26.8 | N210: 23 | P210: 3.5 | R210: 2043-06-30 | T210: 80 | U210: - | V210: R2 * | X210: -2 | Z210: 23.2 | AB210: 24.23 | AD210: 3.29
A211: 342 | B211: FUEL HOLDERS, PRODUCERS AND ACCESSORIES | D211: 2033-06-30 | F211: 0.0095 | J211: 0 | L211: 41.8 | N211: 21 | P211: 3.8 | R211: 2043-06-30 | T211: 50 | U211: - | V211: R1.5 * | X211: -3 | Z211: 46.2 | AB211: 16.05 | AD211: 4.21
A212: 343 | B212: PRIME MOVERS - GENERAL | D212: 2033-06-30 | F212: 0.0057 | J212: 0 | L212: 1.5 | N212: 13.9 | O212: ** | P212: 5.8 | R212: 2043-06-30 | T212: 50 | U212: - | V212: R1 * | X212: -3 | Z212: 5 | AB212: 23.12 | AD212: 3.14
A213: 343.2 | B213: PRIME MOVERS - CAPITAL SPARE PARTS | D213: 2033-06-30 | F213: 0.1565 | J213: 0 | L213: 1.5 | N213: 13.9 | O213: ** | P213: 5.8 | R213: 2043-06-30 | T213: 9 | U213: - | V213: L0 * | X213: 35 | Z213: 7.9 | AB213: 5.5 | AD213: 2.24
A214: 344 | B214: GENERATORS | D214: 2033-06-30 | F214: 0.0016 | J214: -1 | L214: 20.7 | N214: 23 | P214: 3.4 | R214: 2043-06-30 | T214: 60 | U214: - | V214: R2 * | X214: -3 | Z214: 3.9 | AB214: 24.49 | AD214: 3.93
A215: 345 | B215: ACCESSORY ELECTRIC EQUIPMENT | D215: 2033-06-30 | F215: 0.0013 | J215: -1 | L215: 29.6 | N215: 23 | P215: 3.4 | R215: 2043-06-30 | T215: 50 | U215: - | V215: R2.5 * | X215: -2 | Z215: 6.3 | AB215: 24.06 | AD215: 3.71
A216: 346 | B216: MISCELLANEOUS POWER PLANT EQUIPMENT | D216: 2033-06-30 | F216: 0.0026 | J216: 0 | L216: 15.2 | N216: 23 | P216: 3.4 | R216: 2043-06-30 | T216: 50 | U216: - | V216: S0.5 * | X216: -2 | Z216: 15.8 | AB216: 22.18 | AD216: 3.41
B218: FT. MYERS UNIT 2
A219: 341 | B219: STRUCTURES AND IMPROVEMENTS | D219: 2033-06-30 | F219: 0.0023 | J219: -2 | L219: 10.3 | N219: 22 | P219: 3.5 | R219: 2043-06-30 | T219: 80 | U219: - | V219: R2 * | X219: -2 | Z219: 15.6 | AB219: 24.52 | AD219: 2.45
A220: 342 | B220: FUEL HOLDERS, PRODUCERS AND ACCESSORIES | D220: 2033-06-30 | F220: 0.0095 | J220: 0 | L220: 9.1 | N220: 20 | P220: 3.8 | R220: 2043-06-30 | T220: 50 | U220: - | V220: R1.5 * | X220: -3 | Z220: 14.8 | AB220: 22.7 | AD220: 3.1
A221: 343 | B221: PRIME MOVERS - GENERAL | D221: 2033-06-30 | F221: 0.0057 | J221: 0 | L221: 6.6 | N221: 18 | O221: ** | P221: 4.2 | R221: 2043-06-30 | T221: 50 | U221: - | V221: R1 * | X221: -3 | Z221: 9.8 | AB221: 22.81 | AD221: 3.56
A222: 343.2 | B222: PRIME MOVERS - CAPITAL SPARE PARTS | D222: 2033-06-30 | F222: 0.1565 | J222: 0 | L222: 3.4 | N222: 18 | O222: ** | P222: 4.2 | R222: 2043-06-30 | T222: 9 | U222: - | V222: L0 * | X222: 35 | Z222: 4.9 | AB222: 6.72 | AD222: 7.42
A223: 344 | B223: GENERATORS | D223: 2033-06-30 | F223: 0.0016 | J223: -1 | L223: 10 | N223: 22 | P223: 3.4 | R223: 2043-06-30 | T223: 60 | U223: - | V223: R2 * | X223: -3 | Z223: 13.2 | AB223: 23.89 | AD223: 2.89
A224: 345 | B224: ACCESSORY ELECTRIC EQUIPMENT | D224: 2033-06-30 | F224: 0.0013 | J224: -1 | L224: 8.4 | N224: 22 | P224: 3.4 | R224: 2043-06-30 | T224: 50 | U224: - | V224: R2.5 * | X224: -2 | Z224: 14.3 | AB224: 23.33 | AD224: 2.43
A225: 346 | B225: MISCELLANEOUS POWER PLANT EQUIPMENT | D225: 2033-06-30 | F225: 0.0026 | J225: 0 | L225: 8.5 | N225: 22 | P225: 3.4 | R225: 2043-06-30 | T225: 50 | U225: - | V225: S0.5 * | X225: -2 | Z225: 14.1 | AB225: 22.24 | AD225: 2.53
B227: FT. MYERS UNIT 3
A228: 341 | B228: STRUCTURES AND IMPROVEMENTS | D228: 2033-06-30 | F228: 0.0023 | J228: -2 | L228: 6.1 | N228: 23 | P228: 3.5 | R228: 2043-06-30 | T228: 80 | U228: - | V228: R2 * | X228: -2 | Z228: 5 | AB228: 24.85 | AD228: 3.39
A229: 342 | B229: FUEL HOLDERS, PRODUCERS AND ACCESSORIES | D229: 2033-06-30 | F229: 0.0095 | J229: 0 | L229: 6.1 | N229: 21 | P229: 3.8 | R229: 2043-06-30 | T229: 50 | U229: - | V229: R1.5 * | X229: -3 | Z229: 5.1 | AB229: 23.58 | AD229: 3.57
A230: 343 | B230: PRIME MOVERS - GENERAL | D230: 2033-06-30 | F230: 0.0057 | J230: 0 | L230: 4.8 | N230: 15.5 | O230: ** | P230: 5.2 | R230: 2043-06-30 | T230: 50 | U230: - | V230: R1 * | X230: -3 | Z230: 3.2 | AB230: 23.24 | AD230: 4.49
A231: 343.2 | B231: PRIME MOVERS - CAPITAL SPARE PARTS | D231: 2033-06-30 | F231: 0.1565 | J231: 0 | L231: 3.6 | N231: 15.5 | O231: ** | P231: 5.2 | R231: 2043-06-30 | T231: 25 | U231: - | V231: R1 * | X231: 29 | Z231: 4 | AB231: 19.16 | AD231: 3.78
A232: 344 | B232: GENERATORS | D232: 2033-06-30 | F232: 0.0016 | J232: -1 | L232: 6.1 | N232: 23 | P232: 3.4 | R232: 2043-06-30 | T232: 60 | U232: - | V232: R2 * | X232: -3 | Z232: 5.1 | AB232: 24.44 | AD232: 3.48
A233: 345 | B233: ACCESSORY ELECTRIC EQUIPMENT | D233: 2033-06-30 | F233: 0.0013 | J233: -1 | L233: 6.1 | N233: 23 | P233: 3.4 | R233: 2043-06-30 | T233: 50 | U233: - | V233: R2.5 * | X233: -2 | Z233: 5.1 | AB233: 24.37 | AD233: 3.41
A234: 346 | B234: MISCELLANEOUS POWER PLANT EQUIPMENT | D234: 2033-06-30 | F234: 0.0026 | J234: 0 | L234: 6.1 | N234: 23 | P234: 3.4 | R234: 2043-06-30 | T234: 50 | U234: - | V234: S0.5 * | X234: -2 | Z234: 4.8 | AB234: 23.59 | AD234: 3.68
A237: MANATEE COMBINED CYCLE PLANT
B239: MANATEE UNIT 3
A240: 341 | B240: STRUCTURES AND IMPROVEMENTS | D240: 2035-06-30 | F240: 0.0023 | J240: -2 | L240: 4.4 | N240: 25 | P240: 3.5 | R240: 2045-06-30 | T240: 80 | U240: - | V240: R2 * | X240: -2 | Z240: 11.2 | AB240: 26.5 | AD240: 2.47
A241: 342 | B241: FUEL HOLDERS, PRODUCERS AND ACCESSORIES | D241: 2035-06-30 | F241: 0.0095 | J241: 0 | L241: 4.4 | N241: 23 | P241: 3.8 | R241: 2045-06-30 | T241: 50 | U241: - | V241: R1.5 * | X241: -3 | Z241: 11.3 | AB241: 24.55 | AD241: 2.68
A242: 343 | B242: PRIME MOVERS - GENERAL | D242: 2035-06-30 | F242: 0.0057 | J242: 0 | L242: 4.2 | N242: 20 | O242: ** | P242: 4.3 | R242: 2045-06-30 | T242: 50 | U242: - | V242: R1 * | X242: -3 | Z242: 9.5 | AB242: 24.32 | AD242: 3.58
A243: 343.2 | B243: PRIME MOVERS - CAPITAL SPARE PARTS | D243: 2035-06-30 | F243: 0.1565 | J243: 0 | L243: 3.4 | N243: 20 | O243: ** | P243: 4.3 | R243: 2045-06-30 | T243: 9 | U243: - | V243: L0 * | X243: 35 | Z243: 4.1 | AB243: 7.04 | AD243: 7.88
A244: 344 | B244: GENERATORS | D244: 2035-06-30 | F244: 0.0016 | J244: -1 | L244: 4.4 | N244: 25 | P244: 3.4 | R244: 2045-06-30 | T244: 60 | U244: - | V244: R2 * | X244: -3 | Z244: 11.2 | AB244: 25.78 | AD244: 2.49
A245: 345 | B245: ACCESSORY ELECTRIC EQUIPMENT | D245: 2035-06-30 | F245: 0.0013 | J245: -1 | L245: 4.2 | N245: 25 | P245: 3.4 | R245: 2045-06-30 | T245: 50 | U245: - | V245: R2.5 * | X245: -2 | Z245: 10.8 | AB245: 25.39 | AD245: 2.59
A246: 346 | B246: MISCELLANEOUS POWER PLANT EQUIPMENT | D246: 2035-06-30 | F246: 0.0026 | J246: 0 | L246: 4.5 | N246: 25 | P246: 3.4 | R246: 2045-06-30 | T246: 50 | U246: - | V246: S0.5 * | X246: -2 | Z246: 11 | AB246: 24.09 | AD246: 2.85
... 217 more rows

Sheet Table 7
A1: FLORIDA POWER AND LIGHT COMPANY
A2: OPC 002094 FPL RC-16
A3: TABLE 7. COMPARISON OF BOOK RESERVE PERCENTS, AVERAGE REMAINING LIVES, ANNUAL DEPRECIATION RATES AND ANNUAL DEPRECIATION ACCRUALS
A4: BASED ON DEPRECIATION RATES ORDERED IN DOCKET NO. 090130-EI AND PROPOSED DEPRECIATION RATES
H7: ORDERED COMPONENTS IN
H8: DOCKET NO. 090130-EI AS OF DECEMBER 31, 2009 | P8: PROPOSED COMPONENTS AS OF DECEMBER 31, 2017
H9: BOOK | J9: AVERAGE | L9: ANNUAL | N9: ANNUAL | P9: BOOK | R9: AVERAGE | T9: ANNUAL | V9: ANNUAL
D10: ORIGINAL | F10: BOOK | H10: RESERVE | J10: REMAINING | L10: DEPRECIATION | N10: DEPRECIATION | P10: RESERVE | R10: REMAINING | T10: DEPRECIATION | V10: DEPRECIATION
D11: COST | F11: RESERVE | H11: PERCENT | J11: LIFE | L11: ACCRUALS | N11: RATE | P11: PERCENT | R11: LIFE | T11: ACCRUALS | V11: RATE
D12: -1 | F12: -2 | H12: -3 | J12: -4 | L12: -5 | N12: -6 | P12: -7 | R12: -8 | T12: -9 | V12: -10
A14: STEAM PRODUCTION PLANT
A17: MANATEE STEAM PLANT
B19: MANATEE COMMON
A20: 311 | B20: STRUCTURES AND IMPROVEMENTS | D20: 114283077.9 | F20: 73863099.7 | H20: 64.46808511 | J20: 17 | L20: =+ROUND(D20*N20/100,0) -> 2399945 | N20: 2.1 | P20: =F20/D20*100 -> 64.6317032 | R20: 10.32 | T20: 4027404 | V20: 3.52
A21: 312 | B21: BOILER PLANT EQUIPMENT | D21: 7864883.47 | F21: 1419252.067 | H21: 60.945 | J21: 16.1 | L21: =+ROUND(D21*N21/100,0) -> 204487 | N21: 2.6 | P21: =F21/D21*100 -> 18.04543033 | R21: 10.18 | T21: 648618 | V21: =+ROUND(T21/D21*100,2) -> 8.25
A22: 314 | B22: TURBOGENERATOR UNITS | D22: 9839030.51 | F22: 7821767.522 | H22: 58.68421053 | J22: 15.7 | L22: =+ROUND(D22*N22/100,0) -> 255815 | N22: 2.6 | P22: =F22/D22*100 -> 79.49733985 | R22: 9.87 | T22: 214352 | V22: =+ROUND(T22/D22*100,2) -> 2.18
A23: 315 | B23: ACCESSORY ELECTRIC EQUIPMENT | D23: 9833462.49 | F23: 7455584.67 | H23: 65.14772727 | J23: 16.7 | L23: =+ROUND(D23*N23/100,0) -> 236003 | N23: 2.4 | P23: =F23/D23*100 -> 75.81850928 | R23: 9.99 | T23: 257712 | V23: =+ROUND(T23/D23*100,2) -> 2.62
A24: 316 | B24: MISCELLANEOUS POWER PLANT EQUIPMENT | D24: 2498111.02 | F24: 1956325.337 | H24: 61.56190476 | J24: 16.4 | L24: =+ROUND(D24*N24/100,0) -> 59955 | N24: 2.4 | P24: =F24/D24*100 -> 78.31218555 | R24: 10.02 | T24: 54070 | V24: =+ROUND(T24/D24*100,2) -> 2.16
B25: TOTAL MANATEE COMMON | D25: =+SUBTOTAL(9,D20:D24) -> 144318565.4 | F25: =+SUBTOTAL(9,F20:F24) -> 92516029.3 | L25: =+SUBTOTAL(9,L20:L24) -> 3156205 | N25: =+ROUND(L25/D25*100,1) -> 2.2 | T25: =+SUBTOTAL(9,T20:T24) -> 5202156 | V25: =+T25/D25*100 -> 3.604633948
B27: MANATEE UNIT 1
A28: 311 | B28: STRUCTURES AND IMPROVEMENTS | D28: 6968574.08 | F28: 5629218.797 | H28: 64.46808511 | J28: 17 | L28: =+ROUND(D28*N28/100,0) -> 146340 | N28: 2.1 | P28: =F28/D28*100 -> 80.78006681 | R28: 10.19 | T28: 138277 | V28: =+ROUND(T28/D28*100,2) -> 1.98
A29: 312 | B29: BOILER PLANT EQUIPMENT | D29: 184992667.8 | F29: 95599217.64 | H29: 60.945 | J29: 16.1 | L29: =+ROUND(D29*N29/100,0) -> 4809809 | N29: 2.6 | P29: =F29/D29*100 -> 51.67730093 | R29: 9.99 | T29: 9318649 | V29: =+ROUND(T29/D29*100,2) -> 5.04
A30: 314 | B30: TURBOGENERATOR UNITS | D30: 74066120.92 | F30: 43199871.11 | H30: 58.68421053 | J30: 15.7 | L30: =+ROUND(D30*N30/100,0) -> 1925719 | N30: 2.6 | P30: =F30/D30*100 -> 58.32608833 | R30: 9.97 | T30: 3170202 | V30: =+ROUND(T30/D30*100,2) -> 4.28
A31: 315 | B31: ACCESSORY ELECTRIC EQUIPMENT | D31: 14537672.54 | F31: 8121393.657 | H31: 65.14772727 | J31: 16.7 | L31: =+ROUND(D31*N31/100,0) -> 348904 | N31: 2.4 | P31: =F31/D31*100 -> 55.8644696 | R31: 10.18 | T31: 658844 | V31: =+ROUND(T31/D31*100,2) -> 4.53
A32: 316 | B32: MISCELLANEOUS POWER PLANT EQUIPMENT | D32: 4000322.68 | F32: 2337843.906 | H32: 61.56190476 | J32: 16.4 | L32: =+ROUND(D32*N32/100,0) -> 96008 | N32: 2.4 | P32: =F32/D32*100 -> 58.44138317 | R32: 10.06 | T32: 165256 | V32: =+ROUND(T32/D32*100,2) -> 4.13
B33: TOTAL MANATEE UNIT 1 | D33: =+SUBTOTAL(9,D28:D32) -> 284565358 | F33: =+SUBTOTAL(9,F28:F32) -> 154887545.1 | L33: =+SUBTOTAL(9,L28:L32) -> 7326780 | N33: =+ROUND(L33/D33*100,1) -> 2.6 | T33: =+SUBTOTAL(9,T28:T32) -> 13451228 | V33: =+T33/D33*100 -> 4.726937985
B35: MANATEE UNIT 2
A36: 311 | B36: STRUCTURES AND IMPROVEMENTS | D36: 5083211.03 | F36: 4050365.75 | H36: 64.46808511 | J36: 17 | L36: =+ROUND(D36*N36/100,0) -> 106747 | N36: 2.1 | P36: =F36/D36*100 -> 79.68124333 | R36: 10.22 | T36: 106035 | V36: =+ROUND(T36/D36*100,2) -> 2.09
A37: 312 | B37: BOILER PLANT EQUIPMENT | D37: 187516002.4 | F37: 89627110.3 | H37: 60.945 | J37: 16.1 | L37: =+ROUND(D37*N37/100,0) -> 4875416 | N37: 2.6 | P37: =F37/D37*100 -> 47.79704619 | R37: 10.02 | T37: 10143634 | V37: =+ROUND(T37/D37*100,2) -> 5.41
A38: 314 | B38: TURBOGENERATOR UNITS | D38: 72134310.35 | F38: 44200582.63 | H38: 58.68421053 | J38: 15.7 | L38: =+ROUND(D38*N38/100,0) -> 1875492 | N38: 2.6 | P38: =F38/D38*100 -> 61.27539365 | R38: 9.95 | T38: 2879907 | V38: =+ROUND(T38/D38*100,2) -> 3.99
A39: 315 | B39: ACCESSORY ELECTRIC EQUIPMENT | D39: 12511248.53 | F39: 6482958.588 | H39: 65.14772727 | J39: 16.7 | L39: =+ROUND(D39*N39/100,0) -> 300270 | N39: 2.4 | P39: =F39/D39*100 -> 51.81703946 | R39: 10.2 | T39: 615541 | V39: =+ROUND(T39/D39*100,2) -> 4.92
A40: 316 | B40: MISCELLANEOUS POWER PLANT EQUIPMENT | D40: 3520593.83 | F40: 1720389.48 | H40: 61.56190476 | J40: 16.4 | L40: =+ROUND(D40*N40/100,0) -> 84494 | N40: 2.4 | P40: =F40/D40*100 -> 48.86645728 | R40: 10.07 | T40: 178769 | V40: =+ROUND(T40/D40*100,2) -> 5.08
B41: TOTAL MANATEE UNIT 2 | D41: =+SUBTOTAL(9,D36:D40) -> 280765366.2 | F41: =+SUBTOTAL(9,F36:F40) -> 146081406.7 | L41: =+SUBTOTAL(9,L36:L40) -> 7242419 | N41: =+ROUND(L41/D41*100,1) -> 2.6 | T41: =+SUBTOTAL(9,T36:T40) -> 13923886 | V41: =+T41/D41*100 -> 4.959260535
A43: TOTAL MANATEE STEAM PLANT | D43: =+SUBTOTAL(9,D19:D42) -> 709649289.6 | F43: =+SUBTOTAL(9,F19:F42) -> 393484981.2 | L43: =+SUBTOTAL(9,L19:L42) -> 17725404 | N43: =+ROUND(L43/D43*100,1) -> 2.5 | T43: =+SUBTOTAL(9,T19:T42) -> 32577270 | V43: =+T43/D43*100 -> 4.59061546
A46: MARTIN STEAM PLANT
B48: MARTIN COMMON
A49: 311 | B49: STRUCTURES AND IMPROVEMENTS | D49: 241400701.3 | F49: 161452115.2 | H49: 55.87234043 | J49: 21 | L49: =+ROUND(D49*N49/100,0) -> 5069415 | N49: 2.1 | P49: =F49/D49*100 -> 66.88137784 | R49: 13.1 | T49: 6287221 | V49: =+ROUND(T49/D49*100,2) -> 2.6
A50: 312 | B50: BOILER PLANT EQUIPMENT | D50: 7052454.52 | F50: 3063360.013 | H50: 54.075 | J50: 19.4 | L50: =+ROUND(D50*N50/100,0) -> 183364 | N50: 2.6 | P50: =F50/D50*100 -> 43.43679217 | R50: 12.67 | T50: 325978 | V50: =+ROUND(T50/D50*100,2) -> 4.62
A51: 314 | B51: TURBOGENERATOR UNITS | D51: 27411865.75 | F51: 15382397.12 | H51: 50.52631579 | J51: 18.8 | L51: =+ROUND(D51*N51/100,0) -> 712709 | N51: 2.6 | P51: =F51/D51*100 -> 56.11583413 | R51: 12.56 | T51: 979585 | V51: =+ROUND(T51/D51*100,2) -> 3.57
A52: 315 | B52: ACCESSORY ELECTRIC EQUIPMENT | D52: 10271933.77 | F52: 5585791.271 | H52: 57.27272727 | J52: 20 | L52: =+ROUND(D52*N52/100,0) -> 246526 | N52: 2.4 | P52: =F52/D52*100 -> 54.37915972 | R52: 12.86 | T52: 380372 | V52: =+ROUND(T52/D52*100,2) -> 3.7
A53: 316 | B53: MISCELLANEOUS POWER PLANT EQUIPMENT | D53: 3879628.68 | F53: 1972391.771 | H53: 52.61904762 | J53: 19.9 | L53: =+ROUND(D53*N53/100,0) -> 93111 | N53: 2.4 | P53: =F53/D53*100 -> 50.83970486 | R53: 12.77 | T53: 149353 | V53: =+ROUND(T53/D53*100,2) -> 3.85
B54: TOTAL MARTIN COMMON | D54: =+SUBTOTAL(9,D49:D53) -> 290016584.1 | F54: =+SUBTOTAL(9,F49:F53) -> 187456055.3 | L54: =+SUBTOTAL(9,L49:L53) -> 6305125 | N54: =+ROUND(L54/D54*100,1) -> 2.2 | T54: =+SUBTOTAL(9,T49:T53) -> 8122509 | V54: =+T54/D54*100 -> 2.80070501
B56: MARTIN PIPELINE
A57: 312 | B57: BOILER PLANT EQUIPMENT | D57: 370941.56 | F57: 370941.56 | H57: 54.075 | J57: 19.4 | L57: =+ROUND(D57*N57/100,0) -> 9644 | N57: 2.6 | P57: =F57/D57*100 -> 100 | R57: 12.21 | T57: 0 | V57: =+ROUND(T57/D57*100,2) -> 0
B58: TOTAL MARTIN PIPELINE | D58: =+SUBTOTAL(9,D57:D57) -> 370941.56 | F58: =+SUBTOTAL(9,F57:F57) -> 370941.56 | L58: =+SUBTOTAL(9,L57:L57) -> 9644 | N58: =+ROUND(L58/D58*100,1) -> 2.6 | T58: =+SUBTOTAL(9,T57:T57) -> 0
B60: MARTIN UNIT 1
A61: 311 | B61: STRUCTURES AND IMPROVEMENTS | D61: 16367428.14 | F61: 10593608.28 | H61: 55.87234043 | J61: 21 | L61: =+ROUND(D61*N61/100,0) -> 343716 | N61: 2.1 | P61: =F61/D61*100 -> 64.72371952 | R61: 13.09 | T61: 453590 | V61: =+ROUND(T61/D61*100,2) -> 2.77
A62: 312 | B62: BOILER PLANT EQUIPMENT | D62: 212347650.8 | F62: 91195079.78 | H62: 54.075 | J62: 19.4 | L62: =+ROUND(D62*N62/100,0) -> 5521039 | N62: 2.6 | P62: =F62/D62*100 -> 42.94612135 | R62: 12.56 | T62: 9984039 | V62: =+ROUND(T62/D62*100,2) -> 4.7
A63: 314 | B63: TURBOGENERATOR UNITS | D63: 89915729.92 | F63: 52042195.83 | H63: 50.52631579 | J63: 18.8 | L63: =+ROUND(D63*N63/100,0) -> 2337809 | N63: 2.6 | P63: =F63/D63*100 -> 57.87885599 | R63: 12.57 | T63: 3084542 | V63: =+ROUND(T63/D63*100,2) -> 3.43
A64: 315 | B64: ACCESSORY ELECTRIC EQUIPMENT | D64: 24335747.45 | F64: 14796848.53 | H64: 57.27272727 | J64: 20 | L64: =+ROUND(D64*N64/100,0) -> 584058 | N64: 2.4 | P64: =F64/D64*100 -> 60.80293431 | R64: 12.81 | T64: 782640 | V64: =+ROUND(T64/D64*100,2) -> 3.22
A65: 316 | B65: MISCELLANEOUS POWER PLANT EQUIPMENT | D65: 3586002.99 | F65: 1812805.457 | H65: 52.61904762 | J65: 19.9 | L65: =+ROUND(D65*N65/100,0) -> 86064 | N65: 2.4 | P65: =F65/D65*100 -> 50.55225726 | R65: 12.78 | T65: 138748 | V65: =+ROUND(T65/D65*100,2) -> 3.87
B66: TOTAL MARTIN UNIT 1 | D66: =+SUBTOTAL(9,D61:D65) -> 346552559.3 | F66: =+SUBTOTAL(9,F61:F65) -> 170440537.9 | L66: =+SUBTOTAL(9,L61:L65) -> 8872686 | N66: =+ROUND(L66/D66*100,1) -> 2.6 | T66: =+SUBTOTAL(9,T61:T65) -> 14443559 | V66: =+T66/D66*100 -> 4.1677831
B68: MARTIN UNIT 2
A69: 311 | B69: STRUCTURES AND IMPROVEMENTS | D69: 11241256.67 | F69: 7751660.291 | H69: 55.87234043 | J69: 21 | L69: =+ROUND(D69*N69/100,0) -> 236066 | N69: 2.1 | P69: =F69/D69*100 -> 68.95723956 | R69: 13.05 | T69: 276016 | V69: =+ROUND(T69/D69*100,2) -> 2.46
A70: 312 | B70: BOILER PLANT EQUIPMENT | D70: 214665917.3 | F70: 88354501.53 | H70: 54.075 | J70: 19.4 | L70: =+ROUND(D70*N70/100,0) -> 5581314 | N70: 2.6 | P70: =F70/D70*100 -> 41.15907296 | R70: 12.59 | T70: 10373688 | V70: =+ROUND(T70/D70*100,2) -> 4.83
A71: 314 | B71: TURBOGENERATOR UNITS | D71: 82668790.6 | F71: 31513006.1 | H71: 50.52631579 | J71: 18.8 | L71: =+ROUND(D71*N71/100,0) -> 2149389 | N71: 2.6 | P71: =F71/D71*100 -> 38.1195925 | R71: 12.64 | T71: 4112537 | V71: =+ROUND(T71/D71*100,2) -> 4.97
A72: 315 | B72: ACCESSORY ELECTRIC EQUIPMENT | D72: 22992822.89 | F72: 12504334.39 | H72: 57.27272727 | J72: 20 | L72: =+ROUND(D72*N72/100,0) -> 551828 | N72: 2.4 | P72: =F72/D72*100 -> 54.38364158 | R72: 12.9 | T72: 848709 | V72: =+ROUND(T72/D72*100,2) -> 3.69
A73: 316 | B73: MISCELLANEOUS POWER PLANT EQUIPMENT | D73: 3273365.34 | F73: 1424240.871 | H73: 52.61904762 | J73: 19.9 | L73: =+ROUND(D73*N73/100,0) -> 78561 | N73: 2.4 | P73: =F73/D73*100 -> 43.50998815 | R73: 12.81 | T73: 144350 | V73: =+ROUND(T73/D73*100,2) -> 4.41
B74: TOTAL MARTIN UNIT 2 | D74: =+SUBTOTAL(9,D69:D73) -> 334842152.8 | F74: =+SUBTOTAL(9,F69:F73) -> 141547743.2 | L74: =+SUBTOTAL(9,L69:L73) -> 8597158 | N74: =+ROUND(L74/D74*100,1) -> 2.6 | T74: =+SUBTOTAL(9,T69:T73) -> 15755300 | V74: =+T74/D74*100 -> 4.705291693
A76: TOTAL MARTIN STEAM PLANT | D76: =+SUBTOTAL(9,D48:D75) -> 971782237.7 | F76: =+SUBTOTAL(9,F48:F75) -> 499815278 | L76: =+SUBTOTAL(9,L48:L75) -> 23784613 | N76: =+ROUND(L76/D76*100,1) -> 2.4 | T76: =+SUBTOTAL(9,T48:T75) -> 38321368 | V76: =+T76/D76*100 -> 3.943411035
A79: SCHERER STEAM PLANT
B81: SCHERER COAL CARS
A82: 312 | B82: BOILER PLANT EQUIPMENT | D82: 33149442.2 | F82: 33149442.2 | H82: 36.75 | J82: 26 | L82: =+ROUND(D82*N82/100,0) -> 861885 | N82: 2.6 | P82: =F82/D82*100 -> 100 | R82: 18.45 | T82: 0 | V82: =+ROUND(T82/D82*100,2) -> 0
B83: TOTAL SCHERER COAL CARS | D83: =+SUBTOTAL(9,D82:D82) -> 33149442.2 | F83: =+SUBTOTAL(9,F82:F82) -> 33149442.2 | L83: =+SUBTOTAL(9,L82:L82) -> 861885 | N83: =+ROUND(L83/D83*100,1) -> 2.6 | T83: =+SUBTOTAL(9,T82:T82) -> 0 | V83: =+T83/D83*100 -> 0
B85: SCHERER COMMON
A86: 311 | B86: STRUCTURES AND IMPROVEMENTS | D86: 40048942.61 | F86: 21435438.49 | H86: 40.82978723 | J86: 28 | L86: =+ROUND(D86*N86/100,0) -> 841028 | N86: 2.1 | P86: =F86/D86*100 -> 53.5231072 | R86: 20.68 | T86: 919439 | V86: =+ROUND(T86/D86*100,2) -> 2.3
A87: 312 | B87: BOILER PLANT EQUIPMENT | D87: 26275279.31 | F87: 12672089.54 | H87: 36.75 | J87: 26 | L87: =+ROUND(D87*N87/100,0) -> 683157 | N87: 2.6 | P87: =F87/D87*100 -> 48.22818205 | R87: 18.59 | T87: 788284 | V87: =+ROUND(T87/D87*100,2) -> 3
A88: 314 | B88: TURBOGENERATOR UNITS | D88: 4409078.75 | F88: 1937291.35 | H88: 34.21052632 | J88: 25 | L88: =+ROUND(D88*N88/100,0) -> 114636 | N88: 2.6 | P88: =F88/D88*100 -> 43.93868787 | R88: 19.12 | T88: 131584 | V88: =+ROUND(T88/D88*100,2) -> 2.98
A89: 315 | B89: ACCESSORY ELECTRIC EQUIPMENT | D89: 1246717.64 | F89: 704489.4484 | H89: 40.18181818 | J89: 27 | L89: =+ROUND(D89*N89/100,0) -> 29921 | N89: 2.4 | P89: =F89/D89*100 -> 56.50753834 | R89: 19.42 | T89: 29847 | V89: =+ROUND(T89/D89*100,2) -> 2.39
A90: 316 | B90: MISCELLANEOUS POWER PLANT EQUIPMENT | D90: 3720891.68 | F90: 1817682.14 | H90: 36.07142857 | J90: 27 | L90: =+ROUND(D90*N90/100,0) -> 89301 | N90: 2.4 | P90: =F90/D90*100 -> 48.85071365 | R90: 19.66 | T90: 98699 | V90: =+ROUND(T90/D90*100,2) -> 2.65
B91: TOTAL SCHERER COMMON | D91: =+SUBTOTAL(9,D86:D90) -> 75700909.99 | F91: =+SUBTOTAL(9,F86:F90) -> 38566990.96 | L91: =+SUBTOTAL(9,L86:L90) -> 1758043 | N91: =+ROUND(L91/D91*100,1) -> 2.3 | T91: =+SUBTOTAL(9,T86:T90) -> 1967853 | V91: =+T91/D91*100 -> 2.599510363
B93: SCHERER COMMON UNIT 3 AND 4
A94: 311 | B94: STRUCTURES AND IMPROVEMENTS | D94: 3049496.26 | F94: 1704572.549 | H94: 41.23404255 | J94: 28 | L94: =+ROUND(D94*N94/100,0) -> 67089 | N94: 2.2 | P94: =F94/D94*100 -> 55.89685652 | R94: 20.64 | T94: 66639 | V94: =+ROUND(T94/D94*100,2) -> 2.19
A95: 312 | B95: BOILER PLANT EQUIPMENT | D95: 22708657.52 | F95: 10156497.58 | H95: 37.1 | J95: 26 | L95: =+ROUND(D95*N95/100,0) -> 613134 | N95: 2.7 | P95: =F95/D95*100 -> 44.72522239 | R95: 18.81 | T95: 715604 | V95: =+ROUND(T95/D95*100,2) -> 3.15
A96: 314 | B96: TURBOGENERATOR UNITS | D96: 2878397.99 | F96: 294184.2446 | H96: 34.21052632 | J96: 25 | L96: =+ROUND(D96*N96/100,0) -> 74838 | N96: 2.6 | P96: =F96/D96*100 -> 10.22041586 | R96: 19.7 | T96: 132639 | V96: =+ROUND(T96/D96*100,2) -> 4.61
A97: 315 | B97: ACCESSORY ELECTRIC EQUIPMENT | D97: 2865604.55 | F97: 303886.8386 | H97: 40.56818182 | J97: 27 | L97: =+ROUND(D97*N97/100,0) -> 68775 | N97: 2.4 | P97: =F97/D97*100 -> 10.60463275 | R97: 20.52 | T97: 129030 | V97: =+ROUND(T97/D97*100,2) -> 4.5
B98: TOTAL SCHERER COMMON UNIT 3 AND 4 | D98: =+SUBTOTAL(9,D94:D97) -> 31502156.32 | F98: =+SUBTOTAL(9,F94:F97) -> 12459141.21 | L98: =+SUBTOTAL(9,L94:L97) -> 823836 | N98: =+ROUND(L98/D98*100,1) -> 2.6 | T98: =+SUBTOTAL(9,T94:T97) -> 1043912 | V98: =+T98/D98*100 -> 3.313779506
B100: SCHERER UNIT 4
A101: 311 | B101: STRUCTURES AND IMPROVEMENTS | D101: 161759187.5 | F101: 42338154.11 | H101: 40.82978723 | J101: 28 | L101: =+ROUND(D101*N101/100,0) -> 3396943 | N101: 2.1 | P101: =F101/D101*100 -> 26.17356996 | R101: 20.93 | T101: 5783021 | V101: =+ROUND(T101/D101*100,2) -> 3.58
A102: 312 | B102: BOILER PLANT EQUIPMENT | D102: 682720321.1 | F102: 193672542.1 | H102: 36.75 | J102: 26 | L102: =+ROUND(D102*N102/100,0) -> 17750728 | N102: 2.6 | P102: =F102/D102*100 -> 28.36777171 | R102: 19.31 | T102: 26740372 | V102: =+ROUND(T102/D102*100,2) -> 3.92
A103: 314 | B103: TURBOGENERATOR UNITS | D103: 124903380.6 | F103: 61685842.93 | H103: 34.21052632 | J103: 25 | L103: =+ROUND(D103*N103/100,0) -> 3247488 | N103: 2.6 | P103: =F103/D103*100 -> 49.38684815 | R103: 19.09 | T103: 3376981 | V103: =+ROUND(T103/D103*100,2) -> 2.7
A104: 315 | B104: ACCESSORY ELECTRIC EQUIPMENT | D104: 50198263.53 | F104: 15152820.55 | H104: 40.18181818 | J104: 27 | L104: =+ROUND(D104*N104/100,0) -> 1204758 | N104: 2.4 | P104: =F104/D104*100 -> 30.18594565 | R104: 20.07 | T104: 1821195 | V104: =+ROUND(T104/D104*100,2) -> 3.63
A105: 316 | B105: MISCELLANEOUS POWER PLANT EQUIPMENT | D105: 5202651.35 | F105: 2391381.315 | H105: 36.07142857 | J105: 27 | L105: =+ROUND(D105*N105/100,0) -> 124864 | N105: 2.4 | P105: =F105/D105*100 -> 45.96466599 | R105: 19.78 | T105: 144757 | V105: =+ROUND(T105/D105*100,2) -> 2.78
B106: TOTAL SCHERER UNIT 4 | D106: =+SUBTOTAL(9,D101:D105) -> 1024783804 | F106: =+SUBTOTAL(9,F101:F105) -> 315240741 | L106: =+SUBTOTAL(9,L101:L105) -> 25724781 | N106: =+ROUND(L106/D106*100,1) -> 2.5 | T106: =+SUBTOTAL(9,T101:T105) -> 37866326 | V106: =+T106/D106*100 -> 3.695055079
A108: TOTAL SCHERER STEAM PLANT | D108: =+SUBTOTAL(9,D80:D107) -> 1165136313 | F108: =+SUBTOTAL(9,F80:F107) -> 399416315.4 | L108: =+SUBTOTAL(9,L80:L107) -> 29168545 | N108: =+ROUND(L108/D108*100,1) -> 2.5 | T108: =+SUBTOTAL(9,T80:T107) -> 40878091 | V108: =+T108/D108*100 -> 3.508438503
A111: SJRPP STEAM PLANT
B113: SJRPP COAL AND LIMESTONE
A114: 311 | B114: STRUCTURES AND IMPROVEMENTS | D114: 3538785.86 | F114: 1868163.03 | H114: 40.82978723 | J114: 28 | L114: =+ROUND(D114*N114/100,0) -> 74315 | N114: 2.1 | P114: =F114/D114*100 -> 52.79107309 | R114: 19.55 | T114: 87264 | V114: =+ROUND(T114/D114*100,2) -> 2.47
A115: 312 | B115: BOILER PLANT EQUIPMENT | D115: 30678751.75 | F115: 15854784.62 | H115: 36.75 | J115: 26 | L115: =+ROUND(D115*N115/100,0) -> 797648 | N115: 2.6 | P115: =F115/D115*100 -> 51.68001863 | R115: 17.23 | T115: 931580 | V115: =+ROUND(T115/D115*100,2) -> 3.04
A116: 315 | B116: ACCESSORY ELECTRIC EQUIPMENT | D116: 3748249.87 | F116: 2207826.06 | H116: 40.18181818 | J116: 27 | L116: =+ROUND(D116*N116/100,0) -> 89958 | N116: 2.4 | P116: =F116/D116*100 -> 58.90285164 | R116: 18.35 | T116: 90075 | V116: =+ROUND(T116/D116*100,2) -> 2.4
A117: 316 | B117: MISCELLANEOUS POWER PLANT EQUIPMENT | D117: 298312.17 | F117: 167024.57 | H117: 36.07142857 | J117: 27 | L117: =+ROUND(D117*N117/100,0) -> 7159 | N117: 2.4 | P117: =F117/D117*100 -> 55.98986122 | R117: 18.5 | T117: 7258 | V117: =+ROUND(T117/D117*100,2) -> 2.43
B118: TOTAL SJRPP COAL AND LIMESTONE | D118: =+SUBTOTAL(9,D114:D117) -> 38264099.65 | F118: =+SUBTOTAL(9,F114:F117) -> 20097798.28 | L118: =+SUBTOTAL(9,L114:L117) -> 969080 | N118: =+ROUND(L118/D118*100,1) -> 2.5 | T118: =+SUBTOTAL(9,T114:T117) -> 1116177 | V118: =+T118/D118*100 -> 2.917034532
B120: SJRPP COAL CARS
A121: 312 | B121: BOILER PLANT EQUIPMENT | D121: 52104.91 | F121: 52104.93 | H121: 36.75 | J121: 26 | L121: =+ROUND(D121*N121/100,0) -> 1355 | N121: 2.6 | P121: =F121/D121*100 -> 100.0000384 | R121: 17.1 | T121: 0 | V121: =+ROUND(T121/D121*100,2) -> 0
B122: TOTAL SJRPP COAL CARS | D122: =+SUBTOTAL(9,D121:D121) -> 52104.91 | F122: =+SUBTOTAL(9,F121:F121) -> 52104.93 | L122: =+SUBTOTAL(9,L121:L121) -> 1355 | N122: =+ROUND(L122/D122*100,1) -> 2.6 | T122: =+SUBTOTAL(9,T121:T121) -> 0 | V122: =+T122/D122*100 -> 0
B124: SJRPP COMMON
A125: 311 | B125: STRUCTURES AND IMPROVEMENTS | D125: 33324990.64 | F125: 22656891.85 | H125: 42.9787234 | J125: 27 | L125: =+ROUND(D125*N125/100,0) -> 699825 | N125: 2.1 | P125: =F125/D125*100 -> 67.98769155 | R125: 19.62 | T125: 560721 | V125: =+ROUND(T125/D125*100,2) -> 1.68
A126: 312 | B126: BOILER PLANT EQUIPMENT | D126: 3714735.93 | F126: 2636058.376 | H126: 39.375 | J126: 25 | L126: =+ROUND(D126*N126/100,0) -> 96583 | N126: 2.6 | P126: =F126/D126*100 -> 70.96220097 | R126: 17.48 | T126: 70210 | V126: =+ROUND(T126/D126*100,2) -> 1.89
A127: 314 | B127: TURBOGENERATOR UNITS | D127: 2511326.32 | F127: 1735625.518 | H127: 36.84210526 | J127: 24 | L127: =+ROUND(D127*N127/100,0) -> 65294 | N127: 2.6 | P127: =F127/D127*100 -> 69.11190727 | R127: 17.97 | T127: 44564 | V127: =+ROUND(T127/D127*100,2) -> 1.77
A128: 315 | B128: ACCESSORY ELECTRIC EQUIPMENT | D128: 5865106.8 | F128: 4091638.225 | H128: 42.54545455 | J128: 26 | L128: =+ROUND(D128*N128/100,0) -> 140763 | N128: 2.4 | P128: =F128/D128*100 -> 69.76238225 | R128: 18.46 | T128: 105602 | V128: =+ROUND(T128/D128*100,2) -> 1.8
A129: 316 | B129: MISCELLANEOUS POWER PLANT EQUIPMENT | D129: 1607470.4 | F129: 1035942.652 | H129: 38.47619048 | J129: 26 | L129: =+ROUND(D129*N129/100,0) -> 38579 | N129: 2.4 | P129: =F129/D129*100 -> 64.44551962 | R129: 18.68 | T129: 31456 | V129: =+ROUND(T129/D129*100,2) -> 1.96
B130: TOTAL SJRPP COMMON | D130: =+SUBTOTAL(9,D125:D129) -> 47023630.09 | F130: =+SUBTOTAL(9,F125:F129) -> 32156156.62 | L130: =+SUBTOTAL(9,L125:L129) -> 1041044 | N130: =+ROUND(L130/D130*100,1) -> 2.2 | T130: =+SUBTOTAL(9,T125:T129) -> 812553 | V130: =+T130/D130*100 -> 1.727967404
B132: SJRPP GYPSUM AND ASH
A133: 311 | B133: STRUCTURES AND IMPROVEMENTS | D133: 2158590.42 | F133: 1153359.85 | H133: 42.9787234 | J133: 27 | L133: =+ROUND(D133*N133/100,0) -> 45330 | N133: 2.1 | P133: =F133/D133*100 -> 53.43115763 | R133: 19.61 | T133: 52362 | V133: =+ROUND(T133/D133*100,2) -> 2.43
A134: 312 | B134: BOILER PLANT EQUIPMENT | D134: 16972047.61 | F134: 9823710.95 | H134: 39.375 | J134: 25 | L134: =+ROUND(D134*N134/100,0) -> 441273 | N134: 2.6 | P134: =F134/D134*100 -> 57.88170747 | R134: 17.12 | T134: 457197 | V134: =+ROUND(T134/D134*100,2) -> 2.69
A135: 315 | B135: ACCESSORY ELECTRIC EQUIPMENT | D135: 52222.78 | F135: 32590.69 | H135: 42.54545455 | J135: 26 | L135: =+ROUND(D135*N135/100,0) -> 1253 | N135: 2.4 | P135: =F135/D135*100 -> 62.4070377 | R135: 18.5 | T135: 1146 | V135: =+ROUND(T135/D135*100,2) -> 2.19
A136: 316 | B136: MISCELLANEOUS POWER PLANT EQUIPMENT | D136: 153865.69 | F136: 67155.16 | H136: 38.47619048 | J136: 26 | L136: =+ROUND(D136*N136/100,0) -> 3693 | N136: 2.4 | P136: =F136/D136*100 -> 43.6453117 | R136: 18.79 | T136: 4697 | V136: =+ROUND(T136/D136*100,2) -> 3.05
B137: TOTAL SJRPP GYPSUM AND ASH | D137: =+SUBTOTAL(9,D133:D136) -> 19336726.5 | F137: =+SUBTOTAL(9,F133:F136) -> 11076816.65 | L137: =+SUBTOTAL(9,L133:L136) -> 491549 | N137: =+ROUND(L137/D137*100,1) -> 2.5 | T137: =+SUBTOTAL(9,T133:T136) -> 515402 | V137: =+T137/D137*100 -> 2.665404612
B139: SJRPP UNIT 1
A140: 311 | B140: STRUCTURES AND IMPROVEMENTS | D140: 9098352.49 | F140: 6630362.909 | H140: 42.9787234 | J140: 27 | L140: =+ROUND(D140*N140/100,0) -> 191065 | N140: 2.1 | P140: =F140/D140*100 -> 72.87432441 | R140: 19.54 | T140: 130961 | V140: =+ROUND(T140/D140*100,2) -> 1.44
A141: 312 | B141: BOILER PLANT EQUIPMENT | D141: 100163071.9 | F141: 52036604.99 | H141: 39.375 | J141: 25 | L141: =+ROUND(D141*N141/100,0) -> 2604240 | N141: 2.6 | P141: =F141/D141*100 -> 51.95188604 | R141: 17.77 | T141: 2933764 | V141: =+ROUND(T141/D141*100,2) -> 2.93
A142: 314 | B142: TURBOGENERATOR UNITS | D142: 31632809.4 | F142: 15898435.54 | H142: 36.84210526 | J142: 24 | L142: =+ROUND(D142*N142/100,0) -> 822453 | N142: 2.6 | P142: =F142/D142*100 -> 50.25932202 | R142: 18.38 | T142: 873270 | V142: =+ROUND(T142/D142*100,2) -> 2.76
A143: 315 | B143: ACCESSORY ELECTRIC EQUIPMENT | D143: 12543007.01 | F143: 8124525.988 | H143: 42.54545455 | J143: 26 | L143: =+ROUND(D143*N143/100,0) -> 301032 | N143: 2.4 | P143: =F143/D143*100 -> 64.77335125 | R143: 18.55 | T143: 258478 | V143: =+ROUND(T143/D143*100,2) -> 2.06
A144: 316 | B144: MISCELLANEOUS POWER PLANT EQUIPMENT | D144: 2049400.34 | F144: 1428937.052 | H144: 38.47619048 | J144: 26 | L144: =+ROUND(D144*N144/100,0) -> 49186 | N144: 2.4 | P144: =F144/D144*100 -> 69.72464206 | R144: 18.58 | T144: 34497 | V144: =+ROUND(T144/D144*100,2) -> 1.68
B145: TOTAL SJRPP UNIT 1 | D145: =+SUBTOTAL(9,D140:D144) -> 155486641.2 | F145: =+SUBTOTAL(9,F140:F144) -> 84118866.48 | L145: =+SUBTOTAL(9,L140:L144) -> 3967976 | N145: =+ROUND(L145/D145*100,1) -> 2.6 | T145: =+SUBTOTAL(9,T140:T144) -> 4230970 | V145: =+T145/D145*100 -> 2.721114797
B147: SJRPP UNIT 2
A148: 311 | B148: STRUCTURES AND IMPROVEMENTS | D148: 7123662.16 | F148: 4212841.51 | H148: 42.9787234 | J148: 27 | L148: =+ROUND(D148*N148/100,0) -> 149597 | N148: 2.1 | P148: =F148/D148*100 -> 59.13870444 | R148: 19.51 | T148: 152848 | V148: =+ROUND(T148/D148*100,2) -> 2.15
A149: 312 | B149: BOILER PLANT EQUIPMENT | D149: 89481418.8 | F149: 41170858.05 | H149: 39.375 | J149: 25 | L149: =+ROUND(D149*N149/100,0) -> 2326517 | N149: 2.6 | P149: =F149/D149*100 -> 46.01051101 | R149: 17.76 | T149: 2921724 | V149: =+ROUND(T149/D149*100,2) -> 3.27
A150: 314 | B150: TURBOGENERATOR UNITS | D150: 28267581.84 | F150: 11215912.66 | H150: 36.84210526 | J150: 24 | L150: =+ROUND(D150*N150/100,0) -> 734957 | N150: 2.6 | P150: =F150/D150*100 -> 39.67765168 | R150: 18.38 | T150: 943109 | V150: =+ROUND(T150/D150*100,2) -> 3.34
A151: 315 | B151: ACCESSORY ELECTRIC EQUIPMENT | D151: 10030603.41 | F151: 5480957.91 | H151: 42.54545455 | J151: 26 | L151: =+ROUND(D151*N151/100,0) -> 240734 | N151: 2.4 | P151: =F151/D151*100 -> 54.64235486 | R151: 18.44 | T151: 263046 | V151: =+ROUND(T151/D151*100,2) -> 2.62
A152: 316 | B152: MISCELLANEOUS POWER PLANT EQUIPMENT | D152: 1560108.42 | F152: 895106.18 | H152: 38.47619048 | J152: 26 | L152: =+ROUND(D152*N152/100,0) -> 37443 | N152: 2.4 | P152: =F152/D152*100 -> 57.37461375 | R152: 18.6 | T152: 36592 | V152: =+ROUND(T152/D152*100,2) -> 2.35
B153: TOTAL SJRPP UNIT 2 | D153: =+SUBTOTAL(9,D148:D152) -> 136463374.6 | F153: =+SUBTOTAL(9,F148:F152) -> 62975676.31 | L153: =+SUBTOTAL(9,L148:L152) -> 3489248 | N153: =+ROUND(L153/D153*100,1) -> 2.6 | T153: =+SUBTOTAL(9,T148:T152) -> 4317319 | V153: =+T153/D153*100 -> 3.163719944
A155: TOTAL SJRPP STEAM PLANT | D155: =+SUBTOTAL(9,D113:D154) -> 396626576.9 | F155: =+SUBTOTAL(9,F113:F154) -> 210477419.3 | L155: =+SUBTOTAL(9,L113:L154) -> 9960252 | N155: =+ROUND(L155/D155*100,1) -> 2.5 | T155: =+SUBTOTAL(9,T113:T154) -> 10992421 | V155: =+T155/D155*100 -> 2.771478675
A157: TOTAL STEAM PRODUCTION | D157: =+SUBTOTAL(9,D17:D156) -> 3243194417 | F157: =+SUBTOTAL(9,F17:F156) -> 1503193994 | L157: =+SUBTOTAL(9,L17:L156) -> 80638814 | N157: =+ROUND(L157/D157*100,1) -> 2.5 | T157: =+SUBTOTAL(9,T17:T156) -> 122769150 | V157: =+T157/D157*100 -> 3.785439114
A160: NUCLEAR PRODUCTION PLANT
A162: ST. LUCIE NUCLEAR PLANT
B164: ST. LUCIE COMMON
A165: 321 | B165: STRUCTURES AND IMPROVEMENTS | D165: 397119195.7 | F165: 177004049.9 | H165: 42.85714286 | J165: 32 | L165: =+ROUND(D165*N165/100,0) -> 7148146 | N165: 1.8 | P165: =F165/D165*100 -> 44.57202064 | R165: 24.26 | T165: 9236865 | V165: =+ROUND(T165/D165*100,2) -> 2.33
A166: 322 | B166: REACTOR PLANT EQUIPMENT | D166: 55584106.71 | F166: 31607489.04 | H166: 42 | J166: 30 | L166: =+ROUND(D166*N166/100,0) -> 1111682 | N166: 2 | P166: =F166/D166*100 -> 56.86425655 | R166: 22.87 | T166: 1096996 | V166: =+ROUND(T166/D166*100,2) -> 1.97
A167: 323 | B167: TURBOGENERATOR UNITS | D167: 12406915.97 | F167: -7437953.893 | H167: 34.14634146 | J167: 27 | L167: =+ROUND(D167*N167/100,0) -> 297766 | N167: 2.4 | P167: =F167/D167*100 -> -59.95006261 | R167: 21.52 | T167: 922159 | V167: =+ROUND(T167/D167*100,2) -> 7.43
A168: 324 | B168: ACCESSORY ELECTRIC EQUIPMENT | D168: 34379625.87 | F168: 16953508.44 | H168: 43.96551724 | J168: 33 | L168: =+ROUND(D168*N168/100,0) -> 618833 | N168: 1.8 | P168: =F168/D168*100 -> 49.31266123 | R168: 23.89 | T168: 743822 | V168: =+ROUND(T168/D168*100,2) -> 2.16
A169: 325 | B169: MISCELLANEOUS POWER PLANT EQUIPMENT | D169: 20728940.61 | F169: 2303180.018 | H169: 41.81818182 | J169: 32 | L169: =+ROUND(D169*N169/100,0) -> 373121 | N169: 1.8 | P169: =F169/D169*100 -> 11.11093934 | R169: 21.93 | T169: 868565 | V169: =+ROUND(T169/D169*100,2) -> 4.19
B170: TOTAL ST. LUCIE COMMON | D170: =+SUBTOTAL(9,D165:D169) -> 520218784.8 | F170: =+SUBTOTAL(9,F165:F169) -> 220430273.5 | L170: =+SUBTOTAL(9,L165:L169) -> 9549548 | N170: =+ROUND(L170/D170*100,1) -> 1.8 | T170: =+SUBTOTAL(9,T165:T169) -> 12868407 | V170: =+T170/D170*100 -> 2.473652889
B172: ST. LUCIE UNIT 1
A173: 321 | B173: STRUCTURES AND IMPROVEMENTS | D173: 196854866.3 | F173: 101666895.5 | H173: 53.57142857 | J173: 26 | L173: =+ROUND(D173*N173/100,0) -> 3543388 | N173: 1.8 | P173: =F173/D173*100 -> 51.6456095 | R173: 17.73 | T173: 5479781 | V173: =+ROUND(T173/D173*100,2) -> 2.78
A174: 322 | B174: REACTOR PLANT EQUIPMENT | D174: 845363775 | F174: 303976050.3 | H174: 52 | J174: 25 | L174: =+ROUND(D174*N174/100,0) -> 16907276 | N174: 2 | P174: =F174/D174*100 -> 35.95801705 | R174: 17.11 | T174: 32629749 | V174: =+ROUND(T174/D174*100,2) -> 3.86
A175: 323 | B175: TURBOGENERATOR UNITS | D175: 413333703.6 | F175: 56813276.81 | H175: 46.34146341 | J175: 22 | L175: =+ROUND(D175*N175/100,0) -> 9920009 | N175: 2.4 | P175: =F175/D175*100 -> 13.7451353 | R175: 16.48 | T175: 21633521 | V175: =+ROUND(T175/D175*100,2) -> 5.23
A176: 324 | B176: ACCESSORY ELECTRIC EQUIPMENT | D176: 120786348.1 | F176: 50666362.97 | H176: 56.27586207 | J176: 26 | L176: =+ROUND(D176*N176/100,0) -> 2174154 | N176: 1.8 | P176: =F176/D176*100 -> 41.94709401 | R176: 17.74 | T176: 4020736 | V176: =+ROUND(T176/D176*100,2) -> 3.33
A177: 325 | B177: MISCELLANEOUS POWER PLANT EQUIPMENT | D177: 11438745.22 | F177: 7097019.395 | H177: 54.54545455 | J177: 25 | L177: =+ROUND(D177*N177/100,0) -> 205897 | N177: 1.8 | P177: =F177/D177*100 -> 62.043688 | R177: 15.22 | T177: 307811 | V177: =+ROUND(T177/D177*100,2) -> 2.69
B178: TOTAL ST. LUCIE UNIT 1 | D178: =+SUBTOTAL(9,D173:D177) -> 1587777438 | F178: =+SUBTOTAL(9,F173:F177) -> 520219605 | L178: =+SUBTOTAL(9,L173:L177) -> 32750724 | N178: =+ROUND(L178/D178*100,1) -> 2.1 | T178: =+SUBTOTAL(9,T173:T177) -> 64071598 | V178: =+T178/D178*100 -> 4.035300947
B180: ST. LUCIE UNIT 2
A181: 321 | B181: STRUCTURES AND IMPROVEMENTS | D181: 298911837.3 | F181: 133449792.7 | H181: 42.85714286 | J181: 32 | L181: =+ROUND(D181*N181/100,0) -> 5380413 | N181: 1.8 | P181: =F181/D181*100 -> 44.64520172 | R181: 24.24 | T181: 6949305 | V181: =+ROUND(T181/D181*100,2) -> 2.32
A182: 322 | B182: REACTOR PLANT EQUIPMENT | D182: 1057336501 | F182: 401479217 | H182: 42 | J182: 30 | L182: =+ROUND(D182*N182/100,0) -> 21146730 | N182: 2 | P182: =F182/D182*100 -> 37.9708084 | R182: 22.86 | T182: 29615224 | V182: =+ROUND(T182/D182*100,2) -> 2.8
A183: 323 | B183: TURBOGENERATOR UNITS | D183: 350466490.1 | F183: 54374394.01 | H183: 34.14634146 | J183: 27 | L183: =+ROUND(D183*N183/100,0) -> 8411196 | N183: 2.4 | P183: =F183/D183*100 -> 15.51486249 | R183: 21.65 | T183: 13676309 | V183: =+ROUND(T183/D183*100,2) -> 3.9
A184: 324 | B184: ACCESSORY ELECTRIC EQUIPMENT | D184: 189637024.6 | F184: 86957686.15 | H184: 43.96551724 | J184: 33 | L184: =+ROUND(D184*N184/100,0) -> 3413466 | N184: 1.8 | P184: =F184/D184*100 -> 45.85480412 | R184: 23.78 | T184: 4397633 | V184: =+ROUND(T184/D184*100,2) -> 2.32
A185: 325 | B185: MISCELLANEOUS POWER PLANT EQUIPMENT | D185: 24225433.39 | F185: 11438959.96 | H185: 41.81818182 | J185: 32 | L185: =+ROUND(D185*N185/100,0) -> 436058 | N185: 1.8 | P185: =F185/D185*100 -> 47.21880422 | R185: 20.11 | T185: 671966 | V185: =+ROUND(T185/D185*100,2) -> 2.77
B186: TOTAL ST. LUCIE UNIT 2 | D186: =+SUBTOTAL(9,D181:D185) -> 1920577286 | F186: =+SUBTOTAL(9,F181:F185) -> 687700049.8 | L186: =+SUBTOTAL(9,L181:L185) -> 38787863 | N186: =+ROUND(L186/D186*100,1) -> 2 | T186: =+SUBTOTAL(9,T181:T185) -> 55310437 | V186: =+T186/D186*100 -> 2.879886032
A188: TOTAL ST. LUCIE NUCLEAR PLANT | D188: =+SUBTOTAL(9,D165:D187) -> 4028573509 | F188: =+SUBTOTAL(9,F165:F187) -> 1428349928 | L188: =+SUBTOTAL(9,L165:L187) -> 81088135 | N188: =+ROUND(L188/D188*100,1) -> 2 | T188: =+SUBTOTAL(9,T165:T187) -> 132250442 | V188: =+T188/D188*100 -> 3.282810694
A191: TURKEY POINT NUCLEAR PLANT
B193: TURKEY POINT COMMON
A194: 321 | B194: STRUCTURES AND IMPROVEMENTS | D194: 380704673.4 | F194: 186854084 | H194: 58.92857143 | J194: 23 | L194: =+ROUND(D194*N194/100,0) -> 6852684 | N194: 1.8 | P194: =F194/D194*100 -> 49.08111117 | R194: 15.03 | T194: 13150874 | V194: =+ROUND(T194/D194*100,2) -> 3.45
A195: 322 | B195: REACTOR PLANT EQUIPMENT | D195: 144884580.2 | F195: 25644014.41 | H195: 58 | J195: 22 | L195: =+ROUND(D195*N195/100,0) -> 2897692 | N195: 2 | P195: =F195/D195*100 -> 17.69961605 | R195: 14.66 | T195: 8331395 | V195: =+ROUND(T195/D195*100,2) -> 5.75
A196: 323 | B196: TURBOGENERATOR UNITS | D196: 22821885.52 | F196: 5761406.509 | H196: 51.46341463 | J196: 19.9 | L196: =+ROUND(D196*N196/100,0) -> 547725 | N196: 2.4 | P196: =F196/D196*100 -> 25.24509425 | R196: 14.07 | T196: 1212543 | V196: =+ROUND(T196/D196*100,2) -> 5.31
A197: 324 | B197: ACCESSORY ELECTRIC EQUIPMENT | D197: 56769857.59 | F197: 34483979.7 | H197: 61.55172414 | J197: 23 | L197: =+ROUND(D197*N197/100,0) -> 1021857 | N197: 1.8 | P197: =F197/D197*100 -> 60.74346697 | R197: 15.03 | T197: 1520531 | V197: =+ROUND(T197/D197*100,2) -> 2.68
A198: 325 | B198: MISCELLANEOUS POWER PLANT EQUIPMENT | D198: 39215641.06 | F198: 17765783.16 | H198: 58.18181818 | J198: 23 | L198: =+ROUND(D198*N198/100,0) -> 705882 | N198: 1.8 | P198: =F198/D198*100 -> 45.3027993 | R198: 14.44 | T198: 1566920 | V198: =+ROUND(T198/D198*100,2) -> 4
B199: TOTAL TURKEY POINT COMMON | D199: =+SUBTOTAL(9,D194:D198) -> 644396637.8 | F199: =+SUBTOTAL(9,F194:F198) -> 270509267.8 | L199: =+SUBTOTAL(9,L194:L198) -> 12025840 | N199: =+ROUND(L199/D199*100,1) -> 1.9 | T199: =+SUBTOTAL(9,T194:T198) -> 25782263 | V199: =+T199/D199*100 -> 4.000992787
B201: TURKEY POINT UNIT 3
A202: 321 | B202: STRUCTURES AND IMPROVEMENTS | D202: 185601316.1 | F202: 40968914.85 | H202: 58.92857143 | J202: 23 | L202: =+ROUND(D202*N202/100,0) -> 3340824 | N202: 1.8 | P202: =F202/D202*100 -> 22.07361225 | R202: 14.34 | T202: 10215371 | V202: =+ROUND(T202/D202*100,2) -> 5.5
A203: 322 | B203: REACTOR PLANT EQUIPMENT | D203: 595235354.2 | F203: 176726668.3 | H203: 58 | J203: 22 | L203: =+ROUND(D203*N203/100,0) -> 11904707 | N203: 2 | P203: =F203/D203*100 -> 29.690217 | R203: 13.91 | T203: 30942731 | V203: =+ROUND(T203/D203*100,2) -> 5.2
A204: 323 | B204: TURBOGENERATOR UNITS | D204: 758820503.5 | F204: 99120406.05 | H204: 51.46341463 | J204: 19.9 | L204: =+ROUND(D204*N204/100,0) -> 18211692 | N204: 2.4 | P204: =F204/D204*100 -> 13.06243118 | R204: 13.53 | T204: 48758322 | V204: =+ROUND(T204/D204*100,2) -> 6.43
A205: 324 | B205: ACCESSORY ELECTRIC EQUIPMENT | D205: 153810947.6 | F205: 73799056.88 | H205: 61.55172414 | J205: 23 | L205: =+ROUND(D205*N205/100,0) -> 2768597 | N205: 1.8 | P205: =F205/D205*100 -> 47.98036682 | R205: 14.32 | T205: 5694832 | V205: =+ROUND(T205/D205*100,2) -> 3.7
A206: 325 | B206: MISCELLANEOUS POWER PLANT EQUIPMENT | D206: 16088187.86 | F206: 890396.5208 | H206: 58.18181818 | J206: 23 | L206: =+ROUND(D206*N206/100,0) -> 289587 | N206: 1.8 | P206: =F206/D206*100 -> 5.534473668 | R206: 13.93 | T206: 1125660 | V206: =+ROUND(T206/D206*100,2) -> 7
